Workbook

Sheet はじめに
A1: 中山間地域等直接支払交付金参考様式集（第6期対策）
A2: ★基本情報入力欄 はじめに太枠内の情報を入力してください。
B3: 都道府県名 | D3: ○○県 | E3: ← 「都道府県」まで記入してください。
B4: 市町村名 | D4: △△市 | E4: ← 「市町村」まで記入してください。
B5: 協定名 | D5: あいうえお集落協定
B6: 代表者名 | D6: 中山間 太郎
B7: 協定所在地 | D7: ○○県△△市○町
A9: ★記入の手順と注意事項
B10: ・「★提出書類と各シートの説明」のシート名をクリックすることで、入力する様式に移動します。または、画面下の様式名を選択すると、入力する様式を切り替えることができます。左下の◀▶をクリックすることで、隠れている様式を表示させることができます。
B11: （※まず初めに、「別紙２①」の「農用地の内訳等及びネットワーク化活動計画」を入力すると作成がスムーズです。）
B13: ・すべての集落協定の方が入力する必要のあるセルには、この色（オレンジ色）が塗ってあります。
B14: ・該当する場合に、集落協定の方が入力する必要のあるセルには、この色（薄いオレンジ色）が塗ってあります。
B15: ・この色（黄緑色）が塗ってあるセルは自動入力されます。自動入力されたものが間違っている場合は、正しく修正してください。（入力されている数式を消去すると、自由に入力できます。）
B16: ・市町村に提出する前に、自動集計された箇所も含め、誤りがないかご確認ください。
B17: ・行を追加する際は、一番左にある行番号をクリックして行全体をコピーし、表の最下部の太線より上の位置で行番号を右クリックし「コピーしたセルの挿入」を選択してください。
B18: ・画面上部に右のような表示が出た場合は「コンテンツの有効化」を押してください。
A20: ★提出書類と各シートの説明
A21: １．事業計画の申請時に提出するもの
B22: 様式番号 | D22: 様式名 | F22: 提出の必要性 | G22: シート名
B23: 参考様式第４号 | D23: 多面的機能発揮促進事業に関する計画の認定［変更の認定］の申請について | F23: 必須 （集落・個別協定） | G23: 参４_申請
F24: 必須 （集落・個別協定） | G24: 参４_申請_事業計画
C25: 別紙様式１ （共通部分） | D25: 農業の有する多面的機能の発揮の促進に関する活動計画書 （中山間地域等直接支払に関する集落協定） | F25: 必須 （集落・個別協定） | G25: 別紙１①
C26: 別添１ | D26: 実施区域位置図 | F26: 必須 （集落・個別協定） | G26: 別紙１②
C27: 別添２ | D27: 構成員一覧 | F27: 必須 （集落・個別協定） | G27: 別紙１③
C28: 別紙○ | D28: ２号事業様式（中山間地域等直接支払交付金） | F28: 必須 （集落協定） | G28: 別紙１④
C29: 別紙様式２ | D29: 農用地の内訳等及びネットワーク化活動計画 | F29: 必須 （集落協定） | G29: 別紙２①
C30: 別紙様式３ | D30: 協定対象施設の管理方法 | F30: 必須 （集落協定） | G30: 別紙３
C31: 別紙様式４ | D31: 土地改良通年施行実施計画書 | F31: 必須 （集落協定） | G31: 別紙４
C32: 別紙様式５ | D32: 農業所得の確認に関する承諾書 | F32: 必須 （集落協定） | G32: 別紙５
C33: 別紙様式６ | D33: 個別協定 経営規模及び農業所得調書 | F33: 必須 （個別協定） | G33: 別紙６
C34: 別紙様式７ | D34: 協定農用地の概要 | F34: 必要に応じて （集落・個別協定） | G34: 別紙７
C35: 別添 | D35: 農作業受委託契約書（様式例） | F35: 必要に応じて （集落・個別協定） | G35: 別紙７（別添）
C36: 別紙様式８ | D36: 環境負荷低減のチェックシート（集落協定向け） | F36: 必須 （集落協定） | G36: 別紙８
C37: 別紙様式９ | D37: 環境負荷低減のチェックシート（個別協定向け） | F37: 必須 （個別協定） | G37: 別紙９
A39: ２．ネットワーク化活動計画作成時に使用するもの
B40: 様式番号 | D40: 様式名 | F40: 提出の必要性 | G40: シート名
C41: 別紙様式２ | D41: 農用地の内訳等及びネットワーク化活動計画 ○農用地の内訳等 | F41: 必須 （集落協定） | G41: 別紙２① （再掲）
D42: 農用地の内訳等及びネットワーク化活動計画 ○ネットワーク化活動計画 | F42: 必須 （集落協定） | G42: 別紙２②（ネットワーク化活動計画）
F43: 必要に応じて （集落協定） | G43: 別紙２③（ネットワーク化）
F44: 必要に応じて （集落協定） | G44: 別紙２④（統合）
F45: 必要に応じて （集落協定） | G45: 別紙２⑤（多様な組織等の参画）
A46: ３．その他の様式
B47: 様式番号 | D47: 様式名 | F47: 提出の必要性 | G47: シート名
B48: 参考様式第10号 | D48: 中山間地域等直接支払交付金交付農用地の自然災害における災害復旧計画の提出について | F48: 必要に応じて （集落・個別協定） | G48: 参10
B49: 参考様式第12号 | D49: 共用資産管理台帳 | F49: 必要に応じて （集落協定） | G49: 参12
B50: 参考様式第13号 | D50: 機械等利用管理規程 | F50: 必要に応じて （集落協定） | G50: 参13
B51: 参考様式第14号 | D51: 機械等利用簿 | F51: 必要に応じて （集落協定） | G51: 参14
B52: 参考様式第17号 | D52: 令和7年度中山間地域等直接支払交付金早期交付申請書 | F52: 必要に応じて （集落・個別協定） | G52: 参17
G53: 参17_別紙
B54: 別紙１ | D54: 中山間地域等直接支払交付金収支報告書 （「中山間地域等直接支払交付金に係る会計経理の明確化及び税務対応の円滑化について」に基づく様式） | F54: 必須 （集落協定） | G54: 収支報告書（収支報告書連動）
B55: 別紙 | D55: 中山間地域等直接支払交付金の支出に係る届出について （「中山間地域等直接支払交付金における共同取組活動に要する経費の適正な支出について」に基づく様式） | F55: 必要に応じて （集落協定） | G55: 支出に係る届出
B56: ー | D56: 中山間地域等直接支払交付金 活動記録 | F56: 必要に応じて | G56: 活動記録（参考）
B57: ー | D57: 中山間地域等直接支払交付金 金銭出納簿 | F57: 必要に応じて | G57: 金銭出納簿（今年度）（参考）
G58: 金銭出納簿（前年度）（参考）
B59: （参考）
B60: ー | D60: 活動記録（多面的機能支払交付金の様式） | F60: ー | G60: 活動記録（多面的機能支払交付金の様式）
B61: ー | D61: 金銭出納簿（多面的機能支払交付金の様式） | F61: ー | G61: 金銭出納簿（多面的機能支払交付金の様式）
A64: ４．その他のシート（集落協定の方は入力不要です。（市町村用））
B65: 様式番号 | D65: 内容 | F65: 提出の必要性 | G65: シート名
D66: 市町村の実施状況調査の集計用シート | G66: 実施状況報告（様式2）

Sheet 別紙２①
S1: （別紙様式２）
A2: 農用地の内訳等及びネットワーク化活動計画
A3: 注１）「農用地の内訳等」は集落協定書に添付し、提出期限（当該年度の６月30日、令和７年度においては８月31日）までに協定農用地の存する市町村長に提出する。
A4: 注２）「ネットワーク化活動計画」は、体制整備単価の適用を受けようとする場合に作成するものとし、ネットワーク化活動計画の作成後は、遅滞なく協定農用地の存する市町村長に提出するとともに、令和11年度まで毎年度、記載内容の確認を行うものとする。
U5: 【別紙２①農用地の内訳等】⑤農用地の管理において、P列[農用地の現況]が"荒廃農地"かつQ列[具体的活動内容]が"復旧"と入力した面積の計。
C6: 棚田地域振興活動加算 | F6: ネットワーク化活動計画を 作成する | G6: =IF(S14="","",S14) -> 〇
C7: 超急傾斜農地保全管理加算
C8: ネットワーク化加算 | F8: ネットワーク化活動計画を 作成しない | G8: =IF(S15="","",S15) -> 
C9: スマート農業加算
C10: 集落機能強化加算の経過措置
A12: ○農用地の内訳等 | U12: こちらのセルには関数が入っているので変更しないでください。
A14: ①現況 | I14: ②基礎・体制整備単価 | K14: ③農業生産活動等の体制整備の取組（ネットワーク化活動計画の作成）の有無 | P14: ネットワーク化活動計画を作成する | S14: 〇
P15: ネットワーク化活動計画を作成しない
K16: ④加算の適用 | P16: ⑤農用地の管理 | R16: ⑥管理者 | S16: ⑦個人配分を受ける所得超過者の引受地
A17: 地域区分 | B17: 一団の農用地名 | C17: 団地名 | D17: 地番 | E17: 地目 | F17: 面積(㎡) | G17: 交付基準(傾斜等) | H17: 超急傾斜農地 棚田地域振興農地のうち | I17: 10a当たりの単価(円) | J17: 交付額(円) | K17: 棚田地域振興活動加算 | L17: 超急傾斜農地保全管理加算 | M17: ネットワーク化加算 | N17: スマート農業加算 | O17: 集落機能強化加算の経過措置 | P17: 農用地の現況 | Q17: 具体的な活動内容 | U17: ネットワーク化活動計画＋目＋傾斜
A18: 通常地域（8法内） | B18: ○○地区 | C18: A1団地 | D18: ○○町○○番の１ | E18: 田 | F18: 589 | G18: 緩傾斜 | I18: =IFERROR(VLOOKUP(U18,プルダウンリスト!$D$17:$E$88,2,FALSE),"") -> 8000 | J18: =IFERROR(ROUNDDOWN(F18*I18/1000,0),"") -> 4712 | P18: 耕作地 | R18: 農林太郎 | U18: =$S$14&E18&G18 -> 〇田緩傾斜
A19: 通常地域（8法内） | B19: ○○地区 | C19: A1団地 | D19: ○○町○○番の２ | E19: 田 | F19: 357 | G19: 小区画・不整形 | I19: =IFERROR(VLOOKUP(U19,プルダウンリスト!$D$17:$E$88,2,FALSE),"") -> 8000 | J19: 2856 | M19: 〇 | P19: 耕作地 | R19: 農林太郎 | U19: 〇田小区画・不整形
A20: 通常地域（8法内） | B20: ○○地区 | C20: A1団地 | D20: ○○町○○番の３ | E20: 田 | F20: 210 | G20: 特認基準（急傾斜） | I20: =IFERROR(VLOOKUP(U20,プルダウンリスト!$D$17:$E$88,2,FALSE),"") -> 21000 | J20: 4410 | K20: 〇 | M20: 〇 | P20: 耕作地 | R20: 農林太郎 | U20: 〇田特認基準（急傾斜）
A21: 通常地域（8法内） | B21: ○○地区 | C21: A1団地 | D21: ○○町○○番の４ | E21: 田 | F21: 754 | G21: 緩傾斜 | I21: =IFERROR(VLOOKUP(U21,プルダウンリスト!$D$17:$E$88,2,FALSE),"") -> 8000 | J21: 6032 | P21: 耕作地 | R21: 農林太郎 | U21: 〇田緩傾斜
A22: 通常地域（8法内） | B22: ○○地区 | C22: A1団地 | D22: ○○町○○番の５ | E22: 田 | F22: 721 | G22: 急傾斜 | I22: =IFERROR(VLOOKUP(U22,プルダウンリスト!$D$17:$E$88,2,FALSE),"") -> 21000 | J22: 15141 | P22: 耕作地 | R22: 農林太郎 | U22: 〇田急傾斜
A23: 通常地域（8法内） | B23: ○○地区 | C23: A1団地 | D23: ○○町○○番の６ | E23: 田 | F23: 385 | G23: 急傾斜 | I23: =IFERROR(VLOOKUP(U23,プルダウンリスト!$D$17:$E$88,2,FALSE),"") -> 21000 | J23: 8085 | K23: 〇 | P23: 耕作地 | R23: 農林太郎 | U23: 〇田急傾斜
A24: 通常地域（8法内） | B24: ○○地区 | C24: A1団地 | D24: ○○町○○番の７ | E24: 田 | F24: 545 | G24: 急傾斜 | I24: =IFERROR(VLOOKUP(U24,プルダウンリスト!$D$17:$E$88,2,FALSE),"") -> 21000 | J24: 11445 | P24: 耕作地 | R24: 農林太郎 | U24: 〇田急傾斜
A25: 通常地域（8法内） | B25: ○○地区 | C25: A1団地 | D25: ○○町○○番の８ | E25: 田 | F25: 312 | G25: 急傾斜 | I25: =IFERROR(VLOOKUP(U25,プルダウンリスト!$D$17:$E$88,2,FALSE),"") -> 21000 | J25: 6552 | K25: 〇 | P25: 耕作地 | R25: 農林太郎 | U25: 〇田急傾斜
A26: 通常地域（8法内） | B26: ○○地区 | C26: A1団地 | D26: ○○町○○番の９ | E26: 田 | F26: 194 | G26: 急傾斜 | I26: =IFERROR(VLOOKUP(U26,プルダウンリスト!$D$17:$E$88,2,FALSE),"") -> 21000 | J26: 4074 | P26: 耕作地 | R26: 農林太郎 | U26: 〇田急傾斜
A27: 通常地域（8法内） | B27: ○○地区 | C27: A1団地 | D27: ○○町○○番の１０ | E27: 田 | F27: 100 | G27: 高齢化・耕作放棄率 | I27: =IFERROR(VLOOKUP(U27,プルダウンリスト!$D$17:$E$88,2,FALSE),"") -> 8000 | J27: 800 | P27: 耕作地 | R27: 農林太郎 | U27: 〇田高齢化・耕作放棄率
A28: 通常地域（8法内） | B28: ○○地区 | C28: A1団地 | D28: ○○町○○番の１ | E28: 田 | F28: 312 | G28: 急傾斜 | I28: =IFERROR(VLOOKUP(U28,プルダウンリスト!$D$17:$E$88,2,FALSE),"") -> 21000 | J28: 6552 | P28: 耕作地 | R28: 農林太郎 | U28: 〇田急傾斜
A29: 通常地域（8法内） | B29: ○○地区 | C29: A1団地 | D29: ○○町○○番の２ | E29: 田 | F29: 66 | G29: 急傾斜 | I29: =IFERROR(VLOOKUP(U29,プルダウンリスト!$D$17:$E$88,2,FALSE),"") -> 21000 | J29: 1386 | P29: 耕作地 | R29: 農林太郎 | U29: 〇田急傾斜
A30: 通常地域（8法内） | B30: ○○地区 | C30: A1団地 | D30: ○○町○○番の３ | E30: 田 | F30: 200 | G30: 急傾斜 | I30: =IFERROR(VLOOKUP(U30,プルダウンリスト!$D$17:$E$88,2,FALSE),"") -> 21000 | J30: 4200 | P30: 耕作地 | R30: 農林太郎 | U30: 〇田急傾斜
A31: 通常地域（8法内） | B31: ○○地区 | C31: A1団地 | D31: ○○町○○番の４ | E31: 田 | F31: 173 | G31: 急傾斜 | I31: =IFERROR(VLOOKUP(U31,プルダウンリスト!$D$17:$E$88,2,FALSE),"") -> 21000 | J31: 3633 | P31: 耕作地 | R31: 農林太郎 | U31: 〇田急傾斜
A32: 通常地域（8法内） | B32: ○○地区 | C32: A1団地 | D32: ○○町○○番の５ | E32: 田 | F32: 32 | G32: 急傾斜 | I32: =IFERROR(VLOOKUP(U32,プルダウンリスト!$D$17:$E$88,2,FALSE),"") -> 21000 | J32: 672 | P32: 耕作地 | R32: 農林太郎 | U32: 〇田急傾斜
A33: 通常地域（8法内） | B33: ○○地区 | C33: A1団地 | D33: ○○町○○番の６ | E33: 田 | F33: 712 | G33: 急傾斜 | I33: =IFERROR(VLOOKUP(U33,プルダウンリスト!$D$17:$E$88,2,FALSE),"") -> 21000 | J33: 14952 | P33: 耕作地 | R33: 農林太郎 | U33: 〇田急傾斜
A34: 通常地域（8法内） | B34: ○○地区 | C34: A1団地 | D34: ○○町○○番の７ | E34: 田 | F34: 286 | G34: 急傾斜 | I34: =IFERROR(VLOOKUP(U34,プルダウンリスト!$D$17:$E$88,2,FALSE),"") -> 21000 | J34: 6006 | P34: 耕作地 | R34: 農林太郎 | U34: 〇田急傾斜
A35: 通常地域（8法内） | B35: ○○地区 | C35: A1団地 | D35: ○○町○○番の８ | E35: 田 | F35: 483 | G35: 急傾斜 | I35: =IFERROR(VLOOKUP(U35,プルダウンリスト!$D$17:$E$88,2,FALSE),"") -> 21000 | J35: 10143 | P35: 耕作地 | R35: 農林太郎 | U35: 〇田急傾斜
A36: 通常地域（8法内） | B36: ○○地区 | C36: A1団地 | D36: ○○町○○番の９ | E36: 田 | F36: 252 | G36: 急傾斜 | I36: =IFERROR(VLOOKUP(U36,プルダウンリスト!$D$17:$E$88,2,FALSE),"") -> 21000 | J36: 5292 | P36: 耕作地 | R36: 農林太郎 | U36: 〇田急傾斜
A37: 通常地域（8法内） | B37: ○○地区 | C37: A1団地 | D37: ○○町○○番の１０ | E37: 田 | F37: 280 | G37: 急傾斜 | I37: =IFERROR(VLOOKUP(U37,プルダウンリスト!$D$17:$E$88,2,FALSE),"") -> 21000 | J37: 5880 | P37: 耕作地 | R37: 農林太郎 | U37: 〇田急傾斜
A38: 通常地域（8法内） | B38: ○○地区 | C38: A1団地 | D38: ○○町○○番の１ | E38: 田 | F38: 168 | G38: 急傾斜 | I38: =IFERROR(VLOOKUP(U38,プルダウンリスト!$D$17:$E$88,2,FALSE),"") -> 21000 | J38: 3528 | P38: 耕作地 | R38: 農林太郎 | S38: 〇 | U38: 〇田急傾斜
A39: 通常地域（8法内） | B39: ○○地区 | C39: B1団地 | D39: ○○町○○番の８ | E39: 田 | F39: 188 | G39: 急傾斜 | I39: =IFERROR(VLOOKUP(U39,プルダウンリスト!$D$17:$E$88,2,FALSE),"") -> 21000 | J39: 3948 | P39: 耕作地 | R39: 農林太郎 | U39: 〇田急傾斜
A40: 通常地域（8法内） | B40: ○○地区 | C40: B1団地 | D40: ○○町○○番の９ | E40: 田 | F40: 720 | G40: 急傾斜 | I40: =IFERROR(VLOOKUP(U40,プルダウンリスト!$D$17:$E$88,2,FALSE),"") -> 21000 | J40: 15120 | P40: 耕作地 | R40: 農林太郎 | U40: 〇田急傾斜
A41: 通常地域（8法内） | B41: ○○地区 | C41: B1団地 | D41: ○○町○○番の１０ | E41: 田 | F41: 547 | G41: 急傾斜 | I41: =IFERROR(VLOOKUP(U41,プルダウンリスト!$D$17:$E$88,2,FALSE),"") -> 21000 | J41: 11487 | P41: 耕作地 | R41: 農林太郎 | U41: 〇田急傾斜
A42: 通常地域（8法内） | B42: ○○地区 | C42: B2団地 | D42: ○○町○○番の１ | E42: 田 | F42: 690 | G42: 急傾斜 | I42: =IFERROR(VLOOKUP(U42,プルダウンリスト!$D$17:$E$88,2,FALSE),"") -> 21000 | J42: 14490 | P42: 耕作地 | R42: 農林太郎 | U42: 〇田急傾斜
A43: 通常地域（8法内） | B43: ○○地区 | C43: B2団地 | D43: ○○町○○番の２ | E43: 田 | F43: 400 | G43: 急傾斜 | I43: =IFERROR(VLOOKUP(U43,プルダウンリスト!$D$17:$E$88,2,FALSE),"") -> 21000 | J43: 8400 | P43: 耕作地 | R43: 農林太郎 | U43: 〇田急傾斜
A44: 通常地域（8法内） | B44: ○○地区 | C44: B2団地 | D44: ○○町○○番の３ | E44: 田 | F44: 212 | G44: 急傾斜 | I44: =IFERROR(VLOOKUP(U44,プルダウンリスト!$D$17:$E$88,2,FALSE),"") -> 21000 | J44: 4452 | P44: 耕作地 | R44: 農林太郎 | U44: 〇田急傾斜
A45: 通常地域（8法内） | B45: ○○地区 | C45: B2団地 | D45: ○○町○○番の４ | E45: 田 | F45: 793 | G45: 急傾斜 | I45: =IFERROR(VLOOKUP(U45,プルダウンリスト!$D$17:$E$88,2,FALSE),"") -> 21000 | J45: 16653 | P45: 耕作地 | R45: 農林太郎 | U45: 〇田急傾斜
A46: 通常地域（8法内） | B46: ○○地区 | C46: B3団地 | D46: ○○町○○番の５ | E46: 田 | F46: 536 | G46: 小区画・不整形 | I46: =IFERROR(VLOOKUP(U46,プルダウンリスト!$D$17:$E$88,2,FALSE),"") -> 8000 | J46: 4288 | P46: 耕作地 | R46: 農林太郎 | U46: 〇田小区画・不整形
A47: 通常地域（8法内） | B47: ○○地区 | C47: B4団地 | D47: ○○町○○番の６ | E47: 田 | F47: 491 | G47: 高齢化・耕作放棄率 | I47: =IFERROR(VLOOKUP(U47,プルダウンリスト!$D$17:$E$88,2,FALSE),"") -> 8000 | J47: 3928 | P47: 耕作地 | R47: 農林太郎 | U47: 〇田高齢化・耕作放棄率
A48: 通常地域（8法内） | B48: ○○地区 | C48: B5団地 | D48: ○○町○○番の７ | E48: 田 | F48: 813 | G48: 特認基準（緩傾斜） | I48: =IFERROR(VLOOKUP(U48,プルダウンリスト!$D$17:$E$88,2,FALSE),"") -> 8000 | J48: 6504 | P48: 耕作地 | R48: 農林太郎 | U48: 〇田特認基準（緩傾斜）
A49: 通常地域（8法内） | B49: ○○地区 | C49: B5団地 | D49: ○○町○○番の３ | E49: 田 | F49: 414 | G49: 特認基準（急傾斜） | I49: =IFERROR(VLOOKUP(U49,プルダウンリスト!$D$17:$E$88,2,FALSE),"") -> 21000 | J49: 8694 | P49: 耕作地 | R49: 農林太郎 | S49: 〇 | U49: 〇田特認基準（急傾斜）
A50: 通常地域（8法内） | B50: ○○地区 | C50: B5団地 | D50: ○○町○○番の９ | E50: 田 | F50: 738 | G50: 急傾斜 | I50: =IFERROR(VLOOKUP(U50,プルダウンリスト!$D$17:$E$88,2,FALSE),"") -> 21000 | J50: 15498 | L50: 〇 | P50: 耕作地 | R50: 農林太郎 | U50: 〇田急傾斜
A51: 通常地域（8法内） | B51: ○○地区 | C51: B5団地 | D51: ○○町○○番の１０ | E51: 田 | F51: 865 | G51: 急傾斜 | I51: =IFERROR(VLOOKUP(U51,プルダウンリスト!$D$17:$E$88,2,FALSE),"") -> 21000 | J51: 18165 | P51: 耕作地 | R51: 農林太郎 | U51: 〇田急傾斜
A52: 通常地域（8法内） | B52: ○○地区 | C52: B5団地 | D52: ○○町○○番の１０ | E52: 田 | F52: 463 | G52: 急傾斜 | I52: =IFERROR(VLOOKUP(U52,プルダウンリスト!$D$17:$E$88,2,FALSE),"") -> 21000 | J52: 9723 | P52: 耕作地 | R52: 農林太郎 | U52: 〇田急傾斜
A53: 通常地域（8法内） | B53: ○○地区 | C53: B5団地 | D53: ○○町○○番の１ | E53: 田 | F53: 162 | G53: 特認基準（緩傾斜） | I53: =IFERROR(VLOOKUP(U53,プルダウンリスト!$D$17:$E$88,2,FALSE),"") -> 8000 | J53: 1296 | P53: 耕作地 | R53: 農林太郎 | U53: 〇田特認基準（緩傾斜）
A54: 通常地域（8法内） | B54: ○○地区 | C54: B6団地 | D54: ○○町○○番の２ | E54: 畑 | F54: 1840 | G54: 急傾斜 | I54: =IFERROR(VLOOKUP(U54,プルダウンリスト!$D$17:$E$88,2,FALSE),"") -> 11500 | J54: 21160 | P54: 耕作地 | R54: 農林太郎 | U54: 〇畑急傾斜
A55: 通常地域（8法内） | B55: ○○地区 | C55: B6団地 | D55: ○○町○○番の３ | E55: 畑 | F55: 1647 | G55: 交付対象外（田畑混在地以外） | I55: =IFERROR(VLOOKUP(U55,プルダウンリスト!$D$17:$E$88,2,FALSE),"") -> 0 | J55: 0 | P55: 耕作地 | R55: 農林太郎 | U55: 〇畑交付対象外（田畑混在地以外）
A56: 通常地域（8法内） | B56: ○○地区 | C56: B6団地 | D56: ○○町○○番の４ | E56: 畑 | F56: 975 | G56: 交付対象外（田畑混在地） | I56: =IFERROR(VLOOKUP(U56,プルダウンリスト!$D$17:$E$88,2,FALSE),"") -> 0 | J56: 0 | P56: 耕作地 | R56: 農林太郎 | U56: 〇畑交付対象外（田畑混在地）
A57: 通常地域（8法内） | B57: ○○地区 | C57: B7団地 | D57: ○○町○○番の５ | E57: 畑 | F57: 1233 | G57: 緩傾斜 | I57: =IFERROR(VLOOKUP(U57,プルダウンリスト!$D$17:$E$88,2,FALSE),"") -> 3500 | J57: 4315 | K57: 〇 | P57: 耕作地 | R57: 農林太郎 | U57: 〇畑緩傾斜
A58: 通常地域（8法内） | B58: ○○地区 | C58: B7団地 | D58: ○○町○○番の６ | E58: 畑 | F58: 869 | G58: 高齢化・耕作放棄率 | I58: =IFERROR(VLOOKUP(U58,プルダウンリスト!$D$17:$E$88,2,FALSE),"") -> 3500 | J58: 3041 | O58: 〇 | P58: 耕作地 | R58: 農林太郎 | U58: 〇畑高齢化・耕作放棄率
A59: 通常地域（8法内） | B59: ○○地区 | C59: B7団地 | D59: ○○町○○番の７ | E59: 畑 | F59: 1477 | G59: 特認基準 | I59: =IFERROR(VLOOKUP(U59,プルダウンリスト!$D$17:$E$88,2,FALSE),"") ->  | P59: 耕作地 | R59: 農林太郎 | S59: 〇 | U59: 〇畑特認基準
A60: 通常地域（8法内） | B60: ○○地区 | C60: B7団地 | D60: ○○町○○番の８ | E60: 畑 | F60: 139 | G60: 交付対象外（田畑混在地） | I60: =IFERROR(VLOOKUP(U60,プルダウンリスト!$D$17:$E$88,2,FALSE),"") -> 0 | J60: 0 | P60: 耕作地 | R60: 農林太郎 | U60: 〇畑交付対象外（田畑混在地）
A61: 通常地域（8法内） | B61: ○○地区 | C61: B8団地 | D61: ○○町○○番の９ | E61: 草地 | F61: 1590 | G61: 特認基準（緩傾斜） | I61: =IFERROR(VLOOKUP(U61,プルダウンリスト!$D$17:$E$88,2,FALSE),"") -> 3000 | J61: 4770 | P61: 耕作地 | R61: 農林太郎 | U61: 〇草地特認基準（緩傾斜）
A62: 通常地域（8法内） | B62: ○○地区 | C62: B8団地 | D62: ○○町○○番の１ | E62: 草地 | F62: 1444 | G62: 急傾斜 | I62: =IFERROR(VLOOKUP(U62,プルダウンリスト!$D$17:$E$88,2,FALSE),"") -> 10500 | J62: 15162 | P62: 耕作地 | R62: 農林太郎 | U62: 〇草地急傾斜
A63: 通常地域（8法内） | B63: ○○地区 | C63: B8団地 | D63: ○○町○○番の２ | E63: 田 | F63: 1105 | G63: 急傾斜 | I63: =IFERROR(VLOOKUP(U63,プルダウンリスト!$D$17:$E$88,2,FALSE),"") -> 21000 | J63: 23205 | P63: 耕作地 | R63: 農林太郎 | U63: 〇田急傾斜
A64: 特認地域 | B64: ○○地区 | C64: C1団地 | D64: ○○町○○番の７ | E64: 田 | F64: 84 | G64: 急傾斜 | I64: =IFERROR(VLOOKUP(U64,プルダウンリスト!$D$17:$E$88,2,FALSE),"") -> 21000 | J64: 1764 | P64: 耕作地 | R64: 農林太郎 | U64: 〇田急傾斜
A65: 特認地域 | B65: ○○地区 | C65: C1団地 | D65: ○○町○○番の８ | E65: 田 | F65: 220 | G65: 急傾斜 | I65: =IFERROR(VLOOKUP(U65,プルダウンリスト!$D$17:$E$88,2,FALSE),"") -> 21000 | J65: 4620 | P65: 耕作地 | R65: 農林太郎 | U65: 〇田急傾斜
A66: 特認地域 | B66: ○○地区 | C66: C1団地 | D66: ○○町○○番の９ | E66: 田 | F66: 275 | G66: 急傾斜 | I66: =IFERROR(VLOOKUP(U66,プルダウンリスト!$D$17:$E$88,2,FALSE),"") -> 21000 | J66: 5775 | P66: 耕作地 | R66: 農林太郎 | U66: 〇田急傾斜
A67: 特認地域 | B67: ○○地区 | C67: C1団地 | D67: ○○町○○番の１０ | E67: 田 | F67: 189 | G67: 急傾斜 | I67: =IFERROR(VLOOKUP(U67,プルダウンリスト!$D$17:$E$88,2,FALSE),"") -> 21000 | J67: 3969 | P67: 耕作地 | R67: 農林太郎 | U67: 〇田急傾斜
A68: 特認地域 | B68: ○○地区 | C68: C1団地 | D68: ○○町○○番の１ | E68: 田 | F68: 912 | G68: 高齢化・耕作放棄率 | I68: =IFERROR(VLOOKUP(U68,プルダウンリスト!$D$17:$E$88,2,FALSE),"") -> 8000 | J68: 7296 | P68: 耕作地 | R68: 農林太郎 | U68: 〇田高齢化・耕作放棄率
A69: 特認地域 | B69: ○○地区 | C69: C1団地 | D69: ○○町○○番の２ | E69: 田 | F69: 979 | G69: 小区画・不整形 | I69: =IFERROR(VLOOKUP(U69,プルダウンリスト!$D$17:$E$88,2,FALSE),"") -> 8000 | J69: 7832 | P69: 耕作地 | R69: 農林太郎 | U69: 〇田小区画・不整形
A70: 特認地域 | B70: ○○地区 | C70: C1団地 | D70: ○○町○○番の３ | E70: 田 | F70: 357 | G70: 急傾斜 | I70: =IFERROR(VLOOKUP(U70,プルダウンリスト!$D$17:$E$88,2,FALSE),"") -> 21000 | J70: 7497 | P70: 耕作地 | R70: 農林太郎 | S70: 〇 | U70: 〇田急傾斜
A71: 特認地域 | B71: ○○地区 | C71: C1団地 | D71: ○○町○○番の４ | E71: 田 | F71: 543 | G71: 急傾斜 | I71: =IFERROR(VLOOKUP(U71,プルダウンリスト!$D$17:$E$88,2,FALSE),"") -> 21000 | J71: 11403 | P71: 耕作地 | R71: 農林太郎 | U71: 〇田急傾斜
A72: 特認地域 | B72: ○○地区 | C72: C1団地 | D72: ○○町○○番の５ | E72: 田 | F72: 194 | G72: 急傾斜 | I72: =IFERROR(VLOOKUP(U72,プルダウンリスト!$D$17:$E$88,2,FALSE),"") -> 21000 | J72: 4074 | P72: 耕作地 | R72: 農林太郎 | U72: 〇田急傾斜
A73: 特認地域 | B73: ○○地区 | C73: C1団地 | D73: ○○町○○番の６ | E73: 田 | F73: 56 | G73: 急傾斜 | I73: =IFERROR(VLOOKUP(U73,プルダウンリスト!$D$17:$E$88,2,FALSE),"") -> 21000 | J73: 1176 | P73: 耕作地 | R73: 農林太郎 | U73: 〇田急傾斜
A74: 特認地域 | B74: ○○地区 | C74: C1団地 | D74: ○○町○○番の７ | E74: 田 | F74: 637 | G74: 急傾斜 | I74: =IFERROR(VLOOKUP(U74,プルダウンリスト!$D$17:$E$88,2,FALSE),"") -> 21000 | J74: 13377 | P74: 耕作地 | R74: 農林太郎 | U74: 〇田急傾斜
A75: 特認地域 | B75: ○○地区 | C75: C1団地 | D75: ○○町○○番の８ | E75: 畑 | F75: 557 | G75: 特認基準 | I75: =IFERROR(VLOOKUP(U75,プルダウンリスト!$D$17:$E$88,2,FALSE),"") ->  | P75: 耕作地 | R75: 農林太郎 | U75: 〇畑特認基準
A76: 特認地域 | B76: ○○地区 | C76: D1団地 | D76: ○○町○○番の２４ | E76: 畑 | F76: 39 | G76: 特認基準（緩傾斜） | I76: =IFERROR(VLOOKUP(U76,プルダウンリスト!$D$17:$E$88,2,FALSE),"") -> 3500 | J76: 136 | P76: 耕作地 | R76: 農林太郎 | U76: 〇畑特認基準（緩傾斜）
A77: 特認地域 | B77: ○○地区 | C77: D1団地 | D77: ○○町○○番の２５ | E77: 畑 | F77: 3692 | G77: 緩傾斜 | I77: =IFERROR(VLOOKUP(U77,プルダウンリスト!$D$17:$E$88,2,FALSE),"") -> 3500 | J77: 12922 | P77: 耕作地 | R77: 農林太郎 | U77: 〇畑緩傾斜
A78: 特認地域 | B78: ○○地区 | C78: E1団地 | D78: ○○町○○番の２５ | E78: 草地 | F78: 110 | G78: 急傾斜 | I78: =IFERROR(VLOOKUP(U78,プルダウンリスト!$D$17:$E$88,2,FALSE),"") -> 10500 | J78: 1155 | P78: 耕作地 | R78: 農林太郎 | U78: 〇草地急傾斜
A79: 特認地域 | B79: ○○地区 | C79: E1団地 | D79: ○○町○○番の２５ | E79: 草地 | F79: 120 | G79: 特認基準（急傾斜） | I79: =IFERROR(VLOOKUP(U79,プルダウンリスト!$D$17:$E$88,2,FALSE),"") -> 10500 | J79: 1260 | O79: 〇 | P79: 耕作地 | R79: 農林太郎 | U79: 〇草地特認基準（急傾斜）
A80: 特認地域 | B80: ○○地区 | C80: E1団地 | D80: ○○町○○番の２５ | E80: 草地 | F80: 130 | G80: 高齢化・耕作放棄率 | I80: =IFERROR(VLOOKUP(U80,プルダウンリスト!$D$17:$E$88,2,FALSE),"") -> 3000 | J80: 390 | P80: 耕作地 | R80: 農林太郎 | U80: 〇草地高齢化・耕作放棄率
A81: 特認地域 | B81: ○○地区 | C81: E1団地 | D81: ○○町○○番の２５ | E81: 草地 | F81: 140 | G81: 草地比率の高い草地 | I81: =IFERROR(VLOOKUP(U81,プルダウンリスト!$D$17:$E$88,2,FALSE),"") -> 1500 | J81: 210 | P81: 耕作地 | R81: 農林太郎 | U81: 〇草地草地比率の高い草地
A82: 特認地域 | B82: ○○地区 | C82: E1団地 | D82: ○○町○○番の２５ | E82: 草地 | F82: 150 | G82: 特認基準 | I82: =IFERROR(VLOOKUP(U82,プルダウンリスト!$D$17:$E$88,2,FALSE),"") ->  | J82: =IFERROR(ROUNDDOWN(F82*I82/1000,0),"") ->  | P82: 耕作地 | R82: 農林太郎 | U82: =$S$14&E82&G82 -> 〇草地特認基準
A83: 特認地域 | B83: ○○地区 | C83: E1団地 | D83: ○○町○○番の２５ | E83: 草地 | F83: 160 | G83: 交付対象外（田草地混在地以外） | I83: =IFERROR(VLOOKUP(U83,プルダウンリスト!$D$17:$E$88,2,FALSE),"") -> 0 | J83: 0 | P83: 耕作地 | R83: 農林太郎 | U83: 〇草地交付対象外（田草地混在地以外）
A84: 特認地域 | B84: ○○地区 | C84: E1団地 | D84: ○○町○○番の２５ | E84: 草地 | F84: 170 | G84: 交付対象外（田草地混在地） | I84: =IFERROR(VLOOKUP(U84,プルダウンリスト!$D$17:$E$88,2,FALSE),"") -> 0 | J84: 0 | P84: 耕作地 | R84: 農林太郎 | U84: 〇草地交付対象外（田草地混在地）
A85: 特認地域 | B85: ○○地区 | C85: F1団地 | D85: ○○町○○番の２５ | E85: 採草放牧地 | F85: 210 | G85: 急傾斜 | I85: =IFERROR(VLOOKUP(U85,プルダウンリスト!$D$17:$E$88,2,FALSE),"") -> 1000 | J85: 210 | P85: 耕作地 | R85: 農林太郎 | U85: 〇採草放牧地急傾斜
A86: 特認地域 | B86: ○○地区 | C86: F1団地 | D86: ○○町○○番の２５ | E86: 採草放牧地 | F86: 220 | G86: 急傾斜 | I86: =IFERROR(VLOOKUP(U86,プルダウンリスト!$D$17:$E$88,2,FALSE),"") -> 1000 | J86: 220 | O86: 〇 | P86: 耕作地 | R86: 農林太郎 | U86: 〇採草放牧地急傾斜
A87: 特認地域 | B87: ○○地区 | C87: F1団地 | D87: ○○町○○番の２５ | E87: 採草放牧地 | F87: 230 | G87: 特認基準（緩傾斜） | I87: =IFERROR(VLOOKUP(U87,プルダウンリスト!$D$17:$E$88,2,FALSE),"") -> 300 | J87: 69 | P87: 耕作地 | R87: 農林太郎 | U87: 〇採草放牧地特認基準（緩傾斜）
A88: 特認地域 | B88: ○○地区 | C88: F1団地 | D88: ○○町○○番の２５ | E88: 採草放牧地 | F88: 240 | G88: 交付対象外（田採草放牧地混在地） | I88: =IFERROR(VLOOKUP(U88,プルダウンリスト!$D$17:$E$88,2,FALSE),"") -> 0 | J88: 0 | P88: 耕作地 | R88: 農林太郎 | U88: 〇採草放牧地交付対象外（田採草放牧地混在地）
A89: 特認地域 | B89: ○○地区 | C89: F1団地 | D89: ○○町○○番の２５ | E89: 採草放牧地 | F89: 250 | G89: 交付対象外（田採草放牧地混在地以外） | I89: =IFERROR(VLOOKUP(U89,プルダウンリスト!$D$17:$E$88,2,FALSE),"") -> 0 | J89: 0 | P89: 耕作地 | R89: 農林太郎 | U89: 〇採草放牧地交付対象外（田採草放牧地混在地以外）
I90: =IFERROR(VLOOKUP(U90,プルダウンリスト!$D$17:$E$88,2,FALSE),"") ->  | U90: 〇
I91: =IFERROR(VLOOKUP(U91,プルダウンリスト!$D$17:$E$88,2,FALSE),"") ->  | U91: 〇
I92: =IFERROR(VLOOKUP(U92,プルダウンリスト!$D$17:$E$88,2,FALSE),"") ->  | U92: 〇
I93: =IFERROR(VLOOKUP(U93,プルダウンリスト!$D$17:$E$88,2,FALSE),"") ->  | U93: 〇
I94: =IFERROR(VLOOKUP(U94,プルダウンリスト!$D$17:$E$88,2,FALSE),"") ->  | U94: 〇
I95: =IFERROR(VLOOKUP(U95,プルダウンリスト!$D$17:$E$88,2,FALSE),"") ->  | U95: 〇
I96: =IFERROR(VLOOKUP(U96,プルダウンリスト!$D$17:$E$88,2,FALSE),"") ->  | U96: 〇
I97: =IFERROR(VLOOKUP(U97,プルダウンリスト!$D$17:$E$88,2,FALSE),"") ->  | U97: 〇
I98: =IFERROR(VLOOKUP(U98,プルダウンリスト!$D$17:$E$88,2,FALSE),"") ->  | U98: 〇
I99: =IFERROR(VLOOKUP(U99,プルダウンリスト!$D$17:$E$88,2,FALSE),"") ->  | U99: 〇
I100: =IFERROR(VLOOKUP(U100,プルダウンリスト!$D$17:$E$88,2,FALSE),"") ->  | U100: 〇
I101: =IFERROR(VLOOKUP(U101,プルダウンリスト!$D$17:$E$88,2,FALSE),"") ->  | U101: 〇
I102: =IFERROR(VLOOKUP(U102,プルダウンリスト!$D$17:$E$88,2,FALSE),"") ->  | U102: 〇
I103: =IFERROR(VLOOKUP(U103,プルダウンリスト!$D$17:$E$88,2,FALSE),"") ->  | U103: 〇
I104: =IFERROR(VLOOKUP(U104,プルダウンリスト!$D$17:$E$88,2,FALSE),"") ->  | U104: 〇
I105: =IFERROR(VLOOKUP(U105,プルダウンリスト!$D$17:$E$88,2,FALSE),"") ->  | U105: 〇
A106: 行を追加する場合はこれより上の行をコピーして「コピーしたセルの挿入」をしてください。
F107: =SUM(F18:F105) -> 38346 | U107: 〇
A110: 上記表は以下の表に従って記載するものとする

Sheet プルダウンリスト
A1: 地目、傾斜
A2: 田 | B2: 畑 | C2: 草地 | D2: 採草放牧地
A3: 急傾斜 | B3: 急傾斜 | C3: 急傾斜 | D3: 急傾斜
A4: 緩傾斜 | B4: 緩傾斜 | C4: 緩傾斜 | D4: 緩傾斜
A5: 小区画・不整形 | B5: 高齢化・耕作放棄率 | C5: 高齢化・耕作放棄率 | D5: 特認基準（急傾斜） | E5: ←各地目、単価設定を修正（特認基準→特認基準（急傾斜））
A6: 高齢化・耕作放棄率 | B6: 特認基準（急傾斜） | C6: 草地比率の高い草地 | D6: 特認基準（緩傾斜） | E6: ←単価設定を追加（特認基準（緩傾斜））
A7: 特認基準（急傾斜） | B7: 特認基準（緩傾斜） | C7: 特認基準（急傾斜） | D7: 交付対象外（田採草放牧地混在地）
A8: 特認基準（緩傾斜） | B8: 交付対象外（田畑混在地） | C8: 特認基準（緩傾斜） | D8: 交付対象外（田採草放牧地混在地以外）
A9: 交付対象外 | B9: 交付対象外（田畑混在地以外） | C9: 交付対象外（田草地混在地） | D9: 協定に含めない管理すべき農用地
A10: 協定に含めない管理すべき農用地 | B10: 協定に含めない管理すべき農用地 | C10: 交付対象外（田草地混在地以外）
C11: 協定に含めない管理すべき農用地
A15: 単価一覧
A16: ネットワーク化活動計画 | B16: 地目 | C16: 傾斜 | D16: ネットワーク化活動計画＋地目＋傾斜 | E16: 交付単価
A17: 〇 | B17: 田 | C17: 急傾斜 | D17: =A17&B17&C17 -> 〇田急傾斜 | E17: 21000
A18: 〇 | B18: 田 | C18: 緩傾斜 | D18: =A18&B18&C18 -> 〇田緩傾斜 | E18: 8000
A19: 〇 | B19: 田 | C19: 小区画・不整形 | D19: =A19&B19&C19 -> 〇田小区画・不整形 | E19: 8000
A20: 〇 | B20: 田 | C20: 高齢化・耕作放棄率 | D20: =A20&B20&C20 -> 〇田高齢化・耕作放棄率 | E20: 8000
F21: ←単価設定を削除
A22: 〇 | B22: 田 | C22: 交付対象外 | D22: =A22&B22&C22 -> 〇田交付対象外 | E22: 0
A23: 〇 | B23: 田 | C23: 協定に含めない管理すべき農用地 | D23: 〇田協定に含めない管理すべき農用地 | E23: 0
A24: 〇 | B24: 田 | C24: 特認基準（急傾斜） | D24: 〇田特認基準（急傾斜） | E24: 21000 | F24: ←単価設定を追加
A25: 〇 | B25: 田 | C25: 特認基準（緩傾斜） | D25: 〇田特認基準（緩傾斜） | E25: 8000 | F25: ←単価設定を追加
A26: 〇 | B26: 畑 | C26: 急傾斜 | D26: 〇畑急傾斜 | E26: 11500
A27: 〇 | B27: 畑 | C27: 緩傾斜 | D27: 〇畑緩傾斜 | E27: 3500
A28: 〇 | B28: 畑 | C28: 高齢化・耕作放棄率 | D28: 〇畑高齢化・耕作放棄率 | E28: 3500
F29: ←単価設定を削除
A30: 〇 | B30: 畑 | C30: 交付対象外（田畑混在地） | D30: =A30&B30&C30 -> 〇畑交付対象外（田畑混在地） | E30: 0
A31: 〇 | B31: 畑 | C31: 交付対象外（田畑混在地以外） | D31: 〇畑交付対象外（田畑混在地以外） | E31: 0
A32: 〇 | B32: 畑 | C32: 協定に含めない管理すべき農用地 | D32: 〇畑協定に含めない管理すべき農用地 | E32: 0
A33: 〇 | B33: 畑 | C33: 特認基準（急傾斜） | D33: 〇畑特認基準（急傾斜） | E33: 11500 | F33: ←単価設定を追加
A34: 〇 | B34: 畑 | C34: 特認基準（緩傾斜） | D34: 〇畑特認基準（緩傾斜） | E34: 3500 | F34: ←単価設定を追加
A35: 〇 | B35: 草地 | C35: 急傾斜 | D35: 〇草地急傾斜 | E35: 10500
A36: 〇 | B36: 草地 | C36: 緩傾斜 | D36: 〇草地緩傾斜 | E36: 3000
A37: 〇 | B37: 草地 | C37: 高齢化・耕作放棄率 | D37: 〇草地高齢化・耕作放棄率 | E37: 3000
A38: 〇 | B38: 草地 | C38: 草地比率の高い草地 | D38: 〇草地草地比率の高い草地 | E38: 1500
F39: ←単価設定を削除
A40: 〇 | B40: 草地 | C40: 交付対象外（田草地混在地） | D40: =A40&B40&C40 -> 〇草地交付対象外（田草地混在地） | E40: 0
A41: 〇 | B41: 草地 | C41: 交付対象外（田草地混在地以外） | D41: 〇草地交付対象外（田草地混在地以外） | E41: 0
A42: 〇 | B42: 草地 | C42: 協定に含めない管理すべき農用地 | D42: 〇草地協定に含めない管理すべき農用地 | E42: 0
A43: 〇 | B43: 草地 | C43: 特認基準（急傾斜） | D43: 〇草地特認基準（急傾斜） | E43: 10500 | F43: ←単価設定を追加
A44: 〇 | B44: 草地 | C44: 特認基準（緩傾斜） | D44: 〇草地特認基準（緩傾斜） | E44: 3000 | F44: ←単価設定を追加
A45: 〇 | B45: 採草放牧地 | C45: 急傾斜 | D45: 〇採草放牧地急傾斜 | E45: 1000
A46: 〇 | B46: 採草放牧地 | C46: 緩傾斜 | D46: 〇採草放牧地緩傾斜 | E46: 300
F47: ←単価設定を削除
A48: 〇 | B48: 採草放牧地 | C48: 交付対象外（田採草放牧地混在地） | D48: =A48&B48&C48 -> 〇採草放牧地交付対象外（田採草放牧地混在地） | E48: 0
A49: 〇 | B49: 採草放牧地 | C49: 交付対象外（田採草放牧地混在地以外） | D49: 〇採草放牧地交付対象外（田採草放牧地混在地以外） | E49: 0
A50: 〇 | B50: 採草放牧地 | C50: 協定に含めない管理すべき農用地 | D50: 〇採草放牧地協定に含めない管理すべき農用地 | E50: 0
A51: 〇 | B51: 採草放牧地 | C51: 特認基準（急傾斜） | D51: 〇採草放牧地特認基準（急傾斜） | E51: 1000 | F51: ←単価設定を追加
A52: 〇 | B52: 採草放牧地 | C52: 特認基準（緩傾斜） | D52: 〇採草放牧地特認基準（緩傾斜） | E52: 300 | F52: ←単価設定を追加
B53: 田 | C53: 急傾斜 | D53: 田急傾斜 | E53: =E17*0.8 -> 16800
B54: 田 | C54: 緩傾斜 | D54: 田緩傾斜 | E54: =E18*0.8 -> 6400
B55: 田 | C55: 小区画・不整形 | D55: 田小区画・不整形 | E55: =E19*0.8 -> 6400
B56: 田 | C56: 高齢化・耕作放棄率 | D56: 田高齢化・耕作放棄率 | E56: =E20*0.8 -> 6400
F57: ←単価設定を削除
B58: 田 | C58: 交付対象外 | D58: =A58&B58&C58 -> 田交付対象外 | E58: =E22*0.8 -> 0
B59: 田 | C59: 協定に含めない管理すべき農用地 | D59: 田協定に含めない管理すべき農用地 | E59: 0
B60: 田 | C60: 特認基準（急傾斜） | D60: 田特認基準（急傾斜） | E60: =E24*0.8 -> 16800
B61: 田 | C61: 特認基準（緩傾斜） | D61: 田特認基準（緩傾斜） | E61: =E25*0.8 -> 6400
B62: 畑 | C62: 急傾斜 | D62: 畑急傾斜 | E62: =E26*0.8 -> 9200 | F62: ←単価設定を追加
B63: 畑 | C63: 緩傾斜 | D63: 畑緩傾斜 | E63: =E27*0.8 -> 2800 | F63: ←単価設定を追加
B64: 畑 | C64: 高齢化・耕作放棄率 | D64: 畑高齢化・耕作放棄率 | E64: =E28*0.8 -> 2800
F65: ←単価設定を削除
B66: 畑 | C66: 交付対象外（田畑混在地） | D66: =A66&B66&C66 -> 畑交付対象外（田畑混在地） | E66: =E30*0.8 -> 0
B67: 畑 | C67: 交付対象外（田畑混在地以外） | D67: 畑交付対象外（田畑混在地以外） | E67: =E31*0.8 -> 0
B68: 畑 | C68: 特認基準（急傾斜） | D68: 畑特認基準（急傾斜） | E68: =E33*0.8 -> 9200 | F68: ←単価設定を追加
B69: 畑 | C69: 特認基準（緩傾斜） | D69: 畑特認基準（緩傾斜） | E69: =E34*0.8 -> 2800 | F69: ←単価設定を追加
B70: 畑 | C70: 協定に含めない管理すべき農用地 | D70: 畑協定に含めない管理すべき農用地 | E70: =E32*0.8 -> 0
B71: 草地 | C71: 急傾斜 | D71: 草地急傾斜 | E71: =E35*0.8 -> 8400
B72: 草地 | C72: 緩傾斜 | D72: 草地緩傾斜 | E72: 2400
B73: 草地 | C73: 高齢化・耕作放棄率 | D73: 草地高齢化・耕作放棄率 | E73: 2400
B74: 草地 | C74: 草地比率の高い草地 | D74: 草地草地比率の高い草地 | E74: 1200
E75: 0 | F75: ←単価設定を削除
B76: 草地 | C76: 交付対象外（田草地混在地） | D76: =A76&B76&C76 -> 草地交付対象外（田草地混在地） | E76: 0
B77: 草地 | C77: 交付対象外（田草地混在地以外） | D77: 草地交付対象外（田草地混在地以外） | E77: 0
B78: 草地 | C78: 協定に含めない管理すべき農用地 | D78: 草地協定に含めない管理すべき農用地 | E78: 0
B79: 草地 | C79: 特認基準（急傾斜） | D79: 草地特認基準（急傾斜） | E79: =E35*0.8 -> 8400 | F79: ←単価設定を追加
B80: 草地 | C80: 特認基準（緩傾斜） | D80: 草地特認基準（緩傾斜） | E80: =E36*0.8 -> 2400 | F80: ←単価設定を追加
B81: 採草放牧地 | C81: 急傾斜 | D81: 採草放牧地急傾斜 | E81: =E45*0.8 -> 800
B82: 採草放牧地 | C82: 緩傾斜 | D82: 採草放牧地緩傾斜 | E82: =E46*0.8 -> 240
F83: ←単価設定を削除
B84: 採草放牧地 | C84: 交付対象外（田採草放牧地混在地） | D84: =A84&B84&C84 -> 採草放牧地交付対象外（田採草放牧地混在地） | E84: =E48*0.8 -> 0
B85: 採草放牧地 | C85: 交付対象外（田採草放牧地混在地以外） | D85: =A85&B85&C85 -> 採草放牧地交付対象外（田採草放牧地混在地以外） | E85: =E49*0.8 -> 0
B86: 採草放牧地 | C86: 協定に含めない管理すべき農用地 | D86: =A86&B86&C86 -> 採草放牧地協定に含めない管理すべき農用地 | E86: =E50*0.8 -> 0
B87: 採草放牧地 | C87: 特認基準（急傾斜） | D87: =A87&B87&C87 -> 採草放牧地特認基準（急傾斜） | E87: =E45*0.8 -> 800 | F87: ←単価設定を追加
B88: 採草放牧地 | C88: 特認基準（緩傾斜） | D88: =A88&B88&C88 -> 採草放牧地特認基準（緩傾斜） | E88: =E46*0.8 -> 240 | F88: ←単価設定を追加
A92: 農用地の現況及び活動内容
A93: 耕作地
A94: 維持管理農用地
A95: 荒廃農地
A96: 被災地
A97: 土地改良通年施行
A98: その他（具体的活動内容欄に記入）

Sheet 参４_申請
A1: （参考様式第４号） | AD1: 〇
E3: 年 月 日
A4: 市町村長 | C4: 殿
E5: =はじめに!D5&"" -> あいうえお集落協定
E6: =はじめに!D6&"" -> 中山間 太郎
A8: 多面的機能発揮促進事業に関する計画の認定［変更の認定］の申請について
A10: このことについて、農業の有する多面的機能の発揮の促進に関する法律（平成26年法律第78号）第７条第１項［８条第１項］の規定に基づき、下記関係書類を添えて認定を申請する。
A13: １ 事業計画
A15: ２ 農業の有する多面的機能の発揮の促進に関する活動計画書
B16: □ | C16: １号事業（多面的機能支払交付金）
B17: ☑ | C17: ２号事業（中山間地域等直接支払交付金）
B18: □ | C18: ３号事業（環境保全型農業直接支払交付金）
A20: ３ その他
B21: □ | C21: 都道府県の同意書の写し（都道府県営土地改良施設の管理）
B23: ※農山漁村の活性化のための定住等及び地域間交流の促進に関する法律（平成19年法律第48号）第５条第１項に規定する活性化計画が作成されている場合であって、その添付書類として、多面的機能発揮促進事業に関する計画の認定の申請（変更の認定の申請の場合も含む。）に必要な上記１から３までに掲げる書類が既に市町村長に提出されているときは、これらの書類の添付を省略することができる。
B25: □ | C25: ※に該当するため、書類の添付を省略する。
A27: ＜施行注意＞
A28: 変更の認定の申請の場合は、［ ］内の記載に置き換えるものとする。

Sheet 参４_申請_事業計画
A3: 多面的機能発揮促進事業に関する計画
G5: =参４_申請!E3 -> 年 月 日
G6: =はじめに!D5&"" -> あいうえお集落協定
A8: １ 多面的機能発揮促進事業の目標
A10: １．現況
B11: （例）本地域は、振興山村に指定されるなど、平場地域と比べて生産条件の格差が大きいことから、これを補正する取組を行うことが必要である。
A13: ２．目標
B14: （例）１を踏まえ、本地域では、機械の共同利用や農作業の共同化にも取り組み、農業生産活動を継続することにより、多面的機能の発揮の促進を図ることとする。
A16: ２ 多面的機能発揮促進事業の内容
A17: （１）多面的機能発揮促進事業の種類及び実施区域
A18: ① 種類（実施するものに○を付すこと。）
C19: １号事業（多面的機能支払交付金）
F20: 農業の有する多面的機能の発揮の促進に関する法律（平成26年法律第78号。以下「法」という。）第３条第３項第１号イに掲げる施設の維持その他の主として当該施設の機能の保持を図る活動（以下「イの活動」という。） （農地維持支払交付金）
F22: 法第３条第３項第１号ロに掲げる施設の改良その他の主として当該施設の機能の増進を図る活動（以下「ロの活動」という。） （資源向上支払交付金）
C24: 〇 | E24: ２号事業（中山間地域等直接支払交付金）
E25: ３号事業（環境保全型農業直接支払交付金）
E26: ４号事業（その他農業の有する多面的機能の発揮の促進に資する事業）
A28: ② 実施区域
C29: （例）別添の中山間地域等直接支払交付金に係る集落協定（以下、「集落協定」という。）「（別添１）実施区域位置図」のとおり。
A32: （２）活動の内容等
A33: ②２号事業
A34: １）農業生産活動の内容
C35: （例） ・集落協定「第３ 協定対象となる農用地」に記載のとおり。 ※集落協定に基づく活動を行う場合 ・個別協定「（別紙様式６）経営規模及び農業所得調書」の「第１ 経営規模」に記載のとおり。 ※個別協定に基づく活動を行う場合
A38: ２）農業生産活動の継続的な実施を推進するための活動
C39: （例） ・集落協定「第４ 集落マスタープラン」、「第５ 農業生産活動等として取り組むべき事項」、 「第８ 農業生産活動等の体制整備として取り組むべき事項」及び「第９ 加算措置適用のために取り組むべき事項」に記載のとおり。 ※ 集落協定に基づく活動を行う場合 ・個別協定「（別紙様式６）第３ 農業生産活動等として取り組むべき事項」、「（別紙様式６）第４ 加算措置適用のために取り組むべき事項」及び「（別紙様式７）協定農用地の概要」に記載のとおり。 ※ 個別協定に基づく活動を行う場合
A45: ３ 多面的機能発揮促進事業の実施期間
C46: （例） ・集落協定「Ⅰ．地区の概要」の「１．活動期間」のとおり。 ※中山間地域等直接支払のうち集落協定に基づく活動を行う場合 ・個別協定の認定日から４年経過後の最初の３月31日までの期間。 ※中山間地域等直接支払のうち個別協定に基づく活動を行う場合
A48: ４ 農業者団体等の構成員に係る事項
C49: （例） ・集落協定「（別添２）構成員一覧」に記載のとおり。 ※中山間地域等直接支払のうち集落協定に基づく活動を行う場合 ・個別協定「（別紙様式７）協定農用地の概要」に記載のとおり。 ※中山間地域等直接支払のうち個別協定に基づく活動を行う場合
A50: ＜施行注意＞
A51: 記入内容が集落協定もしくは個別協定と重複する場合は、「２（１）②実施区域」、「２（２）活動内容等」、「３ 多面的機能発揮促進事業の実施期間」及び「農業者団体等の構成員に係る事項」の記入を省略することも可能とする。

Sheet 別紙１①
R2: （別紙様式１）
B4: 農業の有する多面的機能の発揮の促進に関する活動計画書 （中山間地域等直接支払に係る集落協定）
D6: ふりがな | G6: あいうえおしゅうらくきょうてい
D7: 組織名 | G7: =はじめに!D5&"" -> あいうえお集落協定
D9: ふりがな | G9: ちゅうさんかん たろう
D10: 代表者氏名 | G10: =はじめに!D6&"" -> 中山間 太郎
D12: ふりがな | G12: まるけんさんかくしまるちょう
D13: 所在地 | G13: =はじめに!D7&"" -> ○○県△△市○町
D16: Ⅰ． | E16: 地区の概要（共通）
D18: ＜活動の計画＞
D19: =参４_申請!B16 -> □ | E19: Ⅱ． １号事業（多面的機能支払） | R19: 別紙
D20: =参４_申請!B17 -> ☑ | E20: Ⅲ． ２号事業（中山間地域等直接支払） | R20: 別紙1
D21: =参４_申請!B18 -> □ | E21: Ⅳ． ３号事業（環境保全型農業直接支払） | R21: 別紙
D22: □ | E22: Ⅴ． その他多面的機能の発揮の促進に資する事業に係る計画書 | R22: 別紙
D23: （注）該当する活動にチェックし、取り組む活動の別紙のみ添付すること
C25: ＜施行注意＞
C26: 提出の際に（ ）内は、多面的機能支払に係る活動計画書、中山間地域等直接支払に係る集落協定、環境保全型農業直接支払に係る営農活動計画書のうち該当する活動の計画書若しくは協定を記載すること。
A27: Ⅰ．地区の概要
B28: ※ 以下、（多面的機能支払、中山間地域等直接支払、環境保全型農業直接支払）をそれぞれ（多面支払、中山間直払、環境直払）と一部で表示
B29: １．活動期間
D30: 活動開始年度 (計画認定年度) | G30: 活動終了年度 | J30: 交付金の 交付年数 | L30: 計画変更 | O30: 計画変更
B31: 農地維持支払
D32: 令和 | F32: 年度 | G32: 令和 | I32: 年度 | L32: 令和 | N32: 年度 | O32: 令和 | Q32: 年度
B33: 資源向上支払（共同）
D34: 令和 | F34: 年度 | G34: 令和 | I34: 年度 | L34: 令和 | N34: 年度 | O34: 令和 | Q34: 年度
B35: 資源向上支払（長寿命化）
D36: 令和 | F36: 年度 | G36: 令和 | I36: 年度 | L36: 令和 | N36: 年度 | O36: 令和 | Q36: 年度
B37: 中山間地域等 直接支払
D38: 令和 | E38: 7 | F38: 年度 | G38: 令和 | H38: 11 | I38: 年度 | J38: =H38-E38+1 -> 5 | L38: 令和 | N38: 年度 | O38: 令和 | Q38: 年度
B39: 環境保全型農業直接支払
D40: 令和 | F40: 年度 | G40: 令和 | I40: 年度 | L40: 令和 | N40: 年度 | O40: 令和 | Q40: 年度
B41: ２．実施区域内の農用地、施設
B42: 協定農用地面積 又は認定農用地面積※１ | O42: 計 | R42: 解消する遊休農地面積 | S42: 年当たり 交付金額 上限
D43: 田 | G43: 畑 | J43: 草地 | L43: 採草放牧地
C44: 多面支払
D45: 0 | G45: 0 | J45: 0 | O45: =SUM(D45,G45,J45) -> 0 | R45: 0 | S45: 0
C46: 中山間 直払 | O46: =SUM(D46:N46) -> 0
D47: ='別紙１④'!$E$64/100 -> 207.14 | G47: ='別紙１④'!$J$64/100 -> 104.34 | J47: ='別紙１④'!$O$64/100 -> 38.64 | L47: ='別紙１④'!$T$64/100 -> 11.5 | O47: ='別紙１④'!$C$64/100 -> 361.62 | R47: =SUMIFS('別紙２①'!$F$18:$F$105,'別紙２①'!$P$18:$P$105,"荒廃農地")/1000 -> 0 | S47: ='別紙１④'!$I$64+'別紙１④'!$N$64+'別紙１④'!$S$64+'別紙１④'!$X$64+'別紙１④'!$T$72+'別紙１④'!$S$81+'別紙１④'!$S$89+'別紙１④'!$P$111+'別紙１④'!$P$120 -> 455460
D48: 傾斜 | E48: =IF('別紙１④'!E56>0,'別紙１④'!F56,"")&CHAR(10)&IF('別紙１④'!E57>0,'別紙１④'!F57,"")&CHAR(10)&IF('別紙１④'!E58>0,'別紙１④'!F58,"")&CHAR(10)&IF('別紙１④'!E59>0,'別紙１④'!F59,"")&CHAR(10)&IF('別紙１④'!E60>0,'別紙１④'!F60,"")&CHAR(10)&IF('別紙１④'!E62>0,'別紙１④'!F62,"") -> 急傾斜 緩傾斜 小区画・不整形 高齢化・耕作放棄率 特認基準（急傾斜） | G48: 傾斜 | H48: =IF('別紙１④'!J56>0,'別紙１④'!K56,"")&CHAR(10)&IF('別紙１④'!J57>0,'別紙１④'!K57,"")&CHAR(10)&IF('別紙１④'!J58>0,'別紙１④'!K58,"")&CHAR(10)&IF('別紙１④'!J59>0,'別紙１④'!K59,"")&CHAR(10)&IF('別紙１④'!J60>0,'別紙１④'!K60,"")&CHAR(10)&IF('別紙１④'!J62>0,'別紙１④'!K62,"") -> 急傾斜 緩傾斜 高齢化・耕作放棄率 特認基準（緩傾斜） 交付対象外（田畑混在地以外） | J48: 傾斜 | K48: =IF('別紙１④'!O56>0,'別紙１④'!P56,"")&CHAR(10)&IF('別紙１④'!O57>0,'別紙１④'!P57,"")&CHAR(10)&IF('別紙１④'!O58>0,'別紙１④'!P58,"")&CHAR(10)&IF('別紙１④'!O59>0,'別紙１④'!P59,"")&CHAR(10)&IF('別紙１④'!O60>0,'別紙１④'!P60,"")&CHAR(10)&IF('別紙１④'!O62>0,'別紙１④'!P62,"")&CHAR(10)&IF('別紙１④'!O63>0,'別紙１④'!P63,"") -> 急傾斜 高齢化・耕作放棄率 草地比率の高い草地 特認基準（急傾斜） 交付対象外（田草地混在地） 交付対象外（田草地混在地以外） | L48: 傾斜 | M48: =IF('別紙１④'!T56>0,'別紙１④'!U56,"")&CHAR(10)&IF('別紙１④'!T57>0,'別紙１④'!U57,"")&CHAR(10)&IF('別紙１④'!T58>0,'別紙１④'!U58,"")&CHAR(10)&IF('別紙１④'!T59>0,'別紙１④'!U59,"")&CHAR(10)&IF('別紙１④'!T60>0,'別紙１④'!U60,"") -> 急傾斜 特認基準（緩傾斜） 交付対象外（田採草放牧地混在地）
B49: 農地面積 | C49: 環境 直払※２ | D49: 0
D50: 0 | S50: 0
B51: ※１ 多面支払の認定農用地面積は、集落が管理する農用地面積を記載する。 ※２ 環境直払に取り組む場合は、Ⅳの４の交付金額の取組面積の合計及び年当たり交付金額上限の合計を 記載するものとする。
B52: 農業用施設 （多面支払） | G52: 水路 | J52: 農道 | L52: ため池
G54: 0 | J54: 0 | L54: 0
C55: うち、資源向上支払 （長寿命化）の対象施設
G56: 0 | J56: 0 | L56: 0
B57: ※ 延長は、小数点以下第１位まで記入する。
B58: ３．実施区域位置図
B59: 別添１「実施区域位置図」のとおり
B60: ４．組織構成員一覧
B61: 別添２「構成員一覧」のとおり ※ 多面支払のみに取り組む場合は、活動組織規約の別紙「構成員一覧」に代えることができる。
B62: ５．多面的機能支払と中山間地域等直接支払との重複面積
B63: 重複面積 （多面支払・中山間直払）
B64: =O44+O46-D64 -> 0
B65: 100
B67: ※多面支払の活動計画書及び中山間直払の集落協定に位置づけられている施設等については、多面支払 の活動組織により活動を実施し、また、多面支払の交付金を充てることとする。
B68: ＜施行注意＞
B69: 計画書の変更の際には、容易に比較対照できるよう変更部分を二段書きとし、変更前を（ ）書で上段に記載するものとする。

Sheet 別紙１②
B1: （別添１）
B2: 実施区域位置図 | H2: 組織名称：
B3: ='別紙１①'!D19 -> □ | C3: １号事業（多面支払） | D3: ='別紙１①'!D20 -> ☑ | E3: 2号事業（中山間直払） | F3: ='別紙１①'!D21 -> □ | G3: ３号事業（環境直払） | H3: =はじめに!D5&"" -> あいうえお集落協定

Sheet 別紙１③
A1: （別添２）
A2: 構成員一覧
H3: =参４_申請!E3 -> 年 月 日
A4: 役職名 | B4: 氏名 （代表者名、 団体名） | C4: 住所 | D4: 多面的機能支払 | G4: 中山間地域等直接支払 | J4: 環境保全型農業直接支払
E5: 分類 記号 | F5: 備考 活動支援班員 | H5: 分類 記号 | I5: 年齢 分類 記号 | K5: 他の市町村で環境保全型農業直接支払を実施している場合は、その市町村名を全て記載 | L5: みどり認定
L6: 認定済 | M6: 申請中又は申請予定 | N6: 申請予定無し
A7: 代表者 | B7: ○○ ○○ | C7: ○○県○○市○○ | G7: ○ | H7: A | I7: ア | AJ7: 〇
A8: 書記担当 | B8: ○○ ○○ | C8: ○○県○○市○○ | G8: ○ | H8: B | I8: イ | AJ8: 〇
A9: 会計担当 | B9: ○○ ○○ | C9: ○○県○○市○○ | G9: ○ | H9: B | I9: ウ | AJ9: 〇
B10: 農事組合法人 ○○営農 | C10: ○○県○○市○○ | G10: ○ | H10: C | I10: − | AJ10: 〇
B11: 農事組合法人 ××営農 | C11: ○○県○○市○○ | G11: ○ | H11: E | I11: − | AJ11: 〇
B12: ○○組合 | C12: ○○県○○市○○ | G12: ○ | H12: F | I12: − | AJ12: 〇
B13: ××組合 | C13: ○○県○○市○○ | G13: ○ | H13: G | I13: − | AJ13: 〇
B14: ○○ ○○ | C14: ○○県○○市○○ | G14: ○ | H14: H | I14: − | AJ14: 〇
B15: NPO法人 ○○○○ | C15: ○○県○○市○○ | G15: ○ | H15: I | I15: − | AJ15: 〇
B16: ○○ ○○土地改良区 | C16: ○○県○○市○○ | G16: ○ | H16: J | I16: − | AJ16: 〇
B17: ○○ ○○ | C17: ○○県○○市○○ | G17: ○ | H17: K | I17: − | AJ17: 〇
C18: 行を追加する場合はこれより上の行をコピーして「コピーしたセルの挿入」をしてください。
A24: 多面的機能支払分類番号リスト | C24: 中山間地域等直接支払分類記号リスト | H24: 年齢分類記号リスト
A42: 注１：「多面的機能支払」「中山間地域等直接支払」「環境保全型農業直接支払」の欄は、各支払に取り組む者に○印を記入。
A43: 注２：多面的機能支払に取り組む場合は、「分類番号」を分類番号リストの１～13から選択。
A44: 注３：「農業者」とは、協定に位置付けられている農用地において農業生産活動等（多面的機能支払においては、耕作又は養畜）を実施する農業者又は団体である。
A45: 注４：中山間地域等直接支払の場合には、「分類記号」を分類記号リストA～Mから選択するとともに、「年齢分類記号」を年齢分類記号リストのア～コから選択。また、市町村の中山間地域等直接支払担当部局と税務部局との間で調整が調っている場合には、例えば、「農業所得の確認に関する承諾」欄や「生年月日」欄など、農業所得の確認の承諾に必要な欄を本様式に設けることができる。この場合、「農業所得の確認に関する承諾書」（参考様式第４号別紙様式５）の作成は不要。
A46: 注５：他の市町村で環境保全型農業直接支払を実施している場合は、その市町村名を全て記載すること。
A47: 注６：「みどり認定」の欄は、みどりの食料システム法に基づき、環境負荷低減事業活動実施計画又は特定環境負荷低減事業活動実施計画を作成し、都道府県知事の認定を受けた若しくは受ける予定がある、又は申請予定がない場合についてもいずれかに○をすること。
A48: 注７：「多面的機能支払」のみに取り組む場合、住所の記入は不要。

Sheet 別紙１④
A1: ="（"&'別紙１①'!R20&"）" -> （別紙1）
A3: ２号事業様式
A4: （中山間地域等直接支払交付金）
A6: 第１ 集落協定の実施体制
A8: １ 集落協定の管理体制（構成員の役割分担）
A10: 役職名等 | K10: 氏名
A11: 代表者 | K11: 丙川 三郎
A12: 書記担当 | K12: 丙川 三郎
A13: 会計担当 | K13: 乙山 次郎
A14: 共同機械担当 | K14: 乙山 次郎
A15: 土地改良施設担当 | K15: 甲田 太郎
A16: 法面点検担当 | K16: 丙川 三郎
A17: 注）事務作業が一部の者に集中して過大な負担となっていないか、事務作業を担う者への報酬が適正な水準となっているか等について、協定参加者で確認すること。
A19: ２ 集落協定上の基幹的活動において中核的なリーダーとしての役割を果たす担い手として指定する者
A21: 氏 名 | F21: 実施要領の運用第６の１の(1)のオの役割 | K21: 活動の対象地区又は施設 | O21: 活動内容
A22: ○○○○ | F22: ア | K22: 集落全体 | O22: ○○の実施に当たって集落全体の企画・立案・取りまとめを行う
A23: ○○○○ | F23: イ | K23: ○○地区 | O23: ○○の実施に当たって○○地区の企画・立案・取りまとめを行う
A24: ○○○○ | F24: ウ | K24: ○○地区 | O24: ○○の実施に当たって○○地区の企画・立案・取りまとめを行う
A25: ○○○○ | F25: イ | K25: ○○地区 | O25: ○○の実施に当たって○○地区の企画・立案・取りまとめを行う
F27: 行を追加する場合はこれより上の行をコピーして「コピーしたセルの挿入」をしてください。
A31: 当該協定における中核的リーダーの協定参加者に占める割合
A32: 中核的リーダーの人数（人） | H32: 協定参加者数（人） | N32: 協定参加者に占める中核的リーダーの割合（％）
A33: =COUNTA(A22:E27) -> 4 | H33: =COUNTA('別紙１③'!B7:B18) -> 11 | N33: =A33/H33 -> 0.3636363636
A34: 注）協定参加者に占める中核的リーダーの割合は、中核的リーダーの人数を協定参加者数で除した率とする。
A36: 第２ 農用地の管理方法
A38: 以下の項目のうち該当項目に○印を記入
A39: 該 当 | C39: 内 容
A40: (1) 農用地
A41: 〇 | C41: ①耕作者が農作業を継続できなくなった場合には、速やかに農業委員会のあっせんを受ける。
C42: ②農業公社が受託する。
C43: ③集落協定参加者が協定内容に従って管理する。
C44: ④その他（ ）
A46: 該 当 | C46: 内 容
A47: (2) 水路・農道等
C48: ①協定参加者全員で泥上げ、草刈りを行う。
C49: ②集落申し合わせ事項により定期的な除草等の作業を行う。
A50: 〇 | C50: ③その他（別途の規約） （例：泥上げ、草刈り等の水路・農道の管理等は多面的機能支払交付金により行う。）
A52: 第３ 協定対象となる農用地
A53: （基本分） | T53: （単位：㎡）
A54: 項目 | C54: 協定農用地 面積 | E54: 田 | J54: 畑 | O54: 草地 | T54: 採草放牧地
E55: 面積 | F55: 交付基準（傾斜等） | G55: 単価区分 | H55: 上限 単価 | I55: 交付 上限額 | J55: 面積 | K55: 交付基準（傾斜等） | L55: 単価区分 | M55: 上限 単価 | N55: 交付 上限額 | O55: 面積 | P55: 交付基準（傾斜等） | Q55: 単価区分 | R55: 上限 単価 | S55: 交付 上限額 | T55: 面積 | U55: 交付基準（傾斜等） | V55: 単価区分 | W55: 上限 単価 | X55: 交付 上限額
A56: 協定全体 | E56: =ROUNDDOWN(SUMIFS('別紙２①'!$F$18:$F$105,'別紙２①'!$U$18:$U$105,'別紙１④'!G56),0) -> 14397 | F56: 急傾斜 | G56: ='別紙２①'!$S$14&'別紙１④'!$E$54&'別紙１④'!$F56 -> 〇田急傾斜 | H56: =VLOOKUP($G56,プルダウンリスト!$D$17:$E$88,2,FALSE) -> 21000 | I56: =ROUNDDOWN(E56*H56/1000,0) -> 302337 | J56: =ROUNDDOWN(SUMIFS('別紙２①'!$F$18:$F$105,'別紙２①'!$U$18:$U$105,'別紙１④'!L56),0) -> 1840 | K56: 急傾斜 | L56: ='別紙２①'!$S$14&$J$54&K56 -> 〇畑急傾斜 | M56: =VLOOKUP(L56,プルダウンリスト!$D$17:$E$88,2,FALSE) -> 11500 | N56: =ROUNDDOWN(J56*M56/1000,0) -> 21160 | O56: =ROUNDDOWN(SUMIFS('別紙２①'!$F$18:$F$105,'別紙２①'!$U$18:$U$105,'別紙１④'!Q56),0) -> 1554 | P56: 急傾斜 | Q56: ='別紙２①'!$S$14&$O$54&P56 -> 〇草地急傾斜 | R56: =VLOOKUP(Q56,プルダウンリスト!$D$17:$E$88,2,FALSE) -> 10500 | S56: =ROUNDDOWN(O56*R56/1000,0) -> 16317 | T56: =ROUNDDOWN(SUMIFS('別紙２①'!$F$18:$F$105,'別紙２①'!$U$18:$U$105,'別紙１④'!V56),0) -> 430 | U56: 急傾斜 | V56: ='別紙２①'!$S$14&$T$54&U56 -> 〇採草放牧地急傾斜 | W56: =VLOOKUP(V56,プルダウンリスト!$D$17:$E$88,2,FALSE) -> 1000 | X56: =ROUNDDOWN(T56*W56/1000,0) -> 430
E57: =ROUNDDOWN(SUMIFS('別紙２①'!$F$18:$F$105,'別紙２①'!$U$18:$U$105,'別紙１④'!G57),0) -> 1343 | F57: 緩傾斜 | G57: ='別紙２①'!$S$14&'別紙１④'!$E$54&'別紙１④'!$F57 -> 〇田緩傾斜 | H57: =VLOOKUP($G57,プルダウンリスト!$D$17:$E$88,2,FALSE) -> 8000 | I57: 10744 | J57: =ROUNDDOWN(SUMIFS('別紙２①'!$F$18:$F$105,'別紙２①'!$U$18:$U$105,'別紙１④'!L57),0) -> 4925 | K57: 緩傾斜 | L57: ='別紙２①'!$S$14&$J$54&K57 -> 〇畑緩傾斜 | M57: =VLOOKUP(L57,プルダウンリスト!$D$17:$E$88,2,FALSE) -> 3500 | N57: 17237 | O57: =ROUNDDOWN(SUMIFS('別紙２①'!$F$18:$F$105,'別紙２①'!$U$18:$U$105,'別紙１④'!Q57),0) -> 0 | P57: 緩傾斜 | Q57: ='別紙２①'!$S$14&$O$54&P57 -> 〇草地緩傾斜 | R57: =VLOOKUP(Q57,プルダウンリスト!$D$17:$E$88,2,FALSE) -> 3000 | S57: 0 | T57: =ROUNDDOWN(SUMIFS('別紙２①'!$F$18:$F$105,'別紙２①'!$U$18:$U$105,'別紙１④'!V57),0) -> 0 | U57: 緩傾斜 | V57: ='別紙２①'!$S$14&$T$54&U57 -> 〇採草放牧地緩傾斜 | W57: =VLOOKUP(V57,プルダウンリスト!$D$17:$E$88,2,FALSE) -> 300 | X57: 0
E58: =ROUNDDOWN(SUMIFS('別紙２①'!$F$18:$F$105,'別紙２①'!$U$18:$U$105,'別紙１④'!G58),0) -> 1872 | F58: 小区画・不整形 | G58: ='別紙２①'!$S$14&'別紙１④'!$E$54&'別紙１④'!$F58 -> 〇田小区画・不整形 | H58: =VLOOKUP($G58,プルダウンリスト!$D$17:$E$88,2,FALSE) -> 8000 | I58: 14976 | J58: =ROUNDDOWN(SUMIFS('別紙２①'!$F$18:$F$105,'別紙２①'!$U$18:$U$105,'別紙１④'!L58),0) -> 869 | K58: 高齢化・耕作放棄率 | L58: ='別紙２①'!$S$14&$J$54&K58 -> 〇畑高齢化・耕作放棄率 | M58: =VLOOKUP(L58,プルダウンリスト!$D$17:$E$88,2,FALSE) -> 3500 | N58: 3041 | O58: =ROUNDDOWN(SUMIFS('別紙２①'!$F$18:$F$105,'別紙２①'!$U$18:$U$105,'別紙１④'!Q58),0) -> 130 | P58: 高齢化・耕作放棄率 | Q58: ='別紙２①'!$S$14&$O$54&P58 -> 〇草地高齢化・耕作放棄率 | R58: =VLOOKUP(Q58,プルダウンリスト!$D$17:$E$88,2,FALSE) -> 3000 | S58: 390 | T58: =ROUNDDOWN(SUMIFS('別紙２①'!$F$18:$F$105,'別紙２①'!$U$18:$U$105,'別紙１④'!V58),0) -> 0 | U58: 特認基準（急傾斜） | V58: ='別紙２①'!$S$14&$T$54&U58 -> 〇採草放牧地特認基準（急傾斜） | W58: =VLOOKUP(V58,プルダウンリスト!$D$17:$E$88,2,FALSE) -> 1000 | X58: 0
E59: =ROUNDDOWN(SUMIFS('別紙２①'!$F$18:$F$105,'別紙２①'!$U$18:$U$105,'別紙１④'!G59),0) -> 1503 | F59: 高齢化・耕作放棄率 | G59: ='別紙２①'!$S$14&'別紙１④'!$E$54&'別紙１④'!$F59 -> 〇田高齢化・耕作放棄率 | H59: =VLOOKUP($G59,プルダウンリスト!$D$17:$E$88,2,FALSE) -> 8000 | I59: 12024 | J59: =ROUNDDOWN(SUMIFS('別紙２①'!$F$18:$F$105,'別紙２①'!$U$18:$U$105,'別紙１④'!L59),0) -> 0 | K59: 特認基準（急傾斜） | L59: ='別紙２①'!$S$14&$J$54&K59 -> 〇畑特認基準（急傾斜） | M59: =VLOOKUP(L59,プルダウンリスト!$D$17:$E$88,2,FALSE) -> 11500 | N59: 0 | O59: =ROUNDDOWN(SUMIFS('別紙２①'!$F$18:$F$105,'別紙２①'!$U$18:$U$105,'別紙１④'!Q59),0) -> 140 | P59: 草地比率の高い草地 | Q59: ='別紙２①'!$S$14&$O$54&P59 -> 〇草地草地比率の高い草地 | R59: =VLOOKUP(Q59,プルダウンリスト!$D$17:$E$88,2,FALSE) -> 1500 | S59: 210 | T59: =ROUNDDOWN(SUMIFS('別紙２①'!$F$18:$F$105,'別紙２①'!$U$18:$U$105,'別紙１④'!V59),0) -> 230 | U59: 特認基準（緩傾斜） | V59: ='別紙２①'!$S$14&$T$54&U59 -> 〇採草放牧地特認基準（緩傾斜） | W59: =VLOOKUP(V59,プルダウンリスト!$D$17:$E$88,2,FALSE) -> 300 | X59: 69
E60: =ROUNDDOWN(SUMIFS('別紙２①'!$F$18:$F$105,'別紙２①'!$U$18:$U$105,'別紙１④'!G60),0) -> 624 | F60: 特認基準（急傾斜） | G60: ='別紙２①'!$S$14&'別紙１④'!$E$54&'別紙１④'!$F60 -> 〇田特認基準（急傾斜） | H60: =VLOOKUP($G60,プルダウンリスト!$D$17:$E$88,2,FALSE) -> 21000 | I60: 13104 | J60: =ROUNDDOWN(SUMIFS('別紙２①'!$F$18:$F$105,'別紙２①'!$U$18:$U$105,'別紙１④'!L60),0) -> 39 | K60: 特認基準（緩傾斜） | L60: ='別紙２①'!$S$14&$J$54&K60 -> 〇畑特認基準（緩傾斜） | M60: =VLOOKUP(L60,プルダウンリスト!$D$17:$E$88,2,FALSE) -> 3500 | N60: 136 | O60: =ROUNDDOWN(SUMIFS('別紙２①'!$F$18:$F$105,'別紙２①'!$U$18:$U$105,'別紙１④'!Q60),0) -> 120 | P60: 特認基準（急傾斜） | Q60: ='別紙２①'!$S$14&$O$54&P60 -> 〇草地特認基準（急傾斜） | R60: =VLOOKUP(Q60,プルダウンリスト!$D$17:$E$88,2,FALSE) -> 10500 | S60: 1260 | T60: =ROUNDDOWN(SUMIFS('別紙２①'!$F$18:$F$105,'別紙２①'!$U$18:$U$105,'別紙１④'!V60),0) -> 240 | U60: 交付対象外（田採草放牧地混在地） | V60: ='別紙２①'!$S$14&$T$54&U60 -> 〇採草放牧地交付対象外（田採草放牧地混在地） | W60: =VLOOKUP(V60,プルダウンリスト!$D$17:$E$88,2,FALSE) -> 0 | X60: 0
E61: =ROUNDDOWN(SUMIFS('別紙２①'!$F$18:$F$105,'別紙２①'!$U$18:$U$105,'別紙１④'!G61),0) -> 975 | F61: 特認基準（緩傾斜） | G61: ='別紙２①'!$S$14&'別紙１④'!$E$54&'別紙１④'!$F61 -> 〇田特認基準（緩傾斜） | H61: =VLOOKUP($G61,プルダウンリスト!$D$17:$E$88,2,FALSE) -> 8000 | I61: 7800 | J61: =ROUNDDOWN(SUMIFS('別紙２①'!$F$18:$F$105,'別紙２①'!$U$18:$U$105,'別紙１④'!L61),0) -> 1114 | K61: 交付対象外（田畑混在地） | L61: ='別紙２①'!$S$14&$J$54&K61 -> 〇畑交付対象外（田畑混在地） | M61: =VLOOKUP(L61,プルダウンリスト!$D$17:$E$88,2,FALSE) -> 0 | N61: 0 | O61: =ROUNDDOWN(SUMIFS('別紙２①'!$F$18:$F$105,'別紙２①'!$U$18:$U$105,'別紙１④'!Q61),0) -> 1590 | P61: 特認基準（緩傾斜） | Q61: ='別紙２①'!$S$14&$O$54&P61 -> 〇草地特認基準（緩傾斜） | R61: =VLOOKUP(Q61,プルダウンリスト!$D$17:$E$88,2,FALSE) -> 3000 | S61: 4770 | T61: =ROUNDDOWN(SUMIFS('別紙２①'!$F$18:$F$105,'別紙２①'!$U$18:$U$105,'別紙１④'!V61),0) -> 250 | U61: 交付対象外（田採草放牧地混在地以外） | V61: ='別紙２①'!$S$14&$T$54&U61 -> 〇採草放牧地交付対象外（田採草放牧地混在地以外） | W61: =VLOOKUP(V61,プルダウンリスト!$D$17:$E$88,2,FALSE) -> 0 | X61: 0
E62: =ROUNDDOWN(SUMIFS('別紙２①'!$F$18:$F$105,'別紙２①'!$U$18:$U$105,'別紙１④'!G62),0) -> 0 | F62: 交付対象外 | G62: ='別紙２①'!$S$14&'別紙１④'!$E$54&'別紙１④'!$F62 -> 〇田交付対象外 | H62: =VLOOKUP($G62,プルダウンリスト!$D$17:$E$88,2,FALSE) -> 0 | I62: 0 | J62: =ROUNDDOWN(SUMIFS('別紙２①'!$F$18:$F$105,'別紙２①'!$U$18:$U$105,'別紙１④'!L62),0) -> 1647 | K62: 交付対象外（田畑混在地以外） | L62: ='別紙２①'!$S$14&$J$54&K62 -> 〇畑交付対象外（田畑混在地以外） | M62: =VLOOKUP(L62,プルダウンリスト!$D$17:$E$88,2,FALSE) -> 0 | N62: 0 | O62: =ROUNDDOWN(SUMIFS('別紙２①'!$F$18:$F$105,'別紙２①'!$U$18:$U$105,'別紙１④'!Q62),0) -> 170 | P62: 交付対象外（田草地混在地） | Q62: ='別紙２①'!$S$14&$O$54&P62 -> 〇草地交付対象外（田草地混在地） | R62: =VLOOKUP(Q62,プルダウンリスト!$D$17:$E$88,2,FALSE) -> 0 | S62: 0
O63: =ROUNDDOWN(SUMIFS('別紙２①'!$F$18:$F$105,'別紙２①'!$U$18:$U$105,'別紙１④'!Q63),0) -> 160 | P63: 交付対象外（田草地混在地以外） | Q63: ='別紙２①'!$S$14&$O$54&P63 -> 〇草地交付対象外（田草地混在地以外） | R63: =VLOOKUP(Q63,プルダウンリスト!$D$17:$E$88,2,FALSE) -> 0 | S63: 0
A64: 計 | C64: =E64+J64+O64+T64 -> 36162 | E64: =SUM(E56:E63) -> 20714 | I64: =SUM(I56:I63) -> 360985 | J64: =SUM(J56:J63) -> 10434 | N64: =SUM(N56:N63) -> 41574 | O64: =SUM(O56:O63) -> 3864 | S64: =SUM(S56:S63) -> 22947 | T64: =SUM(T56:T63) -> 1150 | X64: =SUM(X56:X63) -> 499
A66: （加算措置に取り組む場合）
A68: １ 棚田地域振興活動加算
B69: 棚田地域振興活動加算
B70: 面積（㎡） | M70: 上限単価 （円/10a） | P70: 面積×上限単価 （円） | T70: 加算上限額 （円）
B71: 田 1/20以上 | E71: 畑 15度以上 | H71: 田 1/10以上 | J71: 畑 20度以上
B72: =ROUNDDOWN(SUMIFS('別紙２①'!$F$18:$F$105,'別紙２①'!$E$18:$E$105,"田",'別紙２①'!$H$18:$H$105,"",'別紙２①'!$K$18:$K$105,"〇"),0) -> 907 | E72: =ROUNDDOWN(SUMIFS('別紙２①'!$F$18:$F$105,'別紙２①'!$E$18:$E$105,"畑",'別紙２①'!$H$18:$H$105,"",'別紙２①'!$K$18:$K$105,"〇"),0) -> 1233 | M72: 10000 | P72: =ROUNDDOWN((B72+E72)*M72/1000,0) -> 21400 | T72: =SUM(P72:S73) -> 21400
H73: =ROUNDDOWN(SUMIFS('別紙２①'!$F$18:$F$105,'別紙２①'!$E$18:$E$105,"田",'別紙２①'!$H$18:$H$105,"〇",'別紙２①'!$K$18:$K$105,"〇"),0) -> 0 | J73: =ROUNDDOWN(SUMIFS('別紙２①'!$F$18:$F$105,'別紙２①'!$E$18:$E$105,"畑",'別紙２①'!$H$18:$H$105,"〇",'別紙２①'!$K$18:$K$105,"〇"),0) -> 0 | M73: 14000 | P73: =ROUNDDOWN((H73+J73)*M73/1000,0) -> 0
B74: 注１）面積×上限単価（円）は、面積（㎡）の千分の一の値に上限単価（円/10a）を乗じた額とする。
B75: 注２）加算上限額（円）は、面積×上限単価（円）の合計額とする。
A77: ２ 超急傾斜農地保全管理加算
B78: 超急傾斜農地保全管理加算
B79: 面積（㎡） | I79: 上限単価 （円/10a） | N79: 面積×上限単価 （円） | S79: 加算上限額 （円）
B80: 田 1/10以上 | E80: 畑 20度以上
B81: =ROUNDDOWN(SUMIFS('別紙２①'!$F$18:$F$105,'別紙２①'!$E$18:$E$105,"田",'別紙２①'!$L$18:$L$105,"〇"),0) -> 738 | E81: =ROUNDDOWN(SUMIFS('別紙２①'!$F$18:$F$105,'別紙２①'!$E$18:$E$105,"畑",'別紙２①'!$L$18:$L$105,"〇"),0) -> 0 | I81: 6000 | N81: =ROUNDDOWN((B81+E81)*I81/1000,0) -> 4428 | S81: =N81 -> 4428
B82: 注１）面積×上限単価（円）は、面積（㎡）の千分の一の値に上限単価（円/10a）を乗じた額とする。
B83: 注２）加算上限額（円）は、面積×上限単価（円）の合計額とする。
A85: ３ ネットワーク化加算
B86: ネットワーク化加算
B87: 面積（㎡） | K87: 上限単価 (円/10a) | N87: 面積×上限単価 （円） | P87: 面積×上限単価の計 （円） | S87: 加算上限額 （円）
B88: 田 | D88: 畑 | F88: 草地 | I88: 採草放牧地
K89: 10000 | N89: =ROUNDDOWN((B89+D89+F89+I89)*K89/1000,0) -> 0 | P89: =N89+N90+N91 -> 0 | S89: =IF(P89<U89,P89,U89) -> 0 | U89: 1000000
K90: 4000 | N90: =ROUNDDOWN((B90+D90+F90+I90)*K90/1000,0) -> 0
K91: 1000 | N91: =ROUNDDOWN((B91+D91+F91+I91)*K91/1000,0) -> 0
B92: 注１）面積×上限単価（円）は、面積（㎡）の千分の一の値に上限単価（円/10a）を乗じた額とする。
B93: 注２）加算上限額（円）は、面積×上限単価の計（円）及び100万円のうち、いずれか低い額とする。ただし、統合については、統合前の協定単位で上限を設定する。
A96: ネットワーク化又は統合状況
B97: ネットワーク化する集落協定名 | H97: 統合する集落協定名 | K97: 対象農用地面積（㎡）
B98: ○○集落 | K98: 20000
B99: ○○集落 | K99: 100000
B103: 行を追加する場合はこれより上の行を「コピーして追加」してください。
B104: =COUNTIFS($B$98:$H$102,"<>") -> 2 | K104: =SUM(K98:R102) -> 120000
A107: ４ スマート農業加算
B108: スマート農業加算
B109: 面積（㎡） | K109: 上限単価 (円/10a) | N109: 面積×上限単価 （円） | P109: 加算上限額 （円）
B110: 田 | D110: 畑 | F110: 草地 | I110: 採草放牧地
B111: =ROUNDDOWN(SUMIFS('別紙２①'!$F$18:$F$105,'別紙２①'!$E$18:$E$105,"田",'別紙２①'!$N$18:$N$105,"〇"),0) -> 0 | D111: =ROUNDDOWN(SUMIFS('別紙２①'!$F$18:$F$105,'別紙２①'!$E$18:$E$105,"畑",'別紙２①'!$N$18:$N$105,"〇"),0) -> 0 | F111: =ROUNDDOWN(SUMIFS('別紙２①'!$F$18:$F$105,'別紙２①'!$E$18:$E$105,"草地",'別紙２①'!$N$18:$N$105,"〇"),0) -> 0 | I111: =ROUNDDOWN(SUMIFS('別紙２①'!$F$18:$F$105,'別紙２①'!$E$18:$E$105,"採草放牧地",'別紙２①'!$N$18:$N$105,"〇"),0) -> 0 | K111: 5000 | N111: =ROUNDDOWN((B111+D111+F111+I111)*K111/1000,0) -> 0 | P111: =IF(N111<S111,N111,S111) -> 0 | S111: 2000000
B112: 注１）面積×上限単価（円）は、面積（㎡）の千分の一の値に上限単価（円/10a）を乗じた額とする。
B113: 注２）加算上限額（円）は、面積×上限単価（円）及び200万円のうち、いずれか低い額とする。
A116: ５ 集落機能強化加算の経過措置
B117: 集落機能強化加算の経過措置
B118: 面積（㎡） | K118: 上限単価 (円/10a) | N118: 面積×上限単価 （円） | P118: 加算上限額 （円）
B119: 田 | D119: 畑 | F119: 草地 | I119: 採草放牧地
B120: =ROUNDDOWN(SUMIFS('別紙２①'!$F$18:$F$105,'別紙２①'!$E$18:$E$105,"田",'別紙２①'!$O$18:$O$105,"〇"),0) -> 0 | D120: =ROUNDDOWN(SUMIFS('別紙２①'!$F$18:$F$105,'別紙２①'!$E$18:$E$105,"畑",'別紙２①'!$O$18:$O$105,"〇"),0) -> 869 | F120: =ROUNDDOWN(SUMIFS('別紙２①'!$F$18:$F$105,'別紙２①'!$E$18:$E$105,"草地",'別紙２①'!$O$18:$O$105,"〇"),0) -> 120 | I120: =ROUNDDOWN(SUMIFS('別紙２①'!$F$18:$F$105,'別紙２①'!$E$18:$E$105,"採草放牧地",'別紙２①'!$O$18:$O$105,"〇"),0) -> 220 | K120: 3000 | N120: =ROUNDDOWN((B120+D120+F120+I120)*K120/1000,0) -> 3627 | P120: =IF(N120<S120,N120,S120) -> 3627 | S120: 2000000
B121: 注１）面積×上限単価（円）は、面積（㎡）の千分の一の値に上限単価（円/10a）を乗じた額とする。
B122: 注２）加算上限額（円）は、面積×上限単価（円）及び200万円のうち、いずれか低い額とする。
A126: 第４ 集落マスタープラン（必須事項）
A127: １ 集落における将来像
B128: 集落の目指すべき将来像に○印を記入する（複数可）。
D130: 目指すべき将来像
B131: 〇 | D131: ①将来にわたり農業生産活動等が可能となる集落内の実施体制構築
B132: 〇 | D132: ②協定の担い手となる新たな人材の育成・確保
D133: ③協定参加者それぞれが、作物生産、加工・直売等さまざまな工夫により再生産可能な所得を確保
D134: ④その他（自由記載）
D135: 例)農業生産活動の継続に向けた集落機能強化
B136: 注）④を選択する場合は将来像を記載。
B137: ２ 将来像を実現するための目標と活動計画
B138: 集落の目指すべき将来像を実現するための活動方策について○印を記入する（複数可）。また、活動方策に対する５年間の活動計画（目標）を記載する。
B139: 活動方策 | N139: 活動計画（目標）
B140: 〇 | D140: 機械・農作業の共同化等営農組織の育成
D141: 高付加価値型農業
D142: 農業生産条件の強化
D143: 担い手への農地集積
D144: 担い手への農作業の委託
D145: 新規就農者等による農業生産
D146: 地場産農産物等の加工・販売
B147: 〇 | D147: 消費・出資の呼び込み | N147: 体験農園を実施し、都市住民との交流を深める。
D148: 共同で支え合う集団的かつ持続可能な体制整備
D149: その他（自由記載） | N149: （自由記載）
D150: 例)地域運営組織と連携した集落機能強化
B151: 注）体制整備単価の取組を行う協定については、第８との整合を図ること。
A153: 第５ 農業生産活動等として取り組むべき事項
A154: １ 農用地に関する事項
B155: 以下の項目から１項目以上（２で管理の対象とする水路・農道等が、多面的機能支払交付金実施要綱別紙１第５の２に基づく活動計画に定める施設と同一である場合は、２項目以上）を選択する。
A156: ✓ | C156: 多面的機能支払交付金実施要綱別紙１第５の２に基づく活動計画に定める施設と同一。
A157: 該 当 | C157: 具 体 的 に 取 り 組 む 行 為
A158: 〇 | C158: ①耕作放棄されそうな農用地については、集落内外の担い手農家や第３セクター等による利用権の設定等や農作業の委託を行う。
C159: ②既荒廃農地を協定農用地に含める場合には、荒廃農地の復旧又は畜産的利用を行う。
C160: ③既荒廃農地を協定農用地に含めない場合には、協定農用地に悪影響を与えないよう草刈り、防虫対策等の保全管理を行う。
C161: ④農地法面の崩壊を未然に防止するため、集落内の担い手を中心に定期的な点検を行う。
C162: ⑤協定農用地への柵、ネット等の設置等により鳥獣害防止対策を行う。
C163: ⑥作業道の設置、排水改良等簡易な基盤整備を行う。
C164: ⑦定農用地における農業生産活動が維持されるよう担い手（認定農業者、これに準ずるものとして市町村長が認定した者、第３セクター、特定農業法人、農業協同組合、生産組織等）を確保する。
C165: ⑧集落の新たな雇用創出や地域経済の活性化に資する地場農産物の加工・販売を行う。
C166: ⑨その他（土地改良事業、災害復旧及び地目変換（田から畑等へ）等）
A168: ２ 水路・農道等の管理方法（①②について該当する取組に○印を記入（複数可））
A169: 具 体 的 に 取 り 組 む 行 為
A170: ①水 路 | D170: ア）水路清掃 | H170: 〇 | J170: イ）草刈り | N170: 〇 | P170: ウ）その他（ | X170: ）
A171: ②農 道 | D171: ア）簡易補修 | H171: 〇 | J171: イ）草刈り | P171: ウ）その他（ | X171: ）
A172: ③その他 | D172: ○○を実施する
A175: ３ 多面的機能を増進する活動として以下の項目から１項目以上選択し、実施する。
B176: 以下の項目のうち該当項目に○印を記入する。
A177: 該 当 | C177: 具 体 的 に 取 り 組 む 行 為
A178: 〇 | C178: ①農地と一体となった周辺林地の下草刈り等を行う。
C179: ②棚田オーナー制度の実施、市民農園・体験農園の開設・運営を行う。
C180: ③景観作物を作付ける。
A181: 〇 | C181: ④土壌流亡に配慮した営農を行う（等高線栽培、根の張る植物を畝間に植栽）。
C182: ⑤体験民宿を実施する（グリーン・ツーリズム）。
C183: ⑥魚類・昆虫類の保護を行う（ビオトープの確保）。
A184: 〇 | C184: ⑦冬期の湛水化、不作付地での水張り等の鳥類の餌場の確保を図る。
C185: ⑧粗放的畜産を行う。
A186: 〇 | C186: ⑨堆きゅう肥の施肥、拮抗植物の利用、アイガモ・鯉の利用、輪作の徹底、緑肥作物の作付け等を行う。
C187: ⑩その他 （ ）
A188: 注）法律で義務づけられている行為及び国庫補助事業の補助対象として行われる行為以外のものを１つ以上選択。
A189: 注）上記１～３で定めた共同取組活動を行う際は、作業安全対策の観点から、以下の点に努めること。
B190: ・ | C190: 作業環境の点検（作業前の危険箇所の確認・共有、機器の定期点検等）
B191: ・ | C191: 共同取組活動で使用する機械又は使用頻度が高い機械（刈払機等）の安全な使用に関する取組の実施（研修・講習の開催又は参加等）
A194: 第６ 促進計画の「その他促進計画の実施に関し当該市町村が必要と認める事項」により 規定すべき事項
B195: １ 土地改良事業（別紙様式４参照） (1) 事業実施の目的 (2) 事業の実施主体 (3) 実施する事業種目、事業内容及び事業規模 ２ 災害復旧事業 (1) 事業実施の目的 (2) 事業の実施主体 (3) 実施する事業種目、事業内容及び事業規模 ３ 地目の変更 (1) 耕作者（所有者）名 (2) 変更前後の地目及び面積（例：田○○㎡→畑○○㎡） ４ 集落相互間等の連携 (1) 近隣の担い手のいる集落等との連携 （当該集落名、連携の活動内容、スケジュール） (2) 農業公社、ＮＰＯ法人、農作業受委託組織、民間法人等の集落協定への参加・連携 （当該法人名、連携の活動内容、参加内容、スケジュール） (3) 近隣の小規模な集落協定との統合・連携
A200: 第７ 交付金の使用方法等
A201: １ 交付金は、集落を代表して | H201: 〇〇 〇〇（氏名） | K201: が市町村より受け取る。
A203: ２ 次の通り支出する。
C205: 項 目 | J205: 交付金使途の内容(項目) | R205: 金 額
A206: 共同取組活動 | C206: ①役員等の各担当者の活動に対する経費 | J206: 役員報酬 | R206: 300000
J207: 研修会開催費 | R207: 30000
C208: ②農業生産活動等の体制整備に向けた活動等の集落マスタープランの将来像を実現するための活動に対する経費 | J208: 農産物等の販売促進関係費 | R208: 20000
J209: 都市住民との交流促進関係費 | R209: 100000
J210: 法人設立関係費 | R210: 100000
J211: 土地利用調整関係費 | R211: 20000
C212: ③水路、農道等の維持・管理等集落の共同取組活動に要する経費 | J212: 道・水路管理費 | R212: 1000000
J213: （うち道・水路整備費） | R213: 700000
J214: 農地管理費 | R214: 800000
J215: （うち農地整備費） | R215: 500000
C216: ④農用地の維持・管理活動を行う者に対する経費 | J216: 鳥獣害防止対策費 | R216: 500000
J217: 共同利用機械購入等費 | R217: 500000
J218: 共同利用施設整備等費 | R218: 600000
J219: 多面的機能増進活動費 | R219: 30000
C220: ⑤毎年の積立額又は次年度への繰越予定額 | J220: ３のとおり | R220: 100000
A222: ３ 交付金の積立・繰越に係る計画
A223: ① 交付金の積立
B224: （ｱ）積立計画
F225: 令和7年度 | J225: 令和8年度 | N225: 令和9年度
B226: 積立予定額 | F226: 100000 | J226: 100000 | N226: 100000
B227: 積立累計額 | F227: 100000 | J227: 200000 | N227: 300000
B229: （ｲ）取り崩し予定等
B230: ○ 取り崩し予定年度： | J230: （協定期間内）
B231: ○ 取り崩し予定年度における積立累計額： | J231: 300000 | K231: 円
B232: ○ 使途： | F232: 畦塗り機購入
F233: に要する経費（具体的に記入）
A234: ② 次年度への繰越
B235: ○ 繰越予定年度： | J235: （当該年度の翌年度）
B236: ○ 繰越予定額： | I236: 300000 | J236: 円
B237: ○ 使途： | F237: 災害の発生が想定される箇所・施設に対する災害発生時の復旧等
F238: に要する経費（具体的に記入）
A239: ４ 次のとおり支出する。
A240: 個 人 配 分 分 | M240: 金 額
M241: （配分割合： | U241: =IFERROR($M$242/($I$64+$N$64+$S$64+$X$64+$T$72+$S$81+$S$89+$P$111+$P$120),"") -> 0.4391164976 | X241: ）
M242: 200000
A244: 【体制整備単価の場合に使用】
A246: 第８ 農業生産活動等の体制整備として取り組むべき事項（体制整備単価交付必須事項）
B247: ネットワーク化活動計画を作成する。
... 28 more rows

Sheet 別紙３
AH1: （別紙様式３）
B2: 協定対象施設の管理方法
B3: 区 分 | F3: 施 設 | L3: 管理作業者 | S3: 管理方法等 | AC3: 管理作業の 代 表 者
B4: 用水路 | F4: ○○用水路 （水路の延長○m) | L4: ○○地区水利組合 | S4: ○○地区水利組合規程による | AC4: 代表者 ○○○○
B5: 排水路 | F5: ○○排水路 （水路の延長○m) | L5: ○○地区水利組合 | S5: ○○地区水利組合規程による | AC5: 代表者 ○○○○
B6: 道 路 | F6: ○○農道 （水路の延長○m) | L6: ○○○○他 | S6: ○○集落申し合わせ事項による | AC6: ○○○○

Sheet 別紙４
AT1: （別紙様式４）
A2: 令和 | C2: 7 | D2: 年度土地改良通年施行実施計画書
A3: 事業名 (工期) | L3: 都道府 県名 | O3: =はじめに!D3 -> ○○県 | U3: 関係市町村名 | AJ3: 地 区 名
A4: 通 年 施 行 実 施 計 画 | F4: 区 分 | I4: 年度工事実施予定区域 | W4: 工事計画期間及び稲作期間
I5: 実施 面積 (ha)
L6: うち対 象農用 地面積 (ha) | W6: 令和 年 | AO6: 令和 年
P7: うち土地改良 通年施行面積(ha)
C8: 区 分 | W8: ４月 | Y8: ５月 | AA8: ６月 | AC8: ７月 | AE8: ８月 | AG8: ９月 | AI8: 10月 | AK8: 11月 | AM8: 12月 | AO8: １月 | AQ8: ２月 | AS8: ３月
C10: 工区
C13: 工区
C16: 工区
C22: 計
A23: 注１）工区の区分は、区画整理その他面的工事に係る通年施行区域の計画発注工区によるものとする。
A24: 注２）対象農用地面積は、中山間地域等直接支払交付金実施要領第４の２の対象農用地の面積をいう。
A25: 注３）土地改良通年施行面積は、集落協定等に記載された面積とする（なお、現況の各筆ごとの識別が可能な図面
C26: （１／1,000～１／5,000程度）に通年施行区域を赤色で表示したものを添付すること。）。

Sheet 別紙５
AG1: （別紙様式５）
A3: 農業所得の確認に関する承諾書
A5: 住 所 | N5: 氏 名（農 業 者）
A18: 注１）「農業所得の確認に関する承諾書」は、実施要領第６の１に基づき、交付金の交付の対象となる者を確認するために市町村が行う必要な調査において、農業者から農業所得に関する情報の提供、市町村が保有する所得に関する関係書類の閲覧及び関係機関への照会の承諾を得ることが目的であり、例えば「生年月日」欄など、承諾の確認に必要な欄を本様式に設けることができる。
A19: 注２）承諾のない場合は、交付金の交付の対象者となることが確認できないため、本交付金の実施ができない場合がある。
A20: 注３）対象者は、個人又は一戸一法人で、協定に位置づけられている農用地の管理を行っている者。

Sheet 別紙６
AG1: （別紙様式６）
A2: 個 別 協 定
A3: 経営規模及び農業所得調書
A5: 第１ 経営規模
Y6: (単位：a)
B7: 地 目 | F7: 自己所有地 | N7: 借入面積 | V7: 計
B8: 田
B9: 畑
B10: 草 地
B11: 計 | V11: Ａ
B12: 採草放牧地
B13: 注）借入面積には受託面積（基幹３作業）を含む。
A15: 第２ 農業従事者一人当たりの農業所得
N16: （単位：円）
B17: 農業所得① | H17: 農業従事者② | N17: ①／②
B19: 注１ 農業従事者一人当たりの農業所得は以下のとおり算定する。
C20: （確定申告に基づく農業所得＋専従者給与額－負債の償還額）／農業従事者数
C21: 当該農業者が生産組織、農地所有適格法人等の構成員であり、当該生産組織、農地所有適格法人等から給与額又は役員報酬等を受けている場合は、上記農業所得に当該給与額又は役員報酬等を含めるものとする。
C22: (1) 負債の償還額は実施要領の運用第６の１の(1)のイの(ｱ)による。
C23: (2) 農業従事者数は実施要領の運用第６の１の(1)のイの(ｲ)により換算する。
B24: 注２ 農業所得調書には、農業所得額を証明する書類を添付する。
A27: 【農業生産活動等として取り組むべき事項を実施する場合に使用】
A28: 第３ 農業生産活動等として取り組むべき事項
B30: １ 農用地に関する事項
C31: 以下の項目から１項目以上（２で管理の対象とする水路・農道等が、多面的機能支払交付金実施要綱別紙１第５の２に基づく活動計画に定める施設と同一である場合は、２項目以上）を選択する。
A32: ✓ | C32: 多面的機能支払交付金実施要綱別紙１第５の２に基づく活動計画に定める施設と同一。
A33: 該 当 | C33: 具 体 的 に 取 り 組 む 行 為
A34: 〇 | C34: ①耕作放棄されそうな農用地については、集落内外の担い手農家や第３セクター等による利用権の設定等や農作業の委託を行う。
C35: ②既荒廃農地を協定農用地に含める場合には、荒廃農地の復旧又は畜産的利用を行う。
C36: ③既荒廃農地を協定農用地に含めない場合には、協定農用地に悪影響を与えないよう草刈り、防虫対策等の保全管理を行う。
C37: ④農地法面の崩壊を未然に防止するため、定期的な点検を行う。
C38: ⑤協定農用地への柵、ネット等の設置等により鳥獣害防止対策を行う。
C39: ⑥作業道の設置、排水改良等簡易な基盤整備を行う。
C40: ⑦定農用地における農業生産活動が維持されるよう担い手（認定農業者、これに準ずるものとして市町村長が認定した者、第３セクター、特定農業法人、農業協同組合、生産組織等）を確保する。
C41: ⑧集落の新たな雇用創出や地域経済の活性化に資する地場農産物の加工・販売を行う。
C42: ⑨その他（土地改良事業、災害復旧及び地目変換（田から畑等へ）等）
B44: ２ 水路・農道等の管理方法（①②について該当する取組に○印を記入（複数可））
A45: 具 体 的 に 取 り 組 む 行 為
A46: ①水 路 | F46: ア）水路清掃 | K46: 〇 | M46: イ）草刈り | R46: 〇 | T46: ウ）その他（ | AC46: ）
A47: ②農 道 | F47: ア）簡易補修 | K47: 〇 | M47: イ）草刈り | R47: 〇 | T47: ウ）その他（ | AC47: ）
A48: ③その他 | F48: ○○を実施する
B50: ３ 多面的機能を増進する活動として以下の項目から１項目以上選択し、実施する。
C51: 以下の項目のうち該当項目に○印を記入する。
A52: 該 当 | C52: 具 体 的 に 取 り 組 む 行 為
A53: 〇 | C53: ①農地と一体となった周辺林地の下草刈り等を行う。
C54: ②棚田オーナー制度の実施、市民農園・体験農園の開設・運営を行う。
C55: ③景観作物を作付ける。
C56: ④土壌流亡に配慮した営農を行う（等高線栽培、根の張る植物を畝間に植栽）。
C57: ⑤体験民宿を実施する（グリーン・ツーリズム）。
C58: ⑥魚類・昆虫類の保護を行う（ビオトープの確保）。
C59: ⑦冬期の湛水化、不作付地での水張り等の鳥類の餌場の確保を図る。
C60: ⑧粗放的畜産を行う。
C61: ⑨堆きゅう肥の施肥、拮抗植物の利用、アイガモ・鯉の利用、輪作の徹底、緑肥作物の作付け等を行う。
C62: ⑩その他 （ ）
A63: 注）法律で義務づけられている行為及び国庫補助事業の補助対象として行われる行為以外のものを１つ以上選択。
A64: 注）上記１～３で定めた活動を行う際は、作業安全対策の観点から、以下の点に努めること。
B65: ・作業環境の点検（作業前の危険箇所の確認・共有、機器の定期点検等）
B66: ・活動で使用する機械又は使用頻度が高い機械（刈払機等）の安全な使用に関する取組の実施（研修・講習の開催又は参加等）
A68: 第４ 加算措置適用のために取り組むべき事項（加算措置必須要件）
C69: 次の活動のうち取り組む項目に○印を記入するとともに、現状及び達成目標について具体的に記載し、実施する。
B72: 該 当 | E72: 項 目 | M72: 取組期間 | R72: 現状 | Z72: 達成目標
E73: 超急傾斜農地保全管理加算 | M73: 令和 | P73: 年度
M74: ～
M75: 令和 | P75: 年度
B76: 注１）現状は、取組期間の開始年度における地域の現状を記載する。
B77: 注２）達成目標は、取組期間の最終年度までに達成される地域の現状を踏まえた目標を記載する。

Sheet 別紙７
A2: 協定農用地の概要
A3: 【市町村名： 】 | C3: =はじめに!D4 -> △△市 | E3: 】
A4: 交付対象者の氏名・名称 | B4: 字 | C4: 地番 | D4: 地目 | E4: 傾斜度 | F4: 面積 | G4: 10ａ当たりの単価 | H4: 交付額 | I4: 設定 権利等 | J4: 農用地の管理 | L4: 設定権利者等名(出し手) | M4: 始期 | N4: 終期 | O4: 契約 年月日 | P4: 交付金の使用方法
J5: 農用地の現況 | K5: 具体的活動内容
A9: 【個別協定の場合】
A10: 注１) 一団の農用地全てを耕作する場合及び別紙様式６の経営規模のＡが都府県にあっては３ ha以上、北海道にあっては30ha以上 (草地では100ha以上)の経営の規模を有している場合は、自作地も記入する。但し、農業従事者一人当たりの農業所得が同一都道府県内の都市部の勤労者一人当たりの平均所得を上回る場合は除く。
A13: 注２) 注１ の農業従事者一人当たりの農業所得は、別紙様式６の第２の注書きにより算出する。
A14: 注３) 注１ の但し書きに該当する者は引受地のみを記入。
A15: 注４) 使用方法には、受託者(個別協定の申請者)の受取額及び受取割合を記入すること。
A18: 【集落協定の場合】
A19: 注１) 農業従事者一人当たりの農業所得が同一都道府県内の都市部の勤労者一人当たりの平均所得を上回る場合にあって、集落協定上の基幹的活動において中核的なリーダーとしての役割を果たす担い手として指定された者において、引受地に対して交付される交付額を個人配分に充てる場合に記入。
A22: 注２) 注１に該当する者の個人配分に充てる引受地のみを記入。
A23: 注３) 使用方法には、受託者(注１に該当する者)の受取額を記入。
A25: 協定農用地の概要
A26: 注１ 農地又は採草放牧地について、所有権移転、賃借権等を設定した場合は、農地法第３条の規定に基づく許可書又は農地中間管理事業の推進に関する法律第18条に基づく農用地利用集積等促進計画の写しを添付のこと。
A28: 注２ 農作業受委託の場合は、別添契約書様式例を参考に契約書を作成し、その写しを添付のこと。
A29: 注３ 申請者の居住する市町村以外に存する農用地について、利用権の設定等を行っており、当該農用地の存する市町村の長に申請書を提出している場合は、当該申請書の写しを添付すること。

Sheet 別紙７（別添）
A2: 農作業受委託契約書（様式例）
A4: 受託者及び委託者は、この契約書の定めるところにより農作業受委託契約を締結する。この契約書は、２通作成して受託者及び委託者がそれぞれ１通所持する。
A7: 令和 年 月 日
V9: 受託者（以下「甲」という。）
Q10: （住所）
Q11: （氏名）
V12: 委託者（以下「乙」という。）
Q13: （住所）
Q14: （氏名）
A16: １ 農作業受委託の内容
B17: 甲は、この契約書に定めるところにより乙により、別表に記載する農作業を受託し、善良なる管理者の注意をもって農作業を実施するものとする。
B19: 乙は、甲が農作業を円滑に行えるよう作付けに十分な配慮をする。
A21: ２ 受託料の支払方法
B22: 乙は、別表に記載された農作業に対して、同表に記載された金額の受託料を同表に記載された方法により甲に支払う。
A25: ３ 契約の変更
B26: 契約事項を変更する場合には、甲、乙合意の上、その変更事項をこの契約書に明記する。
A30: （別 表）
B31: 字 | E31: 地 番 | H31: 地 目 | K31: 面 積 （㎡） | N31: 作 物 | Q31: 作 業 種 類 | T31: 期間 | W31: 受託料の額(円) | Z31: 支 払 方 法 | AC31: 通年・期間の別
Q32: 作業名 | T32: 始期
T33: 終期
B35: 合 計

Sheet 別紙８
J1: （ 別紙様式８ ）
D3: 環境負荷低減のチェックシート（集落協定向け）
C5: 申請時 （します） | D5: （１）適正な施肥 | E5: 報告時 （しました） | H5: 申請時 （します） | I5: （５）廃棄物の発生抑制、 適正な循環的な利用及び適正な処分 | J5: 報告時 （しました）
B7: ① | C7: □ | D7: ※共同取組活動で施肥を行う場合 肥料の適正な保管 （該当しない ） | E7: □
G8: ⑧ | H8: □ | I8: 共同取組活動を行う場合には、 プラ等廃棄物の削減に努め、適正に処理 | J8: □
B11: ② | C11: □ | D11: ※共同取組活動で施肥を行う場合 肥料の使用状況等の記録・保存に努める （該当しない ） | E11: □
H12: 申請時 （します） | I12: （６）生物多様性への悪影響の防止 | J12: 報告時 （しました）
G14: ⑨ | H14: □ | I14: ※共同取組活動で農薬を使った防除を行う場合 農薬の適正な使用・保管 （該当しない ） | J14: □
C16: 申請時 （します） | D16: （２）適正な防除 | E16: 報告時 （しました）
B18: ③ | C18: □ | D18: ※共同取組活動で農薬を使った防除を行う場合 農薬の適正な使用・保管 （該当しない ） | E18: □ | G18: ⑩ | H18: □ | I18: ※共同取組活動で農薬を使った防除を行う場合 農薬の使用状況等の記録・保存 （該当しない ） | J18: □
B22: ④ | C22: □ | D22: ※共同取組活動で農薬を使った防除を行う場合 農薬の使用状況等の記録・保存 （該当しない ） | E22: □ | G22: ⑪ | H22: □ | I22: ※生物多様性への影響が想定される工事等を 実施する場合 生物多様性に配慮した事業実施に努める （該当しない ） | J22: □
C27: 申請時 （します） | D27: （３）エネルギーの節減 | E27: 報告時 （しました）
H28: 申請時 （します） | I28: （７）環境関係法令の遵守等 | J28: 報告時 （しました）
B29: ⑤ | C29: □ | D29: ※共有資産として入手した50万円以上の農機等が ある場合 農機等の燃料の使用状況の記録・保存に努める （該当しない ） | E29: □
G30: ⑫ | H30: □ | I30: 「みどりの食料システム戦略」を理解し、適切な事業実施に努める | J30: □
G33: ⑬ | H33: □ | I33: 関係法令の遵守 | J33: □
B34: ⑥ | C34: □ | D34: ※共有資産として入手した50万円以上の農機等が ある場合 省エネを意識し、不必要・非効率なエネルギー消費をしないよう努める （該当しない ） | E34: □
G35: ⑭ | H35: □ | I35: ※機械等を扱う事業者である場合 機械等の適切な整備と管理に努める （該当しない ） | J35: □
G39: ⑮ | H39: □ | I39: 正しい知識に基づく作業安全に努める | J39: □
C41: 申請時 （します） | D41: （４）悪臭及び害虫の発生防止 | E41: 報告時 （しました）
B43: ⑦ | C43: □ | D43: 共同取組活動を行う場合には、 悪臭・害虫の発生防止・低減に努める | E43: □
B47: 注１ 申請時は「します」の□、報告時は「しました」の□にチェックしてください。
B48: 注２ 「※」の記載内容に該当しない場合は「（該当しない □）」にチェックしてください。 この場合、当該項目の申請時・報告時のチェックは不要です。

Sheet 別紙９
J1: （ 別紙様式９ ）
D3: 環境負荷低減のチェックシート（個別協定向け）
C5: 申請時 （します） | D5: （１）適正な施肥 | E5: 報告時 （しました） | H5: 申請時 （します） | I5: （４）悪臭及び害虫の発生防止 | J5: 報告時 （しました）
B7: ① | C7: □ | D7: 肥料の適正な保管 | E7: □ | G7: ⑫ | H7: □ | I7: 悪臭・害虫の発生防止・低減に努める | J7: □
B9: ② | C9: □ | D9: 肥料の使用状況等の記録・保存に努める | E9: □
H10: 申請時 （します） | I10: （５）廃棄物の発生抑制、 適正な循環的な利用及び適正な処分 | J10: 報告時 （しました）
B11: ③ | C11: □ | D11: 作物特性のデータに基づく施肥設計を検討 | E11: □
B13: ④ | C13: □ | D13: 有機物の適正な施用による土づくりを検討 | E13: □ | G13: ⑬ | H13: □ | I13: プラ等廃棄物の削減に努め、適正に処理 | J13: □
C16: 申請時 （します） | D16: （２）適正な防除 | E16: 報告時 （しました） | H16: 申請時 （します） | I16: （６）生物多様性への悪影響の防止 | J16: 報告時 （しました）
B18: ⑤ | C18: □ | D18: 病害虫・雑草が発生しにくい生産条件の整備を検討 | E18: □ | G18: ⑭ | H18: □ | I18: 病害虫・雑草の発生状況を把握した上で防除の要否及びタイミングの判断に努める（再掲） | J18: □
B20: ⑥ | C20: □ | D20: 病害虫・雑草の発生状況を把握した上で防除の要否及びタイミングの判断に努める | E20: □
G21: ⑮ | H21: □ | I21: 多様な防除方法（防除資材、使用方法）を活用した防除を検討（再掲） | J21: □
B23: ⑦ | C23: □ | D23: 多様な防除方法（防除資材、使用方法）を活用した防除を検討 | E23: □
H25: 申請時 （します） | I25: （７）環境関係法令の遵守等 | J25: 報告時 （しました）
B26: ⑧ | C26: □ | D26: 農薬の適正な使用・保管 | E26: □
G27: ⑯ | H27: □ | I27: 「みどりの食料システム戦略」を理解し、適切な事業実施に努める | J27: □
B28: ⑨ | C28: □ | D28: 農薬の使用状況等の記録・保存 | E28: □
G30: ⑰ | H30: □ | I30: 関係法令の遵守 | J30: □
C31: 申請時 （します） | D31: （３）エネルギーの節減 | E31: 報告時 （しました）
G32: ⑱ | H32: □ | I32: 環境配慮の取組方針の策定や研修の実施に努める | J32: □
B33: ⑲ | C33: □ | D33: 農機・ハウス等の電気・燃料の使用状況の記録・保存に努める | E33: □
G34: ⑲ | H34: □ | I34: ※機械等を扱う事業者である場合 機械等の適切な整備と管理に努める （該当しない ） | J34: □
B36: ⑪ | C36: □ | D36: 省エネを意識し、不必要・非効率なエネルギー消費をしないよう努める | E36: □
G38: ⑳ | H38: □ | I38: 正しい知識に基づく作業安全に努める | J38: □
B41: 注１ 申請時は「します」の□、報告時は「しました」の□にチェックしてください。
B42: 注２ 「※」の記載内容に該当しない場合は「（該当しない □）」にチェックしてください。 この場合、当該項目の申請時・報告時のチェックは不要です。

Sheet 別紙２②（ネットワーク化活動計画）
B2: ○ネットワーク化活動計画
A4: １．体制整備の基本方針
B5: １－１．集落協定名
B6: =はじめに!D5 -> あいうえお集落協定
B8: １－２．ネットワーク化活動計画作成時点
B9: 当初 | F9: 令和８年６月
B10: 第１回変更
B11: 第２回変更
B12: 第３回変更
B13: 注１）本計画を作成したときは、遅滞なく協定農用地の存する市町村に提出すること。 注２）２－２のネットワークに参加する集落協定、３－２の統合に参加する集落協定、３－６の役員の継承計画、４－１の協定活動に参画する多様な組織等に変更が必要になった場合や、計画内容の大幅な変更が必要になった場合は本計画の変更を行い市町村に提出すること。
B15: １－３．体制整備のために行おうとする取組
B16: 該当注１） | D16: 取組 | G16: 対象協定 | L16: 要記載項目
B17: ○ | D17: ①ネットワーク化注２） | G17: 新たにネットワーク化を行い10ha以上のネットワークを形成する集落協定 | L17: ２－１～２－７
G18: 新たにネットワーク化を行う予定はないが、既に10ha以上のネットワークを形成しており、体制の維持、向上を図ろうとする集落協定
B19: ○ | D19: ②統合注３） | G19: 新たに統合を行い10ha以上の集落協定を形成する集落協定 | L19: ３－１～３－５
G20: 新たに統合を行う予定はないが、既に10ha以上の集落協定となっており、体制の維持、向上を図ろうとする集落協定 | L20: ３－２、 ３－６、３－７
B21: ○ | D21: ③多様な組織等の参画注４） | G21: １組織以上の農業者団体以外の組織又は構成員の10%以上の非農業者が活動に参画する集落協定 | L21: ４－１～４－３
B22: 注１）該当する取組を全て選択すること。 注２）「ネットワーク化」とは、複数の集落協定間において活動の連携体制を構築することをいう。「新たにネットワーク化を行う予定はないが、既に10ha以上のネットワークを形成しており、体制の維持、向上を図ろうとする集落協定」の場合は、計画作成時点で10ha以上のネットワークを形成していること。ネットワーク化は自協定が存する地域計画区域内の他の集落協定と行うことを基本とするが、自協定が存する地域計画区域内に他の集落協定がない場合など、合理的な理由がある場合は、他の地域計画区域内に存する集落協定とネットワーク化することも可とする。 注３）「統合」とは、他の集落協定と１つの集落協定に統合することをいう。「新たに統合を行う予定はないが、既に10ha以上の集落協定となっており、体制の維持、向上を図ろうとする集落協定」の場合は、計画作成時点で10ha以上の集落協定となっていること。統合は自協定が存する地域計画区域内の他の集落協定と行うことを基本とするが、自協定が存する地域計画区域内に他の集落協定がない場合など、合理的な理由がある場合は、他の地域計画区域内に存する集落協定と統合することも可とする。 注４）「多様な組織等の参画」とは、農業者団体以外の組織や非農業者が集落協定の活動に参画するこという。参画にあたっては、集落協定の構成員となるか、別途で協定等を結ぶこと。計画作成時点で１組織以上の農業者団体以外の組織又は構成員の10%以上の非農業者が活動に参画していること。

Sheet 別紙２③（ネットワーク化）
A2: ２．ネットワーク化の計画
B3: 注１）ネットワーク化を行っている、又は行おうとする他の集落協定のネットワーク化活動計画におけるネットワーク化の計画と整合がとれたものとすること。 注２）２－１～２－７の全てを記載すること。
B5: ２－１．ネットワークの名称（予定）
B6: 農林地域集落協定ネットワーク協議会
B8: ２－２．ネットワークに参加する集落協定
B9: 集落協定名 | F9: 協定面積 | H9: 地域計画 | L9: 現在の連携状況
H10: 自協定が存する計画区域内 | J10: 別の計画区域内 | L10: 連携済 | M10: 今後連携
B11: ="（自協定）"&はじめに!D5 -> （自協定）あいうえお集落協定 | C11: （自協定） | D11: （自協定） | E11: （自協定） | F11: ='別紙１④'!$C$64/100 -> 361.62
B12: Ｂ協定 | F12: 13.7 | H12: ○ | L12: ○
B13: Ｃ協定 | F13: 3.2 | H13: ○ | M13: ○
B15: 合計 | C15: 合計 | D15: 合計 | E15: 合計 | F15: =SUM(F11:G14) -> 378.52
B16: 注）合計協定面積は10ha以上であること。
B18: ２－３．ネットワーク化で解決しようとする課題
B19: 該当 | H19: 該当
D20: ①リーダーの人材不足 | J20: ⑤農作業機械や施設の不足
B21: ○ | D21: ②事務担当者の人材不足 | H21: ○ | J21: ⑥知見や技術の不足
D22: ③共同取組活動参加者の附則 | J22: ⑦その他（※内容は↓欄に記載ください）
B23: ○ | D23: ④農業の担い手の人材不足
B24: （該当する課題について詳細を記載） ②現在の事務担当者は70歳代で高齢であるが、後継者が見つからず10年間、事務担当を担っている。あと数年のうちに後継者を確保する必要がある。 ④高齢で小規模な自給的農家や兼業農家が協定内の農地の多くを担っている。あと５年のうちに引退を希望する農業者が複数いるが、農地の引き受け手の見込みが立っていない。 ⑥農地の担い手を育成するため、ソバや施設園芸の導入に取り組みたい。また、販路拡大のため、加工品の販売にも取り組みたいが、協定内に加工や販売の知見を持っている人材がいない。
B25: 注）地域計画や集落マスタープラン、第５期対策で作成した集落戦略に位置付けられた内容を踏まえて検討すること。
B27: ２－４．ネットワーク化により連携して実施する活動
B28: 該当 | D28: 連携して実施する活動 | H28: 該当 | J28: 連携して実施する活動
B29: ○ | D29: ①事務の一元化（共同事務局の設置や外部委託） | H29: ○ | J29: ⑥農業の担い手育成
H30: ○ | J30: ⑦地場農産物の加工・販売
D31: ②農地保全（草刈り、荒廃防止活動等） | H31: ○ | J31: ⑧鳥獣害対策
D32: ③水路・農道等の維持管理 | J32: ⑨多面的機能を増進する活動
D33: ④機械・施設の共同利用 | J33: ⑩その他（※内容は↓欄に記載ください ）
B34: ○ | D34: ⑤農作業の共同化
B36: ２－５．連携方法
B37: 該当 | D37: 連携方法 | G37: 該当 | I37: 連携方法
B38: ○ | D38: ①協議会型注１） | I38: ③共同委託型注３）
B39: ○ | D39: ②活動連携型注２） | I39: ④その他（ | L39: ）
B40: 注１）協議会、委員会等を設置し、ネットワークでの活動の調整や事務等を行う場合。 注２）作業の共同化や機械・施設の共同利用などの共通のルールを覚書等で定めるなどにより連携した活動を行う場合。 注３）各集落協定から同一の外部団体又は同一の外部人材に同じ活動を委託する場合。
B42: ２－６．ネットワーク化の工程
B43: （工程の概略）
B44: 取組 | H44: R6以前 | I44: R7 | J44: R8 | K44: R9 | L44: R10 | M44: R11 | N44: R12以降
B45: ネットワーク化に向けた話合い（協定内） | I45: ○ | J45: ○
B46: ネットワーク化に向けた話合い（協定間） | I46: ○ | J46: ○
B47: ネットワーク化により連携して実施する活動の開始注） | H47: ⑧ | J47: ① | L47: ⑥
J48: ⑤ | L48: ⑦
B50: 協議会等の設置（協議会型の場合） | J50: ○
B51: ネットワーク化加算の適用（加算措置を利用する場合） | J51: ○ | K51: ○ | L51: ○ | M51: ○
B52: （２－２～２－５を踏まえたネットワーク化の進め方を記載） ・令和５年度から地域一帯で鳥獣防護柵を設置する作業をＢ集落と共同で実施（活動連携型）している。 ・同じ地域計画区域内にあり、協定廃止を検討していたＣ集落協定もネットワークに加え、令和８年度より協議会型へ移行し、事務局の一元化を行う。共同事務局の事務員は、元地域おこし協力隊の移住者を非常勤で雇用する。また、ネットワーク化加算を申請し、加算措置を利用してネットワークの中で中心的な農業者となる就農者の募集を開始する。Ｂ集落協定でソバを栽培している農業生産法人の活動範囲を広げ、Ａ集落協定及びＣ集落協定の農地においても栽培を開始する。ソバの加工・販売を目指して研修会へ参加するなど、技術習得を目指す。 ・令和９年度には、ネットワーク内の概ね６割の農地をＢ集落協定で活動していた農業生産法人に集約する。 ・令和10年度にネットワーク内に加工・販売部を結成し、ソバの加工・販売を始める。農業生産法人の新規雇用者を確保し、JAや地域外の農業生産法人の協力のもと、施設園芸の技術研修を行う。農業生産法人の新規雇用者を各集落協定の「主導的な役割を担う人材」に位置付ける。 ・令和11年度に補助事業を活用して農業用ハウスを１棟導入し、農業生産法人においてアスパラガスの栽培を始める。収穫等の人手が必要な作業は、協議会で話し合い、各集落協定から分担して人員を確保することとする。 ・令和12年度以降にネットワークの拡大や集落協定の統合を検討する。
B61: 注）工程の概略における「ネットワーク化により連携して実施する活動の開始」には２－４の「ネットワーク化により連携して実施する活動」の番号を記載。
B63: ２－７．ネットワーク化後の統合予定
B64: 該当 | D64: 統合の予定
D65: ①第６期対策期間中（令和７年度～令和11年度）での統合を検討する
B66: ○ | D66: ②第６期対策終了後の令和12年度以降での統合を検討する
D67: ③時期は未定だが将来的に統合を検討する
D68: ④未定
D69: ⑤統合は必要ないと考えている
D70: ⑥その他（ | K70: ）

Sheet 別紙２④（統合）
A2: ３．統合の計画
B3: 注１）統合をこれから行う場合は、統合を行おうとする他の集落協定のネットワーク化活動計画における統合の計画と整合がとれたものとすること。 注２）「新たに統合を行い10ha以上の集落協定を形成する集落協定」は、３－１～３－５を記載すること。「新たに統合を行う予定はないが、既に10ha以上の集落協定となっており、体制の維持、向上を図ろうとする集落協定」は、３－２、３－６、３－７を記載すること。
B5: ３－１．統合後の集落協定の名称（予定）
B6: 農林地域広域集落協定
B8: ３－２．統合に参加する集落協定
B9: 集落協定名 | F9: 協定面積 | H9: 地域計画
H10: 自協定が存する計画区域内 | J10: 別の計画区域内
B11: ="（自協定）"&はじめに!D5 -> （自協定）あいうえお集落協定 | C11: （自協定） | D11: （自協定） | E11: （自協定） | F11: ='別紙１④'!$C$64/100 -> 361.62
B12: Ｅ協定 | F12: 5.5 | H12: ○
B13: Ｆ協定 | F13: 8.7 | H13: ○
B15: 合計 | C15: 合計 | D15: 合計 | E15: 合計 | F15: =SUM(F11:G14) -> 375.82
B16: 注１）合計協定面積は10ha以上であること。 注２）統合する予定がない場合は自協定のみ記載すること。
B18: ３－３．統合で解決しようとする課題
B19: 該当 | H19: 該当
D20: ①リーダーの人材不足 | J20: ⑤農作業機械や施設の不足
B21: ○ | D21: ②事務担当者の人材不足 | J21: ⑥知見や技術の不足
D22: ③共同取組活動参加者の不足 | H22: ○ | J22: ⑦その他（※内容は↓欄に記載ください）
B23: ○ | D23: ④農業の担い手の人材不足 | J23: 農作業機械の老朽化及びオペレーターの不足
B24: （該当する課題について詳細を記載） ①代表者が固定化されており、後継者の確保の目途が立っていない。 ③構成員には若手が２名いるが、その他の構成員は高齢であり、共同取組活動の作業負担が２名の若手の集中する傾向がある。 ⑦集落協定内の農業者が所有する農作業機械の老朽化が進んでいる。現在は農業者間の貸し借りでなんとかまかなっているが、今後故障する機械が増えれば、農作業機械の確保が困難になる。また、世代交代が行われた小規模農業者から作業委託のニーズが増えているが、農作業を受託できるオペレーターが減ってきている。
B25: 注）地域計画や集落マスタープラン、第５期対策で作成した集落戦略に位置付けられた内容を踏まえて検討すること。
B27: ３－４．統合により体制を強化したい活動
B28: 該当 | D28: 体制を強化したい活動 | H28: 該当 | J28: 体制を強化したい活動
B29: ○ | D29: ①リーダー等の人材確保 | J29: ⑦農業の担い手育成
D30: ②事務局機能の強化 | J30: ⑧地場農産物の加工・販売
B31: ○ | D31: ③農地保全（草刈り、荒廃防止活動等） | J31: ⑨鳥獣害対策
B32: ○ | D32: ④水路・農道等の維持管理 | H32: ○ | J32: ⑩多面的機能を増進する活動
B33: ○ | D33: ⑤機械・施設の共同利用 | H33: ○ | J33: ⑪その他（※内容は↓欄に記載ください）
D34: ⑥農作業の共同化 | J34: 農作業機械のオペレーターの確保
B36: ３－５．統合の工程
B37: （工程の概略）
B38: 取組 | H38: R6以前 | I38: R7 | J38: R8 | K38: R9 | L38: R10 | M38: R11 | N38: R12以降
B39: ①統合に向けた話合い（協定内） | I39: ○ | J39: ○
B40: ②統合に向けた話合い（協定間） | H40: ○ | I40: ○ | J40: ○
B41: ③統合 | J41: ○
B42: ④ネットワーク化加算の適用（加算措置を利用する場合） | K42: ○ | L42: ○ | M42: ○
B43: （３－２～３－４を踏まえた統合の進め方を記載） ・令和５年度から地域計画作成に向けた協議が開始されたことをきっかけに、周辺にあるＥ集落協定、Ｆ集落協定と統合に向けた意見交換を行ってきた。リーダーの人員不足や共同取組活動参加者の不足という共通の課題を抱えている。 ・令和７年度初旬の集落協定総会において、統合の方向性について承認が得られたため、令和７年度中にＥ集落協定、Ｆ集落協定と統合後の活動計画や個人配分、作業日当等のルールについて意見調整を行う。令和８年度初旬の総会において統合の承認をとり、令和８年度内の統合を目指す。 ・令和９年度よりネットワーク化加算を申請する。 ・統合後の協定では、集落協定の代表者を、旧集落協定による３年毎の輪番制とすることを検討する。 ・草刈等の作業が一部の構成員に集中しないように、旧集落協定間で人手を出し合う体制を構築するとともに、土地持ち非農家の参加も呼び掛けるようにする。 ・農作業機械については、協定内で引退する農家から農作業機械を集約し、機械共同利用組合を立ち上げる。ネットワーク化加算を利用して、共同利用する農作業機械の保管庫を整備する。Ｆ集落協定内のＵターン予定者を機械共同利用組合の管理者兼オペレーターに育成し、統合した集落協定の「主導的な役割を担う人材」に位置付ける。 ・統合後は、農村関係人口の拡大に向けた検討を進める。管理が十分行われていなかった梅や柿の収穫体験や、道の駅周辺での景観作物の栽培などの計画を検討する。また、当集落協定で行ってきた野鳥のための冬季水張りをＥ集落協定及びＦ集落協定のエリアにも広げる検討を行う。
B45: ３－６．役員の継承計画
B46: 役職名等 | D46: 氏名（現体制） | G46: 氏名（後任予定者） | J46: 継承予定時期
B47: 代表者 | D47: ='別紙１④'!K11 -> 丙川 三郎 | G47: 丙川 三郎 | J47: 令和 | K47: 10 | L47: 年度
B48: 書記担当 | D48: ='別紙１④'!K12 -> 丙川 三郎 | G48: 丁本 四郎 | J48: 令和 | K48: 12 | L48: 年度
B49: 会計担当 | D49: ='別紙１④'!K13 -> 乙山 次郎 | G49: 戊部 花子 | J49: 令和 | K49: 12 | L49: 年度
B50: 共同機械担当 | D50: ='別紙１④'!K14 -> 乙山 次郎 | G50: 己藤 五郎 | J50: 令和 | K50: 10 | L50: 年度
B51: 土地改良施設担当 | D51: ='別紙１④'!K15 -> 甲田 太郎 | G51: 丁本 四郎 | J51: 令和 | K51: 12 | L51: 年度
B52: 法面点検担当 | D52: ='別紙１④'!K16 -> 丙川 三郎 | G52: 戊部 花子 | J52: 令和 | K52: 10 | L52: 年度
B53: 注）「氏名（現体制）」は、本計画作成時点での役職者名を記載。「氏名（後任予定者）」は、現体制の担当者の次に担当となる人（予定）の氏名を記載。「氏名（現体制）」とは別の人を「氏名（後任予定者）」記載すること（同一人物の記載は不可）。
B55: ３－７．体制の維持・向上に向けた活動事項
B56: （役員の継承に向けた取組を記載） ・代表者の後任予定者は丙川三郎とし、令和10年度の継承予定時期まで書記担当として代表者の業務の補助を行いながら、徐々に代表者業務の習得を行う。 ・その他の役員については、代表者交代時期の令和10年度と対策期切り替わりの令和12年度に分けて段階的に交代を行うことで、役員業務の引継ぎを計画的に進めていく。 ・令和10年度より共同機械担当となる予定の己藤五郎は、令和９年度までにドローン操作の研修を受講を行うとともに、乙山次郎の指導のもと自走型草刈機の操作方法の習得を行う。
B57: （構成員や活動参加者の安定的な確保に向けた取組を記載） ・大型連休期間に共同取組活動による草刈作業を実施し、構成員の親族にも可能な限りの参加を呼び掛ける。また、作業実施後には収穫祭を実施し、構成員間の懇親を図る。 ・総会の際に構成員に対し、農地の相続予定者に中山間地域等直接支払の活動についても引継ぎ予定があることを伝えるよう周知する。 ・○○市と連携し、令和８年度から地域おこし協力隊制度を活用して地域内の農地保全に関わる人材の移住受け入れを目指す。 ・集落外に在住している農地所有者に対して、毎年、活動報告と合わせて共同取組活動の案内を送付することで、共同取組活動への参加を促す。 ・地元米の直販先に対して収穫等の体験活動への参加募集をかけることで関係人口拡大に取り組む。 ・市民農園を開設し非農業者との交流を深めるとともに、多面的機能の増進活動への参加を募集する。 ・一律の作業単価を見直し、傾斜が厳しい場所での作業等の負担が大きい作業については高い作業単価を設定するなど、共同取組活動に参加しやすくなる環境を整備する。また、令和７年度より適用を受けているスマート農業加算を利用して令和９年度にリモコン式自走草刈機を導入し、急傾斜地域での作業の省力化と安全な作業実施が可能となる環境を整備する。

Sheet 別紙２⑤（多様な組織等の参画）
A2: ４.多様な組織等の参画
B3: 注）４－１～４－３の全てを記載すること。
B5: ４－１．協定活動に参画する多様な組織等
B6: 注）（１）又は（２）の該当する項目を記載すること。
B7: （１）農業者団体以外の組織
B8: 参画方法 | F8: 組織名
B9: ①集落協定の構成員 | F9: Ｇ地域づくり協議会
F10: Ｈ子供会
F11: Ｉ土地改良区
F12: Ｊ農地保全会（多面的機能支払活動組織）
B13: ②別途協定等を締結 | F13: Ｋ大学
B17: 注１）「別途協定等を締結」とは集落協定の構成員とはならないが、協定の活動への参画に関する協定、覚書等を結ぶなど、連携関係を明確にすることをいう。 注２）②の場合は連携関係を証明する書類を添付すること。
B19: （２）非農業者
B20: 参画方法 | G20: 人数
B21: ①集落協定の構成員 | G21: =COUNTIF('別紙１③'!H7:H485,"L") -> 0
B22: ②別途協定等を締結 | G22: 5
B23: 合計 | G23: =SUM(G21:J22) -> 5
B24: ③集落協定の全構成員数（集落協定の構成員数（農業者数＋①※組織数は含めない）に②を加えた人数） | L24: =COUNTIF('別紙１③'!H7:H485,"A")+COUNTIF('別紙１③'!H7:H485,"B")+COUNTIF('別紙１③'!H7:H485,"L")+G22 -> 8
B25: ①＋②が③に占める割合 | E25: =ROUNDDOWN((G23/L24)*100,0) -> 62 | F25: ％ | G25: （小数点以下切り捨て）
B27: 注１）「別途協定等を締結」とは集落協定の構成員とはならないが、協定の活動への参画に関する協定、覚書等を結ぶなど、連携関係を明確にすることをいう。 注２）②の場合は連携関係を証明する書類を添付すること。 注３）協定活動に参画する組織の構成員は人数に含めない。
B29: ４－２．多様な組織等の参画で解決しようとする課題
B30: 該当 | H30: 該当
B31: ○ | D31: ①事務担当者の人材不足 | J31: ④知見や技術の不足
B32: ○ | D32: ②共同取組活動参加者の不足 | H32: ○ | J32: ⑤その他（※内容は↓欄に記載ください）
D33: ③農業作業の人材不足 | J33: 棚田の荒廃
B34: （該当する課題について詳細を記載） ①構成員は高齢者が多く、事務の引き受け手の確保が困難である。 ②③棚田の石積の草取りや補修は集落総出で行ってきてが、高齢者の参加が難しくなり、人手の確保が困難になってきている。また、高齢のために棚田での水稲作の継続が困難な農地が増えてきている。
B35: 注）地域計画や集落マスタープラン、第５期対策で作成した集落戦略に位置付けられた内容を踏まえて検討すること。
B37: ４－３．多様な組織等の参画により連携して実施する活動
B38: 該当 | D38: 連携して実施する活動 | H38: 該当 | J38: 連携して実施する活動
B39: ○ | D39: ①事務の適切な実施 | J39: ⑥鳥獣害対策
B40: ○ | D40: ②農地保全（草刈り、荒廃防止活動等） | H40: ○ | J40: ⑦多面的機能を増進する活動
D41: ③水路・農道等の維持管理 | H41: ○ | J41: ⑤その他（※内容は↓欄に記載ください）
B42: ○ | D42: ④農作業 | J42: 棚田資源を活かした振興活動
D43: ⑤地場農産物の加工・販売
B44: （連携して実施する活動の詳細について、今後の活動の維持、向上に向けた方向性も含めて記載） ・多面的機能支払交付金の事務支援も行っていた土地改良区が令和５年度より構成員に加わり、土地改良区が集落協定の事務を担当している。集落協定の対象農用地の一部は多面的機能支払の対象にもなっており、効率的な事務作業ができることから、今後も引き続き土地改良区が事務を担当する予定である。 ・Ｊ農地保全会では、令和８年度に草刈隊を結成する予定である。草刈隊が水路・農道の草刈を実施する際に、水路等の周辺にある集落協定の農地の法面の草刈も草刈隊と連携して行うことで、作業の効率化を図る。 ・県の棚田サポーター事業を利用し、毎年、５名程度の登録者に棚田の石積みの草刈や補修の作業を手伝ってもらっている。今後は、サポーター、構成員の非農家、子供会と連携し、棚田の法面に彼岸花を植えるなど、棚田の観光資源活用に取り組む予定である。 ・以前からＫ大学が当集落へフィールドワークに来ていた縁により、令和７年度にＫ大学、Ｇ地域づくり協議会、当集落協定の３者で棚田振興のための連携協定を締結した。令和７年度より、農作業が困難となっていた棚田において、Ｋ大学の教員や学生と連携し、田植えや収穫作業を始める予定である。大学との連絡調整や宿泊場所の手配はＧ地域づくり協議会が担当し、作業当日の作業方法の説明や必要な物品の準備は当集落協定が担当する。将来的には、Ｇ地域づくり協議会を中心に棚田を活かした農泊にも取り組みたいと考えており、Ｋ大学の教員や学生にも、構想検討に加わってもらいたいと考えている。 ・これらの取組の活性化を図るため、令和８年度までに指定棚田地域振興活動計画の認定を受け、令和９年度に棚田地域振興活動加算の申請を行う計画である。 ・持続的な取組を実現するため、Ｇ地域づくり協議会を中心とした農村ＲＭＯの形成も検討していく。

Sheet 参10
A1: （参考様式第10号）
Z3: 番 号
Z4: 年 月 日
B5: 市町村長 殿
X7: =はじめに!D6 -> 中山間 太郎
A11: 中山間地域等直接支払交付金交付農用地の自然災害における災害復旧計画の提出について
B14: ○年○月○日に自然災害を受けた交付農用地について、下記のとおり災害復旧計画を作成したので提出する。 なお、○○協定は、災害復旧計画に基づき速やかに交付農用地の復旧を図り、農業生産活動等を継続していく考えであることを申し添える。
A19: 記
B21: 災害復旧計画
B22: 集落協定又は個別協定名 | K22: =はじめに!D5 -> あいうえお集落協定 | S22: 交付農用地面積 | Z22: =SUM('別紙１④'!E56:E60)+SUM('別紙１④'!J56:J59)+SUM('別紙１④'!O56:O60)+SUM('別紙１④'!T56:T58) -> 29747 | AF22: ha
B23: 被災状況 | C23: 災害名及び 被災年月日 | H23: ※ 年 月 日 | Q23: 復旧計画 | R23: 復旧工事 工期（予定） | W23: 年 月 日 ～ 年 月 日
C25: 被災農用地面積 | I25: ｈａ | R25: 復旧農用地面積 | Y25: ｈａ
C26: 被災協定対象施設名 | J26: 被災状況 | R26: 復旧協定対象施設名
B29: ※ 例：台風○号による△△水害
E30: 梅雨前線豪雨による△△土砂災害 等

Sheet 参12
A1: （参考様式第12号）
A3: 共用資産管理台帳
U5: （集落協定名： | AA5: =はじめに!D5 -> あいうえお集落協定 | AG5: ）
A6: 施設・機械名 | C6: 型式等 | E6: 購入先 | G6: 設置場所 | I6: 事業実施期間 | M6: 購入額(円) | O6: 管理責任者 | Q6: 負担区分(円) | U6: 処分制限期間 | Y6: 処分の状況 | AC6: 備考
I7: 着工年月日 | K7: 完了年月日 | Q7: 交付金 | S7: その他 | U7: 耐用年数 | W7: 処分制限年月日 | Y7: 承認年月日 | AA7: 処分の内容

Sheet 参13
A1: （参考様式第13号）
A3: 機械等利用管理規程
A6: 第１条 | D6: ○○集落組合（以下「組合」という。）が導入した機械及び施設（以下「機械等」という。）の管理及び運営は、この規定に定めるところによる。
A9: 第２条 | D9: 機械等の管理責任者は組合長とする。ただし、組合長が代行者を置くことができる。
A11: 第３条 | D11: 機械等の利用料金は○○とする。ただし、組合員以外の者が利用する場合はこの限りではない。
A14: 第４条 | D14: 機械等を利用するに当たり、使用者は、次のことに同意するものとする。
D15: （１）消耗品及び燃料等は使用者が用意すること。
D16: （２）使用後は、清掃及び点検整備を行ってから返却すること。
D17: （３）故障を発見したとき又は故障を起こした時は、直ちに管理責任者へ報告する こと。
D19: （４）機械等の使用中の事故について、組合は一切の責任を負わないこと。
A21: 第５条 | D21: 管理責任者は、機械等の適切な維持管理のため、次の諸帳簿を備え、適宜記帳するものとする。
D23: （１）共用資産管理台帳
D24: （２）機械等利用簿
D25: （３）機械管理簿
A27: 第６条 | D27: この規定に定めのない事項については、組合長が関係者と協議する等して対応し、その結果を役員会に報告するものとする。

Sheet 参14
A1: （参考様式第14号）
A2: 機械等利用簿
A4: 使用者氏名
A5: 借受機種
A6: 借受・返却月日 | G6: 令和 年 月 日 時 分 借受
G7: 令和 年 月 日 時 分 返却
A8: 実動日数 | G8: 令和 年 月 日 | AD8: 0
G9: 令和 年 月 日 | AD9: 0
G10: 令和 年 月 日 | AD10: 0
G11: 合 計 | AD11: =SUM(AD8:AG10) -> 0
A12: 点 検 | G12: 使用前 | O12: 異常項目 | X12: 有・無
G13: 使用後 | O13: 異常項目 | X13: 有・無
A14: 給 油 | O14: ㍑
A15: 備 考
A16: ※注意事項
A17: (１)消耗品及び燃料等は使用者が用意してください。
A18: (２)使用後は、清掃及び点検整備を行ってから返却してください。
A19: (３)故障を発見したとき又は故障を起こした時は、直ちに管理責任者へ報告してください。
A20: (４)機械等の使用中の事故等は、使用者の責任となり、組合は一切の責任を負いませんの で充分注意してください。

Sheet 参17
A1: （参考様式第17号）
Z3: 番 号
Z4: 年 月 日
B6: 市町村長 殿
W8: =はじめに!D5 -> あいうえお集落協定
W9: =はじめに!D6 -> 中山間 太郎
A12: 令和７年度中山間地域等直接支払交付金早期交付申請書
A14: このことについて、中山間地域等直接支払交付金実施要領（平成12年４月１日付け12構改Ｂ第38号農林水産事務次官依命通知）の第15及び中山間地域等直接支払交付金実施要領の運用（平成12年４月１日付け12構改Ｂ第74号農林水産省構造改善局長通知）の第18に基づき、別紙のとおり申請する。

Sheet 参17_別紙
A1: （別紙）
B3: １．申請者の概要
D4: ふりがな | G4: ='別紙１①'!G6 -> あいうえおしゅうらくきょうてい
D5: 組織名 | G5: ='別紙１①'!G7 -> あいうえお集落協定
D6: ふりがな | G6: ='別紙１①'!G9 -> ちゅうさんかん たろう
D7: 代表者氏名 | G7: ='別紙１①'!G10 -> 中山間 太郎
D8: ふりがな | G8: ='別紙１①'!G12 -> まるけんさんかくしまるちょう
D9: 所在地 | G9: ='別紙１①'!G13 -> ○○県△△市○町
B11: ２．早期交付の基礎となる農用地面積及び交付額
B12: （基本分） | M12: （単位：㎡）
B13: 区分
C14: 早期交付の基礎となる農用地面積 | D14: 田 | G14: 畑 | J14: 草地 | M14: 採草放牧地
D15: 面積 | E15: 単価 | F15: 交付額 | G15: 面積 | H15: 単価 | I15: 交付額 | J15: 面積 | K15: 単価 | L15: 交付額 | M15: 面積 | N15: 単価 | O15: 交付額
B16: 急傾斜 | C16: （ ） | D16: （ ） | E16: 16800 | F16: =D17*E16 -> 0 | G16: （ ） | H16: 9200 | I16: =G17*H16 -> 0 | J16: （ ） | K16: 8400 | L16: =J17*K16 -> 0 | M16: （ ） | N16: 800 | O16: =M17*N16 -> 0
C17: =D17+G17+J17+M17 -> 0
B18: 緩傾斜 (急傾斜以外) | C18: （ ） | D18: （ ） | E18: 6400 | F18: =D19*E18 -> 0 | G18: （ ） | H18: 2800 | I18: =G19*H18 -> 0 | J18: （ ） | K18: 2400 | L18: =J19*K18 -> 0 | M18: （ ） | N18: 240 | O18: =M19*N18 -> 0
C19: =D19+G19+J19+M19 -> 0
B20: 草地比率の 高い地域 | C20: （ ） | J20: （ ） | K20: 1200 | L20: =J21*K20 -> 0
C21: =J21 -> 0
B22: 計 | C22: （ ） | D22: （ ） | F22: (a) | G22: （ ） | I22: (b) | J22: （ ） | L22: (c) | M22: （ ） | O22: (d)
C23: =C17+C19+C21 -> 0 | D23: =D17+D19 -> 0 | F23: =F16+F18 -> 0 | G23: =G17+G19 -> 0 | I23: =I16+I18 -> 0 | J23: =J17+J19+J21 -> 0 | L23: =L16+L18+L20 -> 0 | M23: =M17+M19 -> 0 | O23: =O16+O18 -> 0
B24: 注１）面積欄上段（）内に、令和６年度の交付面積を転記してください。 注２）面積欄下段に、令和７年度に早期交付を希望する額の基礎となる農用地面積を記入してください。 ただし、記入する農用地面積は、令和６年度の交付面積に０．５を乗じた面積を上限とし、令和７年事 業計画に基づき最低限取り組むことが見込まれる面積に０．５を乗じた面積とします。 注３）交付額欄に、注２）で記入した農用地面積及び単価より、令和７年度に早期交付を希望する額を記入し てください。
B30: ３．早期交付申請額
C31: =F23+I23+L23+O23 -> 0 | F31: 円 | G31: (= a+b+c+d)
B33: ４．交付金の活用方法と早期交付の必要性
B39: 誓約事項
B41: 令和７年度において、早期交付を受けた交付金を有効に活用するとともに、事業計画の作成及び計画に基づく活動に取り組むことを誓約します。
C44: 市町村長殿
I46: 代表者名

Sheet 収支報告書（金銭出納簿連動）
Q2: 令和○年○月○日 | Y2: =IF('金銭出納簿（今年度）（参考）'!G3="","",'金銭出納簿（今年度）（参考）'!G3) -> 
C3: =はじめに!D4 -> △△市 | E3: 長 殿
P5: 集落協定名
P6: =はじめに!D5 -> あいうえお集落協定
C8: =IF('金銭出納簿（今年度）（参考）'!G3="","",'金銭出納簿（今年度）（参考）'!G3) ->  | F8: 中山間地域等直接支払交付金収支報告書
B10: １ 交付金に係る配分額及び共同取組活動の支出額
B11: （１）配分総額
H12: 総 額 | M12: 配分等の基礎
C13: ①個人配分分 | H13: 2400000 | M13: 面積・単価で按分（２－①参照）
C14: ②共同取組活動分 | H14: 2400000 | M14: 均等割りで按分（２－②参照）
B16: （２）共同取組活動支出額 | Y16: 支出項目 | Z16: 支出額
C17: 支出項目 | J17: 支出額 | O17: 備考 | Z17: 4月1日～12月31日 | AA17: 前年度1月1日～3月31日
C18: 役員報酬 | J18: =Z18+AA18 -> 250000 | O18: 役員〇名×年額〇円 | Y18: 役員報酬 | Z18: ='金銭出納簿（今年度）（参考）'!I96 -> 250000 | AA18: ='金銭出納簿（前年度）（参考） '!K96 -> 0
C19: 研修会等費 | J19: 655000 | O19: 会議室借料、資料印刷費 | Y19: 研修会等費 | Z19: ='金銭出納簿（今年度）（参考）'!I97 -> 405000 | AA19: ='金銭出納簿（前年度）（参考） '!K97 -> 250000
C20: 道・水路管理費 | J20: 120000 | O20: ○○資材購入 | Y20: 道・水路管理費 | Z20: ='金銭出納簿（今年度）（参考）'!I98 -> 80000 | AA20: ='金銭出納簿（前年度）（参考） '!K98 -> 40000
C21: 道・水路整備費 | J21: 380000 | O21: 水路補修 | Y21: 道・水路整備費 | Z21: ='金銭出納簿（今年度）（参考）'!I99 -> 180000 | AA21: ='金銭出納簿（前年度）（参考） '!K99 -> 200000
C22: 農地管理費 | J22: 400000 | O22: 草刈刃購入 | Y22: 農地管理費 | Z22: ='金銭出納簿（今年度）（参考）'!I100 -> 400000 | AA22: ='金銭出納簿（前年度）（参考） '!K100 -> 0
C23: 農地整備費 | J23: 30000 | O23: 簡易な基盤整備 | Y23: 農地整備費 | Z23: ='金銭出納簿（今年度）（参考）'!I101 -> 30000 | AA23: ='金銭出納簿（前年度）（参考） '!K101 -> 0
C24: 鳥獣被害防止対策費 | J24: 100000 | Y24: 鳥獣被害防止対策費 | Z24: ='金銭出納簿（今年度）（参考）'!I102 -> 0 | AA24: ='金銭出納簿（前年度）（参考） '!K102 -> 100000
C25: 共同利用機械購入等費 | J25: 0 | Y25: 共同利用機械購入等費 | Z25: ='金銭出納簿（今年度）（参考）'!I103 -> 0 | AA25: ='金銭出納簿（前年度）（参考） '!K103 -> 0
C26: 共同利用施設整備等費 | J26: 60000 | Y26: 共同利用施設整備等費 | Z26: ='金銭出納簿（今年度）（参考）'!I104 -> 60000 | AA26: ='金銭出納簿（前年度）（参考） '!K104 -> 0
C27: 多面的機能増進活動費 | J27: 50001 | O27: 景観作物の種子代等 | Y27: 多面的機能増進活動費 | Z27: ='金銭出納簿（今年度）（参考）'!I105 -> 0 | AA27: ='金銭出納簿（前年度）（参考） '!K105 -> 50001
C28: 土地利用調整関係費 | J28: 0 | Y28: 土地利用調整関係費 | Z28: ='金銭出納簿（今年度）（参考）'!I106 -> 0 | AA28: ='金銭出納簿（前年度）（参考） '!K106 -> 0
C29: 法人設立関係費 | J29: 2000 | Y29: 法人設立関係費 | Z29: ='金銭出納簿（今年度）（参考）'!I107 -> 0 | AA29: ='金銭出納簿（前年度）（参考） '!K107 -> 2000
C30: 農産物等の販売促進関係費 | J30: 50000 | Y30: 農産物等の販売促進関係費 | Z30: ='金銭出納簿（今年度）（参考）'!I108 -> 0 | AA30: ='金銭出納簿（前年度）（参考） '!K108 -> 50000
C31: 都市住民との交流促進関係費 | J31: 100000 | Y31: 都市住民との交流促進関係費 | Z31: ='金銭出納簿（今年度）（参考）'!I109 -> 0 | AA31: ='金銭出納簿（前年度）（参考） '!K109 -> 100000
C32: その他の支出 | J32: 50000 | Y32: その他の支出 | Z32: ='金銭出納簿（今年度）（参考）'!I110 -> 0 | AA32: ='金銭出納簿（前年度）（参考） '!K110 -> 50000
C33: 総 計 | J33: =SUM(J18:N32) -> 2247001 | Y33: 総 計 | Z33: =SUM(Z18:Z32) -> 1405000 | AA33: =SUM(AA18:AA32) -> 842001
C34: 残（積立）額 | J34: =H14-J33 -> 152999 | O34: うち過年残（積立）額計
B36: ２ 協定参加者別細目
F37: 個人配分分 | J37: 共同取組活動分 | P37: 合 計
C38: 協定参加者名 | F38: 収入額 | J38: 収入額 | M38: 支出額 | P38: 収入額 | S38: 支出額
F39: ① | J39: ② | M39: ③ | P39: ①＋② | S39: ③
F40: 200000 | J40: 126000 | M40: 168000 | P40: =F40+J40 -> 326000 | S40: =M40 -> 168000
F41: 150000 | J41: 126000 | M41: 168000 | P41: =F41+J41 -> 276000 | S41: =M41 -> 168000
F42: 120000 | J42: 126000 | M42: 168000 | P42: =F42+J42 -> 246000 | S42: =M42 -> 168000
F43: 100000 | J43: 126000 | M43: 168000 | P43: =F43+J43 -> 226000 | S43: =M43 -> 168000
F44: 60000 | J44: 126000 | M44: 168000 | P44: =F44+J44 -> 186000 | S44: =M44 -> 168000
C48: 計 | F48: =SUM(F40:I47) -> 630000 | J48: =SUM(J40:L47) -> 630000 | M48: =SUM(M40:O47) -> 840000 | P48: =SUM(P40:R47) -> 1260000 | S48: =SUM(S40:U47) -> 840000

Sheet 支出に係る届出
A1: （別紙）
Z4: 令和○年○月○日
B6: 市町村長 殿
Z8: =はじめに!D5 -> あいうえお集落協定
Z9: =はじめに!D6 -> 中山間 太郎
A12: 中山間地域等直接支払交付金の支出に係る届出について
A14: ○年度に交付を受けた交付金について、共同取組活動に要する経費として下記のとおり集落協定代表者に対して支出を行うので提出する。
P19: 記
C21: 支出相手方名 ※
C22: 支出額
C23: 支払日・契約日
C24: 支出の内容
C25: 支出の目的
C26: ※ 支出を行う相手方の組織名・肩書等を併せて記載。
C27: （例：○○営農組合代表 △△ △△(集落協定代表者名)）

Sheet 活動記録（参考）
A1: （参考）
P2: 協定名： | Q2: =はじめに!D5 -> あいうえお集落協定
H3: 中山間地域等直接支払交付金 活動記録
I4: （多面的機能支払交付金との共通様式）
B5: ★「実施時間」には休憩時間を含めず、実働時間を記入してください。
B6: ★中山間地域等直接支払交付金の活動の場合、「活動項目番号」欄には、シート【選択肢】の67～79から選択。 ★多面的機能支払交付金の活動の場合、「活動項目番号」欄には、実施要領別記1-2の国が定める活動指針における活動項目の番号及び要領第1の２の(1)に基づき 都道府県が定める要綱基本方針において追加された活動項目の番号を記入します。その他、事務処理は200番、会議等は300番を記入します。 同一日に複数の活動を行った場合は、該当する全ての活動項目番号を左詰めで一行に記入してください。番号欄が足りない場合は、複数行に分けて記入してください。
B7: 活動実施日時 | E7: 活動参加人数 | H7: 活動項目番号（左詰め） （中山間地域等直接支払交付金の活動の場合 シート【選択肢】の67～79から選択） | N7: 活動内容 | Q7: 備考（具体的な活動内容を記入）
B8: 日付 | C8: 実施時間 | E8: 農業者 | F8: 農業者 以外 | G8: 総参加 人数 | N8: 支払区分 | O8: 活動区分 | P8: 活動項目
C9: 開始時刻 | D9: 実施時間
G10: =SUM(E10+F10) -> 0 | N10: =IF(H10="","",(IFERROR(VLOOKUP($H10,'【選択肢】'!$K$3:$O$86,2,)," ")&IF(I10="","",","&IFERROR(VLOOKUP($I10,'【選択肢】'!$K$3:$O$86,2,)," ")&IF(J10="","",","&IFERROR(VLOOKUP($J10,'【選択肢】'!$K$3:$O$86,2,)," ")&IF(K10="","",","&IFERROR(VLOOKUP($K10,'【選択肢】'!$K$3:$O$86,2,)," ")&IF(L10="","",","&IFERROR(VLOOKUP($L10,'【選択肢】'!$K$3:$O$86,2,)," ")&IF(M10="","",","&IFERROR(VLOOKUP($M10,'【選択肢】'!$K$3:$O$86,2,)," ")))))))) ->  | O10: =IF(H10="","",(IFERROR(VLOOKUP($H10,'【選択肢】'!$K$3:$O$86,4,)," ")&IF(I10="","",","&IFERROR(VLOOKUP($I10,'【選択肢】'!$K$3:$O$86,4,)," ")&IF(J10="","",","&IFERROR(VLOOKUP($J10,'【選択肢】'!$K$3:$O$86,4,)," ")&IF(K10="","",","&IFERROR(VLOOKUP($K10,'【選択肢】'!$K$3:$O$86,4,)," ")&IF(L10="","",","&IFERROR(VLOOKUP($L10,'【選択肢】'!$K$3:$O$86,4,)," ")&IF(M10="","",","&IFERROR(VLOOKUP($M10,'【選択肢】'!$K$3:$O$86,4,)," ")))))))) ->  | P10: =IF(H10="","",(IFERROR(VLOOKUP($H10,'【選択肢】'!$K$3:$O$86,5,)," ")&IF(I10="","",","&IFERROR(VLOOKUP($I10,'【選択肢】'!$K$3:$O$86,5,)," ")&IF(J10="","",","&IFERROR(VLOOKUP($J10,'【選択肢】'!$K$3:$O$86,5,)," ")&IF(K10="","",","&IFERROR(VLOOKUP($K10,'【選択肢】'!$K$3:$O$86,5,)," ")&IF(L10="","",","&IFERROR(VLOOKUP($L10,'【選択肢】'!$K$3:$O$86,5,)," ")&IF(M10="","",","&IFERROR(VLOOKUP($M10,'【選択肢】'!$K$3:$O$86,5,)," ")))))))) -> 
G11: 0 | N11: =IF(H11="","",(IFERROR(VLOOKUP($H11,'【選択肢】'!$K$3:$O$86,2,)," ")&IF(I11="","",","&IFERROR(VLOOKUP($I11,'【選択肢】'!$K$3:$O$86,2,)," ")&IF(J11="","",","&IFERROR(VLOOKUP($J11,'【選択肢】'!$K$3:$O$86,2,)," ")&IF(K11="","",","&IFERROR(VLOOKUP($K11,'【選択肢】'!$K$3:$O$86,2,)," ")&IF(L11="","",","&IFERROR(VLOOKUP($L11,'【選択肢】'!$K$3:$O$86,2,)," ")&IF(M11="","",","&IFERROR(VLOOKUP($M11,'【選択肢】'!$K$3:$O$86,2,)," ")))))))) ->  | O11: =IF(H11="","",(IFERROR(VLOOKUP($H11,'【選択肢】'!$K$3:$O$86,4,)," ")&IF(I11="","",","&IFERROR(VLOOKUP($I11,'【選択肢】'!$K$3:$O$86,4,)," ")&IF(J11="","",","&IFERROR(VLOOKUP($J11,'【選択肢】'!$K$3:$O$86,4,)," ")&IF(K11="","",","&IFERROR(VLOOKUP($K11,'【選択肢】'!$K$3:$O$86,4,)," ")&IF(L11="","",","&IFERROR(VLOOKUP($L11,'【選択肢】'!$K$3:$O$86,4,)," ")&IF(M11="","",","&IFERROR(VLOOKUP($M11,'【選択肢】'!$K$3:$O$86,4,)," ")))))))) ->  | P11: =IF(H11="","",(IFERROR(VLOOKUP($H11,'【選択肢】'!$K$3:$O$86,5,)," ")&IF(I11="","",","&IFERROR(VLOOKUP($I11,'【選択肢】'!$K$3:$O$86,5,)," ")&IF(J11="","",","&IFERROR(VLOOKUP($J11,'【選択肢】'!$K$3:$O$86,5,)," ")&IF(K11="","",","&IFERROR(VLOOKUP($K11,'【選択肢】'!$K$3:$O$86,5,)," ")&IF(L11="","",","&IFERROR(VLOOKUP($L11,'【選択肢】'!$K$3:$O$86,5,)," ")&IF(M11="","",","&IFERROR(VLOOKUP($M11,'【選択肢】'!$K$3:$O$86,5,)," ")))))))) -> 
G12: 0 | N12: =IF(H12="","",(IFERROR(VLOOKUP($H12,'【選択肢】'!$K$3:$O$86,2,)," ")&IF(I12="","",","&IFERROR(VLOOKUP($I12,'【選択肢】'!$K$3:$O$86,2,)," ")&IF(J12="","",","&IFERROR(VLOOKUP($J12,'【選択肢】'!$K$3:$O$86,2,)," ")&IF(K12="","",","&IFERROR(VLOOKUP($K12,'【選択肢】'!$K$3:$O$86,2,)," ")&IF(L12="","",","&IFERROR(VLOOKUP($L12,'【選択肢】'!$K$3:$O$86,2,)," ")&IF(M12="","",","&IFERROR(VLOOKUP($M12,'【選択肢】'!$K$3:$O$86,2,)," ")))))))) ->  | O12: =IF(H12="","",(IFERROR(VLOOKUP($H12,'【選択肢】'!$K$3:$O$86,4,)," ")&IF(I12="","",","&IFERROR(VLOOKUP($I12,'【選択肢】'!$K$3:$O$86,4,)," ")&IF(J12="","",","&IFERROR(VLOOKUP($J12,'【選択肢】'!$K$3:$O$86,4,)," ")&IF(K12="","",","&IFERROR(VLOOKUP($K12,'【選択肢】'!$K$3:$O$86,4,)," ")&IF(L12="","",","&IFERROR(VLOOKUP($L12,'【選択肢】'!$K$3:$O$86,4,)," ")&IF(M12="","",","&IFERROR(VLOOKUP($M12,'【選択肢】'!$K$3:$O$86,4,)," ")))))))) ->  | P12: =IF(H12="","",(IFERROR(VLOOKUP($H12,'【選択肢】'!$K$3:$O$86,5,)," ")&IF(I12="","",","&IFERROR(VLOOKUP($I12,'【選択肢】'!$K$3:$O$86,5,)," ")&IF(J12="","",","&IFERROR(VLOOKUP($J12,'【選択肢】'!$K$3:$O$86,5,)," ")&IF(K12="","",","&IFERROR(VLOOKUP($K12,'【選択肢】'!$K$3:$O$86,5,)," ")&IF(L12="","",","&IFERROR(VLOOKUP($L12,'【選択肢】'!$K$3:$O$86,5,)," ")&IF(M12="","",","&IFERROR(VLOOKUP($M12,'【選択肢】'!$K$3:$O$86,5,)," ")))))))) -> 
G13: 0 | N13: =IF(H13="","",(IFERROR(VLOOKUP($H13,'【選択肢】'!$K$3:$O$86,2,)," ")&IF(I13="","",","&IFERROR(VLOOKUP($I13,'【選択肢】'!$K$3:$O$86,2,)," ")&IF(J13="","",","&IFERROR(VLOOKUP($J13,'【選択肢】'!$K$3:$O$86,2,)," ")&IF(K13="","",","&IFERROR(VLOOKUP($K13,'【選択肢】'!$K$3:$O$86,2,)," ")&IF(L13="","",","&IFERROR(VLOOKUP($L13,'【選択肢】'!$K$3:$O$86,2,)," ")&IF(M13="","",","&IFERROR(VLOOKUP($M13,'【選択肢】'!$K$3:$O$86,2,)," ")))))))) ->  | O13: =IF(H13="","",(IFERROR(VLOOKUP($H13,'【選択肢】'!$K$3:$O$86,4,)," ")&IF(I13="","",","&IFERROR(VLOOKUP($I13,'【選択肢】'!$K$3:$O$86,4,)," ")&IF(J13="","",","&IFERROR(VLOOKUP($J13,'【選択肢】'!$K$3:$O$86,4,)," ")&IF(K13="","",","&IFERROR(VLOOKUP($K13,'【選択肢】'!$K$3:$O$86,4,)," ")&IF(L13="","",","&IFERROR(VLOOKUP($L13,'【選択肢】'!$K$3:$O$86,4,)," ")&IF(M13="","",","&IFERROR(VLOOKUP($M13,'【選択肢】'!$K$3:$O$86,4,)," ")))))))) ->  | P13: =IF(H13="","",(IFERROR(VLOOKUP($H13,'【選択肢】'!$K$3:$O$86,5,)," ")&IF(I13="","",","&IFERROR(VLOOKUP($I13,'【選択肢】'!$K$3:$O$86,5,)," ")&IF(J13="","",","&IFERROR(VLOOKUP($J13,'【選択肢】'!$K$3:$O$86,5,)," ")&IF(K13="","",","&IFERROR(VLOOKUP($K13,'【選択肢】'!$K$3:$O$86,5,)," ")&IF(L13="","",","&IFERROR(VLOOKUP($L13,'【選択肢】'!$K$3:$O$86,5,)," ")&IF(M13="","",","&IFERROR(VLOOKUP($M13,'【選択肢】'!$K$3:$O$86,5,)," ")))))))) -> 
G14: 0 | N14: =IF(H14="","",(IFERROR(VLOOKUP($H14,'【選択肢】'!$K$3:$O$86,2,)," ")&IF(I14="","",","&IFERROR(VLOOKUP($I14,'【選択肢】'!$K$3:$O$86,2,)," ")&IF(J14="","",","&IFERROR(VLOOKUP($J14,'【選択肢】'!$K$3:$O$86,2,)," ")&IF(K14="","",","&IFERROR(VLOOKUP($K14,'【選択肢】'!$K$3:$O$86,2,)," ")&IF(L14="","",","&IFERROR(VLOOKUP($L14,'【選択肢】'!$K$3:$O$86,2,)," ")&IF(M14="","",","&IFERROR(VLOOKUP($M14,'【選択肢】'!$K$3:$O$86,2,)," ")))))))) ->  | O14: =IF(H14="","",(IFERROR(VLOOKUP($H14,'【選択肢】'!$K$3:$O$86,4,)," ")&IF(I14="","",","&IFERROR(VLOOKUP($I14,'【選択肢】'!$K$3:$O$86,4,)," ")&IF(J14="","",","&IFERROR(VLOOKUP($J14,'【選択肢】'!$K$3:$O$86,4,)," ")&IF(K14="","",","&IFERROR(VLOOKUP($K14,'【選択肢】'!$K$3:$O$86,4,)," ")&IF(L14="","",","&IFERROR(VLOOKUP($L14,'【選択肢】'!$K$3:$O$86,4,)," ")&IF(M14="","",","&IFERROR(VLOOKUP($M14,'【選択肢】'!$K$3:$O$86,4,)," ")))))))) ->  | P14: =IF(H14="","",(IFERROR(VLOOKUP($H14,'【選択肢】'!$K$3:$O$86,5,)," ")&IF(I14="","",","&IFERROR(VLOOKUP($I14,'【選択肢】'!$K$3:$O$86,5,)," ")&IF(J14="","",","&IFERROR(VLOOKUP($J14,'【選択肢】'!$K$3:$O$86,5,)," ")&IF(K14="","",","&IFERROR(VLOOKUP($K14,'【選択肢】'!$K$3:$O$86,5,)," ")&IF(L14="","",","&IFERROR(VLOOKUP($L14,'【選択肢】'!$K$3:$O$86,5,)," ")&IF(M14="","",","&IFERROR(VLOOKUP($M14,'【選択肢】'!$K$3:$O$86,5,)," ")))))))) -> 
G15: 0 | N15: =IF(H15="","",(IFERROR(VLOOKUP($H15,'【選択肢】'!$K$3:$O$86,2,)," ")&IF(I15="","",","&IFERROR(VLOOKUP($I15,'【選択肢】'!$K$3:$O$86,2,)," ")&IF(J15="","",","&IFERROR(VLOOKUP($J15,'【選択肢】'!$K$3:$O$86,2,)," ")&IF(K15="","",","&IFERROR(VLOOKUP($K15,'【選択肢】'!$K$3:$O$86,2,)," ")&IF(L15="","",","&IFERROR(VLOOKUP($L15,'【選択肢】'!$K$3:$O$86,2,)," ")&IF(M15="","",","&IFERROR(VLOOKUP($M15,'【選択肢】'!$K$3:$O$86,2,)," ")))))))) ->  | O15: =IF(H15="","",(IFERROR(VLOOKUP($H15,'【選択肢】'!$K$3:$O$86,4,)," ")&IF(I15="","",","&IFERROR(VLOOKUP($I15,'【選択肢】'!$K$3:$O$86,4,)," ")&IF(J15="","",","&IFERROR(VLOOKUP($J15,'【選択肢】'!$K$3:$O$86,4,)," ")&IF(K15="","",","&IFERROR(VLOOKUP($K15,'【選択肢】'!$K$3:$O$86,4,)," ")&IF(L15="","",","&IFERROR(VLOOKUP($L15,'【選択肢】'!$K$3:$O$86,4,)," ")&IF(M15="","",","&IFERROR(VLOOKUP($M15,'【選択肢】'!$K$3:$O$86,4,)," ")))))))) ->  | P15: =IF(H15="","",(IFERROR(VLOOKUP($H15,'【選択肢】'!$K$3:$O$86,5,)," ")&IF(I15="","",","&IFERROR(VLOOKUP($I15,'【選択肢】'!$K$3:$O$86,5,)," ")&IF(J15="","",","&IFERROR(VLOOKUP($J15,'【選択肢】'!$K$3:$O$86,5,)," ")&IF(K15="","",","&IFERROR(VLOOKUP($K15,'【選択肢】'!$K$3:$O$86,5,)," ")&IF(L15="","",","&IFERROR(VLOOKUP($L15,'【選択肢】'!$K$3:$O$86,5,)," ")&IF(M15="","",","&IFERROR(VLOOKUP($M15,'【選択肢】'!$K$3:$O$86,5,)," ")))))))) -> 
G16: 0 | N16: =IF(H16="","",(IFERROR(VLOOKUP($H16,'【選択肢】'!$K$3:$O$86,2,)," ")&IF(I16="","",","&IFERROR(VLOOKUP($I16,'【選択肢】'!$K$3:$O$86,2,)," ")&IF(J16="","",","&IFERROR(VLOOKUP($J16,'【選択肢】'!$K$3:$O$86,2,)," ")&IF(K16="","",","&IFERROR(VLOOKUP($K16,'【選択肢】'!$K$3:$O$86,2,)," ")&IF(L16="","",","&IFERROR(VLOOKUP($L16,'【選択肢】'!$K$3:$O$86,2,)," ")&IF(M16="","",","&IFERROR(VLOOKUP($M16,'【選択肢】'!$K$3:$O$86,2,)," ")))))))) ->  | O16: =IF(H16="","",(IFERROR(VLOOKUP($H16,'【選択肢】'!$K$3:$O$86,4,)," ")&IF(I16="","",","&IFERROR(VLOOKUP($I16,'【選択肢】'!$K$3:$O$86,4,)," ")&IF(J16="","",","&IFERROR(VLOOKUP($J16,'【選択肢】'!$K$3:$O$86,4,)," ")&IF(K16="","",","&IFERROR(VLOOKUP($K16,'【選択肢】'!$K$3:$O$86,4,)," ")&IF(L16="","",","&IFERROR(VLOOKUP($L16,'【選択肢】'!$K$3:$O$86,4,)," ")&IF(M16="","",","&IFERROR(VLOOKUP($M16,'【選択肢】'!$K$3:$O$86,4,)," ")))))))) ->  | P16: =IF(H16="","",(IFERROR(VLOOKUP($H16,'【選択肢】'!$K$3:$O$86,5,)," ")&IF(I16="","",","&IFERROR(VLOOKUP($I16,'【選択肢】'!$K$3:$O$86,5,)," ")&IF(J16="","",","&IFERROR(VLOOKUP($J16,'【選択肢】'!$K$3:$O$86,5,)," ")&IF(K16="","",","&IFERROR(VLOOKUP($K16,'【選択肢】'!$K$3:$O$86,5,)," ")&IF(L16="","",","&IFERROR(VLOOKUP($L16,'【選択肢】'!$K$3:$O$86,5,)," ")&IF(M16="","",","&IFERROR(VLOOKUP($M16,'【選択肢】'!$K$3:$O$86,5,)," ")))))))) -> 
G17: 0 | N17: =IF(H17="","",(IFERROR(VLOOKUP($H17,'【選択肢】'!$K$3:$O$86,2,)," ")&IF(I17="","",","&IFERROR(VLOOKUP($I17,'【選択肢】'!$K$3:$O$86,2,)," ")&IF(J17="","",","&IFERROR(VLOOKUP($J17,'【選択肢】'!$K$3:$O$86,2,)," ")&IF(K17="","",","&IFERROR(VLOOKUP($K17,'【選択肢】'!$K$3:$O$86,2,)," ")&IF(L17="","",","&IFERROR(VLOOKUP($L17,'【選択肢】'!$K$3:$O$86,2,)," ")&IF(M17="","",","&IFERROR(VLOOKUP($M17,'【選択肢】'!$K$3:$O$86,2,)," ")))))))) ->  | O17: =IF(H17="","",(IFERROR(VLOOKUP($H17,'【選択肢】'!$K$3:$O$86,4,)," ")&IF(I17="","",","&IFERROR(VLOOKUP($I17,'【選択肢】'!$K$3:$O$86,4,)," ")&IF(J17="","",","&IFERROR(VLOOKUP($J17,'【選択肢】'!$K$3:$O$86,4,)," ")&IF(K17="","",","&IFERROR(VLOOKUP($K17,'【選択肢】'!$K$3:$O$86,4,)," ")&IF(L17="","",","&IFERROR(VLOOKUP($L17,'【選択肢】'!$K$3:$O$86,4,)," ")&IF(M17="","",","&IFERROR(VLOOKUP($M17,'【選択肢】'!$K$3:$O$86,4,)," ")))))))) ->  | P17: =IF(H17="","",(IFERROR(VLOOKUP($H17,'【選択肢】'!$K$3:$O$86,5,)," ")&IF(I17="","",","&IFERROR(VLOOKUP($I17,'【選択肢】'!$K$3:$O$86,5,)," ")&IF(J17="","",","&IFERROR(VLOOKUP($J17,'【選択肢】'!$K$3:$O$86,5,)," ")&IF(K17="","",","&IFERROR(VLOOKUP($K17,'【選択肢】'!$K$3:$O$86,5,)," ")&IF(L17="","",","&IFERROR(VLOOKUP($L17,'【選択肢】'!$K$3:$O$86,5,)," ")&IF(M17="","",","&IFERROR(VLOOKUP($M17,'【選択肢】'!$K$3:$O$86,5,)," ")))))))) -> 
G18: 0 | N18: =IF(H18="","",(IFERROR(VLOOKUP($H18,'【選択肢】'!$K$3:$O$86,2,)," ")&IF(I18="","",","&IFERROR(VLOOKUP($I18,'【選択肢】'!$K$3:$O$86,2,)," ")&IF(J18="","",","&IFERROR(VLOOKUP($J18,'【選択肢】'!$K$3:$O$86,2,)," ")&IF(K18="","",","&IFERROR(VLOOKUP($K18,'【選択肢】'!$K$3:$O$86,2,)," ")&IF(L18="","",","&IFERROR(VLOOKUP($L18,'【選択肢】'!$K$3:$O$86,2,)," ")&IF(M18="","",","&IFERROR(VLOOKUP($M18,'【選択肢】'!$K$3:$O$86,2,)," ")))))))) ->  | O18: =IF(H18="","",(IFERROR(VLOOKUP($H18,'【選択肢】'!$K$3:$O$86,4,)," ")&IF(I18="","",","&IFERROR(VLOOKUP($I18,'【選択肢】'!$K$3:$O$86,4,)," ")&IF(J18="","",","&IFERROR(VLOOKUP($J18,'【選択肢】'!$K$3:$O$86,4,)," ")&IF(K18="","",","&IFERROR(VLOOKUP($K18,'【選択肢】'!$K$3:$O$86,4,)," ")&IF(L18="","",","&IFERROR(VLOOKUP($L18,'【選択肢】'!$K$3:$O$86,4,)," ")&IF(M18="","",","&IFERROR(VLOOKUP($M18,'【選択肢】'!$K$3:$O$86,4,)," ")))))))) ->  | P18: =IF(H18="","",(IFERROR(VLOOKUP($H18,'【選択肢】'!$K$3:$O$86,5,)," ")&IF(I18="","",","&IFERROR(VLOOKUP($I18,'【選択肢】'!$K$3:$O$86,5,)," ")&IF(J18="","",","&IFERROR(VLOOKUP($J18,'【選択肢】'!$K$3:$O$86,5,)," ")&IF(K18="","",","&IFERROR(VLOOKUP($K18,'【選択肢】'!$K$3:$O$86,5,)," ")&IF(L18="","",","&IFERROR(VLOOKUP($L18,'【選択肢】'!$K$3:$O$86,5,)," ")&IF(M18="","",","&IFERROR(VLOOKUP($M18,'【選択肢】'!$K$3:$O$86,5,)," ")))))))) -> 
G19: 0 | N19: =IF(H19="","",(IFERROR(VLOOKUP($H19,'【選択肢】'!$K$3:$O$86,2,)," ")&IF(I19="","",","&IFERROR(VLOOKUP($I19,'【選択肢】'!$K$3:$O$86,2,)," ")&IF(J19="","",","&IFERROR(VLOOKUP($J19,'【選択肢】'!$K$3:$O$86,2,)," ")&IF(K19="","",","&IFERROR(VLOOKUP($K19,'【選択肢】'!$K$3:$O$86,2,)," ")&IF(L19="","",","&IFERROR(VLOOKUP($L19,'【選択肢】'!$K$3:$O$86,2,)," ")&IF(M19="","",","&IFERROR(VLOOKUP($M19,'【選択肢】'!$K$3:$O$86,2,)," ")))))))) ->  | O19: =IF(H19="","",(IFERROR(VLOOKUP($H19,'【選択肢】'!$K$3:$O$86,4,)," ")&IF(I19="","",","&IFERROR(VLOOKUP($I19,'【選択肢】'!$K$3:$O$86,4,)," ")&IF(J19="","",","&IFERROR(VLOOKUP($J19,'【選択肢】'!$K$3:$O$86,4,)," ")&IF(K19="","",","&IFERROR(VLOOKUP($K19,'【選択肢】'!$K$3:$O$86,4,)," ")&IF(L19="","",","&IFERROR(VLOOKUP($L19,'【選択肢】'!$K$3:$O$86,4,)," ")&IF(M19="","",","&IFERROR(VLOOKUP($M19,'【選択肢】'!$K$3:$O$86,4,)," ")))))))) ->  | P19: =IF(H19="","",(IFERROR(VLOOKUP($H19,'【選択肢】'!$K$3:$O$86,5,)," ")&IF(I19="","",","&IFERROR(VLOOKUP($I19,'【選択肢】'!$K$3:$O$86,5,)," ")&IF(J19="","",","&IFERROR(VLOOKUP($J19,'【選択肢】'!$K$3:$O$86,5,)," ")&IF(K19="","",","&IFERROR(VLOOKUP($K19,'【選択肢】'!$K$3:$O$86,5,)," ")&IF(L19="","",","&IFERROR(VLOOKUP($L19,'【選択肢】'!$K$3:$O$86,5,)," ")&IF(M19="","",","&IFERROR(VLOOKUP($M19,'【選択肢】'!$K$3:$O$86,5,)," ")))))))) -> 
G20: 0 | N20: =IF(H20="","",(IFERROR(VLOOKUP($H20,'【選択肢】'!$K$3:$O$86,2,)," ")&IF(I20="","",","&IFERROR(VLOOKUP($I20,'【選択肢】'!$K$3:$O$86,2,)," ")&IF(J20="","",","&IFERROR(VLOOKUP($J20,'【選択肢】'!$K$3:$O$86,2,)," ")&IF(K20="","",","&IFERROR(VLOOKUP($K20,'【選択肢】'!$K$3:$O$86,2,)," ")&IF(L20="","",","&IFERROR(VLOOKUP($L20,'【選択肢】'!$K$3:$O$86,2,)," ")&IF(M20="","",","&IFERROR(VLOOKUP($M20,'【選択肢】'!$K$3:$O$86,2,)," ")))))))) ->  | O20: =IF(H20="","",(IFERROR(VLOOKUP($H20,'【選択肢】'!$K$3:$O$86,4,)," ")&IF(I20="","",","&IFERROR(VLOOKUP($I20,'【選択肢】'!$K$3:$O$86,4,)," ")&IF(J20="","",","&IFERROR(VLOOKUP($J20,'【選択肢】'!$K$3:$O$86,4,)," ")&IF(K20="","",","&IFERROR(VLOOKUP($K20,'【選択肢】'!$K$3:$O$86,4,)," ")&IF(L20="","",","&IFERROR(VLOOKUP($L20,'【選択肢】'!$K$3:$O$86,4,)," ")&IF(M20="","",","&IFERROR(VLOOKUP($M20,'【選択肢】'!$K$3:$O$86,4,)," ")))))))) ->  | P20: =IF(H20="","",(IFERROR(VLOOKUP($H20,'【選択肢】'!$K$3:$O$86,5,)," ")&IF(I20="","",","&IFERROR(VLOOKUP($I20,'【選択肢】'!$K$3:$O$86,5,)," ")&IF(J20="","",","&IFERROR(VLOOKUP($J20,'【選択肢】'!$K$3:$O$86,5,)," ")&IF(K20="","",","&IFERROR(VLOOKUP($K20,'【選択肢】'!$K$3:$O$86,5,)," ")&IF(L20="","",","&IFERROR(VLOOKUP($L20,'【選択肢】'!$K$3:$O$86,5,)," ")&IF(M20="","",","&IFERROR(VLOOKUP($M20,'【選択肢】'!$K$3:$O$86,5,)," ")))))))) -> 
G21: 0 | N21: =IF(H21="","",(IFERROR(VLOOKUP($H21,'【選択肢】'!$K$3:$O$86,2,)," ")&IF(I21="","",","&IFERROR(VLOOKUP($I21,'【選択肢】'!$K$3:$O$86,2,)," ")&IF(J21="","",","&IFERROR(VLOOKUP($J21,'【選択肢】'!$K$3:$O$86,2,)," ")&IF(K21="","",","&IFERROR(VLOOKUP($K21,'【選択肢】'!$K$3:$O$86,2,)," ")&IF(L21="","",","&IFERROR(VLOOKUP($L21,'【選択肢】'!$K$3:$O$86,2,)," ")&IF(M21="","",","&IFERROR(VLOOKUP($M21,'【選択肢】'!$K$3:$O$86,2,)," ")))))))) ->  | O21: =IF(H21="","",(IFERROR(VLOOKUP($H21,'【選択肢】'!$K$3:$O$86,4,)," ")&IF(I21="","",","&IFERROR(VLOOKUP($I21,'【選択肢】'!$K$3:$O$86,4,)," ")&IF(J21="","",","&IFERROR(VLOOKUP($J21,'【選択肢】'!$K$3:$O$86,4,)," ")&IF(K21="","",","&IFERROR(VLOOKUP($K21,'【選択肢】'!$K$3:$O$86,4,)," ")&IF(L21="","",","&IFERROR(VLOOKUP($L21,'【選択肢】'!$K$3:$O$86,4,)," ")&IF(M21="","",","&IFERROR(VLOOKUP($M21,'【選択肢】'!$K$3:$O$86,4,)," ")))))))) ->  | P21: =IF(H21="","",(IFERROR(VLOOKUP($H21,'【選択肢】'!$K$3:$O$86,5,)," ")&IF(I21="","",","&IFERROR(VLOOKUP($I21,'【選択肢】'!$K$3:$O$86,5,)," ")&IF(J21="","",","&IFERROR(VLOOKUP($J21,'【選択肢】'!$K$3:$O$86,5,)," ")&IF(K21="","",","&IFERROR(VLOOKUP($K21,'【選択肢】'!$K$3:$O$86,5,)," ")&IF(L21="","",","&IFERROR(VLOOKUP($L21,'【選択肢】'!$K$3:$O$86,5,)," ")&IF(M21="","",","&IFERROR(VLOOKUP($M21,'【選択肢】'!$K$3:$O$86,5,)," ")))))))) -> 
G22: 0 | N22: =IF(H22="","",(IFERROR(VLOOKUP($H22,'【選択肢】'!$K$3:$O$86,2,)," ")&IF(I22="","",","&IFERROR(VLOOKUP($I22,'【選択肢】'!$K$3:$O$86,2,)," ")&IF(J22="","",","&IFERROR(VLOOKUP($J22,'【選択肢】'!$K$3:$O$86,2,)," ")&IF(K22="","",","&IFERROR(VLOOKUP($K22,'【選択肢】'!$K$3:$O$86,2,)," ")&IF(L22="","",","&IFERROR(VLOOKUP($L22,'【選択肢】'!$K$3:$O$86,2,)," ")&IF(M22="","",","&IFERROR(VLOOKUP($M22,'【選択肢】'!$K$3:$O$86,2,)," ")))))))) ->  | O22: =IF(H22="","",(IFERROR(VLOOKUP($H22,'【選択肢】'!$K$3:$O$86,4,)," ")&IF(I22="","",","&IFERROR(VLOOKUP($I22,'【選択肢】'!$K$3:$O$86,4,)," ")&IF(J22="","",","&IFERROR(VLOOKUP($J22,'【選択肢】'!$K$3:$O$86,4,)," ")&IF(K22="","",","&IFERROR(VLOOKUP($K22,'【選択肢】'!$K$3:$O$86,4,)," ")&IF(L22="","",","&IFERROR(VLOOKUP($L22,'【選択肢】'!$K$3:$O$86,4,)," ")&IF(M22="","",","&IFERROR(VLOOKUP($M22,'【選択肢】'!$K$3:$O$86,4,)," ")))))))) ->  | P22: =IF(H22="","",(IFERROR(VLOOKUP($H22,'【選択肢】'!$K$3:$O$86,5,)," ")&IF(I22="","",","&IFERROR(VLOOKUP($I22,'【選択肢】'!$K$3:$O$86,5,)," ")&IF(J22="","",","&IFERROR(VLOOKUP($J22,'【選択肢】'!$K$3:$O$86,5,)," ")&IF(K22="","",","&IFERROR(VLOOKUP($K22,'【選択肢】'!$K$3:$O$86,5,)," ")&IF(L22="","",","&IFERROR(VLOOKUP($L22,'【選択肢】'!$K$3:$O$86,5,)," ")&IF(M22="","",","&IFERROR(VLOOKUP($M22,'【選択肢】'!$K$3:$O$86,5,)," ")))))))) -> 
G23: 0 | N23: =IF(H23="","",(IFERROR(VLOOKUP($H23,'【選択肢】'!$K$3:$O$86,2,)," ")&IF(I23="","",","&IFERROR(VLOOKUP($I23,'【選択肢】'!$K$3:$O$86,2,)," ")&IF(J23="","",","&IFERROR(VLOOKUP($J23,'【選択肢】'!$K$3:$O$86,2,)," ")&IF(K23="","",","&IFERROR(VLOOKUP($K23,'【選択肢】'!$K$3:$O$86,2,)," ")&IF(L23="","",","&IFERROR(VLOOKUP($L23,'【選択肢】'!$K$3:$O$86,2,)," ")&IF(M23="","",","&IFERROR(VLOOKUP($M23,'【選択肢】'!$K$3:$O$86,2,)," ")))))))) ->  | O23: =IF(H23="","",(IFERROR(VLOOKUP($H23,'【選択肢】'!$K$3:$O$86,4,)," ")&IF(I23="","",","&IFERROR(VLOOKUP($I23,'【選択肢】'!$K$3:$O$86,4,)," ")&IF(J23="","",","&IFERROR(VLOOKUP($J23,'【選択肢】'!$K$3:$O$86,4,)," ")&IF(K23="","",","&IFERROR(VLOOKUP($K23,'【選択肢】'!$K$3:$O$86,4,)," ")&IF(L23="","",","&IFERROR(VLOOKUP($L23,'【選択肢】'!$K$3:$O$86,4,)," ")&IF(M23="","",","&IFERROR(VLOOKUP($M23,'【選択肢】'!$K$3:$O$86,4,)," ")))))))) ->  | P23: =IF(H23="","",(IFERROR(VLOOKUP($H23,'【選択肢】'!$K$3:$O$86,5,)," ")&IF(I23="","",","&IFERROR(VLOOKUP($I23,'【選択肢】'!$K$3:$O$86,5,)," ")&IF(J23="","",","&IFERROR(VLOOKUP($J23,'【選択肢】'!$K$3:$O$86,5,)," ")&IF(K23="","",","&IFERROR(VLOOKUP($K23,'【選択肢】'!$K$3:$O$86,5,)," ")&IF(L23="","",","&IFERROR(VLOOKUP($L23,'【選択肢】'!$K$3:$O$86,5,)," ")&IF(M23="","",","&IFERROR(VLOOKUP($M23,'【選択肢】'!$K$3:$O$86,5,)," ")))))))) -> 
G24: 0 | N24: =IF(H24="","",(IFERROR(VLOOKUP($H24,'【選択肢】'!$K$3:$O$86,2,)," ")&IF(I24="","",","&IFERROR(VLOOKUP($I24,'【選択肢】'!$K$3:$O$86,2,)," ")&IF(J24="","",","&IFERROR(VLOOKUP($J24,'【選択肢】'!$K$3:$O$86,2,)," ")&IF(K24="","",","&IFERROR(VLOOKUP($K24,'【選択肢】'!$K$3:$O$86,2,)," ")&IF(L24="","",","&IFERROR(VLOOKUP($L24,'【選択肢】'!$K$3:$O$86,2,)," ")&IF(M24="","",","&IFERROR(VLOOKUP($M24,'【選択肢】'!$K$3:$O$86,2,)," ")))))))) ->  | O24: =IF(H24="","",(IFERROR(VLOOKUP($H24,'【選択肢】'!$K$3:$O$86,4,)," ")&IF(I24="","",","&IFERROR(VLOOKUP($I24,'【選択肢】'!$K$3:$O$86,4,)," ")&IF(J24="","",","&IFERROR(VLOOKUP($J24,'【選択肢】'!$K$3:$O$86,4,)," ")&IF(K24="","",","&IFERROR(VLOOKUP($K24,'【選択肢】'!$K$3:$O$86,4,)," ")&IF(L24="","",","&IFERROR(VLOOKUP($L24,'【選択肢】'!$K$3:$O$86,4,)," ")&IF(M24="","",","&IFERROR(VLOOKUP($M24,'【選択肢】'!$K$3:$O$86,4,)," ")))))))) ->  | P24: =IF(H24="","",(IFERROR(VLOOKUP($H24,'【選択肢】'!$K$3:$O$86,5,)," ")&IF(I24="","",","&IFERROR(VLOOKUP($I24,'【選択肢】'!$K$3:$O$86,5,)," ")&IF(J24="","",","&IFERROR(VLOOKUP($J24,'【選択肢】'!$K$3:$O$86,5,)," ")&IF(K24="","",","&IFERROR(VLOOKUP($K24,'【選択肢】'!$K$3:$O$86,5,)," ")&IF(L24="","",","&IFERROR(VLOOKUP($L24,'【選択肢】'!$K$3:$O$86,5,)," ")&IF(M24="","",","&IFERROR(VLOOKUP($M24,'【選択肢】'!$K$3:$O$86,5,)," ")))))))) -> 
F25: この線より上に行を挿入してください。
E27: 農業者 | F27: 農業者以外 | G27: 合計
B28: 活動に参加した最大人数 | E28: =MAX(E10:E25) -> 0 | F28: =MAX(F10:F25) -> 0 | G28: =SUM(E28+F28) -> 0

Sheet 【選択肢】
K1: 活動記録で選択された取組番号から、区分、項目、取組を自動入力するための表 | P1: 実施回数のカウント | Q1: ←活動記録に活動項目番号が入力された回数をカウントし、これをもとに実施状況報告書の「実施欄」の○、×を判定しています。 | R1: 都道府県の要綱基本方針において活動項目を追加した場合の設定方法（県の担当者が作業してください）
A2: A.■か□ | B2: B.○か空白 | C2: C.○か－か× | D2: D.農村環境保全活動のテーマ | E2: E.高度な保全活動 | F2: F.施設 | G2: G.単位 | H2: H.構成員一覧の分類 | I2: I.金銭出納簿の区分 | J2: J.金銭出納簿の収支の分類 | K2: 番号 | L2: 支払区分 | M2: 活動区分 | O2: 活動項目 | R2: 要綱基本方針において活動項目を追加した場合、以下の方法により修正することができます。
A3: ■ | B3: ○ | C3: ○ | D3: 生態系保全 | E3: 循環かんがいによる水質保全 | F3: 水路 | G3: km | H3: １.農業者個人 | I3: 1 | J3: １.前年度持越 | K3: 200 | L3: - | M3: 事務処理 | N3: 事務処理 | O3: 200 事務処理 | R3: ●共通：活動記録で、追加した活動番号を入力できるようにする
A4: □ | C4: － | D4: 水質保全 | E4: 浄化水路による水質保全 | F4: 農道 | G4: 箇所 | H4: ２.農事組合法人 | I4: 2 | J4: ２.交付金 | K4: 300 | L4: - | M4: 会議 | N4: 会議 | O4: 300 会議 | R4: １）「取組番号早見表シート」及び「取組番号シート」に番号、支払区分、活動区分、活動項目を追加する。
C5: × | D5: 景観形成・生活環境保全 | E5: 地下水かん養 | F5: ため池 | H5: ３.営農組合 | J5: ３.利子等 | R5: ２）「選択肢」シートのK列～O列の72行以降に行を挿入し、追加した活動番号、支払区分、活動区分、活動項目を入力する。
D6: 水田貯留・地下水かん養 | E6: 持続的な水管理 | H6: ４.その他の農業者団体 | J6: ４.日当 | K6: 1 | L6: 農地維持 | M6: 点検・計画策定 | N6: 点検 | O6: 1 点検 | P6: =COUNTIF('活動記録（多面的機能支払交付金の様式）'!$H$9:$M$28,'【選択肢】'!K6) -> 0 | R6: ３）「選択肢」シートＰ列の72行以降にP71セル（活動記録に入力された回数のカウントを行う数式）をコピーする。
D7: 資源循環 | E7: 土壌流出防止 | H7: ５.農業者以外個人 | J7: ５.購入・リース費 | K7: 2 | L7: 農地維持 | M7: 点検・計画策定 | N7: 計画策定 | O7: 2 年度活動計画の策定 | P7: =COUNTIF('活動記録（多面的機能支払交付金の様式）'!$H$9:$M$28,'【選択肢】'!K7) -> 0 | R7: （この作業により、活動記録に活動番号が入力された回数がＰ列に入力され、これをもとに実施状況報告書の「実施欄」の○、×を判定します。）
E8: 生物多様性の回復 | H8: ６.自治会 | J8: ６.外注費 | K8: 3 | L8: 農地維持 | M8: 研修 | N8: 研修 | O8: 3 事務・組織運営等に関する研修、機械の安全使用に関する研修 | P8: =COUNTIF('活動記録（多面的機能支払交付金の様式）'!$H$9:$M$28,'【選択肢】'!K8) -> 0
E9: 水環境の回復 | H9: ７.女性会 | J9: ７.その他支出 | K9: 4 | L9: 農地維持 | M9: 実践活動 | N9: 農用地 | O9: 4 遊休農地発生防止のための保全管理 | P9: =COUNTIF('活動記録（多面的機能支払交付金の様式）'!$H$9:$M$28,'【選択肢】'!K9) -> 0 | R9: ●農村環境保全活動、多面的機能の増進を図る活動、長寿命化のための活動を追加する場合は以下の設定を行う
E10: 持続的な畦畔管理 | H10: ８.子供会 | J10: ８.返還 | K10: 5 | L10: 農地維持 | M10: 実践活動 | N10: 農用地 | O10: 5 畦畔・法面・防風林の草刈り | P10: =COUNTIF('活動記録（多面的機能支払交付金の様式）'!$H$9:$M$28,'【選択肢】'!K10) -> 0 | R10: ①農村環境保全活動の項目を追加する場合
E11: 専門家の指導 | H11: ９.土地改良区 | K11: 6 | L11: 農地維持 | M11: 実践活動 | N11: 農用地 | O11: 6 鳥獣害防護柵等の保守管理 | P11: =COUNTIF('活動記録（多面的機能支払交付金の様式）'!$H$9:$M$28,'【選択肢】'!K11) -> 0 | R11: 活動計画書３（２）１）で実践活動を選択する際に、追加した項目を選択できるようにする
H12: 10.JA | K12: 7 | L12: 農地維持 | M12: 実践活動 | N12: 水路 | O12: 7 水路の草刈り | P12: =COUNTIF('活動記録（多面的機能支払交付金の様式）'!$H$9:$M$28,'【選択肢】'!K12) -> 0 | R12: １）「選択肢」シートのQ列の「50 地域資源の～」の下に番号と活動項目を入力する。
H13: 11.学校・PTA | K13: 8 | L13: 農地維持 | M13: 実践活動 | N13: 水路 | O13: 8 水路の泥上げ | P13: =COUNTIF('活動記録（多面的機能支払交付金の様式）'!$H$9:$M$28,'【選択肢】'!K13) -> 0 | R13: このとき、「●共通」で入力した活動項目名と同じになるように注意してください。
H14: 12.NPO | K14: 9 | L14: 農地維持 | M14: 実践活動 | N14: 水路 | O14: 9 水路附帯施設の保守管理 | P14: =COUNTIF('活動記録（多面的機能支払交付金の様式）'!$H$9:$M$28,'【選択肢】'!K14) -> 0 | R14: ２）「数式」タブの「名前の管理」を選択し、リストの中から「K.農村環境保全活動」を選択し、「参照範囲」の右のアイコンをクリック
H15: 13.その他の農業者以外団体 | K15: 10 | L15: 農地維持 | M15: 実践活動 | N15: 農道 | O15: 10 農道の草刈り | P15: =COUNTIF('活動記録（多面的機能支払交付金の様式）'!$H$9:$M$28,'【選択肢】'!K15) -> 0 | R15: ３）参照範囲に追加した活動項目を含むよう範囲を選択し直し、確定する。
K16: 11 | L16: 農地維持 | M16: 実践活動 | N16: 農道 | O16: 11 農道側溝の泥上げ | P16: =COUNTIF('活動記録（多面的機能支払交付金の様式）'!$H$9:$M$28,'【選択肢】'!K16) -> 0
K17: 12 | L17: 農地維持 | M17: 実践活動 | N17: 農道 | O17: 12 路面の維持 | P17: =COUNTIF('活動記録（多面的機能支払交付金の様式）'!$H$9:$M$28,'【選択肢】'!K17) -> 0 | R17: ②多面的機能の増進を図る活動の項目を追加する場合
K18: 13 | L18: 農地維持 | M18: 実践活動 | N18: ため池 | O18: 13 ため池の草刈り | P18: =COUNTIF('活動記録（多面的機能支払交付金の様式）'!$H$9:$M$28,'【選択肢】'!K18) -> 0 | R18: ②-1 活動計画書３（２）２）で都道府県、市町村が認める具体的な活動の内容を選択できるようにする
K19: 14 | L19: 農地維持 | M19: 実践活動 | N19: ため池 | O19: 14 ため池の泥上げ | P19: =COUNTIF('活動記録（多面的機能支払交付金の様式）'!$H$9:$M$28,'【選択肢】'!K19) -> 0 | R19: １）「選択肢」シートのR列の「59 都道府県、～」の下に番号と活動項目を入力する。
K20: 15 | L20: 農地維持 | M20: 実践活動 | N20: ため池 | O20: 15 ため池附帯施設の保守管理 | P20: =COUNTIF('活動記録（多面的機能支払交付金の様式）'!$H$9:$M$28,'【選択肢】'!K20) -> 0 | R20: ２）「数式」タブの「名前の定義」を選択し、任意のリスト名と参照範囲を設定する。
K21: 16 | L21: 農地維持 | M21: 実践活動 | N21: 共通 | O21: 16 異常気象時の対応 | P21: =COUNTIF('活動記録（多面的機能支払交付金の様式）'!$H$9:$M$28,'【選択肢】'!K21) -> 0 | R21: ３）「活動計画書」シートの３.の（２）の２）の「都道府県、市町村が認める具体的な活動」の記入欄を選択した状態で
K22: 17 | L22: 農地維持 | M22: 推進活動 | N22: 推進活動 | O22: 17 農業者の検討会の開催 | P22: =COUNTIF('活動記録（多面的機能支払交付金の様式）'!$H$9:$M$28,'【選択肢】'!K22) -> 0 | R22: 「データ」タブの「データの入力規則」を選択する。
K23: 18 | L23: 農地維持 | M23: 推進活動 | N23: 推進活動 | O23: 18 農業者に対する意向調査、現地調査 | P23: =COUNTIF('活動記録（多面的機能支払交付金の様式）'!$H$9:$M$28,'【選択肢】'!K23) -> 0 | R23: ４）入力値の設定を「リスト」にし、「元の値」の表示の入力欄を選択した状態で「数式」タブの「数式で使用」を選択する。
K24: 19 | L24: 農地維持 | M24: 推進活動 | N24: 推進活動 | O24: 19 不在村地主との連絡体制の整備等 | P24: =COUNTIF('活動記録（多面的機能支払交付金の様式）'!$H$9:$M$28,'【選択肢】'!K24) -> 0 | R24: ５）リストの中から２）で設定したリスト名を選択し確定する。
K25: 20 | L25: 農地維持 | M25: 推進活動 | N25: 推進活動 | O25: 20 集落外住民や地域住民との意見交換等 | P25: =COUNTIF('活動記録（多面的機能支払交付金の様式）'!$H$9:$M$28,'【選択肢】'!K25) -> 0
K26: 21 | L26: 農地維持 | M26: 推進活動 | N26: 推進活動 | O26: 21 地域住民等に対する意向調査等 | P26: =COUNTIF('活動記録（多面的機能支払交付金の様式）'!$H$9:$M$28,'【選択肢】'!K26) -> 0 | R26: ②-2 活動計画書４（２）の加算措置の適用条件の確認ができるようにする
K27: 22 | L27: 農地維持 | M27: 推進活動 | N27: 推進活動 | O27: 22 有識者等による研修会、検討会の開催 | P27: =COUNTIF('活動記録（多面的機能支払交付金の様式）'!$H$9:$M$28,'【選択肢】'!K27) -> 0 | R27: 「加算措置」シートの（２）資源向上支払（共同）の多面的機能の更なる増進に向けた活動への支援の適用条件の確認欄に
K28: 23 | L28: 農地維持 | M28: 推進活動 | N28: 推進活動 | O28: 23 その他 | P28: =COUNTIF('活動記録（多面的機能支払交付金の様式）'!$H$9:$M$28,'【選択肢】'!K28) -> 0 | R28: 新たに行を追加し、追加した活動項目を入力する。
K29: 24 | L29: 共同 | M29: 機能診断・計画策定 | N29: 機能診断 | O29: 24 農用地の機能診断 | P29: =COUNTIF('活動記録（多面的機能支払交付金の様式）'!$H$9:$M$28,'【選択肢】'!K29) -> 0
K30: 25 | L30: 共同 | M30: 機能診断・計画策定 | N30: 機能診断 | O30: 25 水路の機能診断 | P30: =COUNTIF('活動記録（多面的機能支払交付金の様式）'!$H$9:$M$28,'【選択肢】'!K30) -> 0 | R30: ③長寿命化の項目を追加する場合
K31: 26 | L31: 共同 | M31: 機能診断・計画策定 | N31: 機能診断 | O31: 26 農道の機能診断 | P31: =COUNTIF('活動記録（多面的機能支払交付金の様式）'!$H$9:$M$28,'【選択肢】'!K31) -> 0 | R31: 活動計画書３（３）で実践活動を選択する際に、追加した項目を選択できるようにする
K32: 27 | L32: 共同 | M32: 機能診断・計画策定 | N32: 機能診断 | O32: 27 ため池の機能診断 | P32: =COUNTIF('活動記録（多面的機能支払交付金の様式）'!$H$9:$M$28,'【選択肢】'!K32) -> 0 | R32: １）「選択肢」シートのM列の「66 ため池（附帯施設）の更新等」の下に番号と活動項目名を入力する
K33: 28 | L33: 共同 | M33: 機能診断・計画策定 | N33: 計画策定 | O33: 28 年度活動計画の策定 | P33: =COUNTIF('活動記録（多面的機能支払交付金の様式）'!$H$9:$M$28,'【選択肢】'!K33) -> 0 | R33: ２）「数式」タブの「名前の管理」を選択し、リストから「M.長寿命化」を選択し、「参照範囲」の右のアイコンをクリック
K34: 29 | L34: 共同 | M34: 研修 | N34: 研修 | O34: 29 機能診断・補修技術等に関する研修 | P34: =COUNTIF('活動記録（多面的機能支払交付金の様式）'!$H$9:$M$28,'【選択肢】'!K34) -> 0 | R34: ３）参照範囲に追加した活動項目を含むよう範囲を選択し直し、確定する。
K35: 30 | L35: 共同 | M35: 実践活動 | N35: 農用地 | O35: 30 農用地の軽微な補修等 | P35: =COUNTIF('活動記録（多面的機能支払交付金の様式）'!$H$9:$M$28,'【選択肢】'!K35) -> 0
K36: 31 | L36: 共同 | M36: 実践活動 | N36: 水路 | O36: 31 水路の軽微な補修等 | P36: =COUNTIF('活動記録（多面的機能支払交付金の様式）'!$H$9:$M$28,'【選択肢】'!K36) -> 0
K37: 32 | L37: 共同 | M37: 実践活動 | N37: 農道 | O37: 32 農道の軽微な補修等 | P37: =COUNTIF('活動記録（多面的機能支払交付金の様式）'!$H$9:$M$28,'【選択肢】'!K37) -> 0
K38: 33 | L38: 共同 | M38: 実践活動 | N38: ため池 | O38: 33 ため池の軽微な補修等 | P38: =COUNTIF('活動記録（多面的機能支払交付金の様式）'!$H$9:$M$28,'【選択肢】'!K38) -> 0
K39: 34 | L39: 共同 | M39: 計画策定 | N39: 生態系保全 | O39: 34 生物多様性保全計画の策定 | P39: =COUNTIF('活動記録（多面的機能支払交付金の様式）'!$H$9:$M$28,'【選択肢】'!K39) -> 0
K40: 35 | L40: 共同 | M40: 計画策定 | N40: 水質保全 | O40: 35 水質保全計画、農地保全計画の策定 | P40: =COUNTIF('活動記録（多面的機能支払交付金の様式）'!$H$9:$M$28,'【選択肢】'!K40) -> 0
K41: 36 | L41: 共同 | M41: 計画策定 | N41: 景観形成・生活環境保全 | O41: 36 景観形成計画、生活環境保全計画の策定 | P41: =COUNTIF('活動記録（多面的機能支払交付金の様式）'!$H$9:$M$28,'【選択肢】'!K41) -> 0
K42: 37 | L42: 共同 | M42: 計画策定 | N42: 水田貯留・地下水かん養 | O42: 37 水田貯留計画、地下水かん養計画の策定 | P42: =COUNTIF('活動記録（多面的機能支払交付金の様式）'!$H$9:$M$28,'【選択肢】'!K42) -> 0 | Q42: 活動計画書、実施状況報告書のプルダウン選択用
K43: 38 | L43: 共同 | M43: 計画策定 | N43: 資源循環 | O43: 38 資源循環計画の策定 | P43: =COUNTIF('活動記録（多面的機能支払交付金の様式）'!$H$9:$M$28,'【選択肢】'!K43) -> 0 | Q43: Ｋ.農村環境保全活動
K44: 39 | L44: 共同 | M44: 実践活動 | N44: 生態系保全 | O44: 39 生物の生息状況の把握（生態系保全） | P44: =COUNTIF('活動記録（多面的機能支払交付金の様式）'!$H$9:$M$28,'【選択肢】'!K44) -> 0 | Q44: 39 生物の生息状況の把握（生態系保全）
K45: 40 | L45: 共同 | M45: 実践活動 | N45: 生態系保全 | O45: 40 外来種の駆除（生態系保全） | P45: =COUNTIF('活動記録（多面的機能支払交付金の様式）'!$H$9:$M$28,'【選択肢】'!K45) -> 0 | Q45: 40 外来種の駆除（生態系保全）
K46: 41 | L46: 共同 | M46: 実践活動 | N46: 生態系保全 | O46: 41 その他（生態系保全） | P46: =COUNTIF('活動記録（多面的機能支払交付金の様式）'!$H$9:$M$28,'【選択肢】'!K46) -> 0 | Q46: 41 その他（生態系保全）
K47: 42 | L47: 共同 | M47: 実践活動 | N47: 水質保全 | O47: 42 水質モニタリングの実施・記録管理（水質保全） | P47: =COUNTIF('活動記録（多面的機能支払交付金の様式）'!$H$9:$M$28,'【選択肢】'!K47) -> 0 | Q47: 42 水質モニタリングの実施・記録管理（水質保全）
K48: 43 | L48: 共同 | M48: 実践活動 | N48: 水質保全 | O48: 43 畑からの土砂流出対策（水質保全） | P48: =COUNTIF('活動記録（多面的機能支払交付金の様式）'!$H$9:$M$28,'【選択肢】'!K48) -> 0 | Q48: 43 畑からの土砂流出対策（水質保全）
K49: 44 | L49: 共同 | M49: 実践活動 | N49: 水質保全 | O49: 44 その他（水質保全） | P49: =COUNTIF('活動記録（多面的機能支払交付金の様式）'!$H$9:$M$28,'【選択肢】'!K49) -> 0 | Q49: 44 その他（水質保全）
K50: 45 | L50: 共同 | M50: 実践活動 | N50: 景観形成・生活環境保全 | O50: 45 植栽等の景観形成活動（景観形成・生活環境保全） | P50: =COUNTIF('活動記録（多面的機能支払交付金の様式）'!$H$9:$M$28,'【選択肢】'!K50) -> 0 | Q50: 45 植栽等の景観形成活動（景観形成・生活環境保全）
K51: 46 | L51: 共同 | M51: 実践活動 | N51: 景観形成・生活環境保全 | O51: 46 施設等の定期的な巡回点検・清掃（景観形成・生活環境保全） | P51: =COUNTIF('活動記録（多面的機能支払交付金の様式）'!$H$9:$M$28,'【選択肢】'!K51) -> 0 | Q51: 46 施設等の定期的な巡回点検・清掃（景観形成・生活環境保全）
K52: 47 | L52: 共同 | M52: 実践活動 | N52: 景観形成・生活環境保全 | O52: 47 その他（景観形成・生活環境保全） | P52: =COUNTIF('活動記録（多面的機能支払交付金の様式）'!$H$9:$M$28,'【選択肢】'!K52) -> 0 | Q52: 47 その他（景観形成・生活環境保全）
K53: 48 | L53: 共同 | M53: 実践活動 | N53: 水田貯留・地下水かん養 | O53: 48 水田の貯留機能向上活動（水田貯留機能増進・地下水かん養） | P53: =COUNTIF('活動記録（多面的機能支払交付金の様式）'!$H$9:$M$28,'【選択肢】'!K53) -> 0 | Q53: 48 水田の貯留機能向上活動（水田貯留機能増進・地下水かん養）
K54: 49 | L54: 共同 | M54: 実践活動 | N54: 水田貯留・地下水かん養 | O54: 49 地下水かん養活動、水源かん養林の保全（水田貯留機能増進・地下水かん養） | P54: =COUNTIF('活動記録（多面的機能支払交付金の様式）'!$H$9:$M$28,'【選択肢】'!K54) -> 0 | Q54: 49 地下水かん養活動、水源かん養林の保全（水田貯留機能増進・地下水かん養）
K55: 50 | L55: 共同 | M55: 実践活動 | N55: 資源循環 | O55: 50 地域資源の活用・資源循環活動（資源循環） | P55: =COUNTIF('活動記録（多面的機能支払交付金の様式）'!$H$9:$M$28,'【選択肢】'!K55) -> 0 | Q55: 50 地域資源の活用・資源循環活動（資源循環） | R55: 活動計画書、実施状況報告書のプルダウン選択用
K56: 51 | L56: 共同 | M56: 啓発・普及 | N56: 啓発・普及 | O56: 51 啓発・普及活動 | P56: =COUNTIF('活動記録（多面的機能支払交付金の様式）'!$H$9:$M$28,'【選択肢】'!K56) -> 0 | R56: Ｌ.増進活動
K57: 52 | L57: 共同 | M57: 増進活動 | N57: 増進活動 | O57: 52 遊休農地の有効活用 | P57: =COUNTIF('活動記録（多面的機能支払交付金の様式）'!$H$9:$M$28,'【選択肢】'!K57) -> 0 | R57: 52 遊休農地の有効活用
K58: 53 | L58: 共同 | M58: 増進活動 | N58: 増進活動 | O58: 53 鳥獣被害防止対策及び環境改善活動の強化 | P58: =COUNTIF('活動記録（多面的機能支払交付金の様式）'!$H$9:$M$28,'【選択肢】'!K58) -> 0 | R58: 53 農地周りの環境改善活動の強化
K59: 54 | L59: 共同 | M59: 増進活動 | N59: 増進活動 | O59: 54 地域住民による直営施工 | P59: =COUNTIF('活動記録（多面的機能支払交付金の様式）'!$H$9:$M$28,'【選択肢】'!K59) -> 0 | R59: 54 地域住民による直営施工
K60: 55 | L60: 共同 | M60: 増進活動 | N60: 増進活動 | O60: 55 防災・減災力の強化 | P60: =COUNTIF('活動記録（多面的機能支払交付金の様式）'!$H$9:$M$28,'【選択肢】'!K60) -> 0 | R60: 55 防災・減災力の強化
K61: 56 | L61: 共同 | M61: 増進活動 | N61: 増進活動 | O61: 56 農村環境保全活動の幅広い展開 | P61: =COUNTIF('活動記録（多面的機能支払交付金の様式）'!$H$9:$M$28,'【選択肢】'!K61) -> 0 | R61: 56 農村環境保全活動の幅広い展開
K62: 57 | L62: 共同 | M62: 増進活動 | N62: 増進活動 | O62: 57 やすらぎ・福祉及び教育機能の活用 | P62: =COUNTIF('活動記録（多面的機能支払交付金の様式）'!$H$9:$M$28,'【選択肢】'!K62) -> 0 | R62: 57 やすらぎ・福祉及び教育機能の活用
K63: 58 | L63: 共同 | M63: 増進活動 | N63: 増進活動 | O63: 58 農村文化の伝承を通じた農村コミュニティの強化 | P63: =COUNTIF('活動記録（多面的機能支払交付金の様式）'!$H$9:$M$28,'【選択肢】'!K63) -> 0 | R63: 58 農村文化の伝承を通じた農村コミュニティの強化
K64: 59 | L64: 共同 | M64: 増進活動 | N64: 増進活動 | O64: 59 都道府県、市町村が特に認める活動 | P64: =COUNTIF('活動記録（多面的機能支払交付金の様式）'!$H$9:$M$28,'【選択肢】'!K64) -> 0 | R64: 59 都道府県、市町村が特に認める活動 | S64: 活動計画書、実施状況報告書のプルダウン選択用
K65: 60 | L65: 共同 | M65: 増進活動 | N65: 増進活動 | O65: 60 広報活動・農的関係人口の拡大 | P65: =COUNTIF('活動記録（多面的機能支払交付金の様式）'!$H$9:$M$28,'【選択肢】'!K65) -> 0 | S65: Ｍ.長寿命化
K66: 61 | L66: 長寿命化 | M66: 実践活動 | N66: 水路 | O66: 61 水路の補修 | P66: =COUNTIF('活動記録（多面的機能支払交付金の様式）'!$H$9:$M$28,'【選択肢】'!K66) -> 0 | S66: 61 水路の補修
K67: 62 | L67: 長寿命化 | M67: 実践活動 | N67: 水路 | O67: 62 水路の更新等 | P67: =COUNTIF('活動記録（多面的機能支払交付金の様式）'!$H$9:$M$28,'【選択肢】'!K67) -> 0 | S67: 62 水路の更新等
K68: 63 | L68: 長寿命化 | M68: 実践活動 | N68: 農道 | O68: 63 農道の補修 | P68: =COUNTIF('活動記録（多面的機能支払交付金の様式）'!$H$9:$M$28,'【選択肢】'!K68) -> 0 | S68: 63 農道の補修
K69: 64 | L69: 長寿命化 | M69: 実践活動 | N69: 農道 | O69: 64 農道の更新等 | P69: =COUNTIF('活動記録（多面的機能支払交付金の様式）'!$H$9:$M$28,'【選択肢】'!K69) -> 0 | S69: 64 農道の更新等
K70: 65 | L70: 長寿命化 | M70: 実践活動 | N70: ため池 | O70: 65 ため池の補修 | P70: =COUNTIF('活動記録（多面的機能支払交付金の様式）'!$H$9:$M$28,'【選択肢】'!K70) -> 0 | S70: 65 ため池の補修
K71: 66 | L71: 長寿命化 | M71: 実践活動 | N71: ため池 | O71: 66 ため池（附帯施設）の更新等 | P71: =COUNTIF('活動記録（多面的機能支払交付金の様式）'!$H$9:$M$28,'【選択肢】'!K71) -> 0 | S71: 66 ため池（附帯施設）の更新等
K72: 67 | L72: 中山間直払 | M72: - | N72: - | O72: 農地法面の見回り | P72: =COUNTIF('活動記録（多面的機能支払交付金の様式）'!$H$9:$M$28,'【選択肢】'!K72) -> 0
K73: 68 | L73: 中山間直払 | M73: - | N73: - | O73: 鳥獣被害防止対策 | P73: =COUNTIF('活動記録（多面的機能支払交付金の様式）'!$H$9:$M$28,'【選択肢】'!K73) -> 0
K74: 69 | L74: 中山間直払 | M74: - | N74: - | O74: 水路管理活動 | P74: =COUNTIF('活動記録（多面的機能支払交付金の様式）'!$H$9:$M$28,'【選択肢】'!K74) -> 0
K75: 70 | L75: 中山間直払 | M75: - | N75: - | O75: 農道管理活動 | P75: =COUNTIF('活動記録（多面的機能支払交付金の様式）'!$H$9:$M$28,'【選択肢】'!K75) -> 0
K76: 71 | L76: 中山間直払 | M76: - | N76: - | O76: 周辺林地の下草刈り | P76: =COUNTIF('活動記録（多面的機能支払交付金の様式）'!$H$9:$M$28,'【選択肢】'!K76) -> 0
K77: 72 | L77: 中山間直払 | M77: - | N77: - | O77: 景観作物作付け活動 | P77: =COUNTIF('活動記録（多面的機能支払交付金の様式）'!$H$9:$M$28,'【選択肢】'!K77) -> 0
K78: 73 | L78: 中山間直払 | M78: - | N78: - | O78: ネットワーク化活動計画の話合い | P78: =COUNTIF('活動記録（多面的機能支払交付金の様式）'!$H$9:$M$28,'【選択肢】'!K78) -> 0
K79: 74 | L79: 中山間直払 | M79: - | N79: - | O79: 総会 | P79: =COUNTIF('活動記録（多面的機能支払交付金の様式）'!$H$9:$M$28,'【選択肢】'!K79) -> 0
K80: 75 | L80: 中山間直払 | M80: - | N80: - | O80: 役員会 | P80: =COUNTIF('活動記録（多面的機能支払交付金の様式）'!$H$9:$M$28,'【選択肢】'!K80) -> 0
K81: 76 | L81: 中山間直払 | M81: - | N81: - | O81: 現地確認立会い | P81: =COUNTIF('活動記録（多面的機能支払交付金の様式）'!$H$9:$M$28,'【選択肢】'!K81) -> 0
K82: 77 | L82: 中山間直払 | M82: - | N82: - | O82: 市役所打合せ | P82: =COUNTIF('活動記録（多面的機能支払交付金の様式）'!$H$9:$M$28,'【選択肢】'!K82) -> 0
K83: 78 | L83: 中山間直払 | M83: - | N83: - | O83: 研修 | P83: =COUNTIF('活動記録（多面的機能支払交付金の様式）'!$H$9:$M$28,'【選択肢】'!K83) -> 0
K84: 79 | L84: 中山間直払 | M84: - | N84: - | O84: その他 | P84: =COUNTIF('活動記録（多面的機能支払交付金の様式）'!$H$9:$M$28,'【選択肢】'!K84) -> 0
K85: 80 | L85: 中山間直払 | M85: - | N85: - | O85: ※適宜【選択肢】シートに項目を追加ください | P85: =COUNTIF('活動記録（多面的機能支払交付金の様式）'!$H$9:$M$28,'【選択肢】'!K85) -> 0
M86: この線より上に行を挿入してください。

Sheet 金銭出納簿（今年度）（参考）
B1: （参考）
H3: 中山間地域等直接支払交付金 金銭出納簿
G4: （多面的機能支払交付金との共通様式） | K4: 組織名： | L4: =はじめに!D5 -> あいうえお集落協定
B5: ★「分類」欄は、分類番号（１～20）から選択してください。
B6: ★「区分」欄には、農地維持・資源向上（共同）に係る収支は「１」を、資源向上（長寿命化）に係る収支は「２」を必ず入力してください。 区別ができない収支は「１」を記入してください。（中山間地域等直接支払交付金の場合は記入不要（多面的機能支払交付金の場合は記入））
B7: ★農地維持・資源向上（共同）の交付金を活用して資源向上（長寿命化）の活動を行った際の費用は、区分を「１」にし、「長寿命化への活用」欄に○を記入して ください。（中山間地域等直接支払交付金の場合は記入不要（多面的機能支払交付金の場合は記入））
B8: ★交付金交付前に活動資金を構成員が一時的に立て替えて会計口座へ繰り入れた場合は、収入欄にその立替額を記入してください。 また、返済の際は返済額をマイナスの収入として収入欄に記入し、一時的な立替額が収入/支出の合計に計上されないようにしてください。
B9: 日 付 | C9: 分類 | D9: 月 | E9: 内 容 | F9: 区分 | G9: 収入（円） | H9: 支出（円） | I9: 残高（円） | J9: 領収書番号 | K9: 活動実施日 | L9: 備考 | M9: 長寿命化への活用
B10: 2021-04-01 | C10: １．前年度からの繰越・積立 | D10: =MONTH('金銭出納簿（今年度）（参考）'!$B10) -> 4 | E10: 前年度からの繰越・積立 | G10: 1800000 | H10: 0 | I10: =G10-H10 -> 1800000 | L10: うち積立金1,000,000円
B11: 2021-04-01 | C11: ３．利子等その他収入 | D11: =MONTH('金銭出納簿（今年度）（参考）'!$B11) -> 4 | E11: 利子 | G11: 130 | H11: 0 | I11: =I10+$G11-$H11 -> 1800130
B12: 2021-04-15 | C12: ７．研修会等費 | D12: =MONTH('金銭出納簿（今年度）（参考）'!$B12) -> 4 | E12: 総会会場借料 | H12: 5000 | I12: 1795130
B13: 2021-05-03 | C13: 11．農地整備費 | D13: =MONTH('金銭出納簿（今年度）（参考）'!$B13) -> 5 | E13: 草刈刃の購入 | H13: 30000 | I13: 1765130 | J13: 1
B14: 2020-06-03 | C14: ７．研修会等費 | D14: =MONTH('金銭出納簿（今年度）（参考）'!$B14) -> 6 | E14: 無人草刈り機の購入 | H14: 300000 | I14: 1465130 | J14: 2 | L14: 積立金からの支出300,000円
B15: 2020-06-07 | C15: ８．道・水路管理費 | D15: =MONTH('金銭出納簿（今年度）（参考）'!$B15) -> 6 | E15: ○○資材の購入費 | H15: 60000 | I15: 1405130 | J15: 3
B16: 2020-07-01 | C16: ９．道・水路整備費 | D16: =MONTH('金銭出納簿（今年度）（参考）'!$B16) -> 7 | E16: 役員報酬 | H16: 60000 | I16: 1345130 | J16: 4
B17: 2020-08-03 | C17: ７．研修会等費 | D17: =MONTH('金銭出納簿（今年度）（参考）'!$B17) -> 8 | E17: 鳥獣害防止柵の補修 | H17: 100000 | I17: 1245130 | J17: 5
B18: 2020-08-08 | C18: ６．役員報酬 | D18: =MONTH('金銭出納簿（今年度）（参考）'!$B18) -> 8 | E18: 水路泥上げ | H18: 50000 | I18: 1195130 | J18: 6
B19: 2020-09-01 | C19: ９．道・水路整備費 | D19: =MONTH('金銭出納簿（今年度）（参考）'!$B19) -> 9 | E19: 農道の補修 | H19: 120000 | I19: 1075130 | J19: 7
B20: 2020-09-15 | C20: ３．利子等その他収入 | D20: =MONTH('金銭出納簿（今年度）（参考）'!$B20) -> 9 | E20: ○○資材の購入費 | G20: 20000 | I20: 1095130 | J20: 8
B21: 2020-09-25 | C21: 10．農地管理費 | D21: =MONTH('金銭出納簿（今年度）（参考）'!$B21) -> 9 | E21: 水路の補修 | H21: 400000 | I21: 695130 | J21: 9,10
B22: 2020-10-01 | C22: ３．利子等その他収入 | D22: =MONTH('金銭出納簿（今年度）（参考）'!$B22) -> 10 | E22: 利子 | G22: 40 | H22: 0 | I22: 695170
B23: 2020-10-01 | C23: 14．共同利用施設整備等費 | D23: =MONTH('金銭出納簿（今年度）（参考）'!$B23) -> 10 | E23: 役員報酬 | H23: 60000 | I23: 635170 | J23: 11
B24: 2020-11-15 | C24: ２．交付金 | D24: =MONTH('金銭出納簿（今年度）（参考）'!$B24) -> 11 | E24: 交付金 | G24: 4800000 | H24: 0 | I24: 5435170
B25: 2020-11-30 | C25: ４．個人配分（交付金からの支出） | D25: =MONTH('金銭出納簿（今年度）（参考）'!$B25) -> 11 | E25: 個人配分 | H25: 2400000 | I25: 3035170 | J25: 12~55
B26: 2021-11-30 | C26: ５．個人配分（繰越金等からの支出） | D26: =MONTH('金銭出納簿（今年度）（参考）'!$B26) -> 11 | E26: 個人配分 | H26: 100000 | I26: 2935170 | J26: 12~55
B27: 2021-11-30 | C27: ８．道・水路管理費 | D27: =MONTH('金銭出納簿（今年度）（参考）'!$B27) -> 11 | E27: 水路清掃 | H27: 20000 | I27: 2915170
B28: 2020-12-01 | C28: ６．役員報酬 | D28: =MONTH('金銭出納簿（今年度）（参考）'!$B28) -> 12 | E28: 個人配分 | H28: 200000 | I28: 2715170 | J28: 56~57
B29: 2021-01-01 | C29: ８．道・水路管理費 | D29: =MONTH('金銭出納簿（今年度）（参考）'!$B29) -> 1 | E29: 水路清掃 | H29: 40000 | I29: 2675170 | J29: 58
B30: 2021-01-12 | C30: ７．研修会等費 | D30: =MONTH('金銭出納簿（今年度）（参考）'!$B30) -> 1 | E30: 研修会会場借料 | H30: 200000 | I30: 2475170 | J30: 59
B31: 2021-01-13 | C31: ９．道・水路整備費 | D31: =MONTH('金銭出納簿（今年度）（参考）'!$B31) -> 1 | E31: 水路の更新等 | H31: 200000 | I31: 2275170 | J31: 60
B32: 2021-01-02 | C32: ３．利子等その他収入 | D32: =MONTH('金銭出納簿（今年度）（参考）'!$B32) -> 1 | E32: 利子 | G32: 120 | I32: 2275290
B33: 2021-01-16 | C33: 20．その他の支出 | D33: =MONTH('金銭出納簿（今年度）（参考）'!$B33) -> 1 | E33: 草刈り、泥上げ等 | H33: 50000 | I33: 2225290 | J33: 61
B34: 2021-01-17 | C34: 15．多面的機能増進活動費 | D34: =MONTH('金銭出納簿（今年度）（参考）'!$B34) -> 1 | E34: 草刈り、泥上げ等 | H34: 50001 | I34: 2175289 | J34: 62
B35: 2021-02-01 | C35: 17．法人設立関係費 | D35: =MONTH('金銭出納簿（今年度）（参考）'!$B35) -> 2 | E35: 法人登記費用 | H35: 2000 | I35: 2173289 | J35: 63
B36: 2021-02-02 | C36: 19．都市住民との交流促進関係費 | D36: =MONTH('金銭出納簿（今年度）（参考）'!$B36) -> 2 | E36: 交流イベント | H36: 100000 | I36: 2073289 | J36: 64
B37: 2021-02-03 | C37: 12．鳥獣被害防止対策費 | D37: =MONTH('金銭出納簿（今年度）（参考）'!$B37) -> 2 | E37: 電気柵の補修 | H37: 100000 | I37: 1973289 | J37: 65
B38: 2021-02-05 | C38: 18．農産物等の販売促進関係費 | D38: =MONTH('金銭出納簿（今年度）（参考）'!$B38) -> 2 | E38: 農産物PRシールの印刷 | H38: 50000 | I38: 1923289 | J38: 66
B39: 2021-03-03 | C39: ７．研修会等費 | D39: =MONTH('金銭出納簿（今年度）（参考）'!$B39) -> 3 | E39: 草刈り、泥上げ等 | H39: 50000 | I39: 1873289 | J39: 67
B40: 2021-03-03 | C40: 20．その他の支出 | D40: =MONTH('金銭出納簿（今年度）（参考）'!$B40) -> 3 | E40: プリンタートナー代 | H40: 20000 | I40: 1853289 | J40: 68
B41: 2021-03-03 | C41: 20．その他の支出 | D41: =MONTH('金銭出納簿（今年度）（参考）'!$B41) -> 3 | E41: コピー用紙代 | H41: 3000 | I41: 1850289 | J41: 69
B42: 2021-03-31 | C42: ４．個人配分（交付金からの支出） | D42: =MONTH('金銭出納簿（今年度）（参考）'!$B42) -> 3 | E42: 個人配分 | H42: 150000 | I42: 1700289 | J42: 70
D43: =MONTH('金銭出納簿（今年度）（参考）'!$B43) -> 1 | I43: 1700289
D44: =MONTH('金銭出納簿（今年度）（参考）'!$B44) -> 1 | I44: 1700289
D45: =MONTH('金銭出納簿（今年度）（参考）'!$B45) -> 1 | I45: 1700289
D46: =MONTH('金銭出納簿（今年度）（参考）'!$B46) -> 1 | I46: 1700289
D47: =MONTH('金銭出納簿（今年度）（参考）'!$B47) -> 1 | I47: 1700289
D48: =MONTH('金銭出納簿（今年度）（参考）'!$B48) -> 1 | I48: 1700289
D49: =MONTH('金銭出納簿（今年度）（参考）'!$B49) -> 1 | I49: 1700289
B50: 行を追加する場合はこれより上の行のコピーして、「コピーしたセルの挿入」をしてください。
B51: 合計 | G51: =SUM($G$10:$G$50) -> 6620290 | H51: =SUM($H$10:$H$50) -> 4920001 | I51: =G51-H51 -> 1700289
B52: ※領収書は、通し番号を記入した上で、必ず保管しておいてください。（領収書の保管の方法は袋等による保管でも構いません。）
B54: 【翌年度への繰越・積立金の内訳】
B55: ※分類欄は下右表の「積立・繰越金の分類項目」から選択してください。
B56: 分類 | E56: 金額 | F56: 積立・繰越の目的 | K56: 取崩し予定年度
B57: 1．農業用機械の購入費 | E57: 1000000 | F57: トラクターの購入 | K57: 令和６年度
B58: 2．農業用施設の整備費 | E58: 690000 | F58: 農機具格納庫の補修 | K58: 令和５年度
B59: 3．道・水路、農地整備費 | E59: 10000 | F59: 農道・水路の補修 | K59: 令和４年度
B60: 8．繰越 | E60: 289 | F60: 翌年度当初の活動費 | K60: 令和３年度
B61: 行を追加する場合はこれより上の行のコピーして、「コピーしたセルの挿入」をしてください。
B62: 合 計 | E62: =SUM($E$57:$E$61) -> 1700289
C66: ※「分類」には、下表を参考に該当する費目を記入します。 | I66: 「積立・繰越金の分類項目」
C67: １．前年度からの繰越・積立 | I67: 1．農業用機械の購入費
C68: ２．交付金 | I68: 2．農業用施設の整備費
C69: ３．利子等その他収入 | I69: 3．道・水路、農地整備費
C70: ４．個人配分（交付金からの支出） | I70: 4．災害復旧費
C71: ５．個人配分（繰越金等からの支出） | I71: 5．耕作者の突然のリタイヤ時の作業受委託等費用
C72: ６．役員報酬 | I72: 6．イベント開催費
C73: ７．研修会等費 | I73: 7．その他
C74: ８．道・水路管理費 | I74: 8．繰越
C75: ９．道・水路整備費
C76: 10．農地管理費
C77: 11．農地整備費
C78: 12．鳥獣被害防止対策費
C79: 13．共同利用機械購入等費
C80: 14．共同利用施設整備等費
C81: 15．多面的機能増進活動費
C82: 16．土地利用調整関係費
C83: 17．法人設立関係費
C84: 18．農産物等の販売促進関係費
C85: 19．都市住民との交流促進関係費
C86: 20．その他の支出
B87: 【集計】 （収支報告書と連動）
B88: 項目 | E88: ４月1日～3月31日の計
H89: うち4月1日～12月31日 | J89: うち1月1日～３月31日
E90: 収入 | F90: 支出 | H90: 収入 | I90: 支出 | J90: 収入 | K90: 支出
B91: 収入 | C91: １．前年度からの繰越・積立 | E91: =SUMIFS($G$10:$G$50,$C$10:$C$50,C91) -> 1800000 | H91: =SUMIFS($G$10:$G$50,$C$10:$C$50,C91,$D$10:$D$50,">=4") -> 1800000 | J91: =SUMIFS($G$10:$G$50,$C$10:$C$50,C91,$D$10:$D$50,"<=3") -> 0
C92: ２．交付金 | E92: =SUMIFS($G$10:$G$50,$C$10:$C$50,C92) -> 4800000 | H92: =SUMIFS($G$10:$G$50,$C$10:$C$50,C92,$D$10:$D$50,">=4") -> 4800000 | J92: =SUMIFS($G$10:$G$50,$C$10:$C$50,C92,$D$10:$D$50,"<=3") -> 0
C93: ３．利子等その他収入 | E93: =SUMIFS($G$10:$G$50,$C$10:$C$50,C93) -> 20290 | H93: =SUMIFS($G$10:$G$50,$C$10:$C$50,C93,$D$10:$D$50,">=4") -> 20170 | J93: =SUMIFS($G$10:$G$50,$C$10:$C$50,C93,$D$10:$D$50,"<=3") -> 120
B94: 個人配分 | C94: ４．個人配分（交付金からの支出） | F94: =SUMIFS($H$10:$H$50,$C$10:$C$50,C94) -> 2550000 | I94: =SUMIFS($H$10:$H$50,$C$10:$C$50,C94,$D$10:$D$50,">=4") -> 2400000 | K94: =SUMIFS($H$10:$H$39,$C$10:$C$39,C94,$D$10:$D$39,"<=3") -> 0
C95: ５．個人配分（繰越金等からの支出） | F95: 100000 | I95: 100000 | K95: 0
B96: 共同取組活動 | C96: ６．役員報酬 | F96: 250000 | I96: 250000 | K96: 0
C97: ７．研修会等費 | F97: 655000 | I97: 405000 | K97: 250000
C98: ８．道・水路管理費 | F98: 120000 | I98: 80000 | K98: 40000
C99: ９．道・水路整備費 | F99: 380000 | I99: 180000 | K99: 200000
C100: 10．農地管理費 | F100: 400000 | I100: 400000 | K100: 0
C101: 11．農地整備費 | F101: 30000 | I101: 30000 | K101: 0
C102: 12．鳥獣被害防止対策費 | F102: 100000 | I102: 0 | K102: 100000
C103: 13．共同利用機械購入等費 | F103: 0 | I103: 0 | K103: 0
C104: 14．共同利用施設整備等費 | F104: 60000 | I104: 60000 | K104: 0
C105: 15．多面的機能増進活動費 | F105: 50001 | I105: 0 | K105: 50001
C106: 16．土地利用調整関係費 | F106: 0 | I106: 0 | K106: 0
C107: 17．法人設立関係費 | F107: 2000 | I107: 0 | K107: 2000
C108: 18．農産物等の販売促進関係費 | F108: 50000 | I108: 0 | K108: 50000
C109: 19．都市住民との交流促進関係費 | F109: 100000 | I109: 0 | K109: 100000
C110: 20．その他の支出 | F110: 73000 | I110: 0 | K110: 50000
B111: 翌年度繰越等 | C111: 翌年度への繰越・積立 | F111: ='金銭出納簿（今年度）（参考）'!$I$51 -> 1700289 | K111: ='金銭出納簿（今年度）（参考）'!$I$51 -> 1700289
B112: 合 計 | E112: =SUM(E91:E93) -> 6620290 | F112: =SUM(F94:G111) -> 6620290 | H112: =SUM(H91:H93) -> 6620170 | I112: =SUM(I94:I111) -> 3905000 | J112: =SUM(J91:J93) -> 120 | K112: =SUM(K94:K111) -> 2542290

Sheet 金銭出納簿（前年度）（参考）
B1: （参考）
H3: 中山間地域等直接支払交付金 金銭出納簿
G4: （多面的機能支払交付金との共通様式） | K4: 組織名： | L4: =はじめに!D5 -> あいうえお集落協定
B5: ★「分類」欄は、分類番号（１～20）から選択してください。
B6: ★「区分」欄には、農地維持・資源向上（共同）に係る収支は「１」を、資源向上（長寿命化）に係る収支は「２」を必ず入力してください。 区別ができない収支は「１」を記入してください。（多面的機能支払交付金の場合）
B7: ★農地維持・資源向上（共同）の交付金を活用して資源向上（長寿命化）の活動を行った際の費用は、区分を「１」にし、「長寿命化への活用」欄に○を記入して ください。（多面的機能支払交付金の場合）
B8: ★交付金交付前に活動資金を構成員が一時的に立て替えて会計口座へ繰り入れた場合は、収入欄にその立替額を記入してください。 また、返済の際は返済額をマイナスの収入として収入欄に記入し、一時的な立替額が収入/支出の合計に計上されないようにしてください。
B9: 日 付 | C9: 分類 | D9: 月 | E9: 内 容 | F9: 区分 | G9: 収入（円） | H9: 支出（円） | I9: 残高（円） | J9: 領収書番号 | K9: 活動実施日 | L9: 備考 | M9: 長寿命化への活用
B10: 2021-04-01 | C10: １．前年度からの繰越・積立 | D10: =MONTH('金銭出納簿（今年度）（参考）'!$B10) -> 4 | E10: 前年度からの繰越・積立 | G10: 1800000 | H10: 0 | I10: =G10-H10 -> 1800000 | L10: うち積立金1,000,000円
B11: 2021-04-01 | C11: ３．利子等その他収入 | D11: =MONTH('金銭出納簿（今年度）（参考）'!$B11) -> 4 | E11: 利子 | G11: 130 | H11: 0 | I11: =I10+$G11-$H11 -> 1800130
B12: 2021-04-15 | C12: ７．研修会等費 | D12: =MONTH('金銭出納簿（今年度）（参考）'!$B12) -> 4 | E12: 総会会場借料 | H12: 5000 | I12: 1795130
B13: 2021-05-03 | C13: 11．農地整備費 | D13: =MONTH('金銭出納簿（今年度）（参考）'!$B13) -> 5 | E13: 草刈刃の購入 | H13: 30000 | I13: 1765130 | J13: 1
B14: 2020-06-03 | C14: ７．研修会等費 | D14: =MONTH('金銭出納簿（今年度）（参考）'!$B14) -> 6 | E14: 無人草刈り機の購入 | H14: 300000 | I14: 1465130 | J14: 2 | L14: 積立金からの支出300,000円
B15: 2020-06-07 | C15: ８．道・水路管理費 | D15: =MONTH('金銭出納簿（今年度）（参考）'!$B15) -> 6 | E15: ○○資材の購入費 | H15: 60000 | I15: 1405130 | J15: 3
B16: 2020-07-01 | C16: ９．道・水路整備費 | D16: =MONTH('金銭出納簿（今年度）（参考）'!$B16) -> 7 | E16: 役員報酬 | H16: 60000 | I16: 1345130 | J16: 4
B17: 2020-08-03 | C17: ７．研修会等費 | D17: =MONTH('金銭出納簿（今年度）（参考）'!$B17) -> 8 | E17: 鳥獣害防止柵の補修 | H17: 100000 | I17: 1245130 | J17: 5
B18: 2020-08-08 | C18: ６．役員報酬 | D18: =MONTH('金銭出納簿（今年度）（参考）'!$B18) -> 8 | E18: 水路泥上げ | H18: 50000 | I18: 1195130 | J18: 6
B19: 2020-09-01 | C19: ９．道・水路整備費 | D19: =MONTH('金銭出納簿（今年度）（参考）'!$B19) -> 9 | E19: 農道の補修 | H19: 120000 | I19: 1075130 | J19: 7
B20: 2020-09-15 | C20: ３．利子等その他収入 | D20: =MONTH('金銭出納簿（今年度）（参考）'!$B20) -> 9 | E20: ○○資材の購入費 | G20: 20000 | I20: 1095130 | J20: 8
B21: 2020-09-25 | C21: 10．農地管理費 | D21: =MONTH('金銭出納簿（今年度）（参考）'!$B21) -> 9 | E21: 水路の補修 | H21: 400000 | I21: 695130 | J21: 9,10
B22: 2020-10-01 | C22: ３．利子等その他収入 | D22: =MONTH('金銭出納簿（今年度）（参考）'!$B22) -> 10 | E22: 利子 | G22: 40 | H22: 0 | I22: 695170
B23: 2020-10-01 | C23: 14．共同利用施設整備等費 | D23: =MONTH('金銭出納簿（今年度）（参考）'!$B23) -> 10 | E23: 役員報酬 | H23: 60000 | I23: 635170 | J23: 11
B24: 2020-11-15 | C24: ２．交付金 | D24: =MONTH('金銭出納簿（今年度）（参考）'!$B24) -> 11 | E24: 交付金 | G24: 4800000 | H24: 0 | I24: 5435170
B25: 2020-11-30 | C25: ４．個人配分（交付金からの支出） | D25: =MONTH('金銭出納簿（今年度）（参考）'!$B25) -> 11 | E25: 個人配分 | H25: 2400000 | I25: 3035170 | J25: 12~55
B26: 2021-11-30 | C26: ５．個人配分（繰越金等からの支出） | D26: =MONTH('金銭出納簿（今年度）（参考）'!$B26) -> 11 | E26: 個人配分 | H26: 100000 | I26: 2935170 | J26: 12~55
B27: 2021-11-30 | C27: ８．道・水路管理費 | D27: =MONTH('金銭出納簿（今年度）（参考）'!$B27) -> 11 | E27: 水路清掃 | H27: 20000 | I27: 2915170
B28: 2020-12-01 | C28: ６．役員報酬 | D28: =MONTH('金銭出納簿（今年度）（参考）'!$B28) -> 12 | E28: 個人配分 | H28: 200000 | I28: 2715170 | J28: 56~57
B29: 2021-01-01 | C29: ８．道・水路管理費 | D29: =MONTH('金銭出納簿（今年度）（参考）'!$B29) -> 1 | E29: 水路清掃 | H29: 40000 | I29: 2675170 | J29: 58
B30: 2021-01-12 | C30: ７．研修会等費 | D30: =MONTH('金銭出納簿（今年度）（参考）'!$B30) -> 1 | E30: 研修会会場借料 | H30: 200000 | I30: 2475170 | J30: 59
B31: 2021-01-13 | C31: ９．道・水路整備費 | D31: =MONTH('金銭出納簿（今年度）（参考）'!$B31) -> 1 | E31: 水路の更新等 | H31: 200000 | I31: 2275170 | J31: 60
B32: 2021-01-02 | C32: ３．利子等その他収入 | D32: =MONTH('金銭出納簿（今年度）（参考）'!$B32) -> 1 | E32: 利子 | G32: 120 | I32: 2275290
B33: 2021-01-16 | C33: 20．その他の支出 | D33: =MONTH('金銭出納簿（今年度）（参考）'!$B33) -> 1 | E33: 草刈り、泥上げ等 | H33: 50000 | I33: 2225290 | J33: 61
B34: 2021-01-17 | C34: 15．多面的機能増進活動費 | D34: =MONTH('金銭出納簿（今年度）（参考）'!$B34) -> 1 | E34: 草刈り、泥上げ等 | H34: 50001 | I34: 2175289 | J34: 62
B35: 2021-02-01 | C35: 17．法人設立関係費 | D35: =MONTH('金銭出納簿（今年度）（参考）'!$B35) -> 2 | E35: 法人登記費用 | H35: 2000 | I35: 2173289 | J35: 63
B36: 2021-02-02 | C36: 19．都市住民との交流促進関係費 | D36: =MONTH('金銭出納簿（今年度）（参考）'!$B36) -> 2 | E36: 交流イベント | H36: 100000 | I36: 2073289 | J36: 64
B37: 2021-02-03 | C37: 12．鳥獣被害防止対策費 | D37: =MONTH('金銭出納簿（今年度）（参考）'!$B37) -> 2 | E37: 電気柵の補修 | H37: 100000 | I37: 1973289 | J37: 65
B38: 2021-02-05 | C38: 18．農産物等の販売促進関係費 | D38: =MONTH('金銭出納簿（今年度）（参考）'!$B38) -> 2 | E38: 農産物PRシールの印刷 | H38: 50000 | I38: 1923289 | J38: 66
B39: 2021-03-03 | C39: ７．研修会等費 | D39: =MONTH('金銭出納簿（今年度）（参考）'!$B39) -> 3 | E39: 草刈り、泥上げ等 | H39: 50000 | I39: 1873289 | J39: 67
B40: 2021-03-03 | C40: 20．その他の支出 | D40: =MONTH('金銭出納簿（今年度）（参考）'!$B40) -> 3 | E40: プリンタートナー代 | H40: 20000 | I40: 1853289 | J40: 68
B41: 2021-03-03 | C41: 20．その他の支出 | D41: =MONTH('金銭出納簿（今年度）（参考）'!$B41) -> 3 | E41: コピー用紙代 | H41: 3000 | I41: 1850289 | J41: 69
B42: 2021-03-31 | C42: ４．個人配分（交付金からの支出） | D42: =MONTH('金銭出納簿（今年度）（参考）'!$B42) -> 3 | E42: 個人配分 | H42: 150000 | I42: 1700289 | J42: 70
D43: =MONTH('金銭出納簿（今年度）（参考）'!$B43) -> 1 | I43: 1700289
D44: =MONTH('金銭出納簿（今年度）（参考）'!$B44) -> 1 | I44: 1700289
D45: =MONTH('金銭出納簿（今年度）（参考）'!$B45) -> 1 | I45: 1700289
D46: =MONTH('金銭出納簿（今年度）（参考）'!$B46) -> 1 | I46: 1700289
D47: =MONTH('金銭出納簿（今年度）（参考）'!$B47) -> 1 | I47: 1700289
D48: =MONTH('金銭出納簿（今年度）（参考）'!$B48) -> 1 | I48: 1700289
D49: =MONTH('金銭出納簿（今年度）（参考）'!$B49) -> 1 | I49: 1700289
B50: 行を追加する場合はこれより上の行のコピーして、「コピーしたセルの挿入」をしてください。
B51: 合計 | G51: =SUM($G$10:$G$50) -> 6620290 | H51: =SUM($H$10:$H$50) -> 4920001 | I51: =G51-H51 -> 1700289
B52: ※領収書は、通し番号を記入した上で、必ず保管しておいてください。（領収書の保管の方法は袋等による保管でも構いません。）
B54: 【翌年度への繰越・積立金の内訳】
B55: ※分類欄は下右表の「積立・繰越金の分類項目」から選択してください。
B56: 分類 | E56: 金額 | F56: 積立・繰越の目的 | K56: 取崩し予定年度
B57: 1．農業用機械の購入費 | E57: 1000000 | F57: トラクターの購入 | K57: 令和６年度
B58: 2．農業用施設の整備費 | E58: 690000 | F58: 農機具格納庫の補修 | K58: 令和５年度
B59: 3．道・水路、農地整備費 | E59: 10000 | F59: 農道・水路の補修 | K59: 令和４年度
B60: 8．繰越 | E60: 289 | F60: 翌年度当初の活動費 | K60: 令和３年度
B61: 行を追加する場合はこれより上の行のコピーして、「コピーしたセルの挿入」をしてください。
B62: 合 計 | E62: =SUBTOTAL(109,$E$57:$E$61) -> 1700289
C66: ※「分類」には、下表を参考に該当する費目を記入します。 | I66: 「積立・繰越金の分類項目」
C67: １．前年度からの繰越・積立 | I67: 1．農業用機械の購入費
C68: ２．交付金 | I68: 2．農業用施設の整備費
C69: ３．利子等その他収入 | I69: 3．道・水路、農地整備費
C70: ４．個人配分（交付金からの支出） | I70: 4．災害復旧費
C71: ５．個人配分（繰越金等からの支出） | I71: 5．耕作者の突然のリタイヤ時の作業受委託等費用
C72: ６．役員報酬 | I72: 6．イベント開催費
C73: ７．研修会等費 | I73: 7．その他
C74: ８．道・水路管理費 | I74: 8．繰越
C75: ９．道・水路整備費
C76: 10．農地管理費
C77: 11．農地整備費
C78: 12．鳥獣被害防止対策費
C79: 13．共同利用機械購入等費
C80: 14．共同利用施設整備等費
C81: 15．多面的機能増進活動費
C82: 16．土地利用調整関係費
C83: 17．法人設立関係費
C84: 18．農産物等の販売促進関係費
C85: 19．都市住民との交流促進関係費
C86: 20．その他の支出
B87: 【集計】 （収支報告書と連動）
B88: 項目 | E88: ４月1日～3月31日の計
H89: うち4月1日～12月31日 | J89: うち1月1日～３月31日
E90: 収入 | F90: 支出 | H90: 収入 | I90: 支出 | J90: 収入 | K90: 支出
B91: 収入 | C91: １．前年度からの繰越・積立 | E91: =SUMIFS($G$10:$G$50,$C$10:$C$50,C91) -> 1800000 | H91: =SUMIFS($G$10:$G$50,$C$10:$C$50,C91,$D$10:$D$50,">=4") -> 1800000 | J91: =SUMIFS($G$10:$G$50,$C$10:$C$50,C91,$D$10:$D$50,"<=3") -> 0
C92: ２．交付金 | E92: =SUMIFS($G$10:$G$50,$C$10:$C$50,C92) -> 4800000 | H92: =SUMIFS($G$10:$G$50,$C$10:$C$50,C92,$D$10:$D$50,">=4") -> 4800000 | J92: =SUMIFS($G$10:$G$50,$C$10:$C$50,C92,$D$10:$D$50,"<=3") -> 0
C93: ３．利子等その他収入 | E93: =SUMIFS($G$10:$G$50,$C$10:$C$50,C93) -> 20290 | H93: =SUMIFS($G$10:$G$50,$C$10:$C$50,C93,$D$10:$D$50,">=4") -> 20170 | J93: =SUMIFS($G$10:$G$50,$C$10:$C$50,C93,$D$10:$D$50,"<=3") -> 120
B94: 個人配分 | C94: ４．個人配分（交付金からの支出） | F94: =SUMIFS($H$10:$H$50,$C$10:$C$50,C94) -> 2550000 | I94: =SUMIFS($H$10:$H$50,$C$10:$C$50,C94,$D$10:$D$50,">=4") -> 2400000 | K94: =SUMIFS($H$10:$H$39,$C$10:$C$39,C94,$D$10:$D$39,"<=3") -> 0
C95: ５．個人配分（繰越金等からの支出） | F95: 100000 | I95: 100000 | K95: 0
B96: 共同取組活動 | C96: ６．役員報酬 | F96: 250000 | I96: 250000 | K96: 0
C97: ７．研修会等費 | F97: 655000 | I97: 405000 | K97: 250000
C98: ８．道・水路管理費 | F98: 120000 | I98: 80000 | K98: 40000
C99: ９．道・水路整備費 | F99: 380000 | I99: 180000 | K99: 200000
C100: 10．農地管理費 | F100: 400000 | I100: 400000 | K100: 0
C101: 11．農地整備費 | F101: 30000 | I101: 30000 | K101: 0
C102: 12．鳥獣被害防止対策費 | F102: 100000 | I102: 0 | K102: 100000
C103: 13．共同利用機械購入等費 | F103: 0 | I103: 0 | K103: 0
C104: 14．共同利用施設整備等費 | F104: 60000 | I104: 60000 | K104: 0
C105: 15．多面的機能増進活動費 | F105: 50001 | I105: 0 | K105: 50001
C106: 16．土地利用調整関係費 | F106: 0 | I106: 0 | K106: 0
C107: 17．法人設立関係費 | F107: 2000 | I107: 0 | K107: 2000
C108: 18．農産物等の販売促進関係費 | F108: 50000 | I108: 0 | K108: 50000
C109: 19．都市住民との交流促進関係費 | F109: 100000 | I109: 0 | K109: 100000
C110: 20．その他の支出 | F110: 73000 | I110: 0 | K110: 50000
B111: 翌年度繰越等 | C111: 翌年度への繰越・積立 | F111: ='金銭出納簿（今年度）（参考）'!$I$51 -> 1700289 | K111: ='金銭出納簿（今年度）（参考）'!$I$51 -> 1700289
B112: 合 計 | E112: =SUM(E91:E93) -> 6620290 | F112: =SUM(F94:G111) -> 6620290 | H112: =SUM(H91:H93) -> 6620170 | I112: =SUM(I94:I111) -> 3905000 | J112: =SUM(J91:J93) -> 120 | K112: =SUM(K94:K111) -> 2542290

Sheet 活動記録（多面的機能支払交付金の様式）
A1: （様式第１－６号）
A2: 【活動組織から市町村に提出するもの】 | Q2: 組織名：
G3: ○○ | H3: 年度 多面的機能支払交付金 活動記録
B4: ★「実施時間」には休憩時間を含めず、実働時間を記入してください。
B5: ★「活動項目番号」欄には、実施要領別記1-2の国が定める活動指針における活動項目の番号及び要領第1の２の(1)に基づき都道府県が定める要綱基本方針において追加された 活動項目の番号を記入します。その他、事務処理は200番、会議等は300番を記入します。 同一日に複数の活動を行った場合は、該当する全ての活動項目番号を左詰めで一行に記入してください。番号欄が足りない場合は、複数行に分けて記入してください。
B6: 活動実施日時 | E6: 活動参加人数 | H6: 活動項目番号（左詰め） | N6: 活動内容 | Q6: 備考（具体的な活動内容を記入）
B7: 日付 | C7: 実施時間 | E7: 農業者 | F7: 農業者 以外 | G7: 総参加 人数 | N7: 支払区分 | O7: 活動区分 | P7: 活動項目
C8: 開始時刻 | D8: 実施時間
G9: =SUM(E9+F9) -> 0 | N9: =IF(H9="","",(IFERROR(VLOOKUP($H9,'【選択肢】'!$K$3:$O$86,2,)," ")&IF(I9="","",","&IFERROR(VLOOKUP($I9,'【選択肢】'!$K$3:$O$86,2,)," ")&IF(J9="","",","&IFERROR(VLOOKUP($J9,'【選択肢】'!$K$3:$O$86,2,)," ")&IF(K9="","",","&IFERROR(VLOOKUP($K9,'【選択肢】'!$K$3:$O$86,2,)," ")&IF(L9="","",","&IFERROR(VLOOKUP($L9,'【選択肢】'!$K$3:$O$86,2,)," ")&IF(M9="","",","&IFERROR(VLOOKUP($M9,'【選択肢】'!$K$3:$O$86,2,)," ")))))))) ->  | O9: =IF(H9="","",(IFERROR(VLOOKUP($H9,'【選択肢】'!$K$3:$O$86,4,)," ")&IF(I9="","",","&IFERROR(VLOOKUP($I9,'【選択肢】'!$K$3:$O$86,4,)," ")&IF(J9="","",","&IFERROR(VLOOKUP($J9,'【選択肢】'!$K$3:$O$86,4,)," ")&IF(K9="","",","&IFERROR(VLOOKUP($K9,'【選択肢】'!$K$3:$O$86,4,)," ")&IF(L9="","",","&IFERROR(VLOOKUP($L9,'【選択肢】'!$K$3:$O$86,4,)," ")&IF(M9="","",","&IFERROR(VLOOKUP($M9,'【選択肢】'!$K$3:$O$86,4,)," ")))))))) ->  | P9: =IF(H9="","",(IFERROR(VLOOKUP($H9,'【選択肢】'!$K$3:$O$86,5,)," ")&IF(I9="","",","&IFERROR(VLOOKUP($I9,'【選択肢】'!$K$3:$O$86,5,)," ")&IF(J9="","",","&IFERROR(VLOOKUP($J9,'【選択肢】'!$K$3:$O$86,5,)," ")&IF(K9="","",","&IFERROR(VLOOKUP($K9,'【選択肢】'!$K$3:$O$86,5,)," ")&IF(L9="","",","&IFERROR(VLOOKUP($L9,'【選択肢】'!$K$3:$O$86,5,)," ")&IF(M9="","",","&IFERROR(VLOOKUP($M9,'【選択肢】'!$K$3:$O$86,5,)," ")))))))) -> 
G10: 0 | N10: =IF(H10="","",(IFERROR(VLOOKUP($H10,'【選択肢】'!$K$3:$O$86,2,)," ")&IF(I10="","",","&IFERROR(VLOOKUP($I10,'【選択肢】'!$K$3:$O$86,2,)," ")&IF(J10="","",","&IFERROR(VLOOKUP($J10,'【選択肢】'!$K$3:$O$86,2,)," ")&IF(K10="","",","&IFERROR(VLOOKUP($K10,'【選択肢】'!$K$3:$O$86,2,)," ")&IF(L10="","",","&IFERROR(VLOOKUP($L10,'【選択肢】'!$K$3:$O$86,2,)," ")&IF(M10="","",","&IFERROR(VLOOKUP($M10,'【選択肢】'!$K$3:$O$86,2,)," ")))))))) ->  | O10: =IF(H10="","",(IFERROR(VLOOKUP($H10,'【選択肢】'!$K$3:$O$86,4,)," ")&IF(I10="","",","&IFERROR(VLOOKUP($I10,'【選択肢】'!$K$3:$O$86,4,)," ")&IF(J10="","",","&IFERROR(VLOOKUP($J10,'【選択肢】'!$K$3:$O$86,4,)," ")&IF(K10="","",","&IFERROR(VLOOKUP($K10,'【選択肢】'!$K$3:$O$86,4,)," ")&IF(L10="","",","&IFERROR(VLOOKUP($L10,'【選択肢】'!$K$3:$O$86,4,)," ")&IF(M10="","",","&IFERROR(VLOOKUP($M10,'【選択肢】'!$K$3:$O$86,4,)," ")))))))) ->  | P10: =IF(H10="","",(IFERROR(VLOOKUP($H10,'【選択肢】'!$K$3:$O$86,5,)," ")&IF(I10="","",","&IFERROR(VLOOKUP($I10,'【選択肢】'!$K$3:$O$86,5,)," ")&IF(J10="","",","&IFERROR(VLOOKUP($J10,'【選択肢】'!$K$3:$O$86,5,)," ")&IF(K10="","",","&IFERROR(VLOOKUP($K10,'【選択肢】'!$K$3:$O$86,5,)," ")&IF(L10="","",","&IFERROR(VLOOKUP($L10,'【選択肢】'!$K$3:$O$86,5,)," ")&IF(M10="","",","&IFERROR(VLOOKUP($M10,'【選択肢】'!$K$3:$O$86,5,)," ")))))))) -> 
G11: 0 | N11: =IF(H11="","",(IFERROR(VLOOKUP($H11,'【選択肢】'!$K$3:$O$86,2,)," ")&IF(I11="","",","&IFERROR(VLOOKUP($I11,'【選択肢】'!$K$3:$O$86,2,)," ")&IF(J11="","",","&IFERROR(VLOOKUP($J11,'【選択肢】'!$K$3:$O$86,2,)," ")&IF(K11="","",","&IFERROR(VLOOKUP($K11,'【選択肢】'!$K$3:$O$86,2,)," ")&IF(L11="","",","&IFERROR(VLOOKUP($L11,'【選択肢】'!$K$3:$O$86,2,)," ")&IF(M11="","",","&IFERROR(VLOOKUP($M11,'【選択肢】'!$K$3:$O$86,2,)," ")))))))) ->  | O11: =IF(H11="","",(IFERROR(VLOOKUP($H11,'【選択肢】'!$K$3:$O$86,4,)," ")&IF(I11="","",","&IFERROR(VLOOKUP($I11,'【選択肢】'!$K$3:$O$86,4,)," ")&IF(J11="","",","&IFERROR(VLOOKUP($J11,'【選択肢】'!$K$3:$O$86,4,)," ")&IF(K11="","",","&IFERROR(VLOOKUP($K11,'【選択肢】'!$K$3:$O$86,4,)," ")&IF(L11="","",","&IFERROR(VLOOKUP($L11,'【選択肢】'!$K$3:$O$86,4,)," ")&IF(M11="","",","&IFERROR(VLOOKUP($M11,'【選択肢】'!$K$3:$O$86,4,)," ")))))))) ->  | P11: =IF(H11="","",(IFERROR(VLOOKUP($H11,'【選択肢】'!$K$3:$O$86,5,)," ")&IF(I11="","",","&IFERROR(VLOOKUP($I11,'【選択肢】'!$K$3:$O$86,5,)," ")&IF(J11="","",","&IFERROR(VLOOKUP($J11,'【選択肢】'!$K$3:$O$86,5,)," ")&IF(K11="","",","&IFERROR(VLOOKUP($K11,'【選択肢】'!$K$3:$O$86,5,)," ")&IF(L11="","",","&IFERROR(VLOOKUP($L11,'【選択肢】'!$K$3:$O$86,5,)," ")&IF(M11="","",","&IFERROR(VLOOKUP($M11,'【選択肢】'!$K$3:$O$86,5,)," ")))))))) -> 
G12: 0 | N12: =IF(H12="","",(IFERROR(VLOOKUP($H12,'【選択肢】'!$K$3:$O$86,2,)," ")&IF(I12="","",","&IFERROR(VLOOKUP($I12,'【選択肢】'!$K$3:$O$86,2,)," ")&IF(J12="","",","&IFERROR(VLOOKUP($J12,'【選択肢】'!$K$3:$O$86,2,)," ")&IF(K12="","",","&IFERROR(VLOOKUP($K12,'【選択肢】'!$K$3:$O$86,2,)," ")&IF(L12="","",","&IFERROR(VLOOKUP($L12,'【選択肢】'!$K$3:$O$86,2,)," ")&IF(M12="","",","&IFERROR(VLOOKUP($M12,'【選択肢】'!$K$3:$O$86,2,)," ")))))))) ->  | O12: =IF(H12="","",(IFERROR(VLOOKUP($H12,'【選択肢】'!$K$3:$O$86,4,)," ")&IF(I12="","",","&IFERROR(VLOOKUP($I12,'【選択肢】'!$K$3:$O$86,4,)," ")&IF(J12="","",","&IFERROR(VLOOKUP($J12,'【選択肢】'!$K$3:$O$86,4,)," ")&IF(K12="","",","&IFERROR(VLOOKUP($K12,'【選択肢】'!$K$3:$O$86,4,)," ")&IF(L12="","",","&IFERROR(VLOOKUP($L12,'【選択肢】'!$K$3:$O$86,4,)," ")&IF(M12="","",","&IFERROR(VLOOKUP($M12,'【選択肢】'!$K$3:$O$86,4,)," ")))))))) ->  | P12: =IF(H12="","",(IFERROR(VLOOKUP($H12,'【選択肢】'!$K$3:$O$86,5,)," ")&IF(I12="","",","&IFERROR(VLOOKUP($I12,'【選択肢】'!$K$3:$O$86,5,)," ")&IF(J12="","",","&IFERROR(VLOOKUP($J12,'【選択肢】'!$K$3:$O$86,5,)," ")&IF(K12="","",","&IFERROR(VLOOKUP($K12,'【選択肢】'!$K$3:$O$86,5,)," ")&IF(L12="","",","&IFERROR(VLOOKUP($L12,'【選択肢】'!$K$3:$O$86,5,)," ")&IF(M12="","",","&IFERROR(VLOOKUP($M12,'【選択肢】'!$K$3:$O$86,5,)," ")))))))) -> 
G13: 0 | N13: =IF(H13="","",(IFERROR(VLOOKUP($H13,'【選択肢】'!$K$3:$O$86,2,)," ")&IF(I13="","",","&IFERROR(VLOOKUP($I13,'【選択肢】'!$K$3:$O$86,2,)," ")&IF(J13="","",","&IFERROR(VLOOKUP($J13,'【選択肢】'!$K$3:$O$86,2,)," ")&IF(K13="","",","&IFERROR(VLOOKUP($K13,'【選択肢】'!$K$3:$O$86,2,)," ")&IF(L13="","",","&IFERROR(VLOOKUP($L13,'【選択肢】'!$K$3:$O$86,2,)," ")&IF(M13="","",","&IFERROR(VLOOKUP($M13,'【選択肢】'!$K$3:$O$86,2,)," ")))))))) ->  | O13: =IF(H13="","",(IFERROR(VLOOKUP($H13,'【選択肢】'!$K$3:$O$86,4,)," ")&IF(I13="","",","&IFERROR(VLOOKUP($I13,'【選択肢】'!$K$3:$O$86,4,)," ")&IF(J13="","",","&IFERROR(VLOOKUP($J13,'【選択肢】'!$K$3:$O$86,4,)," ")&IF(K13="","",","&IFERROR(VLOOKUP($K13,'【選択肢】'!$K$3:$O$86,4,)," ")&IF(L13="","",","&IFERROR(VLOOKUP($L13,'【選択肢】'!$K$3:$O$86,4,)," ")&IF(M13="","",","&IFERROR(VLOOKUP($M13,'【選択肢】'!$K$3:$O$86,4,)," ")))))))) ->  | P13: =IF(H13="","",(IFERROR(VLOOKUP($H13,'【選択肢】'!$K$3:$O$86,5,)," ")&IF(I13="","",","&IFERROR(VLOOKUP($I13,'【選択肢】'!$K$3:$O$86,5,)," ")&IF(J13="","",","&IFERROR(VLOOKUP($J13,'【選択肢】'!$K$3:$O$86,5,)," ")&IF(K13="","",","&IFERROR(VLOOKUP($K13,'【選択肢】'!$K$3:$O$86,5,)," ")&IF(L13="","",","&IFERROR(VLOOKUP($L13,'【選択肢】'!$K$3:$O$86,5,)," ")&IF(M13="","",","&IFERROR(VLOOKUP($M13,'【選択肢】'!$K$3:$O$86,5,)," ")))))))) -> 
G14: 0 | N14: =IF(H14="","",(IFERROR(VLOOKUP($H14,'【選択肢】'!$K$3:$O$86,2,)," ")&IF(I14="","",","&IFERROR(VLOOKUP($I14,'【選択肢】'!$K$3:$O$86,2,)," ")&IF(J14="","",","&IFERROR(VLOOKUP($J14,'【選択肢】'!$K$3:$O$86,2,)," ")&IF(K14="","",","&IFERROR(VLOOKUP($K14,'【選択肢】'!$K$3:$O$86,2,)," ")&IF(L14="","",","&IFERROR(VLOOKUP($L14,'【選択肢】'!$K$3:$O$86,2,)," ")&IF(M14="","",","&IFERROR(VLOOKUP($M14,'【選択肢】'!$K$3:$O$86,2,)," ")))))))) ->  | O14: =IF(H14="","",(IFERROR(VLOOKUP($H14,'【選択肢】'!$K$3:$O$86,4,)," ")&IF(I14="","",","&IFERROR(VLOOKUP($I14,'【選択肢】'!$K$3:$O$86,4,)," ")&IF(J14="","",","&IFERROR(VLOOKUP($J14,'【選択肢】'!$K$3:$O$86,4,)," ")&IF(K14="","",","&IFERROR(VLOOKUP($K14,'【選択肢】'!$K$3:$O$86,4,)," ")&IF(L14="","",","&IFERROR(VLOOKUP($L14,'【選択肢】'!$K$3:$O$86,4,)," ")&IF(M14="","",","&IFERROR(VLOOKUP($M14,'【選択肢】'!$K$3:$O$86,4,)," ")))))))) ->  | P14: =IF(H14="","",(IFERROR(VLOOKUP($H14,'【選択肢】'!$K$3:$O$86,5,)," ")&IF(I14="","",","&IFERROR(VLOOKUP($I14,'【選択肢】'!$K$3:$O$86,5,)," ")&IF(J14="","",","&IFERROR(VLOOKUP($J14,'【選択肢】'!$K$3:$O$86,5,)," ")&IF(K14="","",","&IFERROR(VLOOKUP($K14,'【選択肢】'!$K$3:$O$86,5,)," ")&IF(L14="","",","&IFERROR(VLOOKUP($L14,'【選択肢】'!$K$3:$O$86,5,)," ")&IF(M14="","",","&IFERROR(VLOOKUP($M14,'【選択肢】'!$K$3:$O$86,5,)," ")))))))) -> 
G15: 0 | N15: =IF(H15="","",(IFERROR(VLOOKUP($H15,'【選択肢】'!$K$3:$O$86,2,)," ")&IF(I15="","",","&IFERROR(VLOOKUP($I15,'【選択肢】'!$K$3:$O$86,2,)," ")&IF(J15="","",","&IFERROR(VLOOKUP($J15,'【選択肢】'!$K$3:$O$86,2,)," ")&IF(K15="","",","&IFERROR(VLOOKUP($K15,'【選択肢】'!$K$3:$O$86,2,)," ")&IF(L15="","",","&IFERROR(VLOOKUP($L15,'【選択肢】'!$K$3:$O$86,2,)," ")&IF(M15="","",","&IFERROR(VLOOKUP($M15,'【選択肢】'!$K$3:$O$86,2,)," ")))))))) ->  | O15: =IF(H15="","",(IFERROR(VLOOKUP($H15,'【選択肢】'!$K$3:$O$86,4,)," ")&IF(I15="","",","&IFERROR(VLOOKUP($I15,'【選択肢】'!$K$3:$O$86,4,)," ")&IF(J15="","",","&IFERROR(VLOOKUP($J15,'【選択肢】'!$K$3:$O$86,4,)," ")&IF(K15="","",","&IFERROR(VLOOKUP($K15,'【選択肢】'!$K$3:$O$86,4,)," ")&IF(L15="","",","&IFERROR(VLOOKUP($L15,'【選択肢】'!$K$3:$O$86,4,)," ")&IF(M15="","",","&IFERROR(VLOOKUP($M15,'【選択肢】'!$K$3:$O$86,4,)," ")))))))) ->  | P15: =IF(H15="","",(IFERROR(VLOOKUP($H15,'【選択肢】'!$K$3:$O$86,5,)," ")&IF(I15="","",","&IFERROR(VLOOKUP($I15,'【選択肢】'!$K$3:$O$86,5,)," ")&IF(J15="","",","&IFERROR(VLOOKUP($J15,'【選択肢】'!$K$3:$O$86,5,)," ")&IF(K15="","",","&IFERROR(VLOOKUP($K15,'【選択肢】'!$K$3:$O$86,5,)," ")&IF(L15="","",","&IFERROR(VLOOKUP($L15,'【選択肢】'!$K$3:$O$86,5,)," ")&IF(M15="","",","&IFERROR(VLOOKUP($M15,'【選択肢】'!$K$3:$O$86,5,)," ")))))))) -> 
G16: 0 | N16: =IF(H16="","",(IFERROR(VLOOKUP($H16,'【選択肢】'!$K$3:$O$86,2,)," ")&IF(I16="","",","&IFERROR(VLOOKUP($I16,'【選択肢】'!$K$3:$O$86,2,)," ")&IF(J16="","",","&IFERROR(VLOOKUP($J16,'【選択肢】'!$K$3:$O$86,2,)," ")&IF(K16="","",","&IFERROR(VLOOKUP($K16,'【選択肢】'!$K$3:$O$86,2,)," ")&IF(L16="","",","&IFERROR(VLOOKUP($L16,'【選択肢】'!$K$3:$O$86,2,)," ")&IF(M16="","",","&IFERROR(VLOOKUP($M16,'【選択肢】'!$K$3:$O$86,2,)," ")))))))) ->  | O16: =IF(H16="","",(IFERROR(VLOOKUP($H16,'【選択肢】'!$K$3:$O$86,4,)," ")&IF(I16="","",","&IFERROR(VLOOKUP($I16,'【選択肢】'!$K$3:$O$86,4,)," ")&IF(J16="","",","&IFERROR(VLOOKUP($J16,'【選択肢】'!$K$3:$O$86,4,)," ")&IF(K16="","",","&IFERROR(VLOOKUP($K16,'【選択肢】'!$K$3:$O$86,4,)," ")&IF(L16="","",","&IFERROR(VLOOKUP($L16,'【選択肢】'!$K$3:$O$86,4,)," ")&IF(M16="","",","&IFERROR(VLOOKUP($M16,'【選択肢】'!$K$3:$O$86,4,)," ")))))))) ->  | P16: =IF(H16="","",(IFERROR(VLOOKUP($H16,'【選択肢】'!$K$3:$O$86,5,)," ")&IF(I16="","",","&IFERROR(VLOOKUP($I16,'【選択肢】'!$K$3:$O$86,5,)," ")&IF(J16="","",","&IFERROR(VLOOKUP($J16,'【選択肢】'!$K$3:$O$86,5,)," ")&IF(K16="","",","&IFERROR(VLOOKUP($K16,'【選択肢】'!$K$3:$O$86,5,)," ")&IF(L16="","",","&IFERROR(VLOOKUP($L16,'【選択肢】'!$K$3:$O$86,5,)," ")&IF(M16="","",","&IFERROR(VLOOKUP($M16,'【選択肢】'!$K$3:$O$86,5,)," ")))))))) -> 
G17: 0 | N17: =IF(H17="","",(IFERROR(VLOOKUP($H17,'【選択肢】'!$K$3:$O$86,2,)," ")&IF(I17="","",","&IFERROR(VLOOKUP($I17,'【選択肢】'!$K$3:$O$86,2,)," ")&IF(J17="","",","&IFERROR(VLOOKUP($J17,'【選択肢】'!$K$3:$O$86,2,)," ")&IF(K17="","",","&IFERROR(VLOOKUP($K17,'【選択肢】'!$K$3:$O$86,2,)," ")&IF(L17="","",","&IFERROR(VLOOKUP($L17,'【選択肢】'!$K$3:$O$86,2,)," ")&IF(M17="","",","&IFERROR(VLOOKUP($M17,'【選択肢】'!$K$3:$O$86,2,)," ")))))))) ->  | O17: =IF(H17="","",(IFERROR(VLOOKUP($H17,'【選択肢】'!$K$3:$O$86,4,)," ")&IF(I17="","",","&IFERROR(VLOOKUP($I17,'【選択肢】'!$K$3:$O$86,4,)," ")&IF(J17="","",","&IFERROR(VLOOKUP($J17,'【選択肢】'!$K$3:$O$86,4,)," ")&IF(K17="","",","&IFERROR(VLOOKUP($K17,'【選択肢】'!$K$3:$O$86,4,)," ")&IF(L17="","",","&IFERROR(VLOOKUP($L17,'【選択肢】'!$K$3:$O$86,4,)," ")&IF(M17="","",","&IFERROR(VLOOKUP($M17,'【選択肢】'!$K$3:$O$86,4,)," ")))))))) ->  | P17: =IF(H17="","",(IFERROR(VLOOKUP($H17,'【選択肢】'!$K$3:$O$86,5,)," ")&IF(I17="","",","&IFERROR(VLOOKUP($I17,'【選択肢】'!$K$3:$O$86,5,)," ")&IF(J17="","",","&IFERROR(VLOOKUP($J17,'【選択肢】'!$K$3:$O$86,5,)," ")&IF(K17="","",","&IFERROR(VLOOKUP($K17,'【選択肢】'!$K$3:$O$86,5,)," ")&IF(L17="","",","&IFERROR(VLOOKUP($L17,'【選択肢】'!$K$3:$O$86,5,)," ")&IF(M17="","",","&IFERROR(VLOOKUP($M17,'【選択肢】'!$K$3:$O$86,5,)," ")))))))) -> 
G18: 0 | N18: =IF(H18="","",(IFERROR(VLOOKUP($H18,'【選択肢】'!$K$3:$O$86,2,)," ")&IF(I18="","",","&IFERROR(VLOOKUP($I18,'【選択肢】'!$K$3:$O$86,2,)," ")&IF(J18="","",","&IFERROR(VLOOKUP($J18,'【選択肢】'!$K$3:$O$86,2,)," ")&IF(K18="","",","&IFERROR(VLOOKUP($K18,'【選択肢】'!$K$3:$O$86,2,)," ")&IF(L18="","",","&IFERROR(VLOOKUP($L18,'【選択肢】'!$K$3:$O$86,2,)," ")&IF(M18="","",","&IFERROR(VLOOKUP($M18,'【選択肢】'!$K$3:$O$86,2,)," ")))))))) ->  | O18: =IF(H18="","",(IFERROR(VLOOKUP($H18,'【選択肢】'!$K$3:$O$86,4,)," ")&IF(I18="","",","&IFERROR(VLOOKUP($I18,'【選択肢】'!$K$3:$O$86,4,)," ")&IF(J18="","",","&IFERROR(VLOOKUP($J18,'【選択肢】'!$K$3:$O$86,4,)," ")&IF(K18="","",","&IFERROR(VLOOKUP($K18,'【選択肢】'!$K$3:$O$86,4,)," ")&IF(L18="","",","&IFERROR(VLOOKUP($L18,'【選択肢】'!$K$3:$O$86,4,)," ")&IF(M18="","",","&IFERROR(VLOOKUP($M18,'【選択肢】'!$K$3:$O$86,4,)," ")))))))) ->  | P18: =IF(H18="","",(IFERROR(VLOOKUP($H18,'【選択肢】'!$K$3:$O$86,5,)," ")&IF(I18="","",","&IFERROR(VLOOKUP($I18,'【選択肢】'!$K$3:$O$86,5,)," ")&IF(J18="","",","&IFERROR(VLOOKUP($J18,'【選択肢】'!$K$3:$O$86,5,)," ")&IF(K18="","",","&IFERROR(VLOOKUP($K18,'【選択肢】'!$K$3:$O$86,5,)," ")&IF(L18="","",","&IFERROR(VLOOKUP($L18,'【選択肢】'!$K$3:$O$86,5,)," ")&IF(M18="","",","&IFERROR(VLOOKUP($M18,'【選択肢】'!$K$3:$O$86,5,)," ")))))))) -> 
G19: 0 | N19: =IF(H19="","",(IFERROR(VLOOKUP($H19,'【選択肢】'!$K$3:$O$86,2,)," ")&IF(I19="","",","&IFERROR(VLOOKUP($I19,'【選択肢】'!$K$3:$O$86,2,)," ")&IF(J19="","",","&IFERROR(VLOOKUP($J19,'【選択肢】'!$K$3:$O$86,2,)," ")&IF(K19="","",","&IFERROR(VLOOKUP($K19,'【選択肢】'!$K$3:$O$86,2,)," ")&IF(L19="","",","&IFERROR(VLOOKUP($L19,'【選択肢】'!$K$3:$O$86,2,)," ")&IF(M19="","",","&IFERROR(VLOOKUP($M19,'【選択肢】'!$K$3:$O$86,2,)," ")))))))) ->  | O19: =IF(H19="","",(IFERROR(VLOOKUP($H19,'【選択肢】'!$K$3:$O$86,4,)," ")&IF(I19="","",","&IFERROR(VLOOKUP($I19,'【選択肢】'!$K$3:$O$86,4,)," ")&IF(J19="","",","&IFERROR(VLOOKUP($J19,'【選択肢】'!$K$3:$O$86,4,)," ")&IF(K19="","",","&IFERROR(VLOOKUP($K19,'【選択肢】'!$K$3:$O$86,4,)," ")&IF(L19="","",","&IFERROR(VLOOKUP($L19,'【選択肢】'!$K$3:$O$86,4,)," ")&IF(M19="","",","&IFERROR(VLOOKUP($M19,'【選択肢】'!$K$3:$O$86,4,)," ")))))))) ->  | P19: =IF(H19="","",(IFERROR(VLOOKUP($H19,'【選択肢】'!$K$3:$O$86,5,)," ")&IF(I19="","",","&IFERROR(VLOOKUP($I19,'【選択肢】'!$K$3:$O$86,5,)," ")&IF(J19="","",","&IFERROR(VLOOKUP($J19,'【選択肢】'!$K$3:$O$86,5,)," ")&IF(K19="","",","&IFERROR(VLOOKUP($K19,'【選択肢】'!$K$3:$O$86,5,)," ")&IF(L19="","",","&IFERROR(VLOOKUP($L19,'【選択肢】'!$K$3:$O$86,5,)," ")&IF(M19="","",","&IFERROR(VLOOKUP($M19,'【選択肢】'!$K$3:$O$86,5,)," ")))))))) -> 
G20: 0 | N20: =IF(H20="","",(IFERROR(VLOOKUP($H20,'【選択肢】'!$K$3:$O$86,2,)," ")&IF(I20="","",","&IFERROR(VLOOKUP($I20,'【選択肢】'!$K$3:$O$86,2,)," ")&IF(J20="","",","&IFERROR(VLOOKUP($J20,'【選択肢】'!$K$3:$O$86,2,)," ")&IF(K20="","",","&IFERROR(VLOOKUP($K20,'【選択肢】'!$K$3:$O$86,2,)," ")&IF(L20="","",","&IFERROR(VLOOKUP($L20,'【選択肢】'!$K$3:$O$86,2,)," ")&IF(M20="","",","&IFERROR(VLOOKUP($M20,'【選択肢】'!$K$3:$O$86,2,)," ")))))))) ->  | O20: =IF(H20="","",(IFERROR(VLOOKUP($H20,'【選択肢】'!$K$3:$O$86,4,)," ")&IF(I20="","",","&IFERROR(VLOOKUP($I20,'【選択肢】'!$K$3:$O$86,4,)," ")&IF(J20="","",","&IFERROR(VLOOKUP($J20,'【選択肢】'!$K$3:$O$86,4,)," ")&IF(K20="","",","&IFERROR(VLOOKUP($K20,'【選択肢】'!$K$3:$O$86,4,)," ")&IF(L20="","",","&IFERROR(VLOOKUP($L20,'【選択肢】'!$K$3:$O$86,4,)," ")&IF(M20="","",","&IFERROR(VLOOKUP($M20,'【選択肢】'!$K$3:$O$86,4,)," ")))))))) ->  | P20: =IF(H20="","",(IFERROR(VLOOKUP($H20,'【選択肢】'!$K$3:$O$86,5,)," ")&IF(I20="","",","&IFERROR(VLOOKUP($I20,'【選択肢】'!$K$3:$O$86,5,)," ")&IF(J20="","",","&IFERROR(VLOOKUP($J20,'【選択肢】'!$K$3:$O$86,5,)," ")&IF(K20="","",","&IFERROR(VLOOKUP($K20,'【選択肢】'!$K$3:$O$86,5,)," ")&IF(L20="","",","&IFERROR(VLOOKUP($L20,'【選択肢】'!$K$3:$O$86,5,)," ")&IF(M20="","",","&IFERROR(VLOOKUP($M20,'【選択肢】'!$K$3:$O$86,5,)," ")))))))) -> 
G21: 0 | N21: =IF(H21="","",(IFERROR(VLOOKUP($H21,'【選択肢】'!$K$3:$O$86,2,)," ")&IF(I21="","",","&IFERROR(VLOOKUP($I21,'【選択肢】'!$K$3:$O$86,2,)," ")&IF(J21="","",","&IFERROR(VLOOKUP($J21,'【選択肢】'!$K$3:$O$86,2,)," ")&IF(K21="","",","&IFERROR(VLOOKUP($K21,'【選択肢】'!$K$3:$O$86,2,)," ")&IF(L21="","",","&IFERROR(VLOOKUP($L21,'【選択肢】'!$K$3:$O$86,2,)," ")&IF(M21="","",","&IFERROR(VLOOKUP($M21,'【選択肢】'!$K$3:$O$86,2,)," ")))))))) ->  | O21: =IF(H21="","",(IFERROR(VLOOKUP($H21,'【選択肢】'!$K$3:$O$86,4,)," ")&IF(I21="","",","&IFERROR(VLOOKUP($I21,'【選択肢】'!$K$3:$O$86,4,)," ")&IF(J21="","",","&IFERROR(VLOOKUP($J21,'【選択肢】'!$K$3:$O$86,4,)," ")&IF(K21="","",","&IFERROR(VLOOKUP($K21,'【選択肢】'!$K$3:$O$86,4,)," ")&IF(L21="","",","&IFERROR(VLOOKUP($L21,'【選択肢】'!$K$3:$O$86,4,)," ")&IF(M21="","",","&IFERROR(VLOOKUP($M21,'【選択肢】'!$K$3:$O$86,4,)," ")))))))) ->  | P21: =IF(H21="","",(IFERROR(VLOOKUP($H21,'【選択肢】'!$K$3:$O$86,5,)," ")&IF(I21="","",","&IFERROR(VLOOKUP($I21,'【選択肢】'!$K$3:$O$86,5,)," ")&IF(J21="","",","&IFERROR(VLOOKUP($J21,'【選択肢】'!$K$3:$O$86,5,)," ")&IF(K21="","",","&IFERROR(VLOOKUP($K21,'【選択肢】'!$K$3:$O$86,5,)," ")&IF(L21="","",","&IFERROR(VLOOKUP($L21,'【選択肢】'!$K$3:$O$86,5,)," ")&IF(M21="","",","&IFERROR(VLOOKUP($M21,'【選択肢】'!$K$3:$O$86,5,)," ")))))))) -> 
G22: 0 | N22: =IF(H22="","",(IFERROR(VLOOKUP($H22,'【選択肢】'!$K$3:$O$86,2,)," ")&IF(I22="","",","&IFERROR(VLOOKUP($I22,'【選択肢】'!$K$3:$O$86,2,)," ")&IF(J22="","",","&IFERROR(VLOOKUP($J22,'【選択肢】'!$K$3:$O$86,2,)," ")&IF(K22="","",","&IFERROR(VLOOKUP($K22,'【選択肢】'!$K$3:$O$86,2,)," ")&IF(L22="","",","&IFERROR(VLOOKUP($L22,'【選択肢】'!$K$3:$O$86,2,)," ")&IF(M22="","",","&IFERROR(VLOOKUP($M22,'【選択肢】'!$K$3:$O$86,2,)," ")))))))) ->  | O22: =IF(H22="","",(IFERROR(VLOOKUP($H22,'【選択肢】'!$K$3:$O$86,4,)," ")&IF(I22="","",","&IFERROR(VLOOKUP($I22,'【選択肢】'!$K$3:$O$86,4,)," ")&IF(J22="","",","&IFERROR(VLOOKUP($J22,'【選択肢】'!$K$3:$O$86,4,)," ")&IF(K22="","",","&IFERROR(VLOOKUP($K22,'【選択肢】'!$K$3:$O$86,4,)," ")&IF(L22="","",","&IFERROR(VLOOKUP($L22,'【選択肢】'!$K$3:$O$86,4,)," ")&IF(M22="","",","&IFERROR(VLOOKUP($M22,'【選択肢】'!$K$3:$O$86,4,)," ")))))))) ->  | P22: =IF(H22="","",(IFERROR(VLOOKUP($H22,'【選択肢】'!$K$3:$O$86,5,)," ")&IF(I22="","",","&IFERROR(VLOOKUP($I22,'【選択肢】'!$K$3:$O$86,5,)," ")&IF(J22="","",","&IFERROR(VLOOKUP($J22,'【選択肢】'!$K$3:$O$86,5,)," ")&IF(K22="","",","&IFERROR(VLOOKUP($K22,'【選択肢】'!$K$3:$O$86,5,)," ")&IF(L22="","",","&IFERROR(VLOOKUP($L22,'【選択肢】'!$K$3:$O$86,5,)," ")&IF(M22="","",","&IFERROR(VLOOKUP($M22,'【選択肢】'!$K$3:$O$86,5,)," ")))))))) -> 
G23: 0 | N23: =IF(H23="","",(IFERROR(VLOOKUP($H23,'【選択肢】'!$K$3:$O$86,2,)," ")&IF(I23="","",","&IFERROR(VLOOKUP($I23,'【選択肢】'!$K$3:$O$86,2,)," ")&IF(J23="","",","&IFERROR(VLOOKUP($J23,'【選択肢】'!$K$3:$O$86,2,)," ")&IF(K23="","",","&IFERROR(VLOOKUP($K23,'【選択肢】'!$K$3:$O$86,2,)," ")&IF(L23="","",","&IFERROR(VLOOKUP($L23,'【選択肢】'!$K$3:$O$86,2,)," ")&IF(M23="","",","&IFERROR(VLOOKUP($M23,'【選択肢】'!$K$3:$O$86,2,)," ")))))))) ->  | O23: =IF(H23="","",(IFERROR(VLOOKUP($H23,'【選択肢】'!$K$3:$O$86,4,)," ")&IF(I23="","",","&IFERROR(VLOOKUP($I23,'【選択肢】'!$K$3:$O$86,4,)," ")&IF(J23="","",","&IFERROR(VLOOKUP($J23,'【選択肢】'!$K$3:$O$86,4,)," ")&IF(K23="","",","&IFERROR(VLOOKUP($K23,'【選択肢】'!$K$3:$O$86,4,)," ")&IF(L23="","",","&IFERROR(VLOOKUP($L23,'【選択肢】'!$K$3:$O$86,4,)," ")&IF(M23="","",","&IFERROR(VLOOKUP($M23,'【選択肢】'!$K$3:$O$86,4,)," ")))))))) ->  | P23: =IF(H23="","",(IFERROR(VLOOKUP($H23,'【選択肢】'!$K$3:$O$86,5,)," ")&IF(I23="","",","&IFERROR(VLOOKUP($I23,'【選択肢】'!$K$3:$O$86,5,)," ")&IF(J23="","",","&IFERROR(VLOOKUP($J23,'【選択肢】'!$K$3:$O$86,5,)," ")&IF(K23="","",","&IFERROR(VLOOKUP($K23,'【選択肢】'!$K$3:$O$86,5,)," ")&IF(L23="","",","&IFERROR(VLOOKUP($L23,'【選択肢】'!$K$3:$O$86,5,)," ")&IF(M23="","",","&IFERROR(VLOOKUP($M23,'【選択肢】'!$K$3:$O$86,5,)," ")))))))) -> 
F24: この線より上に行を挿入してください。
E26: 農業者 | F26: 農業者以外 | G26: 合計
B27: 活動に参加した最大人数 | E27: =MAX(E9:E24) -> 0 | F27: =MAX(F9:F24) -> 0 | G27: =SUM(E27+F27) -> 0

Sheet 【活動項目番号表】
A1: 活動項目番号表
E3: 活動項目番号
D4: 事務処理 | E4: 200
D5: 会議など | E5: 300
A6: 【農地維持活動】
A7: （地域資源の基礎的な保全活動）
A8: 支払区分 | B8: 活動区分 | D8: 活動項目 | E8: 活動項目番号 | F8: 取組の内容（平成30年度までの取組名）
A9: １（農地維持） | B9: 点検・ 計画 策定 | C9: 点検 | D9: 点検 | E9: 1 | F9: 遊休農地等の発生状況の把握
F10: 施設の点検（水路、農道、ため池）
C11: 計画策定 | D11: 年度活動計画の策定 | E11: 2 | F11: 年度活動計画の策定
B12: 研修 | D12: 事務・組織運営等に関する研修、 機械の安全使用に関する研修 | E12: 3 | F12: 活動に関する事務（書類作成、申請手続き等）や組織の運営に関する研修
B13: 実践活動 | C13: 農用地 | D13: 遊休農地発生防止の ための保全管理 | E13: 4 | F13: 遊休農地発生防止のための保全管理
D14: 畦畔・法面・防風林の 草刈り | E14: 5 | F14: 畦畔・農用地法面等の草刈り
F15: 防風林の枝払い・下草の草刈り
D16: 鳥獣害防護柵等の 保守管理 | E16: 6 | F16: 鳥獣害防護柵の適正管理
F17: 防風ネットの適正管理
C18: 水路 | D18: 水路の草刈り | E18: 7 | F18: 水路の草刈り
F19: ポンプ場、調整施設等の草刈り
D20: 水路の泥上げ | E20: 8 | F20: 水路の泥上げ
F21: ポンプ吸水槽等の泥上げ
D22: 水路附帯施設の 保守管理 | E22: 9 | F22: かんがい期前の注油
F23: ゲート類等の保守管理
F24: 遮光施設の適正管理
C25: 農道 | D25: 農道の草刈り | E25: 10 | F25: 路肩・法面の草刈り
D26: 農道側溝の泥上げ | E26: 11 | F26: 側溝の泥上げ
D27: 路面の維持 | E27: 12 | F27: 路面の維持
C28: ため池 | D28: ため池の草刈り | E28: 13 | F28: ため池の草刈り
D29: ため池の泥上げ | E29: 14 | F29: ため池の泥上げ
D30: ため池附帯施設の 保守管理 | E30: 15 | F30: かんがい期前の施設の清掃・防塵
F31: 管理道路の管理
F32: 遮光施設の適正管理
F33: ゲート類の保守管理
C34: 共通 | D34: 異常気象時の対応 | E34: 16 | F34: 異常気象後の見回り（農用地、水路、農道、ため池）
F35: 異常気象後の応急措置（農用地、水路、農道、ため池）
A37: （地域資源の適切な保全管理のための推進活動）
A38: 支払区分 | B38: 活動区分 | D38: 活動項目 | E38: 活動項目番号 | F38: 取組の内容（平成30年度までの取組名）
A39: １（農地維持） | B39: 推進活動 | D39: 農業者の検討会の開催 | E39: 17 | F39: 農業者（入り作農家、土地持ち非農家を含む）による検討会の開催
D40: 農業者に対する意向調査、現地調査 | E40: 18 | F40: 農業者に対する意向調査、農業者による現地調査
D41: 不在村地主との連絡体制の整備等 | E41: 19 | F41: 不在村地主との連絡体制の整備、調整、それに必要な調査
D42: 集落外住民や地域住民との意見交換等 | E42: 20 | F42: 地域住民等（集落外の住民・組織等も含む）との意見交換・ワークショップ・交流会の開催
D43: 地域住民等に対する意向調査等 | E43: 21 | F43: 地域住民等に対する意向調査、地域住民等との集落内調査
D44: 有識者等による研修会、検討会の開催 | E44: 22 | F44: 有識者等による研修会、有識者を交えた検討会の開催
D45: その他 | E45: 23 | F45: -
A47: 【資源向上活動（地域資源の質的向上を図る共同活動）】
A48: （施設の軽微な補修）
A49: 支払区分 | B49: 活動区分 | D49: 活動項目 | E49: 活動項目番号 | F49: 取組の内容（平成30年度までの取組名）
A50: ２（資源向上） | B50: 機能診断・ 計画策定 | C50: 機能診断 | D50: 農用地の機能診断 | E50: 24 | F50: 施設の機能診断（農用地）
F51: 診断結果の記録管理（農用地）
D52: 水路の機能診断 | E52: 25 | F52: 施設の機能診断（水路）
F53: 診断結果の記録管理（水路）
D54: 農道の機能診断 | E54: 26 | F54: 施設の機能診断（農道）
F55: 診断結果の記録管理（農道）
D56: ため池の機能診断 | E56: 27 | F56: 施設の機能診断（ため池）
F57: 診断結果の記録管理（ため池）
C58: 計画策定 | D58: 年度活動計画の策定 | E58: 28 | F58: 年度活動計画の策定
B59: 研修 | D59: 機能診断・補修技術等に関する研修 | E59: 29 | F59: 対象組織による自主的な機能診断及び簡単な補修に関する研修
F60: 老朽化が進む施設の長寿命化のための補修、更新等に関する研修
F61: 農業用水の保全、農地の保全や地域環境の保全に資する 新たな施設の設置等に関する研修
B62: 実践活動 | C62: 農用地 | D62: 農用地の軽微な補修等 | E62: 30 | F62: 畦畔の再構築
F63: 農用地法面の初期補修
F64: 暗渠施設の清掃
F65: 農用地の除れき
F66: 鳥獣害防護柵の補修・設置
F67: 防風ネットの補修・設置
F68: きめ細やかな雑草対策
C69: 水路 | D69: 水路の軽微な補修等 | E69: 31 | F69: 水路側壁のはらみ修正
F70: 目地詰め
F71: 表面劣化に対するコーティング等
F72: 不同沈下に対する早期対応
F73: 側壁の裏込材の充填、水路耕畔の補修
F74: 水路に付着した藻等の除去
F75: 水路法面の初期補修
F76: 破損施設の補修（水路）
F77: きめ細やかな雑草対策（水路）
F78: パイプラインの破損施設の補修
F79: パイプ内の清掃
F80: 給水栓ボックス基礎部の補強
F81: 破損施設の補修（水路の附帯施設）
F82: 給水栓に対する凍結防止対策
F83: 空気弁等への腐食防止剤の塗布等
F84: 遮光施設の補修等
C85: 農道 | D85: 農道の軽微な補修等 | E85: 32 | F85: 路肩、法面の初期補修
F86: 軌道等の運搬施設の維持補修
F87: 破損施設の補修（農道）
F88: きめ細やかな雑草対策（農道）
F89: 側溝の目地詰め
F90: 側溝の不同沈下への早期対応
F91: 側溝の裏込材の充填
F92: 破損施設の補修（農道の附帯施設）
C93: ため池 | D93: ため池の軽微な補修等 | E93: 33 | F93: 遮水シートの補修
F94: コンクリート構造物の目地詰め
F95: コンクリート構造物の表面劣化への対応
F96: 堤体侵食の早期補修
F97: 破損施設の補修（ため池の堤体）
F98: きめ細やかな雑草対策（ため池の堤体）
F99: 破損施設の補修（ため池の附帯施設）
F100: 遮光施設の補修等
A102: （農村環境保全活動）
A103: 支払区分 | B103: 活動区分 | D103: 活動項目 | E103: 活動項目番号 | F103: 取組の内容（平成30年度までの取組名）
C104: テーマ
A105: ２（資源向上） | B105: 計画策定 | C105: 生態系保全 | D105: 生物多様性保全計画の策定 | E105: 34 | F105: 生物多様性保全計画の策定
C106: 水質保全 | D106: 水質保全計画、農地保全計画の策定 | E106: 35 | F106: 水質保全計画の策定
F107: 農地の保全に係る計画の策定
C108: 景観形成・ 生活環境保全 | D108: 景観形成計画、 生活環境保全計画の策定 | E108: 36 | F108: 景観形成、生活環境保全計画の策定
C109: 水田貯留機能増進・ 地下水かん養 | D109: 水田貯留機能増進計画、 地下水かん養活動計画の策定 | E109: 37 | F109: 水田貯留機能増進に係る地域計画の策定
F110: 地下水かん養に係る地域計画の策定
C111: 資源循環 | D111: 資源循環計画の策定 | E111: 38 | F111: 資源循環に係る地域計画の策定
B112: 実践活動 | C112: 生態系保全 | D112: 生物の生息状況の把握 | E112: 39 | F112: 生物の生息状況の把握
D113: 外来種の駆除 | E113: 40 | F113: 外来種の駆除
D114: その他（生態系保全） | E114: 41 | F114: 生物多様性保全に配慮した施設の適正管理
F115: 水田を活用した生息環境の提供
F116: 生物の生活史を考慮した適正管理
F117: 放流・植栽を通じた在来生物の育成
F118: 希少種の監視
C119: 水質保全 | D119: 水質モニタリングの実施・記録管理 | E119: 42 | F119: 水質モニタリングの実施・記録管理
D120: 畑からの土砂流出対策 | E120: 43 | F120: 排水路沿いの林地帯等の適正管理
F121: 沈砂池の適正管理
F122: 土壌流出防止のためのグリーンベルト等の適正管理
D123: その他（水質保全） | E123: 44 | F123: 水質保全を考慮した施設の適正管理
F124: 水田からの排水（濁水）管理
F125: 循環かんがいの実施
F126: 非かんがい期における通水
F127: 管理作業の省力化による水資源の保全
C128: 景観形成・ 生活環境保全 | D128: 植栽等の景観形成活動 | E128: 45 | F128: 景観形成のための施設への植栽等
F129: 農用地等を活用した景観形成活動
D130: 施設等の定期的な巡回点検・清掃 | E130: 46 | F130: 施設等の定期的な巡回点検・清掃
D131: その他（景観形成・生活環境保全） | E131: 47 | F131: 農業用水の地域用水としての利用・管理
F132: 伝統的施設や農法の保全・実施
F133: 農用地からの風塵の防止活動
C134: 水田貯留機能増進・ 地下水かん養 | D134: 水田の貯留機能向上活動 | E134: 48 | F134: 水田の貯留機能向上活動
D135: 水田の地下水かん養機能向上活動、 水源かん養林の保全 | E135: 49 | F135: 水田の地下水かん養機能向上活動
F136: 水源かん養林の保全
C137: 資源循環 | D137: 地域資源の活用・資源循環活動 | E137: 50 | F137: 地域資源の活用・資源循環のための活動
B138: 啓発・普及 | D138: 啓発・普及活動 | E138: 51 | F138: 広報活動
F139: 啓発活動
F140: 地域住民等との交流活動
F141: 学校教育等との連携
F142: 行政機関等との連携
F143: 地域内の規制等の取り決め
A145: （多面的機能の増進を図る活動）
A146: 支払区分 | B146: 活動区分 | D146: 活動項目 | E146: 活動項目番号 | F146: 取組の内容（平成30年度までの取組名）
A147: ２（資源向上） | B147: 増進活動 | D147: 遊休農地の有効活用 | E147: 52 | F147: 遊休農地の有効活用
D148: 鳥獣被害防止対策及び環境改善活動の強化 | E148: 53 | F148: 農地周りの共同活動の強化
D149: 地域住民による直営施工 | E149: 54 | F149: 地域住民による直営施工
D150: 防災・減災力の強化 | E150: 55 | F150: 防災・減災力の強化
D151: 農村環境保全活動の幅広い展開 | E151: 56 | F151: 農村環境保全活動の幅広い展開
D152: やすらぎ・福祉及び教育機能の活用 | E152: 57 | F152: 医療・福祉との連携
D153: 農村文化の伝承を通じた 農村コミュニティの強化 | E153: 58 | F153: 農村文化の伝承を通じた農村コミュニティの強化
D154: 都道府県、市町村が特に認める活動 | E154: 59 | F154: 都道府県、市町村が特に認める活動
D155: 広報活動・農的関係人口の拡大 | E155: 60 | F155: 広報活動
A157: 【資源向上活動（施設の長寿命化のための活動）】
A159: 支払区分 | B159: 活動区分 | D159: 活動項目 | E159: 活動項目番号 | F159: 取組の内容（平成30年度までの取組名）
C160: テーマ
A161: ３（長寿命化） | B161: 実践活動 | C161: 水路 | D161: 水路の補修 | E161: 61 | F161: 水路の破損部分の補修
F162: 水路の老朽化部分の補修
F163: 水路側壁の嵩上げ
F164: U字フリューム等既設水路の再布設
F165: 集水枡、分水枡の補修
F166: ゲート、ポンプの補修
F167: 安全施設の補修
D168: 水路の更新等 | E168: 62 | F168: 素掘り水路からコンクリート水路への更新
F169: 水路の更新
F170: ゲート、ポンプの更新
F171: 安全施設の設置
C172: 農道 | D172: 農道の補修 | E172: 63 | F172: 農道路肩、農道法面の補修
F173: 舗装の打換え（一部）
F174: 農道側溝の補修
D175: 農道の更新等 | E175: 64 | F175: 未舗装農道を舗装（砂利、コンクリート、アスファルト）
F176: 側溝蓋の設置
F177: 土側溝をコンクリート側溝に更新
C178: ため池 | D178: ため池の補修 | E178: 65 | F178: 洗掘箇所の補修
F179: 漏水箇所の補修
F180: 取水施設の補修
F181: 洪水吐の補修
F182: 安全施設の補修
D183: ため池（附帯施設）の更新等 | E183: 66 | F183: ゲート・バルブの更新
F184: 安全施設の設置
A187: ※ 都道府県において、要綱基本方針で追加する取組については、取組番号100番台を用いて、上の表に追加すること。

Sheet 金銭出納簿（多面的機能支払交付金の様式）
B1: （様式第１－7号）
B2: 【活動組織から市町村に提出するもの】 | M2: 農林水産省様式
E3: ○○年度 | F3: 多面的機能支払交付金 金銭出納簿 | J3: 組織名：
B4: ★「分類」欄は、分類番号（１～８）から選択してください。
B5: ★「区分」欄には、農地維持・資源向上（共同）に係る収支は「１」を、資源向上（長寿命化）に係る収支は「２」を必ず入力してください。 区別ができない収支は「１」を記入してください。
B6: ★農地維持・資源向上（共同）の交付金を活用して資源向上（長寿命化）の活動を行った際の費用は、区分を「１」にし、「長寿命化への活用」欄に○を記入して ください。
B7: ★交付金交付前に活動資金を構成員が一時的に立て替えて会計口座へ繰り入れた場合は、収入欄にその立替額を記入してください。 また、返済の際は返済額をマイナスの収入として収入欄に記入し、一時的な立替額が収入/支出の合計に計上されないようにしてください。
B8: 日付 | C8: 分類 | D8: 内 容 | F8: 区分 | G8: 収入（円） | H8: 支出（円） | I8: 残高（円） | J8: 領収書 番号 | K8: 活動 実施日 | L8: 備考 | M8: 長寿命化への活用
I9: =G9-H9 -> 0
I10: =IF((OFFSET(I10,-1,0)+G10-H10)>=0,OFFSET(I10,-1,0)+G10-H10,"") -> 0
I11: 0
I12: 0
I13: 0
I14: 0
I15: 0
I16: 0
I17: 0
I18: 0
I19: 0
I20: 0
I21: 0
I22: 0
I23: 0
I24: 0
I25: 0
I26: 0
I27: 0
D28: この線より上に行を挿入してください。
B29: 合 計 | G29: =IF(SUM(G9:OFFSET(G29,-1,0))>0,SUM(G9:OFFSET(G29,-1,0)),"") ->  | H29: =IF(SUM(H9:OFFSET(H29,-1,0))>0,SUM(H9:OFFSET(H29,-1,0)),"") ->  | I29: =IFERROR(SUM(G29-H29),"") -> 
B30: ※領収書は、通し番号を記入した上で、必ず保管しておいてください。（領収書の保管の方法は袋等による保管でも構いません。）
B32: 【集計】 | C32: 1 | D32: 農地維持・資源向上（共同）（円） | G32: 【集計】 | H32: 2 | I32: 資源向上（長寿命化） | K32: （円）
B33: 項目 | D33: 金額 | G33: 項目 | I33: 金額
D34: 収入 | E34: 支出 | I34: 収入 | J34: 支出
B35: １.前年度持越 | D35: =SUMIFS($G$9:$G$28,$C$9:$C$28,B35,$F$9:$F$28,$C$32) -> 0 | G35: １.前年度持越 | I35: =SUMIFS($G$9:$G$28,$C$9:$C$28,G35,$F$9:$F$28,$H$32) -> 0
B36: ２.交付金 | D36: =SUMIFS($G$9:$G$28,$C$9:$C$28,B36,$F$9:$F$28,$C$32) -> 0 | G36: ２.交付金 | I36: =SUMIFS($G$9:$G$28,$C$9:$C$28,G36,$F$9:$F$28,$H$32) -> 0
B37: ３.利子等 | D37: =SUMIFS($G$9:$G$28,$C$9:$C$28,B37,$F$9:$F$28,$C$32) -> 0 | G37: ３.利子等 | I37: =SUMIFS($G$9:$G$28,$C$9:$C$28,G37,$F$9:$F$28,$H$32) -> 0
B38: ４.日当 | E38: =SUMIFS($H$9:$H$28,$C$9:$C$28,B38,$F$9:$F$28,$C$32) -> 0 | G38: ４.日当 | J38: =SUMIFS($H$9:$H$28,$C$9:$C$28,G38,$F$9:$F$28,$H$32) -> 0 | K38: =SUMIF($C$9:$C$27,H38,$H$9:$H$27) -> 0
B39: ５.購入・リース費 | E39: =SUMIFS($H$9:$H$28,$C$9:$C$28,B39,$F$9:$F$28,$C$32) -> 0 | G39: ５.購入・リース費 | J39: =SUMIFS($H$9:$H$28,$C$9:$C$28,G39,$F$9:$F$28,$H$32) -> 0 | K39: =SUMIF($C$9:$C$27,H39,$H$9:$H$27) -> 0
B40: ６.外注費 | E40: =SUMIFS($H$9:$H$28,$C$9:$C$28,B40,$F$9:$F$28,$C$32) -> 0 | G40: ６.外注費 | J40: =SUMIFS($H$9:$H$28,$C$9:$C$28,G40,$F$9:$F$28,$H$32) -> 0 | K40: =SUMIF($C$9:$C$27,H40,$H$9:$H$27) -> 0
B41: ７.その他支出 | E41: =SUMIFS($H$9:$H$28,$C$9:$C$28,B41,$F$9:$F$28,$C$32) -> 0 | G41: ７.その他支出 | J41: =SUMIFS($H$9:$H$28,$C$9:$C$28,G41,$F$9:$F$28,$H$32) -> 0 | K41: =SUMIF($C$9:$C$27,H41,$H$9:$H$27) -> 0
B42: ８.返還 | E42: =SUMIFS($H$9:$H$28,$C$9:$C$28,B42,$F$9:$F$28,$C$32) -> 0 | G42: ８.返還 | J42: =SUMIFS($H$9:$H$28,$C$9:$C$28,G42,$F$9:$F$28,$H$32) -> 0 | K42: =SUMIF($C$9:$C$27,H42,$H$9:$H$27) -> 0
B43: 次年度への持越（残高） | E43: =D44-SUM(E35:E42) -> 0 | G43: 次年度への持越（残高） | J43: =I44-SUM(J35:K42) -> 0
B44: 合 計 | D44: =SUM(D35:D43) -> 0 | E44: =SUM(E35:E43) -> 0 | G44: 合 計 | I44: =SUM(I35:I43) -> 0 | J44: =SUM(J35:K43) -> 0
B46: ※「分類」には、下表を参考に該当する費目の番号を記入します。（他組織との交付金のやりとりがある場合は、その旨を備考欄に記載）
B47: 番号 | C47: 費目 | D47: 内 容 （例）
B48: 1 | C48: 前年度持越 | D48: 前年度からの持越金
B49: 2 | C49: 交付金 | D49: 農地維持支払交付金、資源向上支払交付金（共同）、資源向上支払交付金（長寿命化）、他の活動組織からの融通額・返還額
B50: 3 | C50: 利子等 | D50: 利子等、構成員による活動資金の立替金
B51: 4 | C51: 日当 | D51: 活動参加者に対して支払った日当
B52: 5 | C52: 購入・リース費 | D52: 資材（砕石、砂利、ｾﾒﾝﾄなど）の購入費、活動に必要な機械（草刈り機など）の購入費、パソコンなどのリース費、車両、機械等の 借り上げ費、花の種、苗代など
B53: 6 | C53: 外注費 | D53: 補修・更新等の工事等（調査、設計、測量、試験等を含む）に係る建設業者等への外注費、事務の外注費など
B54: 7 | C54: その他支出 | D54: 技術指導等のために外部から招く専門家等への謝金、活動に係る旅費、保険料、文具代及び光熱費の費用、アルバイト等への賃金、草刈り機や車の燃料代、役員報酬、お茶代など
B55: 8 | C55: 返還 | D55: 返還金、他の活動組織への融通額・返還額

Sheet 実施状況報告（様式2）
A1: [001]協定識別コード | B1: [002]都道府県名 | C1: [003]市町村名 | D1: [004]地方公共団体コード | E1: [005]集落協定名 | F1: [006]協定整理番号 | G1: 協定識別コード重複確認セル | H1: [007]協定の所在地 | I1: [008]協定認定年度（交付開始年度） | J1: [010]複数の市町村にまたがる協定の事項 | K1: [012]協定参加者総計 | L1: [013]うち中核的リーダー | M1: [016]農業者（人） | N1: [017]農業法人数 | O1: [018]農業生産組織数 | P1: [019]土地改良区 | Q1: [020]水利組合 | R1: [021]非農業者（人） | S1: [022]その他 | T1: [023]協定参加者の年齢区分別計 | U1: [024]参加者_39歳以下 | V1: [025]参加者_40～44歳 | W1: [026]参加者_45～49歳 | X1: [027]参加者_50～54歳 | Y1: [028]参加者_55～59歳 | Z1: [029]参加者_60～64歳 | AA1: [030]参加者_65～69歳 | AB1: [031]参加者_70～74歳 | AC1: [032]参加者_75～79歳 | AD1: [033]参加者_80歳以上 | AE1: [034]地域区分 | AF1: [035]協定締結面積総計 | AG1: [036]田_面積計 | AH1: [037]田_急傾斜 | AI1: [038]田_緩傾斜 | AJ1: [039]田_高齢化・耕作放棄率 | AK1: [040]田_小区画不整形 | AL1: [041]田_特認基準 | AM1: [042]田_交付対象外 | AN1: [043]畑_面積計 | AO1: [044]畑_急傾斜 | AP1: [045]畑_緩傾斜 | AQ1: [046]畑_高齢化・耕作放棄率 | AR1: [047]畑_特認基準 | AS1: [048]畑_交付対象外（田畑混在） | AT1: [049]畑_交付対象外（田畑混在以外） | AU1: [050]草地_面積計 | AV1: [051]草地_急傾斜 | AW1: [052]草地_緩傾斜 | AX1: [053]草地_草地比率の高い草地 | AY1: [054]草地_高齢化・耕作放棄率 | AZ1: [055]草地_特認基準 | BA1: [056]草地_交付対象外（田草地混在） | BB1: [057]草地_交付対象外（田草地混在以外） | BC1: [058]採草放牧地_面積計 | BD1: [059]採草放牧地_急傾斜 | BE1: [060]採草放牧地_緩傾斜 | BF1: [061]採草放牧地_特認基準 | BG1: [062]採草放牧地_交付対象外（田採草放牧地混在） | BH1: [063]採草放牧地_交付対象外（田採草放牧地混在以外) | BI1: [064]通常地域_面積計 | BJ1: [065]通常地域_田_面積計 | BK1: [066]通常地域_田_急傾斜 | BL1: [067]通常地域_田_緩傾斜 | BM1: [068]通常地域_田_高齢化耕作放棄率 | BN1: [069]通常地域_田_小区画不整形 | BO1: [070]通常地域_田_特認基準 | BP1: [071]通常地域_田_交付対象外 | BQ1: [072]通常地域_畑_面積計 | BR1: [073]通常地域_畑_急傾斜 | BS1: [074]通常地域_畑_緩傾斜 | BT1: [075]通常地域_畑_高齢化耕作放棄率 | BU1: [076]通常地域_畑_特認基準 | BV1: [077]通常地域_畑_交付対象外（田畑混在） | BW1: [078]通常地域_畑_交付対象外（田畑混在以外） | BX1: [079]通常地域_草地_面積計 | BY1: [080]通常地域_草地_急傾斜 | BZ1: [081]通常地域_草地_緩傾斜 | CA1: [082]通常地域_草地_草地比率の高い草地 | CB1: [083]通常地域_草地_高齢化耕作放棄率 | CC1: [084]通常地域_草地_特認基準 | CD1: [085]通常地域_草地_交付対象外（田草地混在） | CE1: [086]通常地域_草地_交付対象外（田草地混在以外） | CF1: [087]通常地域_採草放牧地_面積計 | CG1: [088]通常地域_採草放牧地_急傾斜 | CH1: [089]通常地域_採草放牧地_緩傾斜 | CI1: [090]通常地域_採草放牧地_特認基準 | CJ1: [091]通常地域_採草放牧地_交付対象外（田採草混在） | CK1: [092]通常地域_採草放牧地_交付対象外（田採草混在以外） | CL1: [093]特認地域_基準区分 | CM1: [094]特認地域_面積計 | CN1: [095]特認地域_田_面積計 | CO1: [096]特認地域_田_急傾斜 | CP1: [097]特認地域_田_緩傾斜 | CQ1: [098]特認地域_田_高齢化耕作放棄率 | CR1: [099]特認地域_田_小区画不整形 | CS1: [100]特認地域_田_特認基準 | CT1: [101]特認地域_田_交付対象外 | CU1: [102]特認地域_畑_面積計 | CV1: [103]特認地域_畑_急傾斜 | CW1: [104]特認地域_畑_緩傾斜 | CX1: [105]特認地域_畑_高齢化耕作放棄率 | CY1: [106]特認地域_畑_特認基準 | CZ1: [107]特認地域_畑_交付対象外（田畑混在） | DA1: [108]特認地域_畑_（田畑混在地以外） | DB1: [109]特認地域_草地_面積計 | DC1: [110]特認地域_草地_急傾斜 | DD1: [111]特認地域_草地_緩傾斜 | DE1: [112]特認地域_草地_草地比率の高い草地 | DF1: [113]特認地域_草地_高齢化耕作放棄率 | DG1: [114]特認地域_草地_特認基準 | DH1: [115]特認地域_草地_交付対象外（田草地混在） | DI1: [116]特認地域_草地_交付対象外（田草地混在以外） | DJ1: [117]特認地域_採草放牧地_面積計 | DK1: [118]特認地域_採草放牧地_急傾斜 | DL1: [119]特認地域_採草放牧地_緩傾斜 | DM1: [120]特認地域_採草放牧地_特認基準 | DN1: [121]特認地域_採草放牧地_交付対象外（田採草混在地） | DO1: [122]特認地域_採草放牧地_交付対象外（田採草混在地以外） | DP1: [123]本体交付金交付額 | DQ1: [124]うち国費 | DR1: [125]協定農用地の一部除外_面積計 | DS1: [126]協定農用地の一部除外_耕作未実施_計 | DT1: [127]協定農用地の一部除外_耕作未実施_耕作放棄 | DU1: [128]協定農用地の一部除外_耕作未実施_転用 | DV1: [131]協定農用地の一部除外_耕作未実施_その他 | DW1: [132]協定農用地の一部除外_耕作未実施_その他の内容 | DX1: [133]協定農用地の一部除外_復旧未実施 | DY1: [134]協定農用地の一部除外_死亡・病気・高齢 | DZ1: [135]協定農用地の一部除外_自然災害 | EA1: [136]協定農用地の一部除外_土地収用 | EB1: [137]協定農用地の一部除外_農業用施設 | EC1: [144]復旧_既荒廃農地 | ED1: [145]復旧_既荒廃農地_うち復旧済面積 | EE1: [146]復旧_既荒廃農地_田 | EF1: [147]復旧_既荒廃農地_畑 | EG1: [148]復旧_既荒廃農地_草地 | EH1: [149]復旧_自然災害 | EI1: [150]復旧_自然災害_うち復旧済面積 | EJ1: [151]協定に含めない管理すべき荒廃農地の管理面積 | EK1: [152]棚田加算_取組状況 | EL1: [153]棚田加算_加算面積_計 | EM1: [154]棚田加算_加算面積_田 | EN1: [155]棚田加算_加算面積_畑 | EO1: [156]棚田加算_加算金額 | EP1: [157]棚田加算_うち国費 | EQ1: [158]超急傾斜地棚田加算_取組状況 | ER1: [159]超急傾斜地棚田加算_加算面積_計 | ES1: [160]超急傾斜地棚田加算_加算面積_田 | ET1: [161]超急傾斜地棚田加算_加算面積_畑 | EU1: [162]超急傾斜地棚田加算_加算金額 | EV1: [163]超急傾斜地棚田加算_うち国費 | EW1: [164]棚田加算_目標_棚田等の保全 | EX1: [165]棚田加算_目標_棚田等の保全_目標年度 | EY1: [166]棚田加算_目標_棚田等の保全_達成状況 | EZ1: [167]棚田加算_目標_多面的機能の維持発揮 | FA1: [168]棚田加算_目標_多面的機能の維持発揮_目標年度 | FB1: [169]棚田加算_目標_多面的機能の維持発揮_達成状況 | FC1: [170]棚田加算_目標_棚田地域の振興 | FD1: [171]棚田加算_目標_棚田地域の振興_目標年度 | FE1: [172]棚田加算_目標_棚田地域の振興_達成状況 | FF1: [173]超急傾加算_取組状況 | FG1: [174]超急傾加算_加算面積_計 | FH1: [175]超急傾加算_加算面積_田 | FI1: [176]超急傾加算_加算面積_畑 | FJ1: [177]超急傾加算_加算金額 | FK1: [178]超急傾加算_うち国費 | FL1: [179]超急傾加算_目標_保全_法面の維持・補修 | FM1: [180]超急傾加算_目標_保全_耕作道、ほ場進入路等の維持 | FN1: [181]超急傾加算_目標_保全_作業足場の設置、ほ場進入路の改良等 | FO1: [182]超急傾加算_目標_保全_土壌流入、土壌流出の防止 | FP1: [183]超急傾加算_目標_保全_農薬散布等の施設の整備 | FQ1: [184]超急傾加算_目標_保全_共同防除体制の構築 | FR1: [185]超急傾加算_目標_保全_鳥獣害防止施設の維持 | FS1: [186]超急傾加算_目標_保全_鳥獣害防止施設の設置 | FT1: [187]超急傾加算_目標_保全_その他 | FU1: [188]超急傾加算_目標_保全_その他の内容 | FV1: [189]超急傾加算_目標_販売_共通パッケージの作成 | FW1: [190]超急傾加算_目標_販売_パンフレットの作成 | FX1: [191]超急傾加算_目標_販売_農産物の加工 | FY1: [192]超急傾加算_目標_販売_直売所等での販売 | FZ1: [193]超急傾加算_目標_販売_ブランド化 | GA1: [194]超急傾加算_目標_販売_景観作物の植栽 | GB1: [195]超急傾加算_目標_販売_環境に配慮した農業 | GC1: [196]超急傾加算_目標_販売_都市住民との交流 | GD1: [197]超急傾加算_目標_販売_施設の設置・運営 | GE1: [198]超急傾加算_目標_販売_棚田オーナー制度 | GF1: [199]超急傾加算_目標_販売_その他 | GG1: [200]超急傾加算_目標_販売_その他の内容 | GH1: [201]ネットワーク化加算_取組状況 | GI1: [202]ネットワーク化加算_加算面積計 | GJ1: [203]ネットワーク化加算_加算金額 | GK1: [204]ネットワーク化加算_うち国費 | GL1: [205]ネットワーク化加算_ネットワーク化集落数 | GM1: [206]ネットワーク化加算_統合集落数 | GN1: [207]ネットワーク化加算_人材確保数 | GO1: [208]ネットワーク化加算_集落内からの人材確保数 | GP1: [209]ネットワーク化加算_集落外からの人材確保数 | GQ1: [210]ネットワーク化加算_確保された人材が担う地域活動数 | GR1: [211]ネットワーク化加算_確保された人材が担う地域活動_集落協定組織の活動 | GS1: [212]ネットワーク化加算_確保された人材が担う地域活動_農業生産組織の活動 | GT1: [213]ネットワーク化加算_確保された人材が担う地域活動_加工・販売組織の活動 | GU1: [214]ネットワーク化加算_目標 | GV1: [215]ネットワーク加算_目標_目標年度 | GW1: [216]ネットワーク化加算_目標_達成状況 | GX1: [217]スマート農業加算_取組状況 | GY1: [218]スマート農業加算_加算面積計 | GZ1: [219]スマート農業加算_加算金額 | HA1: [220]スマート農業加算_うち国費 | HB1: [221]スマート農業加算_目標 | HC1: [222]スマート農業加算_目標年度 | HD1: [223]スマート農業加算_達成状況 | HE1: [224]集落機能強化加算の経過措置_取組状況 | HF1: [225]集落機能強化加算の経過措置_加算面積計 | HG1: [226]集落機能強化加算の経過措置_加算金額 | HH1: [227]集落機能強化加算の経過措置_うち国費 | HI1: [228]集落機能強化加算の経過措置_目標 | HJ1: [229]集落機能強化加算の経過措置_目標年度 | HK1: [230]集落機能強化加算の経過措置_達成状況 | HL1: [231]体制整備単価 | HM1: [232]基礎単価 | HN1: [233]交付金額（円） | HO1: [234]交付金額_うち国費 | HP1: [235]共同取組活動充当額 | HQ1: [236]共同取組活動充当割合 | HR1: [237]個人配分額 | HS1: [238]前年度末積立等残高 | HT1: [239]今年度交付額＋前年度末積立等残高 | HU1: [240]個人配分支出総額 | HV1: [241]共同取組活動支出総額 | HW1: [242]役員報酬 | HX1: [243]研修会費 | HY1: [244]道水路管理費 | HZ1: [245]農地管理費 | IA1: [246]鳥獣害防止対策費 | IB1: [247]共同利用機械購入等費 | IC1: [248]共同利用施設整備等費 | ID1: [249]多面的機能増進活動費 | IE1: [250]土地利用調整関係費 | IF1: [251]法人設立関係費 | IG1: [252]農産物等販売促進費 | IH1: [253]都市農村交流促進関係費 | II1: [254]その他 | IJ1: [255]積立等_計 | IK1: [256]繰越 | IL1: [257]耕作放棄防止活動（項目数） | IM1: [258]多面的機能支払交付金と同一施設 | IN1: [259]賃借権設定・農作業の委託 | IO1: [260]既荒廃農地復旧、林地化、畜産利用 | IP1: [261]既荒廃農用地の保全管理 | IQ1: ［262］農地の法面管理 | IR1: [263]柵、ネットの設置等鳥獣被害防止 | IS1: [265]簡易な基盤整備 | IT1: [266]担い手の確保 | IU1: [267]地場農産物の加工・販売 | IV1: [268]その他 | IW1: [269]道・水路等の管理活動（項目数） | IX1: [270]水路の管理 | IY1: [271]農道の管理 | IZ1: [272]その他の施設の管理 | JA1: [273]多面的機能の維持・増進活動（項目数） | JB1: [274]周辺林地の下草刈 | JC1: [275]土壌流亡に配慮した営農 | JD1: [277]市民農園等の開設・運営 | JE1: [278]体験民宿（グリーン・ツーリズム） | JF1: [279]景観作物の作付け | JG1: [280]魚類・昆虫類の保護 | JH1: [281]鳥類の餌場の確保 | JI1: [282]粗放的畜産 | JJ1: [283]堆きゅう肥施肥、拮抗作物利用、合鴨・鯉利用、輪作徹底、緑肥作付 | JK1: [284]その他活動 | JL1: [285]集落マスタープラン目指すべき将来像のチェック | JM1: [286]将来にわたり農業生産活動等が可能となる集落内の実施体制構築 | JN1: [287]協定の担い手となる新たな人材の育成・確保 | JO1: [288]協定参加者それぞれが、作物生産、加工・直売等様々な工夫により再生可能な所得を確保 | JP1: [289]その他 | JQ1: [290]その他の内容 | JR1: [291]活動方策のチェック | JS1: [292]機械・農作業の共同化等営農組織の育成 | JT1: [293]高付加価値型農業 | JU1: [294]農業生産条件の強化 | JV1: [295]担い手への農地集積 | JW1: [296]担い手への農作業の委託 | JX1: [297]新規就農者等による農業生産 | JY1: [298]地場産農産物等の加工・販売 | JZ1: [299]消費・出資の呼び込み | KA1: [300]共同で支え合う集団的かつ持続的な体制整備 | KB1: [301]その他 | KC1: [302]その他の内容 | KD1: [303]ネットワーク化活動計画の作成状況 | KE1: [304]体制整備単価取組_ネットワーク化 | KF1: [305]体制整備単価取組_統合 | KG1: [306]体制整備単価取組_多様な組織の参画 | KH1: [302]協定農用地の将来像の合計 | KI1: [303]管理者が引き続き耕作 | KJ1: [304]後継者が耕作を継承 | KK1: [305]担い手等に引き受けてもらう（受け手が決まっている） | KL1: [306]担い手等に引き受けてもらうことを希望（受け手が決まっていない） | KM1: [307]中間管理機構への貸し付けを希望 | KN1: [308]草刈り等管理のみ | KO1: [309]その他 | KP1: [310]協定農用地の将来像を踏まえた集落の現状_該当事項の合計 | KQ1: [311]担い手が確保できており、耕作を継続 | KR1: [312]担い手が確保できているが、全ての委託希望は受けられない | KS1: [313]担い手が確保できていない | KT1: [314]耕作を継続したいが、耕作条件の悪い農地がある | KU1: [315]耕作を継続したいが、農業所得が低い | KV1: [316]耕作を継続したいが、法面や水路・農道等の管理が過重な負担となっている | KW1: [317]鳥獣被害が深刻であり、耕作意欲が減退している | KX1: [318]集落の自治（コミュニティ）機能が低下しており、生活に支障・不安が生じている | LB1: [319]その他 | LC1: [320]その他の内容 | LD1: [321]集落の現状を踏まえた対応の方向性_該当事項の合計 | LE1: [322]耕作放棄の懸念はなく、集落の課題もないことから、対策は不要 | LF1: [323]協定内で担い手を育成・確保 | LG1: [324]協定外で担い手を確保 | LH1: [325]基盤整備等により耕作条件を改善 | LI1: [326]農産物の高付加価値化により所得の向上を図る | LJ1: [327]新たな作物の導入により所得の向上を図る | LK1: [328]省力化技術の導入や外注化等により労働負担の軽減を図る | LL1: [329]耕作継続が困難な農用地の林地化 | LM1: [330]放牧利用による農用地の管理 | LN1: [331]鳥獣被害防止対策の実施 | LO1: [332]集落の自治（コミュニティ）機能の強化 | LP1: [333]その他 | LQ1: [334]その他の内容 | LR1: [335]具体的な対策に向けた検討_該当事項の合計 | LS1: [336]特に懸念はなく、協定参加者で実施していく | LT1: [337]協定参加者だけでは検討が困難であり外部（県・市町村含む）からの助力を得たい | LU1: [338]他の協定との広域化を考えたい | LV1: [339]中山間地域等直接支払交付金の加算措置を活用したい | LW1: [340]対策に活用可能な補助事業等を紹介して欲しい | LX1: [341]その他 | LY1: [342]その他の内容 | LZ1: [343]農業生産活動等の継続のための支援体制_該当事項の合計 | MA1: [344]農地所有適格法人が支援する | MB1: [345]JAが支援する | MC1: [346]集落営農組織が支援する | MD1: [347]農業者が支援する | ME1: [348]協定参加者で役割分担しつつ、農用地の維持管理を行う | MF1: [349]その他 | MG1: [350]その他の内容 | MH1: [351]備考欄 | MN1: [326]農産物の高付加価値化により所得の向上を図る
A2: =SUBTOTAL(2,A15:A3562) -> 0 | H2: =SUBTOTAL(3,H15:H15) -> 1 | I2: =SUBTOTAL(2,I15:I3551) -> 1 | J2: =SUBTOTAL(2,J15:J3551) -> 0 | K2: =SUBTOTAL(9,K15:K15) -> 11 | L2: 4 | M2: 3 | N2: 2 | O2: 4 | P2: 1 | Q2: 1 | R2: 0 | S2: 0 | T2: 3 | U2: 1 | V2: 1 | W2: 1 | X2: 0 | Y2: 0 | Z2: 0 | AA2: 0 | AB2: 0 | AC2: 0 | AD2: 0 | AF2: =SUBTOTAL(9,AF15:AF3551) -> 34768 | AG2: 19115 | AH2: 14397 | AI2: 1343 | AJ2: 1503 | AK2: 1872 | AL2: 0 | AM2: 0 | AN2: 12429 | AO2: 1840 | AP2: 4925 | AQ2: 869 | AR2: 2034 | AS2: 1114 | AT2: 1647 | AU2: 2304 | AV2: 1554 | AW2: 0 | AX2: 140 | AY2: 130 | AZ2: 150 | BA2: 170 | BB2: 160 | BC2: 920 | BD2: 430 | BE2: 0 | BF2: 0 | BG2: 240 | BH2: 250 | BI2: 24293 | BJ2: 14669 | BK2: 11842 | BL2: 1343 | BM2: 591 | BN2: 893 | BO2: 0 | BP2: 0 | BQ2: 8180 | BR2: 1840 | BS2: 1233 | BT2: 869 | BU2: 1477 | BV2: 1114 | BW2: 1647 | BX2: 1444 | BY2: 1444 | BZ2: 0 | CA2: 0 | CB2: 0 | CC2: 0 | CD2: 0 | CE2: 0 | CF2: 0 | CG2: 0 | CH2: 0 | CI2: 0 | CJ2: 0 | CK2: 0 | CL2: 0 | CM2: 10475 | CN2: 4446 | CO2: 2555 | CP2: 0 | CQ2: 912 | CR2: 979 | CS2: 0 | CT2: 0 | CU2: 4249 | CV2: 0 | CW2: 3692 | CX2: 0 | CY2: 557 | CZ2: 0 | DA2: 0 | DB2: 860 | DC2: 110 | DD2: 0 | DE2: 140 | DF2: 130 | DG2: 150 | DH2: 170 | DI2: 160 | DJ2: 920 | DK2: 430 | DL2: 0 | DM2: 0 | DN2: 240 | DO2: 250 | DP2: 426005 | DQ2: 0 | DR2: 0 | DS2: 0 | DT2: 0 | DU2: 0 | DV2: 0 | DW2: =SUBTOTAL(3,DW15:DW3551) -> 0 | DX2: =SUBTOTAL(9,DX15:DX3551) -> 0 | DY2: 0 | DZ2: 0 | EA2: 0 | EB2: 0 | EC2: 0 | ED2: 0 | EE2: 0 | EF2: 0 | EG2: 0 | EH2: 0 | EI2: 0 | EJ2: 0 | EK2: 1 | EL2: 2140 | EM2: 907 | EN2: 1233 | EO2: 21400 | EP2: 0 | EQ2: 0 | ER2: 0 | ES2: 0 | ET2: 0 | EU2: 0 | EV2: 0 | EW2: =SUBTOTAL(3,EW15:EW3551) -> 1 | EX2: 1 | EY2: 0 | EZ2: 1 | FA2: 1 | FB2: 0 | FC2: 1 | FD2: 1 | FE2: 0 | FF2: =SUBTOTAL(9,FF15:FF3551) -> 1 | FG2: 738 | FH2: 738 | FI2: 0 | FJ2: 4428 | FK2: 0 | FL2: 0 | FM2: 0 | FN2: 0 | FO2: 0 | FP2: 0 | FQ2: 0 | FR2: 0 | FS2: 0 | FT2: 0 | FU2: =SUBTOTAL(3,FU15:FU3551) -> 0 | FV2: =SUBTOTAL(9,FV15:FV3551) -> 0 | FW2: 0 | FX2: 0 | FY2: 0 | FZ2: 0 | GA2: 0 | GB2: 0 | GC2: 0 | GD2: 0 | GE2: 0 | GF2: 0 | GG2: =SUBTOTAL(3,GG15:GG3551) -> 0 | GH2: =SUBTOTAL(9,GH15:GH3551) -> 0 | GI2: 0 | GJ2: 0 | GK2: 0 | GL2: 2 | GM2: 0 | GN2: 0 | GO2: 0 | GP2: 0 | GQ2: 0 | GR2: 0 | GS2: 0 | GT2: 0 | GU2: =SUBTOTAL(3,GU15:GU3551) -> 1 | GV2: =SUBTOTAL(3,GV15:GV3551) -> 1 | GW2: =SUBTOTAL(3,GW15:GW3551) -> 0 | GX2: =SUBTOTAL(9,GX15:GX3551) -> 0 | GY2: =SUBTOTAL(9,GY15:GY3551) -> 0 | GZ2: =SUBTOTAL(9,GZ15:GZ3551) -> 0 | HA2: =SUBTOTAL(9,HA15:HA3551) -> 0 | HB2: =SUBTOTAL(3,HB15:HB3551) -> 1 | HC2: =SUBTOTAL(3,HC15:HC3551) -> 1 | HD2: =SUBTOTAL(3,HD15:HD3551) -> 0 | HE2: =SUBTOTAL(9,HE15:HE3551) -> 1 | HF2: =SUBTOTAL(9,HF15:HF3551) -> 5000 | HG2: =SUBTOTAL(9,HG15:HG3551) -> 0 | HH2: =SUBTOTAL(9,HH15:HH3551) -> 0 | HI2: =SUBTOTAL(3,HI15:HI3551) -> 1 | HJ2: =SUBTOTAL(3,HJ15:HJ3551) -> 1 | HK2: =SUBTOTAL(3,HK15:HK3551) -> 0 | HL2: =SUBTOTAL(9,HL15:HL3551) -> 1 | HM2: =SUBTOTAL(9,HM15:HM246551) -> 0 | HN2: =SUBTOTAL(9,HN15:HN246551) -> 451833 | HO2: =SUBTOTAL(9,HO15:HO246551) -> 0 | HP2: =SUBTOTAL(9,HP15:HP246551) -> 251833 | HQ2: =HP2/HN2 -> 0.5573585816 | HR2: =SUBTOTAL(9,HR15:HR3551) -> 200000 | HS2: 0 | HT2: 451833 | HU2: 0 | HV2: 4000000 | HW2: 300000 | HX2: 30000 | HY2: 1000000 | HZ2: 800000 | IA2: 500000 | IB2: 500000 | IC2: 600000 | ID2: 30000 | IE2: 20000 | IF2: 100000 | IG2: 20000 | IH2: 100000 | II2: 0 | IJ2: 0 | IK2: 0 | IL2: =COUNTIF(IL15:IL3551,">0") -> 1 | IM2: =SUBTOTAL(9,IM15:IM3551) -> 1 | IN2: 1 | IO2: 0 | IP2: 0 | IQ2: 0 | IR2: 0 | IS2: 0 | IT2: 0 | IU2: 0 | IV2: 0 | IW2: =COUNTIF(IW15:IW3551,">0") -> 1 | IX2: =SUBTOTAL(9,IX15:IX3551) -> 1 | IY2: =SUBTOTAL(9,IY15:IY3551) -> 1 | IZ2: =SUBTOTAL(9,IZ15:IZ3551) -> 1 | JA2: =COUNTIF(JA15:JA3551,">0") -> 1 | JB2: =SUBTOTAL(9,JB15:JB3551) -> 1 | JC2: 0 | JD2: 0 | JE2: 1 | JF2: 0 | JG2: 0 | JH2: 1 | JI2: 0 | JJ2: 1 | JK2: 0 | JL2: =COUNTIF(JL15:JL3551,">0") -> 1 | JM2: =SUBTOTAL(9,JM15:JM3551) -> 1 | JN2: =SUBTOTAL(9,JN15:JN3551) -> 1 | JO2: =SUBTOTAL(9,JO15:JO3551) -> 0 | JP2: =SUBTOTAL(9,JP15:JP3551) -> 0 | JQ2: =SUBTOTAL(9,JQ15:JQ3551) -> 0 | JR2: =COUNTIF(JR15:JR3551,">0") -> 1 | JS2: =SUBTOTAL(9,JS15:JS3551) -> 1 | JT2: 0 | JU2: 0 | JV2: 0 | JW2: 0 | JX2: 0 | JY2: 0 | JZ2: 1 | KA2: 0 | KB2: 0 | KC2: =SUBTOTAL(3,KC15:KC3551) -> 1 | KD2: =COUNTIF(KD15:KD3551,">0") -> 0 | KE2: =COUNTIF(KE15:KE3551,">0") -> 1 | KF2: =COUNTIF(KF15:KF3551,">0") -> 1 | KG2: =COUNTIF(KG15:KG3551,">0") -> 1 | KH2: =SUBTOTAL(9,KH15:KH3551) -> 0 | KI2: 3 | KJ2: 378.52 | KK2: 1 | KL2: 1 | KM2: 0 | KN2: 1 | KO2: 0 | KP2: 1 | KQ2: 0 | KR2: =SUBTOTAL(3,KR15:KR3551) -> 1 | KS2: =SUBTOTAL(9,KS15:KS3551) -> 1 | KT2: 0 | KU2: 0 | KV2: 0 | KW2: 1 | KX2: 1 | LB2: =SUBTOTAL(9,LB15:LB3551) -> 0 | LC2: =SUBTOTAL(3,LC15:LC3551) -> 1 | LD2: =SUBTOTAL(9,LD15:LD3551) -> 1 | LE2: 1 | LF2: 0 | LG2: 0 | LH2: 0 | LI2: 0 | LJ2: 0 | LK2: 1 | LL2: 0 | LM2: 0 | LN2: 0 | LO2: 0 | LP2: 0 | LQ2: =SUBTOTAL(3,LQ15:LQ3551) -> 1 | LR2: =SUBTOTAL(9,LR15:LR3551) -> 3 | LS2: 375.82 | LT2: 0 | LU2: 1 | LV2: 0 | LW2: 1 | LX2: 0 | LY2: =SUBTOTAL(3,LY15:LY3551) -> 1 | LZ2: =SUBTOTAL(9,LZ15:LZ3551) -> 1 | MA2: 0 | MB2: 1 | MC2: 0 | MD2: 1 | ME2: 1 | MF2: 1 | MG2: =SUBTOTAL(3,MG15:MG3551) -> 1 | MH2: =SUBTOTAL(3,MH15:MH3551) -> 1 | MN2: =SUBTOTAL(9,MN15:MN3551) -> 0
A4: ①協定識別事項 | K4: ②協定参加者 | AE4: ③協定締結面積 | EK4: ④加算措置（加算面積、加算金額） | HL4: ⑤交付金額 | IL4: ⑥活動内容（全協定共通） | KD4: ⑦活動内容（体制整備単価） | OB4: 備考欄
A5: 協定識別コード | B5: 都道府県名 | C5: 市町村名 | D5: 地方公共団体コード | E5: 個別協定名 | G5: 協定識別コード重複確認セル | H5: 協定の所在地 | I5: 協定認定年度（交付開始年度） | J5: 複数の市町村にまたがる協定の事項 | K5: 協定参加者総計 | AE5: 地域区分 | AF5: 協定締結面積総計 | AG5: 通常・特認地域別、地目別及び交付基準別協定締結面積 | DP5: 本体交付金交付額（円） | DR5: 協定農用地の一部を除外した場合の理由、面積 | EC5: 協定締結面積［50］うち既荒廃農地の復旧面積 | EH5: 協定締結面積［50］うち自然災害を受けている農用地の復旧面積 | EJ5: 協定に含めない管理すべき荒廃農地の管理面積 | EK5: Ⅰ 棚田地域振興活動加算 | FF5: Ⅱ 超急傾斜農地保全管理加算 | GH5: Ⅲ ネットワーク化加算 | GX5: Ⅳ スマート農業加算 | HE5: Ⅴ 集落機能強化加算の経過措置 | HL5: 交付単価区分 | HN5: 交付金額（円） | HR5: 個人配分額（円） | HS5: 交付金の使途 | IL5: 農業生産活動等として取り組むべき事項 | JL5: 集落マスタープラン | KD5: 農業生産活動等の体制整備として取り組むべき事項
F6: 協定整理 番号 | M6: 農業者（人） | N6: 農業法人数 | O6: 農業生産組織数 | P6: 土地改良区 | Q6: 水利組合 | R6: 非農業者（人） | S6: その他 | T6: 協定参加者の年齢区分別計 | U6: 39歳以下 | V6: 40～44歳 | W6: 45～49歳 | X6: 50～54歳 | Y6: 55～59歳 | Z6: 60～64歳 | AA6: 65～69歳 | AB6: 70～74歳 | AC6: 75～79歳 | AD6: 80歳以上 | AG6: 通常地域+特認地域 | DQ6: うち国費（円） | DR6: 協定農用地の一部除外面積の合計 | DS6: 交付金の返還を伴うもの | DY6: 交付金の返還が免責されるもの | EQ6: （超急傾斜地棚田加算）（田1/10以上、畑20度以上） | HO6: うち国費 | HP6: 共同取組活動充当額（円） | HS6: 前年度末積立等残額（円） | HT6: 今年度交付額と前年度末積立等残高の計（円） | HU6: 個人配分支出総額（円） | HV6: 共同取組活動支出総額（円） | HW6: 役員報酬 | HX6: 研修会等費 | HY6: 道・水路管理費 | HZ6: 農地管理費 | IA6: 鳥獣被害防止対策費 | IB6: 共同利用機械購入等費 | IC6: 共同利用施設整備等費 | ID6: 多面的機能増進活動費 | IE6: 土地利用調整関係費 | IF6: 法人設立関係費 | IG6: 農産物等の販売促進関係費 | IH6: 都市住民との交流促進関係費 | II6: その他 | IJ6: 積立等計 | IL6: Ⅰ必須事項（農業生産活動等） | JA6: Ⅱ選択的必須事項（多面的機能を増進する活動） | JL6: 目指すべき将来像のチェック | JM6: 目指すべき将来像 | JR6: 活動方策のチェック | JS6: 将来像を実現するための活動方策 | KD6: ネットワーク化活動計画の作成状況 | KE6: 1-3.体制整備のために行おうとする取組 | KH6: 2.ネットワーク化の計画 | LQ6: 3.統合の計画 | MO6: 4.多様な組織の参画
L7: うち 中核的リーダー（人） | AG7: 田面積計 | AN7: 畑面積計 | AU7: 草地面積計 | BC7: 採草放牧地面積計 | BI7: 通常地域 | CL7: 特認地域 | EC7: 既荒廃農地の復旧面積計 | EH7: 自然災害を受けている農用地の復旧面積計 | EK7: 取組状況 （実施している場合：1） | EL7: 加算面積 | EO7: 加算金額（円） | EQ7: 取組状況 （実施している場合：1） | ER7: 加算面積 | EU7: 加算金額（円） | EW7: 棚田等の保全 | EZ7: 棚田等の保全を通じた多面にわたる機能の維持・発揮 | FC7: 棚田を核とした棚田地域の振興 | FF7: 取組状況 （実施している場合：1） | FG7: 加算面積計 | FJ7: 加算金額 | FL7: 超急傾斜農地の保全 | FV7: 超急傾斜農地で生産される農産物の販売促進等 | GH7: 取組状況 （実施している場合：1） | GI7: 加算面積計 | GJ7: 加算金額 | GL7: ネットワーク化する集落協定数 | GM7: 統合する集落協定数 | GN7: 人材確保者数 | GQ7: 確保された人材が担う地域活動 | GU7: ネットワーク化・統合等により実現する農業生産活動等の継続のための取組 | GX7: 取組状況 （実施している場合：1） | GY7: 加算面積計 | GZ7: 加算金額 | HB7: スマート農業による作業の省力化・効率化を図る取組 | HE7: 取組状況 （実施している場合：1） | HF7: 加算面積計 | HG7: 加算金額 | HI7: 新たな人材の確保に関する取組又は集落機能を強化する取組 | HL7: 体制整備単価 | HM7: 基礎 単価 | HQ7: 共同取組活動充当割合（％） | IK7: うち繰越 | IL7: １ 耕作放棄の防止等の活動 | IW7: 適正な道・水路等の管理活動（項目数） | IX7: ２ 水路、農道等の管理活動 | JA7: 適正な多面的機能の維持・増進活動（項目数） | JB7: ① 周辺林地の下草刈 | JC7: ② 棚田オーナー制度、市民農園等の開設・運営 | JD7: ③ 景観作物の作付け | JE7: ④土壌流亡に配慮した営農 | JF7: ⑤ 体験民宿（グリーン・ツーリズム） | JG7: ⑥ 魚類・昆虫類の保護 | JH7: ⑦ 鳥類の餌場の確保 | JI7: ⑧ 粗放的畜産 | JJ7: ⑨ 堆きゅう肥の施肥、拮抗作物の利用、合鴨・鯉の利用、輪作の徹底、緑肥作物の作付 | JK7: ⑩ その他活動 | JM7: ① 将来にわたり農業生産活動等が可能となる集落内の実施体制構築 | JN7: ② 協定の担い手となる新たな人材の育成・確保 | JO7: ③ 協定参加者それぞれが、作物生産、加工・直売等様々な工夫により再生可能な所得を確保 | JP7: ④ その他 | JS7: ① 機械・農作業の共同化等営農組織の育成 | JT7: ② 高付加価値型農業 | JU7: ③ 農業生産条件の強化 | JV7: ④ 担い手への農地集積 | JW7: ⑤ 担い手への農作業の委託 | JX7: ⑥ 新規就農者等による農業生産 | JY7: ⑦ 地場産農産物等の加工・販売 | JZ7: ⑧ 消費・出資の呼び込み | KA7: ⑨ 共同で支え合う集団的かつ持続的な体制整備 | KB7: ⑩ その他 | KD7: 「1」：集落協定においてネットワーク化活動計画を作成中 「2」：ネットワーク化活動計画を市町村に提出済み | KE7: ①ネットワーク化 | KF7: ②統合 | KG7: ③多様な組織の参画 | KH7: ネットワークの名称（予定） | KI7: ネットワーク化に参加する集落協定 | KK7: ネットワーク化で解決しようとする課題 | KS7: ネットワーク化により連携して実施する活動 | LD7: 連携方法 | LI7: 工程 | LJ7: ネットワーク化後の統合予定 | LQ7: 統合後の集落協定の名称（予定） | LR7: 統合に参加する集落協定 | LT7: 統合で解決しようとする課題 | MB7: 統合により体制を強化したい活動 | MN7: 工程 | MO7: 農業者団体以外の組織 | NJ7: 非農業者 | NM7: 多様な組織等の参画で解決しようとする課題 | NS7: 多様な組織等の参画により連携して実施する活動
AH8: 急傾斜 | AI8: 緩傾斜 | AJ8: 高齢化率・耕作放棄率 | AK8: 小区画不整形 | AL8: 特認基準 | AM8: 交付対象外 | AO8: 急傾斜 | AP8: 緩傾斜 | AQ8: 高齢化率・耕作放棄率 | AR8: 特認基準 | AS8: 交付対象外（田畑混在地） | AT8: 交付対象外（田畑混在地以外） | AV8: 急傾斜 | AW8: 緩傾斜 | AX8: 草地比率の高い草地 | AY8: 高齢化率・耕作放棄率 | AZ8: 特認基準 | BA8: 交付対象外（田草地混在地） | BB8: 交付対象外（田草地混在地以外） | BD8: 急傾斜 | BE8: 緩傾斜 | BF8: 特認基準 | BG8: 交付対象外（田採草放牧地混在） | BH8: 交付対象外（田採草放牧地混在以外） | BI8: 通常地域面積計 | BJ8: 田面積計（通常地域） | BK8: 通常地域 田 交付基準別 | BQ8: 畑面積計（通常地域） | BR8: 通常地域 畑 交付基準別 | BX8: 草地面積計（通常地域） | BY8: 通常地域 草地 交付基準別 | CF8: 採草放牧地面積計（通常地域） | CG8: 通常地域 採草放牧地 交付基準別 | CL8: 特認地域の基準区分 | CM8: 特認地域面積計 | CN8: 田面積計（特認地域） | CO8: 特認地域 田 交付基準別 | CU8: 畑面積計（特認地域） | CV8: 特認地域 畑 交付基準別 | DB8: 草地面積計（特認地域） | DC8: 特認地域 草地 交付基準別 | DJ8: 採草放牧地面積計（特認地域） | DK8: 特認地域 採草放牧地 交付基準別 | DS8: 耕作又は維持管理が行われなかった | DX8: 荒廃農地等の復旧が行われなかった | DY8: 農業者の死亡、病気、高齢等 | DZ8: 自然災害 | EA8: 土地収用法に基づく収容、使用 | EB8: 農業用施設用地等への転用 | ED8: うち復旧済面積 | EE8: 復旧面積（計画） | EI8: うち復旧済面積 | EM8: 地目別面積 | EP8: うち国費（円） | ES8: 地目別面積 | EV8: うち国費（円） | FH8: 地目別面積 | FK8: うち国費 | FL8: 法面の維持・補修 | FM8: 耕作道、ほ場進入路等の維持 | FN8: 作業足場の設置、ほ場進入路の改良等 | FO8: 土壌流入、土壌流出の防止 | FP8: 農薬散布等の施設の整備 | FQ8: 共同防除体制の構築 | FR8: 鳥獣害防止施設の維持 | FS8: 鳥獣害防止施設の設置 | FT8: その他 | FV8: 共通パッケージの作成 | FW8: パンフレットの作成 | FX8: 農産物の加工 | FY8: 直売所等での販売 | FZ8: ブランド化 | GA8: 景観作物の植栽 | GB8: 環境に配慮した農業 | GC8: 都市住民との交流 | GD8: 施設の設置・運営 | GE8: 棚田オーナー制度 | GF8: その他 | GK8: うち国費 | GO8: 集落内からの人材確保者数 | GP8: 集落外からの人材確保者数 | GR8: 集落協定組織の活動 | GS8: 農業生産組織の活動 | GT8: 加工・販売組織の活動 | HA8: うち国費 | HH8: うち国費 | IL8: 適正な耕作放棄の防止等の活動（項目数） | IM8: 多面的機能支払交付金と同一施設 | IN8: ① 賃借権設定・農作業の委託 | IO8: ② 既荒廃農用地の復旧・林地化・畜産的利用 | IP8: ③ 既荒廃農用地の保全管理 | IQ8: ④ 農地の法面管理 | IR8: ⑤ 柵、ネットの設置等鳥獣被害防止 | IS8: ⑥ 簡易な基盤整備 | IT8: ⑦ 担い手の確保 | IU8: ⑧ 地場農産物の加工・販売 | IV8: ⑨ その他（土地改良事業、災害復旧、地目変更等） | IX8: ① 水路の管理 | IY8: ② 農道の管理 | IZ8: ③ その他の施設の管理 | JQ8: その他の内容 | KC8: その他の内容 | KI8: ネットワーク化する協定数（自協定含む） | KJ8: 協定面積計（自協定含む） | KK8: ①リーダーの人材不足 | KL8: ②事務担当者の人材不足 | KM8: ③共同取組活動参加者の不足 | KN8: ④農業の担い手の人材不足 | KO8: ⑤農作業機械や施設の不足 | KP8: ⑥知見や技術の不足 | KQ8: ⑦その他 | KS8: ①事務の一元化（共同事務局の設置や 外部委託） | KT8: ②農地保全（草刈り、荒廃防止活動 等） | KU8: ③水路・農道等の維持管理 | KV8: ④機械・施設の共同利用 | KW8: ⑤農作業の共同化 | KX8: ⑥農業の担い手育成 | KY8: ⑦地場農産物の加工・販売 | KZ8: ⑧鳥獣害対策 | LA8: ⑨多面的機能を増進する活動 | LB8: ⑩その他 | LD8: ①協議会型 | LE8: ②活動連携型 | LF8: ③共同委託型 | LG8: ⑩その他 | LI8: ネットワーク化により連携して実施する活動の開始時期 | LJ8: ①第６期対策期間中（令和７年度～令和11 年度）での統合を検討する | LK8: ②第６期対策終了後の令和12 年度以降での統合を検討する | LL8: ③時期は未定だが将来的に統合を検討する | LM8: ④未定 | LN8: ⑤統合は必要ないと考えている | LO8: ⑥その他 | LR8: 統合する協定数（自協定含む） | LS8: 協定面積計（自協定含む） | LT8: ①リーダーの人材不足 | LU8: ②事務担当者の人材不足 | LV8: ③共同取組活動参加者の不足 | LW8: ④農業の担い手の人材不足 | LX8: ⑤農作業機械や施設の不足 | LY8: ⑥知見や技術の不足 | LZ8: ⑦その他 | MB8: ①リーダー等の人材確保 | MC8: ②事務局機能の強化 | MD8: ③農地保全（草刈り、荒廃防止活動 等） | ME8: ④水路・農道等の維持管理 | MF8: ⑤機械・施設の共同利用 | MG8: ⑥農作業の共同化 | MH8: ⑦農業の担い手育成 | MI8: ⑧地場農産物の加工・販売 | MJ8: ⑨鳥獣害対策 | MK8: ⑩多面的機能を増進する活動 | ML8: ⑪その他 | MN8: 統合の時期 | MO8: 参画組織数計 | MP8: 集落協定の構成員の組織 | MZ8: 別途協定等を締結 | NJ8: 非農業者数 | NM8: ①事務担当者の人材不足 | NN8: ②共同取組活動参加者の不足 | NO8: ③農業作業の人材不足 | NP8: ④知見や技術の不足 | NQ8: ⑥その他 | NS8: ①事務の適切な実施 | NT8: ②農地保全（草刈り、荒廃防止活動 等） | NU8: ③水路・農道等の維持管理 | NV8: ④農作業 | NW8: ⑤地場農産物の加工・販売 | NX8: ⑥鳥獣害対策 | NY8: ⑦多面的機能を増進する活動 | NZ8: ⑧その他
BK9: 急傾斜 | BL9: 緩傾斜 | BM9: 高齢化率・耕作放棄率 | BN9: 小区画不整形 | BO9: 特認基準 | BP9: 交付対象外 | BR9: 急傾斜 | BS9: 緩傾斜 | BT9: 高齢化率・耕作放棄率 | BU9: 特認基準 | BV9: 交付対象外(田畑混在地) | BW9: 交付対象外(田畑混在地以外) | BY9: 急傾斜 | BZ9: 緩傾斜 | CA9: 草地比率の高い草地 | CB9: 高齢化率・耕作放棄率 | CC9: 特認基準 | CD9: 交付対象外(田草地混在地) | CE9: 交付対象外(田草地混在地以外) | CG9: 急傾斜 | CH9: 緩傾斜 | CI9: 特認基準 | CJ9: 交付対象外（田採草放牧地混在） | CK9: 交付対象外（田採草放牧地混在以外） | CO9: 急傾斜 | CP9: 緩傾斜 | CQ9: 高齢化率・耕作放棄率 | CR9: 小区画不整形 | CS9: 特認基準 | CT9: 交付対象外 | CV9: 急傾斜 | CW9: 緩傾斜 | CX9: 高齢化率・耕作放棄率 | CY9: 特認基準 | CZ9: 交付対象外(田畑混在地) | DA9: 交付対象外(田畑混在地以外 | DC9: 急傾斜 | DD9: 緩傾斜 | DE9: 草地比率の高い草地 | DF9: 高齢化率・耕作放棄率 | DG9: 特認基準 | DH9: 交付対象外(田草地混在地) | DI9: 交付対象外(田草地混在地以外) | DK9: 急傾斜 | DL9: 緩傾斜 | DM9: 特認基準 | DN9: 交付対象外（田採草放牧地混在地） | DO9: 交付対象外（田採草放牧地混在地以外） | DT9: 耕作放棄によるもの | DU9: 転用によるもの | DV9: その他 | EE9: 田面積 | EF9: 畑面積 | EG9: 草地面積 | EM9: 田面積 | EN9: 畑面積 | ES9: 田面積 | ET9: 畑面積 | EW9: 目標 | EX9: 目標年度 | EY9: 達成状況 | EZ9: 目標 | FA9: 目標年度 | FB9: 達成状況 | FC9: 目標 | FD9: 目標年度 | FE9: 達成状況 | FH9: 田面積 | FI9: 畑面積 | FU9: その他の内容 | GG9: その他の内容 | GU9: 目標 | GV9: 目標年度 | GW9: 達成状況 | HB9: 目標 | HC9: 目標年度 | HD9: 達成状況 | HI9: 目標 | HJ9: 目標年度 | HK9: 達成状況 | KR9: その他の内容 | LC9: その他の内容 | LH9: その他の内容 | LP9: その他の内容 | MA9: その他の内容 | MM9: その他の内容 | MP9: 集落協定の構成員の組織数 | MQ9: 自治会・町内会 | MR9: 地域づくり協議会・地域運営組織 | MS9: 社会福祉協議会 | MT9: 企業 | MU9: NPO | MV9: 学校 （小学校、中学校、高校、大学） | MW9: 土地改良区 | MX9: 多面的機能支払活動組織 （保全会） | MY9: その他 | MZ9: 別途協定等を締結する組織数 | NA9: 自治会・町内会 | NB9: 地域づくり協議会・地域運営組織 | NC9: 社会福祉協議会 | ND9: 企業 | NE9: NPO | NF9: 学校 （小学校、中学校、高校、大学） | NG9: 土地改良区 | NH9: 多面的機能支払活動組織 （保全会） | NI9: その他 | NK9: 集落協定の構成員のうち非農業者 | NL9: 別途協定等を締結した組織の構成員のうち非農業者 | NR9: その他の内容 | OA9: その他の内容
DW10: その他の内容
A13: 1 | B13: =A13+1 -> 2 | C13: =B13+1 -> 3 | D13: =C13+1 -> 4 | E13: =D13+1 -> 5 | F13: =E13+1 -> 6 | H13: =F13+1 -> 7 | I13: =H13+1 -> 8 | J13: 9 | K13: 10 | L13: 11 | M13: 12 | N13: 13 | O13: 14 | P13: 15 | Q13: 16 | R13: 17 | S13: 18 | T13: 19 | U13: 20 | V13: 21 | W13: 22 | X13: 23 | Y13: 24 | Z13: 25 | AA13: 26 | AB13: 27 | AC13: 28 | AD13: 29 | AE13: 30 | AF13: 31 | AG13: 32 | AH13: 33 | AI13: 34 | AJ13: 35 | AK13: 36 | AL13: 37 | AM13: 38 | AN13: 39 | AO13: 40 | AP13: 41 | AQ13: 42 | AR13: 43 | AS13: 44 | AT13: 45 | AU13: 46 | AV13: 47 | AW13: 48 | AX13: 49 | AY13: 50 | AZ13: 51 | BA13: 52 | BB13: 53 | BC13: 54 | BD13: 55 | BE13: 56 | BF13: 57 | BG13: 58 | BH13: 59 | BI13: 60 | BJ13: 61 | BK13: 62 | BL13: 63 | BM13: 64 | BN13: 65 | BO13: 66 | BP13: 67 | BQ13: 68 | BR13: 69 | BS13: 70 | BT13: 71 | BU13: 72 | BV13: 73 | BW13: 74 | BX13: 75 | BY13: 76 | BZ13: 77 | CA13: 78 | CB13: 79 | CC13: 80 | CD13: 81 | CE13: 82 | CF13: 83 | CG13: 84 | CH13: 85 | CI13: 86 | CJ13: 87 | CK13: 88 | CL13: 89 | CM13: 90 | CN13: 91 | CO13: 92 | CP13: 93 | CQ13: 94 | CR13: 95 | CS13: 96 | CT13: 97 | CU13: 98 | CV13: 99 | CW13: 100 | CX13: 101 | CY13: 102 | CZ13: 103 | DA13: 104 | DB13: 105 | DC13: 106 | DD13: 107 | DE13: 108 | DF13: 109 | DG13: 110 | DH13: 111 | DI13: 112 | DJ13: 113 | DK13: 114 | DL13: 115 | DM13: 116 | DN13: 117 | DO13: 118 | DP13: 119 | DQ13: 120 | DR13: 121 | DS13: 122 | DT13: 123 | DU13: 124 | DV13: 125 | DW13: 126 | DX13: 127 | DY13: 128 | DZ13: 129 | EA13: 130 | EB13: 131 | EC13: 132 | ED13: 133 | EE13: 134 | EF13: 135 | EG13: 136 | EH13: 137 | EI13: 138 | EJ13: 139 | EK13: 140 | EL13: 141 | EM13: 142 | EN13: 143 | EO13: 144 | EP13: 145 | EQ13: 146 | ER13: 147 | ES13: 148 | ET13: 149 | EU13: 150 | EV13: 151 | EW13: 152 | EX13: 153 | EY13: 154 | EZ13: 155 | FA13: 156 | FB13: 157 | FC13: 158 | FD13: 159 | FE13: 160 | FF13: 161 | FG13: 162 | FH13: 163 | FI13: 164 | FJ13: 165 | FK13: 166 | FL13: 167 | FM13: 168 | FN13: 169 | FO13: 170 | FP13: 171 | FQ13: 172 | FR13: 173 | FS13: 174 | FT13: 175 | FU13: 176 | FV13: 177 | FW13: 178 | FX13: 179 | FY13: 180 | FZ13: 181 | GA13: 182 | GB13: 183 | GC13: 184 | GD13: 185 | GE13: 186 | GF13: 187 | GG13: 188 | GH13: 189 | GI13: 190 | GJ13: 191 | GK13: 192 | GL13: 193 | GM13: 194 | GN13: 195 | GO13: 196 | GP13: 197 | GQ13: 198 | GR13: 199 | GS13: 200 | GT13: 201 | GU13: 202 | GV13: 203 | GW13: 204 | GX13: 205 | GY13: 206 | GZ13: 207 | HA13: 208 | HB13: 209 | HC13: 210 | HD13: 211 | HE13: 212 | HF13: 213 | HG13: 214 | HH13: 215 | HI13: 216 | HJ13: 217 | HK13: 218 | HL13: 219 | HM13: 220 | HN13: 221 | HO13: 222 | HP13: 223 | HQ13: 224 | HR13: 225 | HS13: 226 | HT13: 227 | HU13: 228 | HV13: 229 | HW13: 230 | HX13: 231 | HY13: 232 | HZ13: 233 | IA13: 234 | IB13: 235 | IC13: 236 | ID13: 237 | IE13: 238 | IF13: 239 | IG13: 240 | IH13: 241 | II13: 242 | IJ13: 243 | IK13: 244 | IL13: 245 | IM13: 246 | IN13: 247 | IO13: 248 | IP13: 249 | IQ13: 250 | IR13: 251 | IS13: 252 | IT13: 253 | IU13: 254 | IV13: 255 | IW13: 256 | IX13: 257 | IY13: 258 | IZ13: 259 | JA13: 260 | JB13: 261 | JC13: 262 | JD13: 263 | JE13: 264 | JF13: 265 | JG13: 266 | JH13: 267 | JI13: 268 | JJ13: 269 | JK13: 270 | JL13: 271 | JM13: 272 | JN13: 273 | JO13: 274 | JP13: 275 | JQ13: 276 | JR13: 277 | JS13: 278 | JT13: 279 | JU13: 280 | JV13: 281 | JW13: 282 | JX13: 283 | JY13: 284 | JZ13: 285 | KA13: 286 | KB13: 287 | KC13: 288 | KD13: 289 | KE13: 290 | KF13: 291 | KG13: 292 | KH13: 293 | KI13: 294 | KJ13: 295 | KK13: 296 | KL13: 297 | KM13: 298 | KN13: 299 | KO13: 300 | KP13: 301 | KQ13: 302 | KR13: 303 | KS13: 304 | KT13: 305 | KU13: 306 | KV13: 307 | KW13: 308 | KX13: 309 | KY13: 310 | KZ13: 324 | LA13: 325 | LB13: =KX13+1 -> 310 | LC13: =LB13+1 -> 311 | LD13: 312 | LE13: 313 | LF13: 314 | LG13: 315 | LH13: 316 | LI13: 317 | LJ13: 318 | LK13: 319 | LL13: 320 | LM13: 321 | LN13: 322 | LO13: 323 | LP13: 324 | LQ13: 325 | LR13: 326 | LS13: 327 | LT13: 328 | LU13: 329 | LV13: 330 | LW13: 331 | LX13: 332 | LY13: 333 | LZ13: 334 | MA13: 335 | MB13: 336 | MC13: 337 | MD13: 338 | ME13: 339 | MF13: 340 | MG13: 341 | MH13: 342 | MI13: 343 | MJ13: 344 | MK13: 345 | ML13: 346 | MM13: 347 | MN13: 348 | MO13: 349 | MP13: 350 | MQ13: 351 | MR13: 352 | MS13: 353 | MT13: 354 | MU13: 355 | MV13: 356 | MW13: 357 | MX13: 358 | MY13: 359 | MZ13: 360 | NA13: 361 | NB13: 362 | NC13: 363 | ND13: 364 | NE13: 365 | NF13: 366 | NG13: 367 | NH13: 368 | NI13: 369 | NJ13: 370 | NK13: 371 | NL13: 372 | NM13: 373 | NN13: 374 | NO13: 375 | NP13: 376 | NQ13: 377 | NR13: 378 | NS13: 379 | NT13: 380 | NU13: 381 | NV13: 382 | NW13: 383 | NX13: 384 | NY13: 385 | NZ13: 386 | OA13: 387 | OB13: 388
A14: 整数 | B14: 自動入力 | C14: 自動入力 | D14: 自動入力 | E14: 自動入力 | F14: 自動入力 | G14: 自動入力 | H14: 文字 | I14: リスト | J14: 文字 | K14: 自動入力 | L14: 整数 | M14: 整数 | N14: 整数 | O14: 整数 | P14: 整数 | Q14: 整数 | R14: 整数 | S14: 整数 | T14: 自動入力 | U14: 整数 | V14: 整数 | W14: 整数 | X14: 整数 | Y14: 整数 | Z14: 整数 | AA14: 整数 | AB14: 整数 | AC14: 整数 | AD14: 整数 | AE14: 自動入力 | AF14: 自動入力 | AG14: 自動入力 | AH14: 自動入力 | AI14: 自動入力 | AJ14: 自動入力 | AK14: 自動入力 | AL14: 自動入力 | AM14: 自動入力 | AN14: 自動入力 | AO14: 自動入力 | AP14: 自動入力 | AQ14: 自動入力 | AR14: 自動入力 | AS14: 自動入力 | AT14: 自動入力 | AU14: 自動入力 | AV14: 自動入力 | AW14: 自動入力 | AX14: 自動入力 | AY14: 自動入力 | AZ14: 自動入力 | BA14: 自動入力 | BB14: 自動入力 | BC14: 自動入力 | BD14: 自動入力 | BE14: 自動入力 | BF14: 自動入力 | BG14: 自動入力 | BH14: 自動入力 | BI14: 自動入力 | BJ14: 自動入力 | BK14: 整数 | BL14: 整数 | BM14: 整数 | BN14: 整数 | BO14: 整数 | BP14: 整数 | BQ14: 自動入力 | BR14: 整数 | BS14: 整数 | BT14: 整数 | BU14: 整数 | BV14: 整数 | BW14: 整数 | BX14: 自動入力 | BY14: 整数 | BZ14: 整数 | CA14: 整数 | CB14: 整数 | CC14: 整数 | CD14: 整数 | CE14: 整数 | CF14: 自動入力 | CG14: 整数 | CH14: 整数 | CI14: 整数 | CJ14: 整数 | CK14: 整数 | CL14: リスト | CM14: 自動入力 | CN14: 自動入力 | CO14: 整数 | CP14: 整数 | CQ14: 整数 | CR14: 整数 | CS14: 整数 | CT14: 整数 | CU14: 自動入力 | CV14: 整数 | CW14: 整数 | CX14: 整数 | CY14: 整数 | CZ14: 整数 | DA14: 整数 | DB14: 自動入力 | DC14: 整数 | DD14: 整数 | DE14: 整数 | DF14: 整数 | DG14: 整数 | DH14: 整数 | DI14: 整数 | DJ14: 自動入力 | DK14: 整数 | DL14: 整数 | DM14: 整数 | DN14: 整数 | DO14: 整数 | DP14: 整数 | DQ14: 整数 | DR14: 自動入力 | DS14: 整数 | DT14: 整数 | DU14: 整数 | DV14: 整数 | DW14: 文字 | DX14: 整数 | DY14: 整数 | DZ14: 整数 | EA14: 整数 | EB14: 整数 | EC14: 自動入力 | ED14: 整数 | EE14: 整数 | EF14: 整数 | EG14: 整数 | EH14: 整数 | EI14: 整数 | EJ14: 整数 | EK14: 自動入力 | EL14: 自動入力 | EM14: 整数 | EN14: 整数 | EO14: 整数 | EP14: 整数 | EQ14: 自動入力 | ER14: 自動入力 | ES14: 整数 | ET14: 整数 | EU14: 整数 | EV14: 整数 | EW14: 文字 | EX14: リスト | EY14: リスト | EZ14: 文字 | FA14: リスト | FB14: リスト | FC14: 文字 | FD14: リスト | FE14: リスト | FF14: 自動入力 | FG14: 自動入力 | FH14: 整数 | FI14: 整数 | FJ14: 整数 | FK14: 整数 | FL14: リスト | FM14: リスト | FN14: リスト | FO14: リスト | FP14: リスト | FQ14: リスト | FR14: リスト | FS14: リスト | FT14: リスト | FU14: 文字 | FV14: リスト | FW14: リスト | FX14: リスト | FY14: リスト | FZ14: リスト | GA14: リスト | GB14: リスト | GC14: リスト | GD14: リスト | GE14: リスト | GF14: リスト | GG14: 文字 | GH14: 自動入力 | GI14: 整数 | GJ14: 整数 | GK14: 整数 | GL14: 整数 | GM14: 整数 | GN14: 自動入力 | GO14: 整数 | GP14: 整数 | GQ14: 自動入力 | GR14: リスト | GS14: リスト | GT14: リスト | GU14: 文字 | GV14: リスト | GW14: リスト | GX14: 自動入力 | GY14: 自動入力 | GZ14: 整数 | HA14: 整数 | HB14: 文字 | HC14: リスト | HD14: リスト | HE14: 自動入力 | HF14: 自動入力 | HG14: 整数 | HH14: 整数 | HI14: 文字 | HJ14: リスト | HK14: リスト | HL14: リスト | HM14: リスト | HN14: 自動入力 | HO14: 自動入力 | HP14: 自動入力 | HQ14: 自動入力 | HR14: 整数 | HS14: 整数 | HT14: 自動入力 | HU14: 整数 | HV14: 自動入力 | HW14: 整数 | HX14: 整数 | HY14: 整数 | HZ14: 整数 | IA14: 整数 | IB14: 整数 | IC14: 整数 | ID14: 整数 | IE14: 整数 | IF14: 整数 | IG14: 整数 | IH14: 整数 | II14: 整数 | IJ14: 整数 | IK14: 整数 | IL14: 自動入力 | IM14: リスト | IN14: リスト | IO14: リスト | IP14: リスト | IQ14: リスト | IR14: リスト | IS14: リスト | IT14: リスト | IU14: リスト | IV14: リスト | IW14: 自動入力 | IX14: リスト | IY14: リスト | IZ14: リスト | JA14: 自動入力 | JB14: リスト | JC14: リスト | JD14: リスト | JE14: リスト | JF14: リスト | JG14: リスト | JH14: リスト | JI14: リスト | JJ14: リスト | JK14: リスト | JL14: 自動入力 | JM14: リスト | JN14: リスト | JO14: リスト | JP14: リスト | JQ14: 文字 | JR14: 自動入力 | JS14: リスト | JT14: リスト | JU14: リスト | JV14: リスト | JW14: リスト | JX14: リスト | JY14: リスト | JZ14: リスト | KA14: リスト | KB14: リスト | KC14: 文字 | KD14: リスト | KE14: リスト | KF14: リスト | KG14: リスト | KH14: 文字 | KI14: 整数 | KJ14: 整数 | KK14: リスト | KL14: リスト | KM14: リスト | KN14: リスト | KO14: リスト | KP14: リスト | KQ14: リスト | KR14: 文字 | KS14: リスト | KT14: リスト | KU14: リスト | KV14: リスト | KW14: リスト | KX14: リスト | KY14: リスト | KZ14: リスト | LA14: リスト | LB14: リスト | LC14: 文字 | LD14: リスト | LE14: リスト | LF14: リスト | LG14: リスト | LH14: リスト | LI14: リスト | LJ14: リスト | LK14: リスト | LL14: リスト | LM14: リスト | LN14: リスト | LO14: リスト | LP14: リスト | LQ14: 文字 | LR14: 整数 | LS14: 整数 | LT14: リスト | LU14: リスト | LV14: リスト | LW14: リスト | LX14: リスト | LY14: リスト | LZ14: リスト | MA14: 文字 | MB14: リスト | MC14: リスト | MD14: リスト | ME14: リスト | MF14: リスト | MG14: リスト | MH14: リスト | MI14: リスト | MJ14: リスト | MK14: リスト | ML14: リスト | MM14: 文字 | MN14: リスト | MO14: 自動入力 | MP14: 自動入力 | MQ14: 整数 | MR14: 整数 | MS14: 整数 | MT14: 整数 | MU14: 整数 | MV14: 整数 | MW14: 整数 | MX14: 整数 | MY14: 整数 | MZ14: 自動入力 | NA14: 整数 | NB14: 整数 | NC14: 整数 | ND14: 整数 | NE14: 整数 | NF14: 整数 | NG14: 整数 | NH14: 整数 | NI14: 整数 | NJ14: 自動入力 | NK14: 整数 | NL14: 整数 | NM14: リスト | NN14: リスト | NO14: リスト | NP14: リスト | NQ14: リスト | NR14: 文字 | NS14: リスト | NT14: リスト | NU14: リスト | NV14: リスト | NW14: リスト | NX14: リスト | NY14: リスト | NZ14: リスト | OA14: 文字 | OB14: 文字
B15: =はじめに!D3 -> ○○県 | C15: =はじめに!D4 -> △△市 | E15: =はじめに!D5 -> あいうえお集落協定 | G15: =IFERROR(D15*10000+F15,"") -> 0 | H15: =はじめに!D7 -> ○○県△△市○町 | I15: ='別紙１①'!E38 -> 7 | K15: =M15+N15+O15+P15+Q15+R15+S15 -> 11 | L15: ='別紙１④'!A33 -> 4 | M15: =COUNTIF('別紙１③'!H7:H19,"A")+COUNTIF('別紙１③'!H7:H19,"B") -> 3 | N15: =COUNTIF('別紙１③'!H7:H19,"C")+COUNTIF('別紙１③'!H7:H19,"D")+COUNTIF('別紙１③'!H7:H19,"E") -> 2 | O15: =COUNTIF('別紙１③'!H7:H19,"F")+COUNTIF('別紙１③'!H7:H19,"G")+COUNTIF('別紙１③'!H7:H19,"H")+COUNTIF('別紙１③'!H7:H19,"I") -> 4 | P15: =COUNTIF('別紙１③'!H7:H19,"J") -> 1 | Q15: =COUNTIF('別紙１③'!H7:H19,"K") -> 1 | R15: =COUNTIF('別紙１③'!H7:H19,"L") -> 0 | S15: =COUNTIF('別紙１③'!H7:H19,"M") -> 0 | T15: =U15+V15+W15+X15+Y15+Z15+AA15+AB15+AC15+AD15 -> 3 | U15: =COUNTIF('別紙１③'!I7:I19,"ア") -> 1 | V15: =COUNTIF('別紙１③'!I7:I19,"イ") -> 1 | W15: =COUNTIF('別紙１③'!I7:I19,"ウ") -> 1 | X15: =COUNTIF('別紙１③'!I7:I19,"エ") -> 0 | Y15: =COUNTIF('別紙１③'!I7:I19,"オ") -> 0 | Z15: =COUNTIF('別紙１③'!I7:I19,"カ") -> 0 | AA15: =COUNTIF('別紙１③'!I7:I19,"キ") -> 0 | AB15: =COUNTIF('別紙１③'!I7:I19,"ク") -> 0 | AC15: =COUNTIF('別紙１③'!I7:I19,"ケ") -> 0 | AD15: =COUNTIF('別紙１③'!I7:I19,"コ") -> 0 | AE15: =IF(CM15*BI15>0,"通特併存",IF(BI15<>0,"通常",IF(CM15<>0,"特認",IF(CM15*BI15=0,"")))) -> 通特併存 | AF15: =AG15+AN15+AU15+BC15 -> 34768 | AG15: =AH15+AI15+AJ15+AK15+AL15+AM15 -> 19115 | AH15: =BK15+CO15 -> 14397 | AI15: 1343 | AJ15: 1503 | AK15: 1872 | AL15: 0 | AM15: 0 | AN15: =AO15+AP15+AQ15+AR15+AS15+AT15 -> 12429 | AO15: =BR15+CV15 -> 1840 | AP15: 4925 | AQ15: 869 | AR15: 2034 | AS15: 1114 | AT15: 1647 | AU15: =AV15+AW15+AX15+AY15+AZ15+BA15+BB15 -> 2304 | AV15: =BY15+DC15 -> 1554 | AW15: 0 | AX15: 140 | AY15: 130 | AZ15: 150 | BA15: 170 | BB15: 160 | BC15: =BD15+BE15+BF15+BG15+BH15 -> 920 | BD15: =CG15+DK15 -> 430 | BE15: =CH15+DL15 -> 0 | BF15: =CI15+DM15 -> 0 | BG15: =CJ15+DN15 -> 240 | BH15: =CK15+DO15 -> 250 | BI15: =BJ15+BQ15+BX15+CF15 -> 24293 | BJ15: =BK15+BL15+BM15+BN15+BO15+BP15 -> 14669 | BK15: =SUMIFS('別紙２①'!$F18:$F105,'別紙２①'!$A18:$A105,"通常地域（8法内）",'別紙２①'!$E18:$E105,"田",'別紙２①'!$G18:$G105,"急傾斜")+SUMIFS('別紙２①'!$F18:$F105,'別紙２①'!$A18:$A105,"通常地域（8法以外で棚田法の交付対象農用地）",'別紙２①'!$E18:$E105,"田",'別紙２①'!$G18:$G105,"急傾斜") -> 11842 | BL15: =SUMIFS('別紙２①'!$F18:$F105,'別紙２①'!$A18:$A105,"通常地域（8法内）",'別紙２①'!$E18:$E105,"田",'別紙２①'!$G18:$G105,"緩傾斜")+SUMIFS('別紙２①'!$F18:$F105,'別紙２①'!$A18:$A105,"通常地域（8法以外で棚田法の交付対象農用地）",'別紙２①'!$E18:$E105,"田",'別紙２①'!$G18:$G105,"緩傾斜") -> 1343 | BM15: =SUMIFS('別紙２①'!$F18:$F105,'別紙２①'!$A18:$A105,"通常地域（8法内）",'別紙２①'!$E18:$E105,"田",'別紙２①'!$G18:$G105,"高齢化・耕作放棄率")+SUMIFS('別紙２①'!$F18:$F105,'別紙２①'!$A18:$A105,"通常地域（8法以外で棚田法の交付対象農用地）",'別紙２①'!$E18:$E105,"田",'別紙２①'!$G18:$G105,"高齢化・耕作放棄率") -> 591 | BN15: =SUMIFS('別紙２①'!$F18:$F105,'別紙２①'!$A18:$A105,"通常地域（8法内）",'別紙２①'!$E18:$E105,"田",'別紙２①'!$G18:$G105,"小区画・不整形")+SUMIFS('別紙２①'!$F18:$F105,'別紙２①'!$A18:$A105,"通常地域（8法以外で棚田法の交付対象農用地）",'別紙２①'!$E18:$E105,"田",'別紙２①'!$G18:$G105,"小区画・不整形") -> 893 | BO15: =SUMIFS('別紙２①'!$F18:$F105,'別紙２①'!$A18:$A105,"通常地域（8法内）",'別紙２①'!$E18:$E105,"田",'別紙２①'!$G18:$G105,"特認基準")+SUMIFS('別紙２①'!$F18:$F105,'別紙２①'!$A18:$A105,"通常地域（8法以外で棚田法の交付対象農用地）",'別紙２①'!$E18:$E105,"田",'別紙２①'!$G18:$G105,"特認基準") -> 0 | BP15: =SUMIFS('別紙２①'!$F18:$F105,'別紙２①'!$A18:$A105,"通常地域（8法内）",'別紙２①'!$E18:$E105,"田",'別紙２①'!$G18:$G105,"交付対象外")+SUMIFS('別紙２①'!$F18:$F105,'別紙２①'!$A18:$A105,"通常地域（8法以外で棚田法の交付対象農用地）",'別紙２①'!$E18:$E105,"田",'別紙２①'!$G18:$G105,"交付対象外") -> 0 | BQ15: =BR15+BS15+BT15+BU15+BV15+BW15 -> 8180 | BR15: =SUMIFS('別紙２①'!$F18:$F105,'別紙２①'!$A18:$A105,"通常地域（8法内）",'別紙２①'!$E18:$E105,"畑",'別紙２①'!$G18:$G105,"急傾斜")+SUMIFS('別紙２①'!$F18:$F105,'別紙２①'!$A18:$A105,"通常地域（8法以外で棚田法の交付対象農用地）",'別紙２①'!$E18:$E105,"畑",'別紙２①'!$G18:$G105,"急傾斜") -> 1840 | BS15: =SUMIFS('別紙２①'!$F18:$F105,'別紙２①'!$A18:$A105,"通常地域（8法内）",'別紙２①'!$E18:$E105,"畑",'別紙２①'!$G18:$G105,"緩傾斜")+SUMIFS('別紙２①'!$F18:$F105,'別紙２①'!$A18:$A105,"通常地域（8法以外で棚田法の交付対象農用地）",'別紙２①'!$E18:$E105,"畑",'別紙２①'!$G18:$G105,"緩傾斜") -> 1233 | BT15: =SUMIFS('別紙２①'!$F18:$F105,'別紙２①'!$A18:$A105,"通常地域（8法内）",'別紙２①'!$E18:$E105,"畑",'別紙２①'!$G18:$G105,"高齢化・耕作放棄率")+SUMIFS('別紙２①'!$F18:$F105,'別紙２①'!$A18:$A105,"通常地域（8法以外で棚田法の交付対象農用地）",'別紙２①'!$E18:$E105,"畑",'別紙２①'!$G18:$G105,"高齢化・耕作放棄率") -> 869 | BU15: =SUMIFS('別紙２①'!$F18:$F105,'別紙２①'!$A18:$A105,"通常地域（8法内）",'別紙２①'!$E18:$E105,"畑",'別紙２①'!$G18:$G105,"特認基準")+SUMIFS('別紙２①'!$F18:$F105,'別紙２①'!$A18:$A105,"通常地域（8法以外で棚田法の交付対象農用地）",'別紙２①'!$E18:$E105,"畑",'別紙２①'!$G18:$G105,"特認基準") -> 1477 | BV15: =SUMIFS('別紙２①'!$F18:$F105,'別紙２①'!$A18:$A105,"通常地域（8法内）",'別紙２①'!$E18:$E105,"畑",'別紙２①'!$G18:$G105,"交付対象外（田畑混在地）")+SUMIFS('別紙２①'!$F18:$F105,'別紙２①'!$A18:$A105,"通常地域（8法以外で棚田法の交付対象農用地）",'別紙２①'!$E18:$E105,"畑",'別紙２①'!$G18:$G105,"交付対象外（田畑混在地）") -> 1114 | BW15: =SUMIFS('別紙２①'!$F18:$F105,'別紙２①'!$A18:$A105,"通常地域（8法内）",'別紙２①'!$E18:$E105,"畑",'別紙２①'!$G18:$G105,"交付対象外（田畑混在地以外）")+SUMIFS('別紙２①'!$F18:$F105,'別紙２①'!$A18:$A105,"通常地域（8法以外で棚田法の交付対象農用地）",'別紙２①'!$E18:$E105,"畑",'別紙２①'!$G18:$G105,"交付対象外（田畑混在地以外）") -> 1647 | BX15: =BY15+BZ15+CA15+CB15+CC15+CD15+CE15 -> 1444 | BY15: =SUMIFS('別紙２①'!$F18:$F105,'別紙２①'!$A18:$A105,"通常地域（8法内）",'別紙２①'!$E18:$E105,"草地",'別紙２①'!$G18:$G105,"急傾斜")+SUMIFS('別紙２①'!$F18:$F105,'別紙２①'!$A18:$A105,"通常地域（8法以外で棚田法の交付対象農用地）",'別紙２①'!$E18:$E105,"草地",'別紙２①'!$G18:$G105,"急傾斜") -> 1444 | BZ15: =SUMIFS('別紙２①'!$F18:$F105,'別紙２①'!$A18:$A105,"通常地域（8法内）",'別紙２①'!$E18:$E105,"草地",'別紙２①'!$G18:$G105,"緩傾斜")+SUMIFS('別紙２①'!$F18:$F105,'別紙２①'!$A18:$A105,"通常地域（8法以外で棚田法の交付対象農用地）",'別紙２①'!$E18:$E105,"草地",'別紙２①'!$G18:$G105,"緩傾斜") -> 0 | CA15: =SUMIFS('別紙２①'!$F18:$F105,'別紙２①'!$A18:$A105,"通常地域（8法内）",'別紙２①'!$E18:$E105,"草地",'別紙２①'!$G18:$G105,"草地比率の高い草地")+SUMIFS('別紙２①'!$F18:$F105,'別紙２①'!$A18:$A105,"通常地域（8法以外で棚田法の交付対象農用地）",'別紙２①'!$E18:$E105,"草地",'別紙２①'!$G18:$G105,"草地比率の高い草地") -> 0 | CB15: =SUMIFS('別紙２①'!$F18:$F105,'別紙２①'!$A18:$A105,"通常地域（8法内）",'別紙２①'!$E18:$E105,"草地",'別紙２①'!$G18:$G105,"高齢化・耕作放棄率")+SUMIFS('別紙２①'!$F18:$F105,'別紙２①'!$A18:$A105,"通常地域（8法以外で棚田法の交付対象農用地）",'別紙２①'!$E18:$E105,"草地",'別紙２①'!$G18:$G105,"高齢化・耕作放棄率") -> 0 | CC15: =SUMIFS('別紙２①'!$F18:$F105,'別紙２①'!$A18:$A105,"通常地域（8法内）",'別紙２①'!$E18:$E105,"草地",'別紙２①'!$G18:$G105,"特認基準")+SUMIFS('別紙２①'!$F18:$F105,'別紙２①'!$A18:$A105,"通常地域（8法以外で棚田法の交付対象農用地）",'別紙２①'!$E18:$E105,"草地",'別紙２①'!$G18:$G105,"特認基準") -> 0 | CD15: =SUMIFS('別紙２①'!$F18:$F105,'別紙２①'!$A18:$A105,"通常地域（8法内）",'別紙２①'!$E18:$E105,"草地",'別紙２①'!$G18:$G105,"交付対象外（田草地混在地）")+SUMIFS('別紙２①'!$F18:$F105,'別紙２①'!$A18:$A105,"通常地域（8法以外で棚田法の交付対象農用地）",'別紙２①'!$E18:$E105,"草地",'別紙２①'!$G18:$G105,"交付対象外（田草地混在地）") -> 0 | CE15: =SUMIFS('別紙２①'!$F18:$F105,'別紙２①'!$A18:$A105,"通常地域（8法内）",'別紙２①'!$E18:$E105,"草地",'別紙２①'!$G18:$G105,"交付対象外（田草地混在地以外）")+SUMIFS('別紙２①'!$F18:$F105,'別紙２①'!$A18:$A105,"通常地域（8法以外で棚田法の交付対象農用地）",'別紙２①'!$E18:$E105,"草地",'別紙２①'!$G18:$G105,"交付対象外（田草地混在地以外）") -> 0 | CF15: =CG15+CH15+CI15+CJ15+CK15 -> 0 | CG15: =SUMIFS('別紙２①'!$F18:$F105,'別紙２①'!$A18:$A105,"通常地域（8法内）",'別紙２①'!$E18:$E105,"採草放牧地",'別紙２①'!$G18:$G105,"急傾斜")+SUMIFS('別紙２①'!$F18:$F105,'別紙２①'!$A18:$A105,"通常地域（8法以外で棚田法の交付対象農用地）",'別紙２①'!$E18:$E105,"採草放牧地",'別紙２①'!$G18:$G105,"急傾斜") -> 0 | CH15: =SUMIFS('別紙２①'!$F18:$F105,'別紙２①'!$A18:$A105,"通常地域（8法内）",'別紙２①'!$E18:$E105,"採草放牧地",'別紙２①'!$G18:$G105,"緩傾斜")+SUMIFS('別紙２①'!$F18:$F105,'別紙２①'!$A18:$A105,"通常地域（8法以外で棚田法の交付対象農用地）",'別紙２①'!$E18:$E105,"採草放牧地",'別紙２①'!$G18:$G105,"緩傾斜") -> 0 | CI15: =SUMIFS('別紙２①'!$F18:$F105,'別紙２①'!$A18:$A105,"通常地域（8法内）",'別紙２①'!$E18:$E105,"採草放牧地",'別紙２①'!$G18:$G105,"特認基準")+SUMIFS('別紙２①'!$F18:$F105,'別紙２①'!$A18:$A105,"通常地域（8法以外で棚田法の交付対象農用地）",'別紙２①'!$E18:$E105,"採草放牧地",'別紙２①'!$G18:$G105,"特認基準") -> 0 | CJ15: =SUMIFS('別紙２①'!$F18:$F105,'別紙２①'!$A18:$A105,"通常地域（8法内）",'別紙２①'!$E18:$E105,"採草放牧地",'別紙２①'!$G18:$G105,"交付対象外（田採草放牧地混在地）")+SUMIFS('別紙２①'!$F18:$F105,'別紙２①'!$A18:$A105,"通常地域（8法以外で棚田法の交付対象農用地）",'別紙２①'!$E18:$E105,"採草放牧地",'別紙２①'!$G18:$G105,"交付対象外（田採草放牧地混在地）") -> 0 | CK15: =SUMIFS('別紙２①'!$F18:$F105,'別紙２①'!$A18:$A105,"通常地域（8法内）",'別紙２①'!$E18:$E105,"採草放牧地",'別紙２①'!$G18:$G105,"交付対象外（田採草放牧地混在地以外）")+SUMIFS('別紙２①'!$F18:$F105,'別紙２①'!$A18:$A105,"通常地域（8法以外で棚田法の交付対象農用地）",'別紙２①'!$E18:$E105,"採草放牧地",'別紙２①'!$G18:$G105,"交付対象外（田採草放牧地混在地以外）") -> 0 | CM15: =CN15+CU15+DB15+DJ15 -> 10475 | CN15: =CO15+CP15+CQ15+CR15+CS15+CT15 -> 4446 | CO15: =SUMIFS('別紙２①'!$F18:$F105,'別紙２①'!$A18:$A105,"特認地域",'別紙２①'!$E18:$E105,"田",'別紙２①'!$G18:$G105,"急傾斜") -> 2555 | CP15: =SUMIFS('別紙２①'!$F18:$F105,'別紙２①'!$A18:$A105,"特認地域",'別紙２①'!$E18:$E105,"田",'別紙２①'!$G18:$G105,"緩傾斜") -> 0 | CQ15: =SUMIFS('別紙２①'!$F18:$F105,'別紙２①'!$A18:$A105,"特認地域",'別紙２①'!$E18:$E105,"田",'別紙２①'!$G18:$G105,"高齢化・耕作放棄率") -> 912 | CR15: =SUMIFS('別紙２①'!$F18:$F105,'別紙２①'!$A18:$A105,"特認地域",'別紙２①'!$E18:$E105,"田",'別紙２①'!$G18:$G105,"小区画・不整形") -> 979 | CS15: =SUMIFS('別紙２①'!$F18:$F105,'別紙２①'!$A18:$A105,"特認地域",'別紙２①'!$E18:$E105,"田",'別紙２①'!$G18:$G105,"特認基準") -> 0 | CT15: =SUMIFS('別紙２①'!$F18:$F105,'別紙２①'!$A18:$A105,"特認地域",'別紙２①'!$E18:$E105,"田",'別紙２①'!$G18:$G105,"交付対象外") -> 0 | CU15: =CV15+CW15+CX15+CY15+CZ15+DA15 -> 4249 | CV15: =SUMIFS('別紙２①'!$F18:$F105,'別紙２①'!$A18:$A105,"特認地域",'別紙２①'!$E18:$E105,"畑",'別紙２①'!$G18:$G105,"急傾斜") -> 0 | CW15: =SUMIFS('別紙２①'!$F18:$F105,'別紙２①'!$A18:$A105,"特認地域",'別紙２①'!$E18:$E105,"畑",'別紙２①'!$G18:$G105,"緩傾斜") -> 3692 | CX15: =SUMIFS('別紙２①'!$F18:$F105,'別紙２①'!$A18:$A105,"特認地域",'別紙２①'!$E18:$E105,"畑",'別紙２①'!$G18:$G105,"高齢化・耕作放棄率") -> 0 | CY15: =SUMIFS('別紙２①'!$F18:$F105,'別紙２①'!$A18:$A105,"特認地域",'別紙２①'!$E18:$E105,"畑",'別紙２①'!$G18:$G105,"特認基準") -> 557 | CZ15: =SUMIFS('別紙２①'!$F18:$F105,'別紙２①'!$A18:$A105,"特認地域",'別紙２①'!$E18:$E105,"畑",'別紙２①'!$G18:$G105,"交付対象外（田畑混在地）") -> 0 | DA15: =SUMIFS('別紙２①'!$F18:$F105,'別紙２①'!$A18:$A105,"特認地域",'別紙２①'!$E18:$E105,"畑",'別紙２①'!$G18:$G105,"交付対象外（田畑混在地以外）") -> 0 | DB15: =DC15+DD15+DE15+DF15+DG15+DH15+DI15 -> 860 | DC15: =SUMIFS('別紙２①'!$F18:$F105,'別紙２①'!$A18:$A105,"特認地域",'別紙２①'!$E18:$E105,"草地",'別紙２①'!$G18:$G105,"急傾斜") -> 110 | DD15: =SUMIFS('別紙２①'!$F18:$F105,'別紙２①'!$A18:$A105,"特認地域",'別紙２①'!$E18:$E105,"草地",'別紙２①'!$G18:$G105,"緩傾斜") -> 0 | DE15: =SUMIFS('別紙２①'!$F18:$F105,'別紙２①'!$A18:$A105,"特認地域",'別紙２①'!$E18:$E105,"草地",'別紙２①'!$G18:$G105,"草地比率の高い草地") -> 140 | DF15: =SUMIFS('別紙２①'!$F18:$F105,'別紙２①'!$A18:$A105,"特認地域",'別紙２①'!$E18:$E105,"草地",'別紙２①'!$G18:$G105,"高齢化・耕作放棄率") -> 130 | DG15: =SUMIFS('別紙２①'!$F18:$F105,'別紙２①'!$A18:$A105,"特認地域",'別紙２①'!$E18:$E105,"草地",'別紙２①'!$G18:$G105,"特認基準") -> 150 | DH15: =SUMIFS('別紙２①'!$F18:$F105,'別紙２①'!$A18:$A105,"特認地域",'別紙２①'!$E18:$E105,"草地",'別紙２①'!$G18:$G105,"交付対象外（田草地混在地）") -> 170 | DI15: =SUMIFS('別紙２①'!$F18:$F105,'別紙２①'!$A18:$A105,"特認地域",'別紙２①'!$E18:$E105,"草地",'別紙２①'!$G18:$G105,"交付対象外（田草地混在地以外）") -> 160 | DJ15: =DK15+DL15+DM15+DN15+DO15 -> 920 | DK15: =SUMIFS('別紙２①'!$F18:$F105,'別紙２①'!$A18:$A105,"特認地域",'別紙２①'!$E18:$E105,"採草放牧地",'別紙２①'!$G18:$G105,"急傾斜") -> 430 | DL15: =SUMIFS('別紙２①'!$F18:$F105,'別紙２①'!$A18:$A105,"特認地域",'別紙２①'!$E18:$E105,"採草放牧地",'別紙２①'!$G18:$G105,"緩傾斜") -> 0 | DM15: =SUMIFS('別紙２①'!$F18:$F105,'別紙２①'!$A18:$A105,"特認地域",'別紙２①'!$E18:$E105,"採草放牧地",'別紙２①'!$G18:$G105,"特認基準") -> 0 | DN15: =SUMIFS('別紙２①'!$F18:$F105,'別紙２①'!$A18:$A105,"特認地域",'別紙２①'!$E18:$E105,"採草放牧地",'別紙２①'!$G18:$G105,"交付対象外（田採草放牧地混在地）") -> 240 | DO15: =SUMIFS('別紙２①'!$F18:$F105,'別紙２①'!$A18:$A105,"特認地域",'別紙２①'!$E18:$E105,"採草放牧地",'別紙２①'!$G18:$G105,"交付対象外（田採草放牧地混在地以外）") -> 250 | DP15: ='別紙１④'!I64+'別紙１④'!N64+'別紙１④'!S64+'別紙１④'!X64 -> 426005 | DR15: =DS15+DX15+DY15+DZ15+EA15+EB15 -> 0 | DS15: =DT15+DU15+DV15 -> 0 | EC15: =EE15+EF15+EG15 -> 0 | EE15: =SUMIFS('別紙２①'!$F18:$F105,'別紙２①'!$P18:$P105,"荒廃農地",'別紙２①'!$Q18:$Q105,"復旧",'別紙２①'!$E18:$E105,"田") -> 0 | EF15: =SUMIFS('別紙２①'!$F18:$F105,'別紙２①'!$P18:$P105,"荒廃農地",'別紙２①'!$Q18:$Q105,"復旧",'別紙２①'!$E18:$E105,"畑") -> 0 | EG15: =SUMIFS('別紙２①'!$F18:$F105,'別紙２①'!$P18:$P105,"荒廃農地",'別紙２①'!$Q18:$Q105,"復旧",'別紙２①'!$E18:$E105,"草地") -> 0 | EH15: =SUMIFS('別紙２①'!$F18:$F105,'別紙２①'!$P18:$P105,"被災地",'別紙２①'!$Q18:$Q105,"復旧") -> 0 | EJ15: =SUMIFS('別紙２①'!$F18:$F105,'別紙２①'!$G18:$G105,"協定に含めない管理すべき農用地") -> 0 | EK15: =IF(SUM(EM15:EN15)>0,1,0) -> 1 | EL15: =EM15+EN15 -> 2140 | EM15: ='別紙１④'!B72 -> 907 | EN15: ='別紙１④'!E72 -> 1233 | EO15: ='別紙１④'!P72 -> 21400 | EQ15: =IF(SUM(ES15:ET15)>0,1,0) -> 0 | ER15: =ES15+ET15 -> 0 | ES15: ='別紙１④'!H73 -> 0 | ET15: ='別紙１④'!J73 -> 0 | EU15: ='別紙１④'!P73 -> 0 | EW15: ='別紙１④'!S257 -> [ア 棚田等の保全] 例1) 【集落機能強化】○○棚田の保全活動に取り組む人数を関係人口の協力を得て、〇人から〇人に増加させる。 例2）【生産性向上】〇〇棚田で自動草刈り機（防除用ドローン）を〇台導入し、共同で行う草刈り（防除）の面積を〇％増加する。 | EX15: ='別紙１④'!J259 -> 11 | EZ15: ='別紙１④'!S261 -> [イ 棚田等の保全を通じた多面にわたる機能の維持・発揮] 例) 【生産性向上】食味基準を設ける等により品質向上を図り棚田米の販売量/額を〇t /円 から〇t /円に増加させる。 | FA15: ='別紙１④'!J259 -> 11 | FC15: ='別紙１④'!S262 -> [ウ 棚田を核とした棚田地域の振興] 例1)【集落機能強化】〇〇棚田地域における棚田オーナー等の関係人口を〇人から〇人に増加させる。 例2)【棚田の価値を活かした活動】棚田の周辺に直売所（農家レストラン）を整備し、年間〇円の売り上げを達成する。 例3）【生産性向上】棚田米を原料とした〇〇（加工品）の販売量を〇tから〇tに増加させる。 | FD15: ='別紙１④'!J259 -> 11 | FF15: =IF(SUM(FH15:FI15)>0,1,0) -> 1 | FG15: =FH15+FI15 -> 738 | FH15: ='別紙１④'!B81 -> 738 | FI15: ='別紙１④'!E81 -> 0 | FJ15: ='別紙１④'!S81 -> 4428 | GH15: =IF(GI15>0,1,0) -> 0 | GI15: ='別紙１④'!B89+'別紙１④'!D89+'別紙１④'!F89+'別紙１④'!I89+'別紙１④'!B90+'別紙１④'!D90+'別紙１④'!F90+'別紙１④'!I90 -> 0 | GJ15: ='別紙１④'!S89 -> 0 | GL15: =COUNTIFS('別紙１④'!$B$98:$F$102,"<>") -> 2 | GM15: =COUNTIFS('別紙１④'!$H$98:$J$102,"<>") -> 0 | GN15: =GO15+GP15 -> 0 | GQ15: =SUM(GR15:GT15) -> 0 | GU15: ='別紙１④'!S267 -> ［ネットワーク化・統合等により実現する農業生産活動等の継続のための取組］ 例1) 機械の共同利用のための組織を立ち上げ、ネットワーク化した協定の農用地の●％で機械利用の共同化を行う。 例2) 生産、加工、販売の過程を総合的に主導する人材を○名確保する。 例3)農泊事業と連携して農業体験ツアーを行う体制を構築し、体験参加者を○人から△人に増加させる。 （人材の確保後記入） 氏名等 ○○ ○○ | GV15: ='別紙１④'!J269 -> 11 | GX15: =IF(GY15>0,1,0) -> 0 | GY15: ='別紙１④'!B111+'別紙１④'!D111+'別紙１④'!F111+'別紙１④'!I111 -> 0 | GZ15: ='別紙１④'!P111 -> 0 | HB15: ='別紙１④'!S271 -> [スマート農業による作業の省力化・効率化を図る取組] 例1) ドローンを導入し、オペレーターを育成するとともに、農薬散布に要する時間を○割減少させる。（農薬散布を行う面積を△haから□haに増加させる） 例2) リモコン式自走式草刈機を導入し、除草作業時間を○時間／日だけ減少させる。（リモコン式自走草刈機を利用する面積を△haから□haに増加させる） | HC15: ='別紙１④'!J273 -> 11 | HE15: =IF(HF15>0,1,0) -> 1 | HF15: ='別紙１④'!I111+'別紙１④'!K111+'別紙１④'!M111+'別紙１④'!P111 -> 5000 | HG15: ='別紙１④'!W111 -> 0 | HI15: ='別紙１④'!Z271 -> 0 | HJ15: ='別紙１④'!Q273 -> 0 | HL15: =IF('別紙２①'!G6="〇",1,"") -> 1 | HM15: =IF('別紙２①'!G8="〇",1,"") ->  | HN15: =DP15+EO15+EU15+FJ15+GJ15+GZ15+HG15 -> 451833 | HO15: =DQ15+EP15+EV15+FK15+GK15+HA15+HH15 -> 0 | HP15: =HN15-HR15 -> 251833 | HQ15: =HP15/HN15 -> 0.5573585816 | HR15: ='別紙１④'!M242 -> 200000 | HT15: =HN15+HS15 -> 451833 | HV15: =HW15+HX15+HY15+HZ15+IA15+IB15+IC15+ID15+IE15+IF15+IG15+IH15+II15+IJ15 -> 4000000 | HW15: ='別紙１④'!R206 -> 300000 | HX15: ='別紙１④'!R207 -> 30000 | HY15: ='別紙１④'!R212 -> 1000000 | HZ15: ='別紙１④'!R214 -> 800000 | IA15: ='別紙１④'!R216 -> 500000 | IB15: ='別紙１④'!R217 -> 500000 | IC15: ='別紙１④'!R218 -> 600000 | ID15: ='別紙１④'!R219 -> 30000 | IE15: ='別紙１④'!R211 -> 20000 | IF15: ='別紙１④'!R210 -> 100000 | IG15: ='別紙１④'!R208 -> 20000 | IH15: ='別紙１④'!R209 -> 100000 | IL15: =SUM(IN15:IV15) -> 1 | IM15: =IF('別紙１④'!A156="✓",1,"") -> 1 | IN15: =IF('別紙１④'!A158="〇",1,"") -> 1 | IO15: =IF('別紙１④'!A159="〇",1,"") ->  | IP15: =IF('別紙１④'!A160="〇",1,"") ->  | IQ15: =IF('別紙１④'!A161="〇",1,"") ->  | IR15: =IF('別紙１④'!A162="〇",1,"") ->  | IS15: =IF('別紙１④'!A163="〇",1,"") ->  | IT15: =IF('別紙１④'!A164="〇",1,"") ->  | IU15: =IF('別紙１④'!A165="〇",1,"") ->  | IV15: =IF('別紙１④'!A166="〇",1,"") ->  | IW15: =SUM(IX15:IZ15) -> 3 | IX15: =IF(OR('別紙１④'!H170="〇",'別紙１④'!N170="〇",'別紙１④'!S170="〇"),1,"") -> 1 | IY15: =IF(OR('別紙１④'!H171="〇",'別紙１④'!N171="〇",'別紙１④'!S171="〇"),1,"") -> 1 | IZ15: =IF('別紙１④'!D172<>"",1,"") -> 1 | JA15: =SUM(JB15:JK15) -> 4 | JB15: =IF('別紙１④'!A178="〇",1,"") -> 1 | JC15: =IF('別紙１④'!A179="〇",1,"") ->  | JD15: =IF('別紙１④'!A180="〇",1,"") ->  | JE15: =IF('別紙１④'!A181="〇",1,"") -> 1 | JF15: =IF('別紙１④'!A182="〇",1,"") ->  | JG15: =IF('別紙１④'!A183="〇",1,"") ->  | JH15: =IF('別紙１④'!A184="〇",1,"") -> 1 | JI15: =IF('別紙１④'!A185="〇",1,"") ->  | JJ15: =IF('別紙１④'!A186="〇",1,"") -> 1 | JK15: =IF('別紙１④'!A187="〇",1,"") ->  | JL15: =SUM(JM15:JP15) -> 2 | JM15: =IF('別紙１④'!B131="〇",1,"") -> 1 | JN15: =IF('別紙１④'!B132="〇",1,"") -> 1 | JO15: =IF('別紙１④'!B133="〇",1,"") ->  | JP15: =IF('別紙１④'!B134="〇",1,"") ->  | JQ15: ='別紙１④'!D135&"" -> 例)農業生産活動の継続に向けた集落機能強化 | JR15: =SUM(JS15:KB15) -> 2 | JS15: =IF('別紙１④'!B140="〇",1,"") -> 1 | JT15: =IF('別紙１④'!B141="〇",1,"") ->  | JU15: =IF('別紙１④'!B142="〇",1,"") ->  | JV15: =IF('別紙１④'!B143="〇",1,"") ->  | JW15: =IF('別紙１④'!B144="〇",1,"") ->  | JX15: =IF('別紙１④'!B145="〇",1,"") ->  | JY15: =IF('別紙１④'!B146="〇",1,"") ->  | JZ15: =IF('別紙１④'!B147="〇",1,"") -> 1 | KA15: =IF('別紙１④'!B148="〇",1,"") ->  | KB15: =IF('別紙１④'!B149="〇",1,"") ->  | KC15: ='別紙１④'!N150&"" ->  | KE15: =IF('別紙２②（ネットワーク化活動計画）'!B17="○",1,"") -> 1 | KF15: =IF('別紙２②（ネットワーク化活動計画）'!B19="○",1,"") -> 1 | KG15: =IF('別紙２②（ネットワーク化活動計画）'!B21="○",1,"") -> 1 | KH15: ='別紙２③（ネットワーク化）'!$B$6&"" -> 農林地域集落協定ネットワーク協議会 | KI15: =COUNTIFS('別紙２③（ネットワーク化）'!$B$11:$B$14,"<>") -> 3 | KJ15: ='別紙２③（ネットワーク化）'!$F$15 -> 378.52 | KK15: =IF('別紙２③（ネットワーク化）'!$B$23="○",1,"") -> 1 | KL15: =IF('別紙２③（ネットワーク化）'!$B$21="○",1,"") -> 1 | KM15: =IF('別紙２③（ネットワーク化）'!$B$22="○",1,"") ->  | KN15: =IF('別紙２③（ネットワーク化）'!$B$23="○",1,"") -> 1 | KO15: =IF('別紙２③（ネットワーク化）'!$H$20="○",1,"") ->  | KP15: =IF('別紙２③（ネットワーク化）'!$H$21="○",1,"") -> 1 | KQ15: =IF('別紙２③（ネットワーク化）'!$H$22="○",1,"") ->  | KR15: ='別紙２③（ネットワーク化）'!J23&"" ->  | KS15: =IF('別紙２③（ネットワーク化）'!$B$29="○",1,"") -> 1 | KT15: =IF('別紙２③（ネットワーク化）'!$B$31="○",1,"") ->  | KU15: =IF('別紙２③（ネットワーク化）'!$B$32="○",1,"") ->  | KV15: =IF('別紙２③（ネットワーク化）'!$B$33="○",1,"") ->  | KW15: =IF('別紙２③（ネットワーク化）'!$B$34="○",1,"") -> 1 | KX15: =IF('別紙２③（ネットワーク化）'!$H$29="○",1,"") -> 1 | KY15: =IF('別紙２③（ネットワーク化）'!$H$30="○",1,"") -> 1 | KZ15: =IF('別紙２③（ネットワーク化）'!$H$31="○",1,"") -> 1 | LA15: =IF('別紙２③（ネットワーク化）'!$H$32="○",1,"") ->  | LB15: =IF('別紙２③（ネットワーク化）'!$H$33="○",1,"") ->  | LC15: ='別紙２③（ネットワーク化）'!J34&"" ->  | LD15: =IF('別紙２③（ネットワーク化）'!$B$38="○",1,"") -> 1 | LE15: =IF('別紙２③（ネットワーク化）'!$B$39="○",1,"") -> 1 | LF15: =IF('別紙２③（ネットワーク化）'!$G$38="○",1,"") ->  | LG15: =IF('別紙２③（ネットワーク化）'!$G$39="○",1,"") ->  | LH15: ='別紙２③（ネットワーク化）'!J39&"" ->  | LJ15: =IF('別紙２③（ネットワーク化）'!$B$65="○",1,"") ->  | LK15: =IF('別紙２③（ネットワーク化）'!$B$66="○",1,"") -> 1 | LL15: =IF('別紙２③（ネットワーク化）'!$B$67="○",1,"") ->  | LM15: =IF('別紙２③（ネットワーク化）'!$B$68="○",1,"") ->  | LN15: =IF('別紙２③（ネットワーク化）'!$B$69="○",1,"") ->  | LO15: =IF('別紙２③（ネットワーク化）'!$B$70="○",1,"") ->  | LP15: ='別紙２③（ネットワーク化）'!F70&"" ->  | LQ15: ='別紙２④（統合）'!$B$6&"" -> 農林地域広域集落協定 | LR15: =COUNTIFS('別紙２④（統合）'!$B$11:$B$14,"<>") -> 3 | LS15: ='別紙２④（統合）'!$F$15 -> 375.82 | LT15: =IF('別紙２④（統合）'!$B$20="○",1,"") ->  | LU15: =IF('別紙２④（統合）'!$B$21="○",1,"") -> 1 | LV15: =IF('別紙２④（統合）'!$B$22="○",1,"") ->  | LW15: =IF('別紙２④（統合）'!$B$23="○",1,"") -> 1 | LX15: =IF('別紙２④（統合）'!$H$20="○",1,"") ->  | LY15: =IF('別紙２④（統合）'!$H$21="○",1,"") ->  | LZ15: =IF('別紙２④（統合）'!$H$22="○",1,"") -> 1 | MA15: ='別紙２④（統合）'!$J$23&"" -> 農作業機械の老朽化及びオペレーターの不足 | MB15: =IF('別紙２④（統合）'!$B$29="○",1,"") -> 1 | MC15: =IF('別紙２④（統合）'!$B$30="○",1,"") ->  | MD15: =IF('別紙２④（統合）'!$B$31="○",1,"") -> 1 | ME15: =IF('別紙２④（統合）'!$B$32="○",1,"") -> 1 | MF15: =IF('別紙２④（統合）'!$B$33="○",1,"") -> 1 | MG15: =IF('別紙２④（統合）'!$H$29="○",1,"") ->  | MH15: =IF('別紙２④（統合）'!$H$30="○",1,"") ->  | MI15: =IF('別紙２④（統合）'!$H$31="○",1,"") ->  | MJ15: =IF('別紙２④（統合）'!$H$32="○",1,"") -> 1 | MK15: =IF('別紙２④（統合）'!$H$33="○",1,"") -> 1 | ML15: =IF('別紙２④（統合）'!$H$34="○",1,"") ->  | MM15: ='別紙２④（統合）'!$J$34&"" -> 農作業機械のオペレーターの確保 | MO15: =MP15+MZ15 -> 0 | MP15: =SUM(MQ15:MY15) -> 0 | MZ15: =SUM(NA15:NI15) -> 0 | NJ15: =NK15+NL15 -> 5 | NK15: =R15 -> 0 | NL15: ='別紙２⑤（多様な組織等の参画）'!G22 -> 5 | NM15: =IF('別紙２⑤（多様な組織等の参画）'!$B$31="○",1,"") -> 1 | NN15: =IF('別紙２⑤（多様な組織等の参画）'!$B$32="○",1,"") -> 1 | NO15: =IF('別紙２⑤（多様な組織等の参画）'!$B$33="○",1,"") ->  | NP15: =IF('別紙２⑤（多様な組織等の参画）'!$H$31="○",1,"") ->  | NQ15: =IF('別紙２⑤（多様な組織等の参画）'!$H$32="○",1,"") -> 1 | NR15: ='別紙２⑤（多様な組織等の参画）'!$J$33&"" -> 棚田の荒廃 | NS15: =IF('別紙２⑤（多様な組織等の参画）'!$B$39="○",1,"") -> 1 | NT15: =IF('別紙２⑤（多様な組織等の参画）'!$B$40="○",1,"") -> 1 | NU15: =IF('別紙２⑤（多様な組織等の参画）'!$B$41="○",1,"") ->  | NV15: =IF('別紙２⑤（多様な組織等の参画）'!$B$42="○",1,"") -> 1 | NW15: =IF('別紙２⑤（多様な組織等の参画）'!$B$43="○",1,"") ->  | NX15: =IF('別紙２⑤（多様な組織等の参画）'!$H$39="○",1,"") ->  | NY15: =IF('別紙２⑤（多様な組織等の参画）'!$H$40="○",1,"") -> 1 | NZ15: =IF('別紙２⑤（多様な組織等の参画）'!$H$41="○",1,"") -> 1 | OA15: ='別紙２⑤（多様な組織等の参画）'!$J$42&"" -> 棚田資源を活かした振興活動
